Workbook

Sheet PV GIS
P39: 1762
P40: 8760
P41: =P39/P40 -> 0.2011415525
P58: 2288
P59: =P58/8760 -> 0.2611872146
P62: =P58/P39-1 -> 0.2985244041

Sheet Levelised Cost
D1: Real LCOE
D2: Target vs Met | E2: kWh | F2: =Target!P60 -> -378.308597 | G2: =Inputs!L3 -> -0.002597883318
D4: Step 1: Battery Allocation
D5: Other | F5: =1-F6 -> 0.4 | G5: 300
D6: Battery Banks | F6: 0.6
G7: Strategy 1 | K7: Strategy 2 | M7: Strategy 3
G8: Bank | H8: Other | K8: NGCC
F9: Solar | G9: Battery | H9: Battery | I9: Total | K9: Total | M9: Solar | N9: NGCC | O9: Total
B10: Step 1: Production
C11: Consistent Total
D12: Target Load | E12: kW-hr | F12: =Target!Q16/8760 -> 52.0489733 | I12: 100 | K12: 100 | M12: =I12 -> 100 | N12: 100
D13: Load Factor | E13: % | F13: =F12/F16 -> 0.2602448665 | I13: =Inputs!$G$13 -> 0.5 | K13: =K14/8760/K16 -> 0.4987044241 | M13: =F13 -> 0.2602448665 | N13: =N14/8760/N12 -> 0.2384595576
D14: Annual Production | E14: kWh/yr | F14: =Target!Q16 -> 455949.0061 | I14: =Target!N16 -> 436865.0755 | K14: =I14 -> 436865.0755 | M14: =M12*M13*8760 -> 227974.503 | N14: =O14-M14 -> 208890.5725 | O14: =I14 -> 436865.0755
D16: Capacity | E16: kWp | F16: =Inputs!G17 -> 200 | G16: =Inputs!$G$19 -> 200 | H16: =G16 -> 200 | K16: =K12 -> 100 | M16: =M12 -> 100 | N16: =K16 -> 100
D17: Capacity | E17: kWh | G17: =Inputs!$G$21 -> 600 | H17: =Inputs!$G$21 -> 600
B19: Step 2: Capital Expenditure
C20: Cost Driver | K20: 800 | M20: 700 | N20: 800
D21: Cost/kWp | E21: USD/kWp | F21: 700
D22: Cost/kWh | E22: USD/kWh | G22: =F6*G5 -> 180 | H22: =G5-G22 -> 120
C24: To the LCOE Calculator
D25: Total Capital | E25: USD | F25: =F21*F16 -> 140000 | G25: =G22*G17 -> 108000 | H25: =H22*H17 -> 72000 | I25: =SUM(F25:H25) -> 320000 | K25: =K20*K16 -> 80000 | M25: =M20*M12 -> 70000 | N25: =N20*N16 -> 80000 | O25: =SUM(M25:N25) -> 150000
D27: Economic Life | E27: Years | F27: 35 | G27: 13 | H27: 30 | K27: 20 | M27: =F27 -> 35 | N27: =K27 -> 20
D28: Degradation | E28: % p.a. | F28: 0.005 | G28: 0 | H28: 0 | K28: 0 | M28: 0.005 | N28: 0
D30: Tax Rate | E30: % | F30: 0.25 | G30: 0.25 | H30: 0.25 | K30: 0.25 | M30: 0.25 | N30: 0.25
D31: Tax Life | E31: Years | F31: 15 | G31: 15 | H31: 15 | K31: 15 | M31: 15 | N31: 15
D33: Debt Cost | E33: % p.a. | F33: 0.03 | G33: 0.03 | H33: 0.03 | K33: 0.03 | M33: 0.03 | N33: 0.03
D34: Equity Return | E34: % p.a. | F34: 0.08 | G34: 0.08 | H34: 0.08 | K34: 0.08 | M34: 0.08 | N34: 0.08
D35: Debt to Capital | E35: % | F35: 0.8 | G35: 0.8 | H35: 0.8 | K35: 0.8 | M35: 0.8 | N35: 0.8
D36: Inflation Rate | E36: % p.a. | F36: 0.02 | G36: 0.02 | H36: 0.02 | K36: 0.02 | M36: 0.02 | N36: 0.02
C38: From the LCOE Calculator
D39: Total Capital Recovery | E39: USD | F39: ='Detailed LCOE Calculator'!H77 -> 6084.616047 | G39: ='Detailed LCOE Calculator'!I77 -> 9995.207577 | H39: ='Detailed LCOE Calculator'!J77 -> 3252.660582 | I39: =F39+G39+H39 -> 19332.48421 | K39: ='Detailed LCOE Calculator'!K77 -> 5057.571784 | M39: ='Detailed LCOE Calculator'!L77 -> 3042.308023 | N39: ='Detailed LCOE Calculator'!M77 -> 5057.571784 | O39: =N39+M39 -> 8099.879808
B41: Step 3: Operation Cost
D42: Fixed O&M Cost | E42: USD/kW-y | F42: 15 | G42: 0.02 | H42: 0.02 | K42: 15 | M42: 15 | N42: 15
D43: Variable Cost | E43: USD/MWH | F43: 0 | G43: 0 | H43: 0 | K43: 5 | M43: 0 | N43: 5
D44: Emissions | E44: Tons/GWH
D45: Emissions Cost | E45: USD/ton
D47: First Year Non Fuel O&M | E47: USD | F47: =F42*F16 -> 3000 | G47: =G42*G25 -> 2160 | H47: =H42*H25 -> 1440 | K47: =K43*K14/1000+K42*K16 -> 3684.325378 | M47: =M42*M16 -> 1500 | N47: =N43*N14/1000+N42*N16 -> 2544.452862
D49: Heat Rate | E49: MMBTU/Mwh | K49: 6.5 | N49: 6.5
D50: Gas Price | E50: USD/MMBTU | K50: 11 | N50: =K50 -> 11
D51: Gas Cost | E51: USD/MWH | K51: =K49*K50 -> 71.5 | N51: =N49*N50 -> 71.5
D52: Total Fuel Cost | E52: USD | K52: =K51*K14/1000 -> 31235.8529 | N52: =N51*N14/1000 -> 14935.67593
D54: Total Cost | E54: USD | F54: =F52+F47 -> 3000 | G54: =G52+G47 -> 2160 | H54: =H52+H47 -> 1440 | K54: =K52+K47 -> 34920.17828 | M54: =M52+M47 -> 1500 | N54: =N52+N47 -> 17480.12879
D56: Adjusted Cost for Degrad | E56: USD | F56: ='Detailed LCOE Calculator'!H66 -> 3254.532032 | G56: ='Detailed LCOE Calculator'!I66 -> 2160 | H56: ='Detailed LCOE Calculator'!J66 -> 1440 | I56: =F56+G56+H56 -> 6854.532032 | K56: ='Detailed LCOE Calculator'!K66 -> 34920.17828 | M56: ='Detailed LCOE Calculator'!L66 -> 1623.200074 | N56: ='Detailed LCOE Calculator'!M66 -> 17480.12879 | O56: =N56+M56 -> 19103.32887
B58: Step 4: Total LCOE
D59: Total Cost | F59: =F47+F39 -> 9084.616047 | I59: =I56+I39 -> 26187.01624 | K59: =K56+K39 -> 39977.75006 | O59: =O56+O39 -> 27203.20868
D60: Total Production | F60: =F14 -> 455949.0061 | I60: =I14 -> 436865.0755 | K60: =K14 -> 436865.0755 | O60: =O14 -> 436865.0755
D61: Final LCOE | F61: =F59/F60 -> 0.01992463176 | I61: =I59/I60 -> 0.0599430298 | K61: =K59/K60 -> 0.09151051961 | O61: =O59/O60 -> 0.06226913114
O63: =O61/I61 -> 1.038805201

Sheet Detailed LCOE Calculator
B2: Technology | E2: 1 | H2: Project 1 | I2: Project 2 | J2: Project 3 | K2: Project 4 | L2: Project 4 | M2: Project 4 | N2: Project 4 | O2: Project 4
B4: Real LCOE | H4: =H83 -> 58.3696755 | I4: =I83 -> 75.97004736 | J4: =J83 -> 29.32912864 | K4: =K83 -> 249.8609379 | L4: =L83 -> 29.15942561 | M4: 140.8606286 | N4: 4.375 | O4: 22.90598779
C6: Annual Production | E6: Quantity | H6: 160 | I6: 160 | J6: 160 | K6: 160 | L6: 160 | M6: 160 | N6: 160 | O6: 160
C7: Total Capital Cost | E7: USD | H7: ='Levelised Cost'!F25 -> 140000 | I7: ='Levelised Cost'!G25 -> 108000 | J7: ='Levelised Cost'!H25 -> 72000 | K7: ='Levelised Cost'!K25 -> 80000 | L7: ='Levelised Cost'!M25 -> 70000 | M7: ='Levelised Cost'!N25 -> 80000 | N7: ='Levelised Cost'!L25 -> 0 | O7: ='Levelised Cost'!M25 -> 70000
B9: Carrying Charge Analysis
C10: Project Life | E10: Yr | H10: ='Levelised Cost'!F27 -> 35 | I10: ='Levelised Cost'!G27 -> 13 | J10: ='Levelised Cost'!H27 -> 30 | K10: ='Levelised Cost'!K27 -> 20 | L10: ='Levelised Cost'!M27 -> 35 | M10: ='Levelised Cost'!N27 -> 20 | N10: 30 | O10: 30
C11: Tax Life | E11: Yr | H11: ='Levelised Cost'!F31 -> 15 | I11: ='Levelised Cost'!G31 -> 15 | J11: ='Levelised Cost'!H31 -> 15 | K11: ='Levelised Cost'!K31 -> 15 | L11: ='Levelised Cost'!M31 -> 15 | M11: ='Levelised Cost'!N31 -> 15 | N11: 5 | O11: 5
C12: Income Tax Rate | E12: % | H12: ='Levelised Cost'!F30 -> 0.25 | I12: ='Levelised Cost'!G30 -> 0.25 | J12: ='Levelised Cost'!H30 -> 0.25 | K12: ='Levelised Cost'!K30 -> 0.25 | L12: ='Levelised Cost'!M30 -> 0.25 | M12: ='Levelised Cost'!N30 -> 0.25 | N12: 0.3 | O12: 0.3
C13: Variable Declining Balance Factor (1-St Line) | E13: Factor | H13: 1 | I13: 1 | J13: 1 | K13: 1 | L13: 1 | M13: 1 | N13: 1 | O13: 1
C14: Debt to Captial | E14: % | H14: ='Levelised Cost'!F35 -> 0.8 | I14: ='Levelised Cost'!G35 -> 0.8 | J14: ='Levelised Cost'!H35 -> 0.8 | K14: ='Levelised Cost'!K35 -> 0.8 | L14: ='Levelised Cost'!M35 -> 0.8 | M14: ='Levelised Cost'!N35 -> 0.8 | N14: 0.8 | O14: 0.8
C15: Target Equity IRR | E15: % | H15: ='Levelised Cost'!F34 -> 0.08 | I15: ='Levelised Cost'!G34 -> 0.08 | J15: ='Levelised Cost'!H34 -> 0.08 | K15: ='Levelised Cost'!K34 -> 0.08 | L15: ='Levelised Cost'!M34 -> 0.08 | M15: ='Levelised Cost'!N34 -> 0.08 | N15: 0.075 | O15: 0.075
C16: Cost of Debt | E16: % | H16: 0.032 | I16: 0.032 | J16: 0.032 | K16: 0.032 | L16: 0.032 | M16: 0.032 | N16: 0.032 | O16: 0.032
C17: After Cost of Debt | E17: % | H17: =H16*(1-H12) -> 0.024 | I17: =I16*(1-I12) -> 0.024 | J17: =J16*(1-J12) -> 0.024 | K17: =K16*(1-K12) -> 0.024 | L17: =L16*(1-L12) -> 0.024 | M17: 0.024 | N17: 0.0224 | O17: 0.0224
C18: WACC | E18: % | H18: =H17*H14+H15*(1-H14) -> 0.0352 | I18: =I17*I14+I15*(1-I14) -> 0.0352 | J18: =J17*J14+J15*(1-J14) -> 0.0352 | K18: =K17*K14+K15*(1-K14) -> 0.0352 | L18: =L17*L14+L15*(1-L14) -> 0.0352 | M18: 0.0352 | N18: 0.03292 | O18: 0.03292
C20: Required Nominal Project IRR | E20: % p.a. | H20: =H18 -> 0.0352 | I20: =I18 -> 0.0352 | J20: =J18 -> 0.0352 | K20: =K18 -> 0.0352 | L20: =L18 -> 0.0352 | M20: 0.0352 | N20: 0.03292 | O20: 0.03292
C22: Inflation | E22: % p.a. | H22: ='Levelised Cost'!F36 -> 0.02 | I22: ='Levelised Cost'!G36 -> 0.02 | J22: ='Levelised Cost'!H36 -> 0.02 | K22: ='Levelised Cost'!K36 -> 0.02 | L22: ='Levelised Cost'!M36 -> 0.02 | M22: ='Levelised Cost'!N36 -> 0.02 | N22: 0.02 | O22: 0.02
C23: Degradation | E23: % p.a. | H23: ='Levelised Cost'!F28 -> 0.005 | I23: ='Levelised Cost'!G28 -> 0 | J23: ='Levelised Cost'!H28 -> 0 | K23: ='Levelised Cost'!K28 -> 0 | L23: ='Levelised Cost'!M28 -> 0.005 | M23: ='Levelised Cost'!N28 -> 0 | N23: ='Levelised Cost'!O28 -> 0 | O23: ='Levelised Cost'!P28 -> 0
C24: Tax Shield Value | E24: % | H24: =tax_dep_shield(H11,H13,H20,H12) -> 0.1851662518 | I24: =tax_dep_shield(I11,I13,I20,I12) -> 0.1851662518 | J24: =tax_dep_shield(J11,J13,J20,J12) -> 0.1851662518 | K24: =tax_dep_shield(K11,K13,K20,K12) -> 0.1851662518 | L24: =tax_dep_shield(L11,L13,L20,L12) -> 0.1851662518 | M24: =tax_dep_shield(M11,M13,M20,M12) -> 0.1851662518 | N24: =tax_dep_shield(N11,N13,N20,N12) -> 0.2638214004 | O24: =tax_dep_shield(O11,O13,O20,O12) -> 0.2638214004
C26: Levelizing Factor with PMT | E26: % | H26: =PMT(H20,H10,-1) -> 0.05013924128 | I26: =PMT(I20,I10,-1) -> 0.09718390069 | J26: =PMT(J20,J10,-1) -> 0.05450765973 | K26: =PMT(K20,K10,-1) -> 0.07048846812 | L26: =PMT(L20,L10,-1) -> 0.05013924128 | M26: 0.07048846812 | N26: 0.05296368708 | O26: 0.05296368708
C27: Capital Recovery Pre-Tax | E27: USD/yr | H27: =H26*H7 -> 7019.493779 | I27: =I26*I7 -> 10495.86127 | J27: =J26*J7 -> 3924.551501 | K27: =K26*K7 -> 5639.077449 | L27: =L26*L7 -> 3509.746889 | M27: 5639.077449 | N27: 0 | O27: 3707.458095
C29: Capital Cost Recovery Base | E29: USD/yr | H29: =H26*H7 -> 7019.493779 | I29: =I26*I7 -> 10495.86127 | J29: =J26*J7 -> 3924.551501 | K29: =K26*K7 -> 5639.077449 | L29: =L26*L7 -> 3509.746889 | M29: 5639.077449 | N29: 0 | O29: 3707.458095
C30: IRR Adjusted for Degradation | E30: % p.a. | H30: =(1+H20)/(1-H23)-1 -> 0.04040201005 | I30: 0.0352 | J30: 0.0352 | K30: 0.0352 | L30: =(1+L20)/(1-L23)-1 -> 0.04040201005 | M30: 0.0352 | N30: 0.03292 | O30: 0.03292
C31: Nominal Levelizing Factor with Degradation | E31: % p.a. | H31: =PMT(H30,H10,-1) -> 0.05387011585 | I31: =PMT(I30,I10,-1) -> 0.09718390069 | J31: =PMT(J30,J10,-1) -> 0.05450765973 | K31: =PMT(K30,K10,-1) -> 0.07048846812 | L31: =PMT(L30,L10,-1) -> 0.05387011585 | M31: 0.07048846812 | N31: 0.05296368708 | O31: 0.05296368708
C32: PMT Factor Adjusted for Paying Taxes | E32: % p.a. | H32: =H31/(1-H12) -> 0.07182682113 | I32: =I31/(1-I12) -> 0.1295785343 | J32: =J31/(1-J12) -> 0.07267687964 | K32: =K31/(1-K12) -> 0.09398462416 | L32: =L31/(1-L12) -> 0.07182682113 | M32: 0.09398462416 | N32: 0.07566241011 | O32: 0.07566241011
C33: PMT Factor Adjust for Tax Depreciation Shield | E33: % p.a. | H33: =H32*(1-H24) -> 0.05852691788 | I33: =I32*(1-I24) -> 0.1055849627 | J33: =J32*(1-J24) -> 0.05921957424 | K33: =K32*(1-K24) -> 0.07658184357 | L33: =L32*(1-L24) -> 0.05852691788 | M33: 0.07658184357 | N33: 0.05570104712 | O33: 0.05570104712
C35: Construction Timing | E35: Year | H35: 1 | I35: 1 | J35: 1 | K35: 1 | L35: 1 | M35: 1 | N35: 1 | O35: 1
C36: Construction Factor | E36: Factor | H36: =FV(H20,H35,-1/H35) -> 1 | I36: 1 | J36: 1 | K36: 1 | L36: =FV(L20,L35,-1/L35) -> 1 | M36: 1 | N36: 1 | O36: 1
C37: Capital Cost Recovery with Degradation | E37: USD/yr | H37: =H33*H7*H36 -> 8193.768503 | I37: =I33*I7*I36 -> 11403.17598 | J37: =J33*J7*J36 -> 4263.809345 | K37: =K33*K7*K36 -> 6126.547486 | L37: =L33*L7*L36 -> 4096.884251 | M37: 6126.547486 | N37: 0 | O37: 3899.073298
C39: Real IRR | E39: % p.a. | H39: =(1+H20)/(1+H22)-1 -> 0.01490196078 | I39: 0.01490196078 | J39: 0.01490196078 | K39: 0.01490196078 | L39: =(1+L20)/(1+L22)-1 -> 0.01490196078 | M39: 0.01490196078 | N39: 0.01266666667 | O39: 0.01266666667
C40: Levelizing Factor with Real IRR | E40: % p.a. | H40: =(1+H39)/(1-H23)-1 -> 0.02000197064 | I40: 0.01490196078 | J40: 0.01490196078 | K40: 0.01490196078 | L40: =(1+L39)/(1-L23)-1 -> 0.02000197064 | M40: 0.01490196078 | N40: 0.01266666667 | O40: 0.01266666667
C41: Real IRR Adjusted for Degradation | E41: % p.a. | H41: =(1+H39)/(1-H23)-1 -> 0.02000197064 | I41: 0.01490196078 | J41: 0.01490196078 | K41: 0.01490196078 | L41: =(1+L39)/(1-L23)-1 -> 0.02000197064 | M41: 0.01490196078 | N41: 0.01266666667 | O41: 0.01266666667
C42: Levelizing Factor with Real IRR and Degradation | E42: % p.a. | H42: =PMT(H41,H10,-1) -> 0.04000344545 | I42: =PMT(I41,I10,-1) -> 0.08518444884 | J42: =PMT(J41,J10,-1) -> 0.04158134237 | K42: =PMT(K41,K10,-1) -> 0.05818945961 | L42: =PMT(L41,L10,-1) -> 0.04000344545 | M42: 0.05818945961 | N42: 0.04027498283 | O42: 0.04027498283
C44: Adj for Tax on Inc (Divide by (1-t)) | E44: % | H44: =H42/(1-H12) -> 0.05333792727 | I44: =I42/(1-I12) -> 0.1135792651 | J44: =J42/(1-J12) -> 0.05544178983 | K44: =K42/(1-K12) -> 0.07758594615 | L44: =L42/(1-L12) -> 0.05333792727 | M44: 0.07758594615 | N44: 0.05753568975 | O44: 0.05753568975
C45: Adj for Tax Shield | E45: % | H45: =H44*(1-H24) -> 0.04346154319 | I45: 0.09254821831 | J45: 0.04517584141 | K45: 0.0632196473 | L45: =L44*(1-L24) -> 0.04346154319 | M45: 0.0632196473 | N45: 0.04235654351 | O45: 0.04235654351
C47: Construction Real | E47: Factor | H47: 1 | I47: 1 | J47: 1 | K47: 1 | L47: 1 | M47: 1 | N47: 1 | O47: 1
C48: Final Real Capital Cost Recovery with Degradation | E48: USD/yr | H48: =H45*H7 -> 6084.616047 | I48: =I45*I7 -> 9995.207577 | J48: =J45*J7 -> 3252.660582 | K48: =K45*K7 -> 5057.571784 | L48: =L45*L7 -> 3042.308023 | M48: 5057.571784 | N48: 0 | O48: 2964.958046
B50: Operating Cost Analysis
C51: Total Operating Costs | E51: USD/yr | H51: ='Levelised Cost'!F54 -> 3000 | I51: ='Levelised Cost'!G54 -> 2160 | J51: ='Levelised Cost'!H54 -> 1440 | K51: ='Levelised Cost'!K54 -> 34920.17828 | L51: ='Levelised Cost'!M54 -> 1500 | M51: ='Levelised Cost'!N54 -> 17480.12879 | N51: 700 | O51: 700
C53: Degradation for Input Cost (eg electricity input) | E53: % | H53: =H23 -> 0.005 | I53: =I23 -> 0 | J53: 0 | K53: 0 | L53: 0.005 | M53: 0 | N53: 0 | O53: 0
C55: Nominal IRR | E55: % p.a. | H55: =H20 -> 0.0352 | I55: =I20 -> 0.0352 | J55: 0.0352 | K55: 0.0352 | L55: =L20 -> 0.0352 | M55: 0.0352 | N55: 0.03292 | O55: 0.03292
C56: Real IRR | E56: % p.a. | H56: =H39 -> 0.01490196078 | I56: =I39 -> 0.01490196078 | J56: 0.01490196078 | K56: 0.01490196078 | L56: =L39 -> 0.01490196078 | M56: 0.01490196078 | N56: 0.01266666667 | O56: 0.01266666667
C57: Nominal Adjusted for Degradation | E57: % p.a. | H57: =(1+H55)/(1-H53)-1 -> 0.04040201005 | I57: =(1+I55)/(1-I53)-1 -> 0.0352 | J57: 0.0352 | K57: 0.0352 | L57: =(1+L55)/(1-L53)-1 -> 0.04040201005 | M57: 0.0352 | N57: 0.03292 | O57: 0.03292
C59: Inflation Factor for Nominal Cost | E59: Factor | H59: =PV(H56,H10,-1)/PV(H55,H10,-1) -> 1.359714269 | I59: =PV(I56,I10,-1)/PV(I55,I10,-1) -> 1.140864348 | J59: 1.310868207 | K59: 1.211361449 | L59: =PV(L56,L10,-1)/PV(L55,L10,-1) -> 1.359714269 | M59: 1.211361449 | N59: 1.315051761 | O59: 1.315051761
C60: Degradation Factor for Nominal Cost | E60: Factor | H60: =PV(H56,H10,-1)/PV(H57,H10,-1) -> 1.460890978 | I60: =PV(I56,I10,-1)/PV(I57,I10,-1) -> 1.140864348 | J60: 1.310868207 | K60: 1.211361449 | L60: =PV(L56,L10,-1)/PV(L57,L10,-1) -> 1.460890978 | M60: 1.211361449 | N60: 1.315051761 | O60: 1.315051761
C61: Adjusted Nominal Cost for LCOE Calc | E61: USD/yr | H61: =H60*H51 -> 4382.672933 | I61: =I60*I51 -> 2464.266992 | J61: =J60*J51 -> 1887.650218 | K61: =K60*K51 -> 42300.95776 | L61: =L60*L51 -> 2191.336467 | M61: 21174.75415 | N61: 920.5362324 | O61: 920.5362324
C63: Real IRR without Degradation | E63: % p.a. | H63: =H39 -> 0.01490196078 | I63: =(1+I39)/(1-I53)-1 -> 0.01490196078 | J63: =(1+J39)/(1-J53)-1 -> 0.01490196078 | K63: =(1+K39)/(1-K53)-1 -> 0.01490196078 | L63: =(1+L39)/(1-L53)-1 -> 0.02000197064 | M63: 0.01490196078 | N63: 0.01266666667 | O63: 0.01266666667
C64: Real IRR with Degradation | E64: % p.a. | H64: =(1+H63)/(1-H53)-1 -> 0.02000197064 | I64: =(1+I63)/(1-I53)-1 -> 0.01490196078 | J64: =(1+J63)/(1-J53)-1 -> 0.01490196078 | K64: =(1+K63)/(1-K53)-1 -> 0.01490196078 | L64: =(1+L63)/(1-L53)-1 -> 0.02512760868 | M64: 0.01490196078 | N64: 0.01266666667 | O64: 0.01266666667
C65: Degradation Factor for Real Cost | E65: Factor | H65: =PV(H63,H10,-1)/PV(H64,H10,-1) -> 1.084844011 | I65: =PV(I63,I10,-1)/PV(I64,I10,-1) -> 1 | J65: =PV(J63,J10,-1)/PV(J64,J10,-1) -> 1 | K65: =PV(K63,K10,-1)/PV(K64,K10,-1) -> 1 | L65: =PV(L63,L10,-1)/PV(L64,L10,-1) -> 1.082133383 | M65: 1 | N65: 1 | O65: 1
C66: Adjusted Real Cost of LOCE | E66: USD/yr | H66: =H51*H65 -> 3254.532032 | I66: =I51*I65 -> 2160 | J66: =J51*J65 -> 1440 | K66: =K51*K65 -> 34920.17828 | L66: =L51*L65 -> 1623.200074 | M66: 17480.12879 | N66: 700 | O66: 700
B68: LCOE Calculation
C69: Nominal Capital Recovery | E69: USD/yr | H69: =H37 -> 8193.768503 | I69: =I37 -> 11403.17598 | J69: =J37 -> 4263.809345 | K69: =K37 -> 6126.547486 | L69: =L37 -> 4096.884251 | M69: 6126.547486 | N69: 0 | O69: 3899.073298
C70: Nominal O&M Cost | E70: USD/yr | H70: =H61 -> 4382.672933 | I70: =I61 -> 2464.266992 | J70: =J61 -> 1887.650218 | K70: =K61 -> 42300.95776 | L70: =L61 -> 2191.336467 | M70: 21174.75415 | N70: 920.5362324 | O70: 920.5362324
C71: Total Nominal Cost | E71: USD/yr | H71: =SUM(H69:H70) -> 12576.44144 | I71: =SUM(I69:I70) -> 13867.44297 | J71: =SUM(J69:J70) -> 6151.459564 | K71: =SUM(K69:K70) -> 48427.50525 | L71: =SUM(L69:L70) -> 6288.220718 | M71: 27301.30163 | N71: 920.5362324 | O71: 4819.609531
C73: Total Production | E73: Units per Year | H73: =H6 -> 160 | I73: =I6 -> 160 | J73: =J6 -> 160 | K73: =K6 -> 160 | L73: =L6 -> 160 | M73: 160 | N73: 160 | O73: 160
C74: LCOE - Nominal | E74: USD/Unit Year | H74: =IFERROR(H71/H73,FALSE) -> 78.60275898 | I74: =IFERROR(I71/I73,FALSE) -> 86.67151855 | J74: =IFERROR(J71/J73,FALSE) -> 38.44662227 | K74: =IFERROR(K71/K73,FALSE) -> 302.6719078 | L74: =IFERROR(L71/L73,FALSE) -> 39.30137949 | M74: 170.6331352 | N74: 5.753351453 | O74: 30.12255957
C75: LCOE - Nominal | E75: USD/Unit Year x 1000 | H75: =H74*1000 -> 78602.75898 | I75: =I74*1000 -> 86671.51855 | J75: =J74*1000 -> 38446.62227 | K75: =K74*1000 -> 302671.9078 | L75: =L74*1000 -> 39301.37949 | M75: 170633.1352 | N75: 5753.351453 | O75: 30122.55957
C77: Capital Recovery - Real | E77: USD/yr | H77: =H48 -> 6084.616047 | I77: =I48 -> 9995.207577 | J77: =J48 -> 3252.660582 | K77: =K48 -> 5057.571784 | L77: =L48 -> 3042.308023 | M77: 5057.571784 | N77: 0 | O77: 2964.958046
C78: O&M Cost | E78: USD/yr | H78: =H66 -> 3254.532032 | I78: =I66 -> 2160 | J78: =J66 -> 1440 | K78: =K66 -> 34920.17828 | L78: =L66 -> 1623.200074 | M78: 17480.12879 | N78: 700 | O78: 700
C79: Total Cost | E79: USD/yr | H79: =SUM(H77:H78) -> 9339.148079 | I79: =SUM(I77:I78) -> 12155.20758 | J79: =SUM(J77:J78) -> 4692.660582 | K79: =SUM(K77:K78) -> 39977.75006 | L79: =SUM(L77:L78) -> 4665.508098 | M79: 22537.70058 | N79: 700 | O79: 3664.958046
C81: Total Production | E81: Units per Year | H81: =H73 -> 160 | I81: =I73 -> 160 | J81: =J73 -> 160 | K81: =K73 -> 160 | L81: =L73 -> 160 | M81: 160 | N81: 160 | O81: 160
C82: LCOE - Real | E82: USD/Units Year | H82: =IFERROR(H79/H81,FALSE) -> 58.3696755 | I82: =IFERROR(I79/I81,FALSE) -> 75.97004736 | J82: =IFERROR(J79/J81,FALSE) -> 29.32912864 | K82: =IFERROR(K79/K81,FALSE) -> 249.8609379 | L82: =IFERROR(L79/L81,FALSE) -> 29.15942561 | M82: 140.8606286 | N82: 4.375 | O82: 22.90598779
C83: LCOE - Real | E83: USD/Units Year x 1000 | H83: =H82 -> 58.3696755 | I83: =I82 -> 75.97004736 | J83: 29.32912864 | K83: 249.8609379 | L83: =L82 -> 29.15942561 | M83: 140.8606286 | N83: 4.375 | O83: 22.90598779
B86: Financing Assumptions
C87: Max Debt to Capital | H87: 0.85 | I87: 0.85 | J87: 0.85 | K87: 0.85 | L87: 0.85 | M87: 0.85 | N87: 0.85 | O87: 0.85
C88: Interest Rate | H88: 0.03 | I88: 0.03 | J88: 0.03 | K88: 0.03 | L88: 0.03 | M88: 0.03 | N88: 0.03 | O88: 0.03
C89: Debt Tenor | H89: 20 | I89: 20 | J89: 20 | K89: 20 | L89: 20 | M89: 20 | N89: 20 | O89: 20
C90: P50 DSCR | H90: 1.2 | I90: 1.2 | J90: 1.2 | K90: 1.2 | L90: 1.2 | M90: 1.2 | N90: 1.2 | O90: 1.2
C91: P99 DSCR | H91: 1 | I91: 1 | J91: 1 | K91: 1 | L91: 1 | M91: 1 | N91: 1 | O91: 1
C93: Target Equity IRR | H93: 0.08 | I93: 0.08 | J93: 0.08 | K93: 0.08 | L93: 0.08 | M93: 0.08 | N93: 0.08 | O93: 0.08

Sheet Inputs
D3: Horizontal | F3: kWh/m3 | I3: Target vs Achieved | L3: =Target!P17 -> -0.002597883318
D4: Tilted | F4: kWh/m3 | G4: 1829
D5: Tracking | F5: kWh/m3 | G5: 2288 | I5: LCOE Battery and Solar | L5: ='Levelised Cost'!I61 -> 0.0599430298
I6: LCOE NG | L6: ='Levelised Cost'!K61 -> 0.09151051961
D7: Temperature Coefficient | F7: Coeff | G7: -0.2 | I7: LCOE NG and Solar | L7: ='Levelised Cost'!O61 -> 0.06226913114
D8: Bifacial | F8: % | G8: 0
D9: Other Performance Ratio | F9: % | G9: 0.12
D12: Target Load | F12: kW/hr | G12: 100
D13: Target Load Factor | F13: % | G13: 0.5
D14: Target Annual Load | F14: kWh/Year | G14: =G12*G13*8760 -> 438000
D15: Target Quarterly Load | F15: kWh/Qtr | G15: =G14/4 -> 109500
D17: Solar Capacity | F17: kW | G17: 200
D19: Battery Capacity | F19: kW | G19: =I19*M19 -> 200 | I19: =G17 -> 200 | M19: TRUE
D20: Battery Duration | F20: Hrs | G20: 3
D21: Battery Capacity | F21: kWh | G21: =G19*G20 -> 600
D23: Round Trip Efficiency | F23: % | G23: =I23/100 -> 0.94 | I23: 94
D24: Depth of Discharge Limit | F24: % | G24: =I24/100 -> 0.13 | I24: 13

Sheet Target
F2: Target % | H2: =Inputs!G13 -> 0.5
F3: Solar
F4: Battery Duration
F6: LCOE - Solar + Battery
N9: Load Met | O9: Target | P9: Difference
N10: kWh | O10: kWh | P10: kWh | Q10: Solar
M11: =DATE(2016,3,31) -> 2016-03-31 | N11: =SUMIF('Malaysia Hourly'!H:H,Target!M11,'Malaysia Hourly'!AN:AN) -> 127994.0628 | O11: =Inputs!$G$15 -> 109500 | P11: =N11-O11 -> 18494.0628 | Q11: =SUMIF('Malaysia Hourly'!H:H,Target!M11,'Malaysia Hourly'!V:V) -> 138889.6353
M12: =EOMONTH(M11,3) -> 2016-06-30 | N12: =SUMIF('Malaysia Hourly'!H:H,Target!M12,'Malaysia Hourly'!AN:AN) -> 110021.2273 | O12: =Inputs!$G$15 -> 109500 | P12: =N12-O12 -> 521.2272561 | Q12: =SUMIF('Malaysia Hourly'!H:H,Target!M12,'Malaysia Hourly'!V:V) -> 113565.9153
M13: =EOMONTH(M12,3) -> 2016-09-30 | N13: =SUMIF('Malaysia Hourly'!H:H,Target!M13,'Malaysia Hourly'!AN:AN) -> 109555.8361 | O13: =Inputs!$G$15 -> 109500 | P13: 55.83605679 | Q13: =SUMIF('Malaysia Hourly'!H:H,Target!M13,'Malaysia Hourly'!V:V) -> 111861.1408
M14: 2016-12-31 | N14: =SUMIF('Malaysia Hourly'!H:H,Target!M14,'Malaysia Hourly'!AN:AN) -> 89293.9494 | O14: =Inputs!$G$15 -> 109500 | P14: -20206.0506 | Q14: =SUMIF('Malaysia Hourly'!H:H,Target!M14,'Malaysia Hourly'!V:V) -> 91632.31464
M16: Total | N16: =SUM(N11:N14) -> 436865.0755 | O16: =SUM(O11:O14) -> 438000 | P16: =SUM(P11:P14) -> -1134.924492 | Q16: =SUM(Q11:Q14) -> 455949.0061
P17: =P16/N16 -> -0.002597883318
M60: Average | N60: =AVERAGE(N11:N58) -> 174746.0302 | O60: =AVERAGE(O11:O58) -> 175200 | P60: -378.308597
P61: =P60/O60 -> -0.002159295645

Sheet Selected Presentation
AC2: Day
D3: Day | E3: Month | F3: Year | G3: Start Date
D4: 1 | E4: 4 | F4: 2016 | G4: =DATE(F4,E4,D4) -> 2016-04-01 | AC4: Hr | AD4: Row | AE4: Solar | AF4: Target | AG4: Solar for Load | AH4: Battery Charge | AI4: Battery Discharge | AJ4: Wasted Solar | AK4: Battery Balance
AC5: 0 | AD5: =AC5+$G$6 -> 2190 | AE5: =INDEX('Malaysia Hourly'!O:O,'Selected Presentation'!AD5) -> 0 | AF5: =INDEX('Malaysia Hourly'!U:U,'Selected Presentation'!AD5) -> 100 | AG5: =INDEX('Malaysia Hourly'!W:W,'Selected Presentation'!AD5) -> 0 | AH5: =INDEX('Malaysia Hourly'!AJ:AJ,'Selected Presentation'!AD5) -> 0 | AI5: =INDEX('Malaysia Hourly'!AL:AL,'Selected Presentation'!AD5) -> 91.40723891 | AJ5: =INDEX('Malaysia Hourly'!AO:AO,'Selected Presentation'!AD5) -> 0 | AK5: =INDEX('Malaysia Hourly'!AM:AM,'Selected Presentation'!AD5) -> 78
D6: Row Start | G6: =MATCH(G4,'Malaysia Hourly'!B:B) -> 2190 | AC6: 1 | AD6: =AC6+$G$6 -> 2191 | AE6: =INDEX('Malaysia Hourly'!O:O,'Selected Presentation'!AD6) -> 0 | AF6: =INDEX('Malaysia Hourly'!U:U,'Selected Presentation'!AD6) -> 100 | AG6: =INDEX('Malaysia Hourly'!W:W,'Selected Presentation'!AD6) -> 0 | AH6: =INDEX('Malaysia Hourly'!AJ:AJ,'Selected Presentation'!AD6) -> 0 | AI6: =INDEX('Malaysia Hourly'!AL:AL,'Selected Presentation'!AD6) -> 0 | AJ6: =INDEX('Malaysia Hourly'!AO:AO,'Selected Presentation'!AD6) -> 0 | AK6: =INDEX('Malaysia Hourly'!AM:AM,'Selected Presentation'!AD6) -> 78
AC7: 2 | AD7: 2192 | AE7: =INDEX('Malaysia Hourly'!O:O,'Selected Presentation'!AD7) -> 0 | AF7: =INDEX('Malaysia Hourly'!U:U,'Selected Presentation'!AD7) -> 100 | AG7: =INDEX('Malaysia Hourly'!W:W,'Selected Presentation'!AD7) -> 0 | AH7: =INDEX('Malaysia Hourly'!AJ:AJ,'Selected Presentation'!AD7) -> 0 | AI7: =INDEX('Malaysia Hourly'!AL:AL,'Selected Presentation'!AD7) -> 0 | AJ7: =INDEX('Malaysia Hourly'!AO:AO,'Selected Presentation'!AD7) -> 0 | AK7: =INDEX('Malaysia Hourly'!AM:AM,'Selected Presentation'!AD7) -> 78
D8: Temperature Coefficient | E8: =Inputs!F7 -> Coeff | F8: =Inputs!G7 -> -0.2 | AC8: 3 | AD8: 2193 | AE8: =INDEX('Malaysia Hourly'!O:O,'Selected Presentation'!AD8) -> 0 | AF8: =INDEX('Malaysia Hourly'!U:U,'Selected Presentation'!AD8) -> 100 | AG8: =INDEX('Malaysia Hourly'!W:W,'Selected Presentation'!AD8) -> 0 | AH8: =INDEX('Malaysia Hourly'!AJ:AJ,'Selected Presentation'!AD8) -> 0 | AI8: =INDEX('Malaysia Hourly'!AL:AL,'Selected Presentation'!AD8) -> 0 | AJ8: =INDEX('Malaysia Hourly'!AO:AO,'Selected Presentation'!AD8) -> 0 | AK8: =INDEX('Malaysia Hourly'!AM:AM,'Selected Presentation'!AD8) -> 78
D9: Bifacial | E9: =Inputs!F8 -> % | F9: =Inputs!G8 -> 0 | AC9: 4 | AD9: 2194 | AE9: =INDEX('Malaysia Hourly'!O:O,'Selected Presentation'!AD9) -> 0 | AF9: =INDEX('Malaysia Hourly'!U:U,'Selected Presentation'!AD9) -> 100 | AG9: =INDEX('Malaysia Hourly'!W:W,'Selected Presentation'!AD9) -> 0 | AH9: =INDEX('Malaysia Hourly'!AJ:AJ,'Selected Presentation'!AD9) -> 0 | AI9: =INDEX('Malaysia Hourly'!AL:AL,'Selected Presentation'!AD9) -> 0 | AJ9: =INDEX('Malaysia Hourly'!AO:AO,'Selected Presentation'!AD9) -> 0 | AK9: =INDEX('Malaysia Hourly'!AM:AM,'Selected Presentation'!AD9) -> 78
D10: Other Performance Ratio | E10: =Inputs!F9 -> % | F10: =Inputs!G9 -> 0.12 | AC10: 5 | AD10: 2195 | AE10: =INDEX('Malaysia Hourly'!O:O,'Selected Presentation'!AD10) -> 0 | AF10: =INDEX('Malaysia Hourly'!U:U,'Selected Presentation'!AD10) -> 100 | AG10: =INDEX('Malaysia Hourly'!W:W,'Selected Presentation'!AD10) -> 0 | AH10: =INDEX('Malaysia Hourly'!AJ:AJ,'Selected Presentation'!AD10) -> 0 | AI10: =INDEX('Malaysia Hourly'!AL:AL,'Selected Presentation'!AD10) -> 0 | AJ10: =INDEX('Malaysia Hourly'!AO:AO,'Selected Presentation'!AD10) -> 0 | AK10: =INDEX('Malaysia Hourly'!AM:AM,'Selected Presentation'!AD10) -> 78
AC11: 6 | AD11: 2196 | AE11: =INDEX('Malaysia Hourly'!O:O,'Selected Presentation'!AD11) -> 0 | AF11: =INDEX('Malaysia Hourly'!U:U,'Selected Presentation'!AD11) -> 100 | AG11: =INDEX('Malaysia Hourly'!W:W,'Selected Presentation'!AD11) -> 0 | AH11: =INDEX('Malaysia Hourly'!AJ:AJ,'Selected Presentation'!AD11) -> 0 | AI11: =INDEX('Malaysia Hourly'!AL:AL,'Selected Presentation'!AD11) -> 0 | AJ11: =INDEX('Malaysia Hourly'!AO:AO,'Selected Presentation'!AD11) -> 0 | AK11: =INDEX('Malaysia Hourly'!AM:AM,'Selected Presentation'!AD11) -> 78
AC12: 7 | AD12: 2197 | AE12: =INDEX('Malaysia Hourly'!O:O,'Selected Presentation'!AD12) -> 0 | AF12: =INDEX('Malaysia Hourly'!U:U,'Selected Presentation'!AD12) -> 100 | AG12: =INDEX('Malaysia Hourly'!W:W,'Selected Presentation'!AD12) -> 0 | AH12: =INDEX('Malaysia Hourly'!AJ:AJ,'Selected Presentation'!AD12) -> 0 | AI12: =INDEX('Malaysia Hourly'!AL:AL,'Selected Presentation'!AD12) -> 0 | AJ12: =INDEX('Malaysia Hourly'!AO:AO,'Selected Presentation'!AD12) -> 0 | AK12: =INDEX('Malaysia Hourly'!AM:AM,'Selected Presentation'!AD12) -> 78
D13: Target Load | E13: =Inputs!F12 -> kW/hr | F13: =Inputs!G12 -> 100 | AC13: 8 | AD13: 2198 | AE13: =INDEX('Malaysia Hourly'!O:O,'Selected Presentation'!AD13) -> 294.74 | AF13: =INDEX('Malaysia Hourly'!U:U,'Selected Presentation'!AD13) -> 100 | AG13: =INDEX('Malaysia Hourly'!W:W,'Selected Presentation'!AD13) -> 59.87702048 | AH13: =INDEX('Malaysia Hourly'!AJ:AJ,'Selected Presentation'!AD13) -> 0 | AI13: =INDEX('Malaysia Hourly'!AL:AL,'Selected Presentation'!AD13) -> 0 | AJ13: =INDEX('Malaysia Hourly'!AO:AO,'Selected Presentation'!AD13) -> 0 | AK13: =INDEX('Malaysia Hourly'!AM:AM,'Selected Presentation'!AD13) -> 78
D14: Target Load Factor | E14: =Inputs!F13 -> % | F14: =Inputs!G13 -> 0.5 | AC14: 9 | AD14: 2199 | AE14: =INDEX('Malaysia Hourly'!O:O,'Selected Presentation'!AD14) -> 693.1 | AF14: =INDEX('Malaysia Hourly'!U:U,'Selected Presentation'!AD14) -> 100 | AG14: =INDEX('Malaysia Hourly'!W:W,'Selected Presentation'!AD14) -> 100 | AH14: =INDEX('Malaysia Hourly'!AJ:AJ,'Selected Presentation'!AD14) -> 37.3336064 | AI14: =INDEX('Malaysia Hourly'!AL:AL,'Selected Presentation'!AD14) -> 0 | AJ14: =INDEX('Malaysia Hourly'!AO:AO,'Selected Presentation'!AD14) -> 0 | AK14: =INDEX('Malaysia Hourly'!AM:AM,'Selected Presentation'!AD14) -> 113.09359
D15: Target Annual Load | E15: =Inputs!F14 -> kWh/Year | F15: =Inputs!G14 -> 438000 | AC15: 10 | AD15: 2200 | AE15: =INDEX('Malaysia Hourly'!O:O,'Selected Presentation'!AD15) -> 865.34 | AF15: =INDEX('Malaysia Hourly'!U:U,'Selected Presentation'!AD15) -> 100 | AG15: =INDEX('Malaysia Hourly'!W:W,'Selected Presentation'!AD15) -> 100 | AH15: =INDEX('Malaysia Hourly'!AJ:AJ,'Selected Presentation'!AD15) -> 68.58207744 | AI15: =INDEX('Malaysia Hourly'!AL:AL,'Selected Presentation'!AD15) -> 0 | AJ15: =INDEX('Malaysia Hourly'!AO:AO,'Selected Presentation'!AD15) -> 0 | AK15: =INDEX('Malaysia Hourly'!AM:AM,'Selected Presentation'!AD15) -> 177.5607428
D16: Target Quarterly Load | E16: =Inputs!F15 -> kWh/Qtr | F16: =Inputs!G15 -> 109500 | AC16: 11 | AD16: 2201 | AE16: =INDEX('Malaysia Hourly'!O:O,'Selected Presentation'!AD16) -> 904.84 | AF16: =INDEX('Malaysia Hourly'!U:U,'Selected Presentation'!AD16) -> 100 | AG16: =INDEX('Malaysia Hourly'!W:W,'Selected Presentation'!AD16) -> 100 | AH16: =INDEX('Malaysia Hourly'!AJ:AJ,'Selected Presentation'!AD16) -> 73.20809216 | AI16: =INDEX('Malaysia Hourly'!AL:AL,'Selected Presentation'!AD16) -> 0 | AJ16: =INDEX('Malaysia Hourly'!AO:AO,'Selected Presentation'!AD16) -> 0 | AK16: =INDEX('Malaysia Hourly'!AM:AM,'Selected Presentation'!AD16) -> 246.3763494
AC17: 12 | AD17: 2202 | AE17: =INDEX('Malaysia Hourly'!O:O,'Selected Presentation'!AD17) -> 1029.13 | AF17: =INDEX('Malaysia Hourly'!U:U,'Selected Presentation'!AD17) -> 100 | AG17: =INDEX('Malaysia Hourly'!W:W,'Selected Presentation'!AD17) -> 100 | AH17: =INDEX('Malaysia Hourly'!AJ:AJ,'Selected Presentation'!AD17) -> 94.11861712 | AI17: =INDEX('Malaysia Hourly'!AL:AL,'Selected Presentation'!AD17) -> 0 | AJ17: =INDEX('Malaysia Hourly'!AO:AO,'Selected Presentation'!AD17) -> 0 | AK17: =INDEX('Malaysia Hourly'!AM:AM,'Selected Presentation'!AD17) -> 334.8478495
D18: Solar Capacity | E18: =Inputs!F17 -> kW | F18: =Inputs!G17 -> 200 | AC18: 13 | AD18: 2203 | AE18: =INDEX('Malaysia Hourly'!O:O,'Selected Presentation'!AD18) -> 949 | AF18: =INDEX('Malaysia Hourly'!U:U,'Selected Presentation'!AD18) -> 100 | AG18: =INDEX('Malaysia Hourly'!W:W,'Selected Presentation'!AD18) -> 100 | AH18: =INDEX('Malaysia Hourly'!AJ:AJ,'Selected Presentation'!AD18) -> 77.075808 | AI18: =INDEX('Malaysia Hourly'!AL:AL,'Selected Presentation'!AD18) -> 0 | AJ18: =INDEX('Malaysia Hourly'!AO:AO,'Selected Presentation'!AD18) -> 0 | AK18: =INDEX('Malaysia Hourly'!AM:AM,'Selected Presentation'!AD18) -> 407.2991091
AC19: 14 | AD19: 2204 | AE19: =INDEX('Malaysia Hourly'!O:O,'Selected Presentation'!AD19) -> 922.38 | AF19: =INDEX('Malaysia Hourly'!U:U,'Selected Presentation'!AD19) -> 100 | AG19: =INDEX('Malaysia Hourly'!W:W,'Selected Presentation'!AD19) -> 100 | AH19: =INDEX('Malaysia Hourly'!AJ:AJ,'Selected Presentation'!AD19) -> 71.14945376 | AI19: =INDEX('Malaysia Hourly'!AL:AL,'Selected Presentation'!AD19) -> 0 | AJ19: =INDEX('Malaysia Hourly'!AO:AO,'Selected Presentation'!AD19) -> 0 | AK19: =INDEX('Malaysia Hourly'!AM:AM,'Selected Presentation'!AD19) -> 474.1795956
D20: Battery Capacity | E20: =Inputs!F19 -> kW | F20: =Inputs!G19 -> 200 | AC20: 15 | AD20: 2205 | AE20: =INDEX('Malaysia Hourly'!O:O,'Selected Presentation'!AD20) -> 1020.28 | AF20: =INDEX('Malaysia Hourly'!U:U,'Selected Presentation'!AD20) -> 100 | AG20: =INDEX('Malaysia Hourly'!W:W,'Selected Presentation'!AD20) -> 100 | AH20: =INDEX('Malaysia Hourly'!AJ:AJ,'Selected Presentation'!AD20) -> 88.97218048 | AI20: =INDEX('Malaysia Hourly'!AL:AL,'Selected Presentation'!AD20) -> 0 | AJ20: =INDEX('Malaysia Hourly'!AO:AO,'Selected Presentation'!AD20) -> 0 | AK20: =INDEX('Malaysia Hourly'!AM:AM,'Selected Presentation'!AD20) -> 557.8134452
D21: Battery Duration | E21: =Inputs!F20 -> Hrs | F21: =Inputs!G20 -> 3 | AC21: 16 | AD21: 2206 | AE21: =INDEX('Malaysia Hourly'!O:O,'Selected Presentation'!AD21) -> 1069.83 | AF21: =INDEX('Malaysia Hourly'!U:U,'Selected Presentation'!AD21) -> 100 | AG21: =INDEX('Malaysia Hourly'!W:W,'Selected Presentation'!AD21) -> 100 | AH21: =INDEX('Malaysia Hourly'!AJ:AJ,'Selected Presentation'!AD21) -> 42.18655476 | AI21: =INDEX('Malaysia Hourly'!AL:AL,'Selected Presentation'!AD21) -> 0 | AJ21: =INDEX('Malaysia Hourly'!AO:AO,'Selected Presentation'!AD21) -> 57.72615836 | AK21: =INDEX('Malaysia Hourly'!AM:AM,'Selected Presentation'!AD21) -> 597.4688067
D22: Battery Capacity | E22: =Inputs!F21 -> kWh | F22: =Inputs!G21 -> 600 | AC22: 17 | AD22: 2207 | AE22: =INDEX('Malaysia Hourly'!O:O,'Selected Presentation'!AD22) -> 988.1 | AF22: =INDEX('Malaysia Hourly'!U:U,'Selected Presentation'!AD22) -> 100 | AG22: =INDEX('Malaysia Hourly'!W:W,'Selected Presentation'!AD22) -> 100 | AH22: =INDEX('Malaysia Hourly'!AJ:AJ,'Selected Presentation'!AD22) -> 2.531193286 | AI22: =INDEX('Malaysia Hourly'!AL:AL,'Selected Presentation'!AD22) -> 0 | AJ22: =INDEX('Malaysia Hourly'!AO:AO,'Selected Presentation'!AD22) -> 84.05370591 | AK22: =INDEX('Malaysia Hourly'!AM:AM,'Selected Presentation'!AD22) -> 599.8481284
AC23: 18 | AD23: 2208 | AE23: =INDEX('Malaysia Hourly'!O:O,'Selected Presentation'!AD23) -> 635.35 | AF23: =INDEX('Malaysia Hourly'!U:U,'Selected Presentation'!AD23) -> 100 | AG23: =INDEX('Malaysia Hourly'!W:W,'Selected Presentation'!AD23) -> 100 | AH23: =INDEX('Malaysia Hourly'!AJ:AJ,'Selected Presentation'!AD23) -> 0.1518715971 | AI23: =INDEX('Malaysia Hourly'!AL:AL,'Selected Presentation'!AD23) -> 0 | AJ23: =INDEX('Malaysia Hourly'!AO:AO,'Selected Presentation'!AD23) -> 21.4490356 | AK23: =INDEX('Malaysia Hourly'!AM:AM,'Selected Presentation'!AD23) -> 599.9908877
D24: Round Trip Efficiency | E24: =Inputs!F23 -> % | F24: =Inputs!G23 -> 0.94 | AC24: 19 | AD24: 2209 | AE24: =INDEX('Malaysia Hourly'!O:O,'Selected Presentation'!AD24) -> 201.11 | AF24: =INDEX('Malaysia Hourly'!U:U,'Selected Presentation'!AD24) -> 100 | AG24: =INDEX('Malaysia Hourly'!W:W,'Selected Presentation'!AD24) -> 38.9027184 | AH24: =INDEX('Malaysia Hourly'!AJ:AJ,'Selected Presentation'!AD24) -> 0 | AI24: =INDEX('Malaysia Hourly'!AL:AL,'Selected Presentation'!AD24) -> 61.0972816 | AJ24: =INDEX('Malaysia Hourly'!AO:AO,'Selected Presentation'!AD24) -> 0 | AK24: =INDEX('Malaysia Hourly'!AM:AM,'Selected Presentation'!AD24) -> 538.8936061
D25: Depth of Discharge Limit | E25: =Inputs!F24 -> % | F25: =Inputs!G24 -> 0.13 | AC25: 20 | AD25: 2210 | AE25: =INDEX('Malaysia Hourly'!O:O,'Selected Presentation'!AD25) -> 0 | AF25: =INDEX('Malaysia Hourly'!U:U,'Selected Presentation'!AD25) -> 100 | AG25: =INDEX('Malaysia Hourly'!W:W,'Selected Presentation'!AD25) -> 0 | AH25: =INDEX('Malaysia Hourly'!AJ:AJ,'Selected Presentation'!AD25) -> 0 | AI25: =INDEX('Malaysia Hourly'!AL:AL,'Selected Presentation'!AD25) -> 100 | AJ25: =INDEX('Malaysia Hourly'!AO:AO,'Selected Presentation'!AD25) -> 0 | AK25: =INDEX('Malaysia Hourly'!AM:AM,'Selected Presentation'!AD25) -> 438.8936061
AC26: 21 | AD26: 2211 | AE26: =INDEX('Malaysia Hourly'!O:O,'Selected Presentation'!AD26) -> 0 | AF26: =INDEX('Malaysia Hourly'!U:U,'Selected Presentation'!AD26) -> 100 | AG26: =INDEX('Malaysia Hourly'!W:W,'Selected Presentation'!AD26) -> 0 | AH26: =INDEX('Malaysia Hourly'!AJ:AJ,'Selected Presentation'!AD26) -> 0 | AI26: =INDEX('Malaysia Hourly'!AL:AL,'Selected Presentation'!AD26) -> 100 | AJ26: =INDEX('Malaysia Hourly'!AO:AO,'Selected Presentation'!AD26) -> 0 | AK26: =INDEX('Malaysia Hourly'!AM:AM,'Selected Presentation'!AD26) -> 338.8936061
AC27: 22 | AD27: 2212 | AE27: =INDEX('Malaysia Hourly'!O:O,'Selected Presentation'!AD27) -> 0 | AF27: =INDEX('Malaysia Hourly'!U:U,'Selected Presentation'!AD27) -> 100 | AG27: =INDEX('Malaysia Hourly'!W:W,'Selected Presentation'!AD27) -> 0 | AH27: =INDEX('Malaysia Hourly'!AJ:AJ,'Selected Presentation'!AD27) -> 0 | AI27: =INDEX('Malaysia Hourly'!AL:AL,'Selected Presentation'!AD27) -> 100 | AJ27: =INDEX('Malaysia Hourly'!AO:AO,'Selected Presentation'!AD27) -> 0 | AK27: =INDEX('Malaysia Hourly'!AM:AM,'Selected Presentation'!AD27) -> 238.8936061
AC28: 23 | AD28: 2213 | AE28: =INDEX('Malaysia Hourly'!O:O,'Selected Presentation'!AD28) -> 0 | AF28: =INDEX('Malaysia Hourly'!U:U,'Selected Presentation'!AD28) -> 100 | AG28: =INDEX('Malaysia Hourly'!W:W,'Selected Presentation'!AD28) -> 0 | AH28: =INDEX('Malaysia Hourly'!AJ:AJ,'Selected Presentation'!AD28) -> 0 | AI28: =INDEX('Malaysia Hourly'!AL:AL,'Selected Presentation'!AD28) -> 100 | AJ28: =INDEX('Malaysia Hourly'!AO:AO,'Selected Presentation'!AD28) -> 0 | AK28: =INDEX('Malaysia Hourly'!AM:AM,'Selected Presentation'!AD28) -> 138.8936061
D29: Target versus Produced | E29: =Inputs!L3 -> -0.002597883318 | AC29: 24 | AD29: 2214 | AE29: =INDEX('Malaysia Hourly'!O:O,'Selected Presentation'!AD29) -> 0 | AF29: =INDEX('Malaysia Hourly'!U:U,'Selected Presentation'!AD29) -> 100 | AG29: =INDEX('Malaysia Hourly'!W:W,'Selected Presentation'!AD29) -> 0 | AH29: =INDEX('Malaysia Hourly'!AJ:AJ,'Selected Presentation'!AD29) -> 0 | AI29: =INDEX('Malaysia Hourly'!AL:AL,'Selected Presentation'!AD29) -> 60.8936061 | AJ29: =INDEX('Malaysia Hourly'!AO:AO,'Selected Presentation'!AD29) -> 0 | AK29: =INDEX('Malaysia Hourly'!AM:AM,'Selected Presentation'!AD29) -> 78
AC30: 25 | AD30: 2215 | AE30: =INDEX('Malaysia Hourly'!O:O,'Selected Presentation'!AD30) -> 0 | AF30: =INDEX('Malaysia Hourly'!U:U,'Selected Presentation'!AD30) -> 100 | AG30: =INDEX('Malaysia Hourly'!W:W,'Selected Presentation'!AD30) -> 0 | AH30: =INDEX('Malaysia Hourly'!AJ:AJ,'Selected Presentation'!AD30) -> 0 | AI30: =INDEX('Malaysia Hourly'!AL:AL,'Selected Presentation'!AD30) -> 0 | AJ30: =INDEX('Malaysia Hourly'!AO:AO,'Selected Presentation'!AD30) -> 0 | AK30: =INDEX('Malaysia Hourly'!AM:AM,'Selected Presentation'!AD30) -> 78
AC31: 26 | AD31: 2216 | AE31: =INDEX('Malaysia Hourly'!O:O,'Selected Presentation'!AD31) -> 0 | AF31: =INDEX('Malaysia Hourly'!U:U,'Selected Presentation'!AD31) -> 100 | AG31: =INDEX('Malaysia Hourly'!W:W,'Selected Presentation'!AD31) -> 0 | AH31: =INDEX('Malaysia Hourly'!AJ:AJ,'Selected Presentation'!AD31) -> 0 | AI31: =INDEX('Malaysia Hourly'!AL:AL,'Selected Presentation'!AD31) -> 0 | AJ31: =INDEX('Malaysia Hourly'!AO:AO,'Selected Presentation'!AD31) -> 0 | AK31: =INDEX('Malaysia Hourly'!AM:AM,'Selected Presentation'!AD31) -> 78
AC32: 27 | AD32: 2217 | AE32: =INDEX('Malaysia Hourly'!O:O,'Selected Presentation'!AD32) -> 0 | AF32: =INDEX('Malaysia Hourly'!U:U,'Selected Presentation'!AD32) -> 100 | AG32: =INDEX('Malaysia Hourly'!W:W,'Selected Presentation'!AD32) -> 0 | AH32: =INDEX('Malaysia Hourly'!AJ:AJ,'Selected Presentation'!AD32) -> 0 | AI32: =INDEX('Malaysia Hourly'!AL:AL,'Selected Presentation'!AD32) -> 0 | AJ32: =INDEX('Malaysia Hourly'!AO:AO,'Selected Presentation'!AD32) -> 0 | AK32: =INDEX('Malaysia Hourly'!AM:AM,'Selected Presentation'!AD32) -> 78
AC33: 28 | AD33: 2218 | AE33: =INDEX('Malaysia Hourly'!O:O,'Selected Presentation'!AD33) -> 0 | AF33: =INDEX('Malaysia Hourly'!U:U,'Selected Presentation'!AD33) -> 100 | AG33: =INDEX('Malaysia Hourly'!W:W,'Selected Presentation'!AD33) -> 0 | AH33: =INDEX('Malaysia Hourly'!AJ:AJ,'Selected Presentation'!AD33) -> 0 | AI33: =INDEX('Malaysia Hourly'!AL:AL,'Selected Presentation'!AD33) -> 0 | AJ33: =INDEX('Malaysia Hourly'!AO:AO,'Selected Presentation'!AD33) -> 0 | AK33: =INDEX('Malaysia Hourly'!AM:AM,'Selected Presentation'!AD33) -> 78
AC34: 29 | AD34: 2219 | AE34: =INDEX('Malaysia Hourly'!O:O,'Selected Presentation'!AD34) -> 0 | AF34: =INDEX('Malaysia Hourly'!U:U,'Selected Presentation'!AD34) -> 100 | AG34: =INDEX('Malaysia Hourly'!W:W,'Selected Presentation'!AD34) -> 0 | AH34: =INDEX('Malaysia Hourly'!AJ:AJ,'Selected Presentation'!AD34) -> 0 | AI34: =INDEX('Malaysia Hourly'!AL:AL,'Selected Presentation'!AD34) -> 0 | AJ34: =INDEX('Malaysia Hourly'!AO:AO,'Selected Presentation'!AD34) -> 0 | AK34: =INDEX('Malaysia Hourly'!AM:AM,'Selected Presentation'!AD34) -> 78
AC35: 30 | AD35: 2220 | AE35: =INDEX('Malaysia Hourly'!O:O,'Selected Presentation'!AD35) -> 0 | AF35: =INDEX('Malaysia Hourly'!U:U,'Selected Presentation'!AD35) -> 100 | AG35: =INDEX('Malaysia Hourly'!W:W,'Selected Presentation'!AD35) -> 0 | AH35: =INDEX('Malaysia Hourly'!AJ:AJ,'Selected Presentation'!AD35) -> 0 | AI35: =INDEX('Malaysia Hourly'!AL:AL,'Selected Presentation'!AD35) -> 0 | AJ35: =INDEX('Malaysia Hourly'!AO:AO,'Selected Presentation'!AD35) -> 0 | AK35: =INDEX('Malaysia Hourly'!AM:AM,'Selected Presentation'!AD35) -> 78
AC36: 31 | AD36: 2221 | AE36: =INDEX('Malaysia Hourly'!O:O,'Selected Presentation'!AD36) -> 0 | AF36: =INDEX('Malaysia Hourly'!U:U,'Selected Presentation'!AD36) -> 100 | AG36: =INDEX('Malaysia Hourly'!W:W,'Selected Presentation'!AD36) -> 0 | AH36: =INDEX('Malaysia Hourly'!AJ:AJ,'Selected Presentation'!AD36) -> 0 | AI36: =INDEX('Malaysia Hourly'!AL:AL,'Selected Presentation'!AD36) -> 0 | AJ36: =INDEX('Malaysia Hourly'!AO:AO,'Selected Presentation'!AD36) -> 0 | AK36: =INDEX('Malaysia Hourly'!AM:AM,'Selected Presentation'!AD36) -> 78
AC37: 32 | AD37: 2222 | AE37: =INDEX('Malaysia Hourly'!O:O,'Selected Presentation'!AD37) -> 53.65 | AF37: =INDEX('Malaysia Hourly'!U:U,'Selected Presentation'!AD37) -> 100 | AG37: =INDEX('Malaysia Hourly'!W:W,'Selected Presentation'!AD37) -> 10.7016728 | AH37: =INDEX('Malaysia Hourly'!AJ:AJ,'Selected Presentation'!AD37) -> 0 | AI37: =INDEX('Malaysia Hourly'!AL:AL,'Selected Presentation'!AD37) -> 0 | AJ37: =INDEX('Malaysia Hourly'!AO:AO,'Selected Presentation'!AD37) -> 0 | AK37: =INDEX('Malaysia Hourly'!AM:AM,'Selected Presentation'!AD37) -> 78
AC38: 33 | AD38: 2223 | AE38: =INDEX('Malaysia Hourly'!O:O,'Selected Presentation'!AD38) -> 373.6 | AF38: =INDEX('Malaysia Hourly'!U:U,'Selected Presentation'!AD38) -> 100 | AG38: =INDEX('Malaysia Hourly'!W:W,'Selected Presentation'!AD38) -> 73.3690624 | AH38: =INDEX('Malaysia Hourly'!AJ:AJ,'Selected Presentation'!AD38) -> 0 | AI38: =INDEX('Malaysia Hourly'!AL:AL,'Selected Presentation'!AD38) -> 0 | AJ38: =INDEX('Malaysia Hourly'!AO:AO,'Selected Presentation'!AD38) -> 0 | AK38: =INDEX('Malaysia Hourly'!AM:AM,'Selected Presentation'!AD38) -> 78
AC39: 34 | AD39: 2224 | AE39: =INDEX('Malaysia Hourly'!O:O,'Selected Presentation'!AD39) -> 733.55 | AF39: =INDEX('Malaysia Hourly'!U:U,'Selected Presentation'!AD39) -> 100 | AG39: =INDEX('Malaysia Hourly'!W:W,'Selected Presentation'!AD39) -> 100 | AH39: =INDEX('Malaysia Hourly'!AJ:AJ,'Selected Presentation'!AD39) -> 41.8861752 | AI39: =INDEX('Malaysia Hourly'!AL:AL,'Selected Presentation'!AD39) -> 0 | AJ39: =INDEX('Malaysia Hourly'!AO:AO,'Selected Presentation'!AD39) -> 0 | AK39: =INDEX('Malaysia Hourly'!AM:AM,'Selected Presentation'!AD39) -> 117.3730047
AC40: 35 | AD40: 2225 | AE40: =INDEX('Malaysia Hourly'!O:O,'Selected Presentation'!AD40) -> 844.94 | AF40: =INDEX('Malaysia Hourly'!U:U,'Selected Presentation'!AD40) -> 100 | AG40: =INDEX('Malaysia Hourly'!W:W,'Selected Presentation'!AD40) -> 100 | AH40: =INDEX('Malaysia Hourly'!AJ:AJ,'Selected Presentation'!AD40) -> 61.13343776 | AI40: =INDEX('Malaysia Hourly'!AL:AL,'Selected Presentation'!AD40) -> 0 | AJ40: =INDEX('Malaysia Hourly'!AO:AO,'Selected Presentation'!AD40) -> 0 | AK40: =INDEX('Malaysia Hourly'!AM:AM,'Selected Presentation'!AD40) -> 174.8384362
AC41: 36 | AD41: 2226 | AE41: =INDEX('Malaysia Hourly'!O:O,'Selected Presentation'!AD41) -> 956.31 | AF41: =INDEX('Malaysia Hourly'!U:U,'Selected Presentation'!AD41) -> 100 | AG41: =INDEX('Malaysia Hourly'!W:W,'Selected Presentation'!AD41) -> 100 | AH41: =INDEX('Malaysia Hourly'!AJ:AJ,'Selected Presentation'!AD41) -> 80.52072608 | AI41: =INDEX('Malaysia Hourly'!AL:AL,'Selected Presentation'!AD41) -> 0 | AJ41: =INDEX('Malaysia Hourly'!AO:AO,'Selected Presentation'!AD41) -> 0 | AK41: =INDEX('Malaysia Hourly'!AM:AM,'Selected Presentation'!AD41) -> 250.5279187
AC42: 37 | AD42: 2227 | AE42: =INDEX('Malaysia Hourly'!O:O,'Selected Presentation'!AD42) -> 920.97 | AF42: =INDEX('Malaysia Hourly'!U:U,'Selected Presentation'!AD42) -> 100 | AG42: =INDEX('Malaysia Hourly'!W:W,'Selected Presentation'!AD42) -> 100 | AH42: =INDEX('Malaysia Hourly'!AJ:AJ,'Selected Presentation'!AD42) -> 73.05394688 | AI42: =INDEX('Malaysia Hourly'!AL:AL,'Selected Presentation'!AD42) -> 0 | AJ42: =INDEX('Malaysia Hourly'!AO:AO,'Selected Presentation'!AD42) -> 0 | AK42: =INDEX('Malaysia Hourly'!AM:AM,'Selected Presentation'!AD42) -> 319.1986288
AC43: 38 | AD43: 2228 | AE43: =INDEX('Malaysia Hourly'!O:O,'Selected Presentation'!AD43) -> 909.24 | AF43: =INDEX('Malaysia Hourly'!U:U,'Selected Presentation'!AD43) -> 100 | AG43: =INDEX('Malaysia Hourly'!W:W,'Selected Presentation'!AD43) -> 100 | AH43: =INDEX('Malaysia Hourly'!AJ:AJ,'Selected Presentation'!AD43) -> 70.7916416 | AI43: =INDEX('Malaysia Hourly'!AL:AL,'Selected Presentation'!AD43) -> 0 | AJ43: =INDEX('Malaysia Hourly'!AO:AO,'Selected Presentation'!AD43) -> 0 | AK43: =INDEX('Malaysia Hourly'!AM:AM,'Selected Presentation'!AD43) -> 385.7427719
AC44: 39 | AD44: 2229 | AE44: =INDEX('Malaysia Hourly'!O:O,'Selected Presentation'!AD44) -> 1003.15 | AF44: =INDEX('Malaysia Hourly'!U:U,'Selected Presentation'!AD44) -> 100 | AG44: =INDEX('Malaysia Hourly'!W:W,'Selected Presentation'!AD44) -> 100 | AH44: =INDEX('Malaysia Hourly'!AJ:AJ,'Selected Presentation'!AD44) -> 89.0416112 | AI44: =INDEX('Malaysia Hourly'!AL:AL,'Selected Presentation'!AD44) -> 0 | AJ44: =INDEX('Malaysia Hourly'!AO:AO,'Selected Presentation'!AD44) -> 0 | AK44: =INDEX('Malaysia Hourly'!AM:AM,'Selected Presentation'!AD44) -> 469.4418864
AC45: 40 | AD45: 2230 | AE45: =INDEX('Malaysia Hourly'!O:O,'Selected Presentation'!AD45) -> 912.91 | AF45: =INDEX('Malaysia Hourly'!U:U,'Selected Presentation'!AD45) -> 100 | AG45: =INDEX('Malaysia Hourly'!W:W,'Selected Presentation'!AD45) -> 100 | AH45: =INDEX('Malaysia Hourly'!AJ:AJ,'Selected Presentation'!AD45) -> 72.25516208 | AI45: =INDEX('Malaysia Hourly'!AL:AL,'Selected Presentation'!AD45) -> 0 | AJ45: =INDEX('Malaysia Hourly'!AO:AO,'Selected Presentation'!AD45) -> 0 | AK45: =INDEX('Malaysia Hourly'!AM:AM,'Selected Presentation'!AD45) -> 537.3617388
AC46: 41 | AD46: 2231 | AE46: =INDEX('Malaysia Hourly'!O:O,'Selected Presentation'!AD46) -> 303.99 | AF46: =INDEX('Malaysia Hourly'!U:U,'Selected Presentation'!AD46) -> 100 | AG46: =INDEX('Malaysia Hourly'!W:W,'Selected Presentation'!AD46) -> 57.86996832 | AH46: =INDEX('Malaysia Hourly'!AJ:AJ,'Selected Presentation'!AD46) -> 0 | AI46: =INDEX('Malaysia Hourly'!AL:AL,'Selected Presentation'!AD46) -> 42.13003168 | AJ46: =INDEX('Malaysia Hourly'!AO:AO,'Selected Presentation'!AD46) -> 0 | AK46: =INDEX('Malaysia Hourly'!AM:AM,'Selected Presentation'!AD46) -> 495.2317071
AC47: 42 | AD47: 2232 | AE47: =INDEX('Malaysia Hourly'!O:O,'Selected Presentation'!AD47) -> 354.67 | AF47: =INDEX('Malaysia Hourly'!U:U,'Selected Presentation'!AD47) -> 100 | AG47: =INDEX('Malaysia Hourly'!W:W,'Selected Presentation'!AD47) -> 67.96612144 | AH47: =INDEX('Malaysia Hourly'!AJ:AJ,'Selected Presentation'!AD47) -> 0 | AI47: =INDEX('Malaysia Hourly'!AL:AL,'Selected Presentation'!AD47) -> 32.03387856 | AJ47: =INDEX('Malaysia Hourly'!AO:AO,'Selected Presentation'!AD47) -> 0 | AK47: =INDEX('Malaysia Hourly'!AM:AM,'Selected Presentation'!AD47) -> 463.1978285
AC48: 43 | AD48: 2233 | AE48: =INDEX('Malaysia Hourly'!O:O,'Selected Presentation'!AD48) -> 36.37 | AF48: =INDEX('Malaysia Hourly'!U:U,'Selected Presentation'!AD48) -> 100 | AG48: =INDEX('Malaysia Hourly'!W:W,'Selected Presentation'!AD48) -> 7.01388176 | AH48: =INDEX('Malaysia Hourly'!AJ:AJ,'Selected Presentation'!AD48) -> 0 | AI48: =INDEX('Malaysia Hourly'!AL:AL,'Selected Presentation'!AD48) -> 92.98611824 | AJ48: =INDEX('Malaysia Hourly'!AO:AO,'Selected Presentation'!AD48) -> 0 | AK48: =INDEX('Malaysia Hourly'!AM:AM,'Selected Presentation'!AD48) -> 370.2117103
AC49: 44 | AD49: 2234 | AE49: =INDEX('Malaysia Hourly'!O:O,'Selected Presentation'!AD49) -> 0 | AF49: =INDEX('Malaysia Hourly'!U:U,'Selected Presentation'!AD49) -> 100 | AG49: =INDEX('Malaysia Hourly'!W:W,'Selected Presentation'!AD49) -> 0 | AH49: =INDEX('Malaysia Hourly'!AJ:AJ,'Selected Presentation'!AD49) -> 0 | AI49: =INDEX('Malaysia Hourly'!AL:AL,'Selected Presentation'!AD49) -> 100 | AJ49: =INDEX('Malaysia Hourly'!AO:AO,'Selected Presentation'!AD49) -> 0 | AK49: =INDEX('Malaysia Hourly'!AM:AM,'Selected Presentation'!AD49) -> 270.2117103
AC50: 45 | AD50: 2235 | AE50: =INDEX('Malaysia Hourly'!O:O,'Selected Presentation'!AD50) -> 0 | AF50: =INDEX('Malaysia Hourly'!U:U,'Selected Presentation'!AD50) -> 100 | AG50: =INDEX('Malaysia Hourly'!W:W,'Selected Presentation'!AD50) -> 0 | AH50: =INDEX('Malaysia Hourly'!AJ:AJ,'Selected Presentation'!AD50) -> 0 | AI50: =INDEX('Malaysia Hourly'!AL:AL,'Selected Presentation'!AD50) -> 100 | AJ50: =INDEX('Malaysia Hourly'!AO:AO,'Selected Presentation'!AD50) -> 0 | AK50: =INDEX('Malaysia Hourly'!AM:AM,'Selected Presentation'!AD50) -> 170.2117103
AC51: 46 | AD51: 2236 | AE51: =INDEX('Malaysia Hourly'!O:O,'Selected Presentation'!AD51) -> 0 | AF51: =INDEX('Malaysia Hourly'!U:U,'Selected Presentation'!AD51) -> 100 | AG51: =INDEX('Malaysia Hourly'!W:W,'Selected Presentation'!AD51) -> 0 | AH51: =INDEX('Malaysia Hourly'!AJ:AJ,'Selected Presentation'!AD51) -> 0 | AI51: =INDEX('Malaysia Hourly'!AL:AL,'Selected Presentation'!AD51) -> 92.21171027 | AJ51: =INDEX('Malaysia Hourly'!AO:AO,'Selected Presentation'!AD51) -> 0 | AK51: =INDEX('Malaysia Hourly'!AM:AM,'Selected Presentation'!AD51) -> 78
AC52: 47 | AD52: 2237 | AE52: =INDEX('Malaysia Hourly'!O:O,'Selected Presentation'!AD52) -> 0 | AF52: =INDEX('Malaysia Hourly'!U:U,'Selected Presentation'!AD52) -> 100 | AG52: =INDEX('Malaysia Hourly'!W:W,'Selected Presentation'!AD52) -> 0 | AH52: =INDEX('Malaysia Hourly'!AJ:AJ,'Selected Presentation'!AD52) -> 0 | AI52: =INDEX('Malaysia Hourly'!AL:AL,'Selected Presentation'!AD52) -> 0 | AJ52: =INDEX('Malaysia Hourly'!AO:AO,'Selected Presentation'!AD52) -> 0 | AK52: =INDEX('Malaysia Hourly'!AM:AM,'Selected Presentation'!AD52) -> 78
AC53: 48 | AD53: 2238 | AE53: =INDEX('Malaysia Hourly'!O:O,'Selected Presentation'!AD53) -> 0 | AF53: =INDEX('Malaysia Hourly'!U:U,'Selected Presentation'!AD53) -> 100 | AG53: =INDEX('Malaysia Hourly'!W:W,'Selected Presentation'!AD53) -> 0 | AH53: =INDEX('Malaysia Hourly'!AJ:AJ,'Selected Presentation'!AD53) -> 0 | AI53: =INDEX('Malaysia Hourly'!AL:AL,'Selected Presentation'!AD53) -> 0 | AJ53: =INDEX('Malaysia Hourly'!AO:AO,'Selected Presentation'!AD53) -> 0 | AK53: =INDEX('Malaysia Hourly'!AM:AM,'Selected Presentation'!AD53) -> 78
AC54: 49 | AD54: 2239 | AE54: =INDEX('Malaysia Hourly'!O:O,'Selected Presentation'!AD54) -> 0 | AF54: =INDEX('Malaysia Hourly'!U:U,'Selected Presentation'!AD54) -> 100 | AG54: =INDEX('Malaysia Hourly'!W:W,'Selected Presentation'!AD54) -> 0 | AH54: =INDEX('Malaysia Hourly'!AJ:AJ,'Selected Presentation'!AD54) -> 0 | AI54: =INDEX('Malaysia Hourly'!AL:AL,'Selected Presentation'!AD54) -> 0 | AJ54: =INDEX('Malaysia Hourly'!AO:AO,'Selected Presentation'!AD54) -> 0 | AK54: =INDEX('Malaysia Hourly'!AM:AM,'Selected Presentation'!AD54) -> 78
AC55: 50 | AD55: 2240 | AE55: =INDEX('Malaysia Hourly'!O:O,'Selected Presentation'!AD55) -> 0 | AF55: =INDEX('Malaysia Hourly'!U:U,'Selected Presentation'!AD55) -> 100 | AG55: =INDEX('Malaysia Hourly'!W:W,'Selected Presentation'!AD55) -> 0 | AH55: =INDEX('Malaysia Hourly'!AJ:AJ,'Selected Presentation'!AD55) -> 0 | AI55: =INDEX('Malaysia Hourly'!AL:AL,'Selected Presentation'!AD55) -> 0 | AJ55: =INDEX('Malaysia Hourly'!AO:AO,'Selected Presentation'!AD55) -> 0 | AK55: =INDEX('Malaysia Hourly'!AM:AM,'Selected Presentation'!AD55) -> 78
AC56: 51 | AD56: 2241 | AE56: =INDEX('Malaysia Hourly'!O:O,'Selected Presentation'!AD56) -> 0 | AF56: =INDEX('Malaysia Hourly'!U:U,'Selected Presentation'!AD56) -> 100 | AG56: =INDEX('Malaysia Hourly'!W:W,'Selected Presentation'!AD56) -> 0 | AH56: =INDEX('Malaysia Hourly'!AJ:AJ,'Selected Presentation'!AD56) -> 0 | AI56: =INDEX('Malaysia Hourly'!AL:AL,'Selected Presentation'!AD56) -> 0 | AJ56: =INDEX('Malaysia Hourly'!AO:AO,'Selected Presentation'!AD56) -> 0 | AK56: =INDEX('Malaysia Hourly'!AM:AM,'Selected Presentation'!AD56) -> 78
AC57: 52 | AD57: 2242 | AE57: =INDEX('Malaysia Hourly'!O:O,'Selected Presentation'!AD57) -> 0 | AF57: =INDEX('Malaysia Hourly'!U:U,'Selected Presentation'!AD57) -> 100 | AG57: =INDEX('Malaysia Hourly'!W:W,'Selected Presentation'!AD57) -> 0 | AH57: =INDEX('Malaysia Hourly'!AJ:AJ,'Selected Presentation'!AD57) -> 0 | AI57: =INDEX('Malaysia Hourly'!AL:AL,'Selected Presentation'!AD57) -> 0 | AJ57: =INDEX('Malaysia Hourly'!AO:AO,'Selected Presentation'!AD57) -> 0 | AK57: =INDEX('Malaysia Hourly'!AM:AM,'Selected Presentation'!AD57) -> 78
AC58: 53 | AD58: 2243 | AE58: =INDEX('Malaysia Hourly'!O:O,'Selected Presentation'!AD58) -> 0 | AF58: =INDEX('Malaysia Hourly'!U:U,'Selected Presentation'!AD58) -> 100 | AG58: =INDEX('Malaysia Hourly'!W:W,'Selected Presentation'!AD58) -> 0 | AH58: =INDEX('Malaysia Hourly'!AJ:AJ,'Selected Presentation'!AD58) -> 0 | AI58: =INDEX('Malaysia Hourly'!AL:AL,'Selected Presentation'!AD58) -> 0 | AJ58: =INDEX('Malaysia Hourly'!AO:AO,'Selected Presentation'!AD58) -> 0 | AK58: =INDEX('Malaysia Hourly'!AM:AM,'Selected Presentation'!AD58) -> 78
AC59: 54 | AD59: 2244 | AE59: =INDEX('Malaysia Hourly'!O:O,'Selected Presentation'!AD59) -> 0 | AF59: =INDEX('Malaysia Hourly'!U:U,'Selected Presentation'!AD59) -> 100 | AG59: =INDEX('Malaysia Hourly'!W:W,'Selected Presentation'!AD59) -> 0 | AH59: =INDEX('Malaysia Hourly'!AJ:AJ,'Selected Presentation'!AD59) -> 0 | AI59: =INDEX('Malaysia Hourly'!AL:AL,'Selected Presentation'!AD59) -> 0 | AJ59: =INDEX('Malaysia Hourly'!AO:AO,'Selected Presentation'!AD59) -> 0 | AK59: =INDEX('Malaysia Hourly'!AM:AM,'Selected Presentation'!AD59) -> 78
AC60: 55 | AD60: 2245 | AE60: =INDEX('Malaysia Hourly'!O:O,'Selected Presentation'!AD60) -> 0 | AF60: =INDEX('Malaysia Hourly'!U:U,'Selected Presentation'!AD60) -> 100 | AG60: =INDEX('Malaysia Hourly'!W:W,'Selected Presentation'!AD60) -> 0 | AH60: =INDEX('Malaysia Hourly'!AJ:AJ,'Selected Presentation'!AD60) -> 0 | AI60: =INDEX('Malaysia Hourly'!AL:AL,'Selected Presentation'!AD60) -> 0 | AJ60: =INDEX('Malaysia Hourly'!AO:AO,'Selected Presentation'!AD60) -> 0 | AK60: =INDEX('Malaysia Hourly'!AM:AM,'Selected Presentation'!AD60) -> 78
AC61: 56 | AD61: 2246 | AE61: =INDEX('Malaysia Hourly'!O:O,'Selected Presentation'!AD61) -> 68.19 | AF61: =INDEX('Malaysia Hourly'!U:U,'Selected Presentation'!AD61) -> 100 | AG61: =INDEX('Malaysia Hourly'!W:W,'Selected Presentation'!AD61) -> 13.66309392 | AH61: =INDEX('Malaysia Hourly'!AJ:AJ,'Selected Presentation'!AD61) -> 0 | AI61: =INDEX('Malaysia Hourly'!AL:AL,'Selected Presentation'!AD61) -> 0 | AJ61: =INDEX('Malaysia Hourly'!AO:AO,'Selected Presentation'!AD61) -> 0 | AK61: =INDEX('Malaysia Hourly'!AM:AM,'Selected Presentation'!AD61) -> 78
AC62: 57 | AD62: 2247 | AE62: =INDEX('Malaysia Hourly'!O:O,'Selected Presentation'!AD62) -> 346.19 | AF62: =INDEX('Malaysia Hourly'!U:U,'Selected Presentation'!AD62) -> 100 | AG62: =INDEX('Malaysia Hourly'!W:W,'Selected Presentation'!AD62) -> 67.94740368 | AH62: =INDEX('Malaysia Hourly'!AJ:AJ,'Selected Presentation'!AD62) -> 0 | AI62: =INDEX('Malaysia Hourly'!AL:AL,'Selected Presentation'!AD62) -> 0 | AJ62: =INDEX('Malaysia Hourly'!AO:AO,'Selected Presentation'!AD62) -> 0 | AK62: =INDEX('Malaysia Hourly'!AM:AM,'Selected Presentation'!AD62) -> 78
AC63: 58 | AD63: 2248 | AE63: =INDEX('Malaysia Hourly'!O:O,'Selected Presentation'!AD63) -> 695.05 | AF63: =INDEX('Malaysia Hourly'!U:U,'Selected Presentation'!AD63) -> 100 | AG63: =INDEX('Malaysia Hourly'!W:W,'Selected Presentation'!AD63) -> 100 | AH63: =INDEX('Malaysia Hourly'!AJ:AJ,'Selected Presentation'!AD63) -> 34.0723648 | AI63: =INDEX('Malaysia Hourly'!AL:AL,'Selected Presentation'!AD63) -> 0 | AJ63: =INDEX('Malaysia Hourly'!AO:AO,'Selected Presentation'!AD63) -> 0 | AK63: =INDEX('Malaysia Hourly'!AM:AM,'Selected Presentation'!AD63) -> 110.0280229
AC64: 59 | AD64: 2249 | AE64: =INDEX('Malaysia Hourly'!O:O,'Selected Presentation'!AD64) -> 897.64 | AF64: =INDEX('Malaysia Hourly'!U:U,'Selected Presentation'!AD64) -> 100 | AG64: =INDEX('Malaysia Hourly'!W:W,'Selected Presentation'!AD64) -> 100 | AH64: =INDEX('Malaysia Hourly'!AJ:AJ,'Selected Presentation'!AD64) -> 70.23563072 | AI64: =INDEX('Malaysia Hourly'!AL:AL,'Selected Presentation'!AD64) -> 0 | AJ64: =INDEX('Malaysia Hourly'!AO:AO,'Selected Presentation'!AD64) -> 0 | AK64: =INDEX('Malaysia Hourly'!AM:AM,'Selected Presentation'!AD64) -> 176.0495158
AC65: 60 | AD65: 2250 | AE65: =INDEX('Malaysia Hourly'!O:O,'Selected Presentation'!AD65) -> 980.31 | AF65: =INDEX('Malaysia Hourly'!U:U,'Selected Presentation'!AD65) -> 100 | AG65: =INDEX('Malaysia Hourly'!W:W,'Selected Presentation'!AD65) -> 100 | AH65: =INDEX('Malaysia Hourly'!AJ:AJ,'Selected Presentation'!AD65) -> 83.37286736 | AI65: =INDEX('Malaysia Hourly'!AL:AL,'Selected Presentation'!AD65) -> 0 | AJ65: =INDEX('Malaysia Hourly'!AO:AO,'Selected Presentation'!AD65) -> 0 | AK65: =INDEX('Malaysia Hourly'!AM:AM,'Selected Presentation'!AD65) -> 254.4200111
AC66: 61 | AD66: 2251 | AE66: =INDEX('Malaysia Hourly'!O:O,'Selected Presentation'!AD66) -> 924.13 | AF66: =INDEX('Malaysia Hourly'!U:U,'Selected Presentation'!AD66) -> 100 | AG66: =INDEX('Malaysia Hourly'!W:W,'Selected Presentation'!AD66) -> 100 | AH66: =INDEX('Malaysia Hourly'!AJ:AJ,'Selected Presentation'!AD66) -> 71.31152288 | AI66: =INDEX('Malaysia Hourly'!AL:AL,'Selected Presentation'!AD66) -> 0 | AJ66: =INDEX('Malaysia Hourly'!AO:AO,'Selected Presentation'!AD66) -> 0 | AK66: =INDEX('Malaysia Hourly'!AM:AM,'Selected Presentation'!AD66) -> 321.4528426
AC67: 62 | AD67: 2252 | AE67: =INDEX('Malaysia Hourly'!O:O,'Selected Presentation'!AD67) -> 885.45 | AF67: =INDEX('Malaysia Hourly'!U:U,'Selected Presentation'!AD67) -> 100 | AG67: =INDEX('Malaysia Hourly'!W:W,'Selected Presentation'!AD67) -> 100 | AH67: =INDEX('Malaysia Hourly'!AJ:AJ,'Selected Presentation'!AD67) -> 63.1636424 | AI67: =INDEX('Malaysia Hourly'!AL:AL,'Selected Presentation'!AD67) -> 0 | AJ67: =INDEX('Malaysia Hourly'!AO:AO,'Selected Presentation'!AD67) -> 0 | AK67: =INDEX('Malaysia Hourly'!AM:AM,'Selected Presentation'!AD67) -> 380.8266665
AC68: 63 | AD68: 2253 | AE68: =INDEX('Malaysia Hourly'!O:O,'Selected Presentation'!AD68) -> 952.07 | AF68: =INDEX('Malaysia Hourly'!U:U,'Selected Presentation'!AD68) -> 100 | AG68: =INDEX('Malaysia Hourly'!W:W,'Selected Presentation'!AD68) -> 100 | AH68: =INDEX('Malaysia Hourly'!AJ:AJ,'Selected Presentation'!AD68) -> 78.21227088 | AI68: =INDEX('Malaysia Hourly'!AL:AL,'Selected Presentation'!AD68) -> 0 | AJ68: =INDEX('Malaysia Hourly'!AO:AO,'Selected Presentation'!AD68) -> 0 | AK68: =INDEX('Malaysia Hourly'!AM:AM,'Selected Presentation'!AD68) -> 454.3462011
AC69: 64 | AD69: 2254 | AE69: =INDEX('Malaysia Hourly'!O:O,'Selected Presentation'!AD69) -> 867.48 | AF69: =INDEX('Malaysia Hourly'!U:U,'Selected Presentation'!AD69) -> 100 | AG69: =INDEX('Malaysia Hourly'!W:W,'Selected Presentation'!AD69) -> 100 | AH69: =INDEX('Malaysia Hourly'!AJ:AJ,'Selected Presentation'!AD69) -> 63.5026304 | AI69: =INDEX('Malaysia Hourly'!AL:AL,'Selected Presentation'!AD69) -> 0 | AJ69: =INDEX('Malaysia Hourly'!AO:AO,'Selected Presentation'!AD69) -> 0 | AK69: =INDEX('Malaysia Hourly'!AM:AM,'Selected Presentation'!AD69) -> 514.0386737
AC70: 65 | AD70: 2255 | AE70: =INDEX('Malaysia Hourly'!O:O,'Selected Presentation'!AD70) -> 845.06 | AF70: =INDEX('Malaysia Hourly'!U:U,'Selected Presentation'!AD70) -> 100 | AG70: =INDEX('Malaysia Hourly'!W:W,'Selected Presentation'!AD70) -> 100 | AH70: =INDEX('Malaysia Hourly'!AJ:AJ,'Selected Presentation'!AD70) -> 60.61548384 | AI70: =INDEX('Malaysia Hourly'!AL:AL,'Selected Presentation'!AD70) -> 0 | AJ70: =INDEX('Malaysia Hourly'!AO:AO,'Selected Presentation'!AD70) -> 0 | AK70: =INDEX('Malaysia Hourly'!AM:AM,'Selected Presentation'!AD70) -> 571.0172285
AC71: 66 | AD71: 2256 | AE71: =INDEX('Malaysia Hourly'!O:O,'Selected Presentation'!AD71) -> 250.92 | AF71: =INDEX('Malaysia Hourly'!U:U,'Selected Presentation'!AD71) -> 100 | AG71: =INDEX('Malaysia Hourly'!W:W,'Selected Presentation'!AD71) -> 48.06021312 | AH71: =INDEX('Malaysia Hourly'!AJ:AJ,'Selected Presentation'!AD71) -> 0 | AI71: =INDEX('Malaysia Hourly'!AL:AL,'Selected Presentation'!AD71) -> 51.93978688 | AJ71: =INDEX('Malaysia Hourly'!AO:AO,'Selected Presentation'!AD71) -> 0 | AK71: =INDEX('Malaysia Hourly'!AM:AM,'Selected Presentation'!AD71) -> 519.0774416
AC72: 67 | AD72: 2257 | AE72: =INDEX('Malaysia Hourly'!O:O,'Selected Presentation'!AD72) -> 114.81 | AF72: =INDEX('Malaysia Hourly'!U:U,'Selected Presentation'!AD72) -> 100 | AG72: =INDEX('Malaysia Hourly'!W:W,'Selected Presentation'!AD72) -> 22.17945504 | AH72: =INDEX('Malaysia Hourly'!AJ:AJ,'Selected Presentation'!AD72) -> 0 | AI72: =INDEX('Malaysia Hourly'!AL:AL,'Selected Presentation'!AD72) -> 77.82054496 | AJ72: =INDEX('Malaysia Hourly'!AO:AO,'Selected Presentation'!AD72) -> 0 | AK72: =INDEX('Malaysia Hourly'!AM:AM,'Selected Presentation'!AD72) -> 441.2568966
AC73: 68 | AD73: 2258 | AE73: =INDEX('Malaysia Hourly'!O:O,'Selected Presentation'!AD73) -> 0 | AF73: =INDEX('Malaysia Hourly'!U:U,'Selected Presentation'!AD73) -> 100 | AG73: =INDEX('Malaysia Hourly'!W:W,'Selected Presentation'!AD73) -> 0 | AH73: =INDEX('Malaysia Hourly'!AJ:AJ,'Selected Presentation'!AD73) -> 0 | AI73: =INDEX('Malaysia Hourly'!AL:AL,'Selected Presentation'!AD73) -> 100 | AJ73: =INDEX('Malaysia Hourly'!AO:AO,'Selected Presentation'!AD73) -> 0 | AK73: =INDEX('Malaysia Hourly'!AM:AM,'Selected Presentation'!AD73) -> 341.2568966
AC74: 69 | AD74: 2259 | AE74: =INDEX('Malaysia Hourly'!O:O,'Selected Presentation'!AD74) -> 0 | AF74: =INDEX('Malaysia Hourly'!U:U,'Selected Presentation'!AD74) -> 100 | AG74: =INDEX('Malaysia Hourly'!W:W,'Selected Presentation'!AD74) -> 0 | AH74: =INDEX('Malaysia Hourly'!AJ:AJ,'Selected Presentation'!AD74) -> 0 | AI74: =INDEX('Malaysia Hourly'!AL:AL,'Selected Presentation'!AD74) -> 100 | AJ74: =INDEX('Malaysia Hourly'!AO:AO,'Selected Presentation'!AD74) -> 0 | AK74: =INDEX('Malaysia Hourly'!AM:AM,'Selected Presentation'!AD74) -> 241.2568966
AC75: 70 | AD75: 2260 | AE75: =INDEX('Malaysia Hourly'!O:O,'Selected Presentation'!AD75) -> 0 | AF75: =INDEX('Malaysia Hourly'!U:U,'Selected Presentation'!AD75) -> 100 | AG75: =INDEX('Malaysia Hourly'!W:W,'Selected Presentation'!AD75) -> 0 | AH75: =INDEX('Malaysia Hourly'!AJ:AJ,'Selected Presentation'!AD75) -> 0 | AI75: =INDEX('Malaysia Hourly'!AL:AL,'Selected Presentation'!AD75) -> 100 | AJ75: =INDEX('Malaysia Hourly'!AO:AO,'Selected Presentation'!AD75) -> 0 | AK75: =INDEX('Malaysia Hourly'!AM:AM,'Selected Presentation'!AD75) -> 141.2568966
AC76: 71 | AD76: 2261 | AE76: =INDEX('Malaysia Hourly'!O:O,'Selected Presentation'!AD76) -> 0 | AF76: =INDEX('Malaysia Hourly'!U:U,'Selected Presentation'!AD76) -> 100 | AG76: =INDEX('Malaysia Hourly'!W:W,'Selected Presentation'!AD76) -> 0 | AH76: =INDEX('Malaysia Hourly'!AJ:AJ,'Selected Presentation'!AD76) -> 0 | AI76: =INDEX('Malaysia Hourly'!AL:AL,'Selected Presentation'!AD76) -> 63.25689664 | AJ76: =INDEX('Malaysia Hourly'!AO:AO,'Selected Presentation'!AD76) -> 0 | AK76: =INDEX('Malaysia Hourly'!AM:AM,'Selected Presentation'!AD76) -> 78
AC77: 72 | AD77: 2262 | AE77: =INDEX('Malaysia Hourly'!O:O,'Selected Presentation'!AD77) -> 0 | AF77: =INDEX('Malaysia Hourly'!U:U,'Selected Presentation'!AD77) -> 100 | AG77: =INDEX('Malaysia Hourly'!W:W,'Selected Presentation'!AD77) -> 0 | AH77: =INDEX('Malaysia Hourly'!AJ:AJ,'Selected Presentation'!AD77) -> 0 | AI77: =INDEX('Malaysia Hourly'!AL:AL,'Selected Presentation'!AD77) -> 0 | AJ77: =INDEX('Malaysia Hourly'!AO:AO,'Selected Presentation'!AD77) -> 0 | AK77: =INDEX('Malaysia Hourly'!AM:AM,'Selected Presentation'!AD77) -> 78
AC78: 73 | AD78: 2263 | AE78: =INDEX('Malaysia Hourly'!O:O,'Selected Presentation'!AD78) -> 0 | AF78: =INDEX('Malaysia Hourly'!U:U,'Selected Presentation'!AD78) -> 100 | AG78: =INDEX('Malaysia Hourly'!W:W,'Selected Presentation'!AD78) -> 0 | AH78: =INDEX('Malaysia Hourly'!AJ:AJ,'Selected Presentation'!AD78) -> 0 | AI78: =INDEX('Malaysia Hourly'!AL:AL,'Selected Presentation'!AD78) -> 0 | AJ78: =INDEX('Malaysia Hourly'!AO:AO,'Selected Presentation'!AD78) -> 0 | AK78: =INDEX('Malaysia Hourly'!AM:AM,'Selected Presentation'!AD78) -> 78
AC79: 74 | AD79: 2264 | AE79: =INDEX('Malaysia Hourly'!O:O,'Selected Presentation'!AD79) -> 0 | AF79: =INDEX('Malaysia Hourly'!U:U,'Selected Presentation'!AD79) -> 100 | AG79: =INDEX('Malaysia Hourly'!W:W,'Selected Presentation'!AD79) -> 0 | AH79: =INDEX('Malaysia Hourly'!AJ:AJ,'Selected Presentation'!AD79) -> 0 | AI79: =INDEX('Malaysia Hourly'!AL:AL,'Selected Presentation'!AD79) -> 0 | AJ79: =INDEX('Malaysia Hourly'!AO:AO,'Selected Presentation'!AD79) -> 0 | AK79: =INDEX('Malaysia Hourly'!AM:AM,'Selected Presentation'!AD79) -> 78
AC80: 75 | AD80: 2265 | AE80: =INDEX('Malaysia Hourly'!O:O,'Selected Presentation'!AD80) -> 0 | AF80: =INDEX('Malaysia Hourly'!U:U,'Selected Presentation'!AD80) -> 100 | AG80: =INDEX('Malaysia Hourly'!W:W,'Selected Presentation'!AD80) -> 0 | AH80: =INDEX('Malaysia Hourly'!AJ:AJ,'Selected Presentation'!AD80) -> 0 | AI80: =INDEX('Malaysia Hourly'!AL:AL,'Selected Presentation'!AD80) -> 0 | AJ80: =INDEX('Malaysia Hourly'!AO:AO,'Selected Presentation'!AD80) -> 0 | AK80: =INDEX('Malaysia Hourly'!AM:AM,'Selected Presentation'!AD80) -> 78
AC81: 76 | AD81: 2266 | AE81: =INDEX('Malaysia Hourly'!O:O,'Selected Presentation'!AD81) -> 0 | AF81: =INDEX('Malaysia Hourly'!U:U,'Selected Presentation'!AD81) -> 100 | AG81: =INDEX('Malaysia Hourly'!W:W,'Selected Presentation'!AD81) -> 0 | AH81: =INDEX('Malaysia Hourly'!AJ:AJ,'Selected Presentation'!AD81) -> 0 | AI81: =INDEX('Malaysia Hourly'!AL:AL,'Selected Presentation'!AD81) -> 0 | AJ81: =INDEX('Malaysia Hourly'!AO:AO,'Selected Presentation'!AD81) -> 0 | AK81: =INDEX('Malaysia Hourly'!AM:AM,'Selected Presentation'!AD81) -> 78
AC82: 77 | AD82: 2267 | AE82: =INDEX('Malaysia Hourly'!O:O,'Selected Presentation'!AD82) -> 0 | AF82: =INDEX('Malaysia Hourly'!U:U,'Selected Presentation'!AD82) -> 100 | AG82: =INDEX('Malaysia Hourly'!W:W,'Selected Presentation'!AD82) -> 0 | AH82: =INDEX('Malaysia Hourly'!AJ:AJ,'Selected Presentation'!AD82) -> 0 | AI82: =INDEX('Malaysia Hourly'!AL:AL,'Selected Presentation'!AD82) -> 0 | AJ82: =INDEX('Malaysia Hourly'!AO:AO,'Selected Presentation'!AD82) -> 0 | AK82: =INDEX('Malaysia Hourly'!AM:AM,'Selected Presentation'!AD82) -> 78
AC83: 78 | AD83: 2268 | AE83: =INDEX('Malaysia Hourly'!O:O,'Selected Presentation'!AD83) -> 0 | AF83: =INDEX('Malaysia Hourly'!U:U,'Selected Presentation'!AD83) -> 100 | AG83: =INDEX('Malaysia Hourly'!W:W,'Selected Presentation'!AD83) -> 0 | AH83: =INDEX('Malaysia Hourly'!AJ:AJ,'Selected Presentation'!AD83) -> 0 | AI83: =INDEX('Malaysia Hourly'!AL:AL,'Selected Presentation'!AD83) -> 0 | AJ83: =INDEX('Malaysia Hourly'!AO:AO,'Selected Presentation'!AD83) -> 0 | AK83: =INDEX('Malaysia Hourly'!AM:AM,'Selected Presentation'!AD83) -> 78
AC84: 79 | AD84: 2269 | AE84: =INDEX('Malaysia Hourly'!O:O,'Selected Presentation'!AD84) -> 0 | AF84: =INDEX('Malaysia Hourly'!U:U,'Selected Presentation'!AD84) -> 100 | AG84: =INDEX('Malaysia Hourly'!W:W,'Selected Presentation'!AD84) -> 0 | AH84: =INDEX('Malaysia Hourly'!AJ:AJ,'Selected Presentation'!AD84) -> 0 | AI84: =INDEX('Malaysia Hourly'!AL:AL,'Selected Presentation'!AD84) -> 0 | AJ84: =INDEX('Malaysia Hourly'!AO:AO,'Selected Presentation'!AD84) -> 0 | AK84: =INDEX('Malaysia Hourly'!AM:AM,'Selected Presentation'!AD84) -> 78
AC85: 80 | AD85: 2270 | AE85: =INDEX('Malaysia Hourly'!O:O,'Selected Presentation'!AD85) -> 73.67 | AF85: =INDEX('Malaysia Hourly'!U:U,'Selected Presentation'!AD85) -> 100 | AG85: =INDEX('Malaysia Hourly'!W:W,'Selected Presentation'!AD85) -> 14.65031088 | AH85: =INDEX('Malaysia Hourly'!AJ:AJ,'Selected Presentation'!AD85) -> 0 | AI85: =INDEX('Malaysia Hourly'!AL:AL,'Selected Presentation'!AD85) -> 0 | AJ85: =INDEX('Malaysia Hourly'!AO:AO,'Selected Presentation'!AD85) -> 0 | AK85: =INDEX('Malaysia Hourly'!AM:AM,'Selected Presentation'!AD85) -> 78
AC86: 81 | AD86: 2271 | AE86: =INDEX('Malaysia Hourly'!O:O,'Selected Presentation'!AD86) -> 65.47 | AF86: =INDEX('Malaysia Hourly'!U:U,'Selected Presentation'!AD86) -> 100 | AG86: =INDEX('Malaysia Hourly'!W:W,'Selected Presentation'!AD86) -> 12.8478328 | AH86: =INDEX('Malaysia Hourly'!AJ:AJ,'Selected Presentation'!AD86) -> 0 | AI86: =INDEX('Malaysia Hourly'!AL:AL,'Selected Presentation'!AD86) -> 0 | AJ86: =INDEX('Malaysia Hourly'!AO:AO,'Selected Presentation'!AD86) -> 0 | AK86: =INDEX('Malaysia Hourly'!AM:AM,'Selected Presentation'!AD86) -> 78
AC87: 82 | AD87: 2272 | AE87: =INDEX('Malaysia Hourly'!O:O,'Selected Presentation'!AD87) -> 173.74 | AF87: =INDEX('Malaysia Hourly'!U:U,'Selected Presentation'!AD87) -> 100 | AG87: =INDEX('Malaysia Hourly'!W:W,'Selected Presentation'!AD87) -> 33.56100832 | AH87: =INDEX('Malaysia Hourly'!AJ:AJ,'Selected Presentation'!AD87) -> 0 | AI87: =INDEX('Malaysia Hourly'!AL:AL,'Selected Presentation'!AD87) -> 0 | AJ87: =INDEX('Malaysia Hourly'!AO:AO,'Selected Presentation'!AD87) -> 0 | AK87: =INDEX('Malaysia Hourly'!AM:AM,'Selected Presentation'!AD87) -> 78
AC88: 83 | AD88: 2273 | AE88: =INDEX('Malaysia Hourly'!O:O,'Selected Presentation'!AD88) -> 233.32 | AF88: =INDEX('Malaysia Hourly'!U:U,'Selected Presentation'!AD88) -> 100 | AG88: =INDEX('Malaysia Hourly'!W:W,'Selected Presentation'!AD88) -> 44.42786112 | AH88: =INDEX('Malaysia Hourly'!AJ:AJ,'Selected Presentation'!AD88) -> 0 | AI88: =INDEX('Malaysia Hourly'!AL:AL,'Selected Presentation'!AD88) -> 0 | AJ88: =INDEX('Malaysia Hourly'!AO:AO,'Selected Presentation'!AD88) -> 0 | AK88: =INDEX('Malaysia Hourly'!AM:AM,'Selected Presentation'!AD88) -> 78
AC89: 84 | AD89: 2274 | AE89: =INDEX('Malaysia Hourly'!O:O,'Selected Presentation'!AD89) -> 558.5 | AF89: =INDEX('Malaysia Hourly'!U:U,'Selected Presentation'!AD89) -> 100 | AG89: =INDEX('Malaysia Hourly'!W:W,'Selected Presentation'!AD89) -> 100 | AH89: =INDEX('Malaysia Hourly'!AJ:AJ,'Selected Presentation'!AD89) -> 5.17672 | AI89: =INDEX('Malaysia Hourly'!AL:AL,'Selected Presentation'!AD89) -> 0 | AJ89: =INDEX('Malaysia Hourly'!AO:AO,'Selected Presentation'!AD89) -> 0 | AK89: =INDEX('Malaysia Hourly'!AM:AM,'Selected Presentation'!AD89) -> 82.8661168
AC90: 85 | AD90: 2275 | AE90: =INDEX('Malaysia Hourly'!O:O,'Selected Presentation'!AD90) -> 918.04 | AF90: =INDEX('Malaysia Hourly'!U:U,'Selected Presentation'!AD90) -> 100 | AG90: =INDEX('Malaysia Hourly'!W:W,'Selected Presentation'!AD90) -> 100 | AH90: =INDEX('Malaysia Hourly'!AJ:AJ,'Selected Presentation'!AD90) -> 71.46049472 | AI90: =INDEX('Malaysia Hourly'!AL:AL,'Selected Presentation'!AD90) -> 0 | AJ90: =INDEX('Malaysia Hourly'!AO:AO,'Selected Presentation'!AD90) -> 0 | AK90: =INDEX('Malaysia Hourly'!AM:AM,'Selected Presentation'!AD90) -> 150.0389818
AC91: 86 | AD91: 2276 | AE91: =INDEX('Malaysia Hourly'!O:O,'Selected Presentation'!AD91) -> 860.13 | AF91: =INDEX('Malaysia Hourly'!U:U,'Selected Presentation'!AD91) -> 100 | AG91: =INDEX('Malaysia Hourly'!W:W,'Selected Presentation'!AD91) -> 100 | AH91: =INDEX('Malaysia Hourly'!AJ:AJ,'Selected Presentation'!AD91) -> 59.83279712 | AI91: =INDEX('Malaysia Hourly'!AL:AL,'Selected Presentation'!AD91) -> 0 | AJ91: =INDEX('Malaysia Hourly'!AO:AO,'Selected Presentation'!AD91) -> 0 | AK91: =INDEX('Malaysia Hourly'!AM:AM,'Selected Presentation'!AD91) -> 206.2818111
AC92: 87 | AD92: 2277 | AE92: =INDEX('Malaysia Hourly'!O:O,'Selected Presentation'!AD92) -> 986.19 | AF92: =INDEX('Malaysia Hourly'!U:U,'Selected Presentation'!AD92) -> 100 | AG92: =INDEX('Malaysia Hourly'!W:W,'Selected Presentation'!AD92) -> 100 | AH92: =INDEX('Malaysia Hourly'!AJ:AJ,'Selected Presentation'!AD92) -> 83.55757232 | AI92: =INDEX('Malaysia Hourly'!AL:AL,'Selected Presentation'!AD92) -> 0 | AJ92: =INDEX('Malaysia Hourly'!AO:AO,'Selected Presentation'!AD92) -> 0 | AK92: =INDEX('Malaysia Hourly'!AM:AM,'Selected Presentation'!AD92) -> 284.8259291
AC93: 88 | AD93: 2278 | AE93: =INDEX('Malaysia Hourly'!O:O,'Selected Presentation'!AD93) -> 836.67 | AF93: =INDEX('Malaysia Hourly'!U:U,'Selected Presentation'!AD93) -> 100 | AG93: =INDEX('Malaysia Hourly'!W:W,'Selected Presentation'!AD93) -> 100 | AH93: =INDEX('Malaysia Hourly'!AJ:AJ,'Selected Presentation'!AD93) -> 56.33011616 | AI93: =INDEX('Malaysia Hourly'!AL:AL,'Selected Presentation'!AD93) -> 0 | AJ93: =INDEX('Malaysia Hourly'!AO:AO,'Selected Presentation'!AD93) -> 0 | AK93: =INDEX('Malaysia Hourly'!AM:AM,'Selected Presentation'!AD93) -> 337.7762383
AC94: 89 | AD94: 2279 | AE94: =INDEX('Malaysia Hourly'!O:O,'Selected Presentation'!AD94) -> 108.21 | AF94: =INDEX('Malaysia Hourly'!U:U,'Selected Presentation'!AD94) -> 100 | AG94: =INDEX('Malaysia Hourly'!W:W,'Selected Presentation'!AD94) -> 20.7070656 | AH94: =INDEX('Malaysia Hourly'!AJ:AJ,'Selected Presentation'!AD94) -> 0 | AI94: =INDEX('Malaysia Hourly'!AL:AL,'Selected Presentation'!AD94) -> 79.2929344 | AJ94: =INDEX('Malaysia Hourly'!AO:AO,'Selected Presentation'!AD94) -> 0 | AK94: =INDEX('Malaysia Hourly'!AM:AM,'Selected Presentation'!AD94) -> 258.4833039
AC95: 90 | AD95: 2280 | AE95: =INDEX('Malaysia Hourly'!O:O,'Selected Presentation'!AD95) -> 119.8 | AF95: =INDEX('Malaysia Hourly'!U:U,'Selected Presentation'!AD95) -> 100 | AG95: =INDEX('Malaysia Hourly'!W:W,'Selected Presentation'!AD95) -> 23.0016 | AH95: =INDEX('Malaysia Hourly'!AJ:AJ,'Selected Presentation'!AD95) -> 0 | AI95: =INDEX('Malaysia Hourly'!AL:AL,'Selected Presentation'!AD95) -> 76.9984 | AJ95: =INDEX('Malaysia Hourly'!AO:AO,'Selected Presentation'!AD95) -> 0 | AK95: =INDEX('Malaysia Hourly'!AM:AM,'Selected Presentation'!AD95) -> 181.4849039
AC96: 91 | AD96: 2281 | AE96: =INDEX('Malaysia Hourly'!O:O,'Selected Presentation'!AD96) -> 12.73 | AF96: =INDEX('Malaysia Hourly'!U:U,'Selected Presentation'!AD96) -> 100 | AG96: =INDEX('Malaysia Hourly'!W:W,'Selected Presentation'!AD96) -> 2.46289856 | AH96: =INDEX('Malaysia Hourly'!AJ:AJ,'Selected Presentation'!AD96) -> 0 | AI96: =INDEX('Malaysia Hourly'!AL:AL,'Selected Presentation'!AD96) -> 97.53710144 | AJ96: =INDEX('Malaysia Hourly'!AO:AO,'Selected Presentation'!AD96) -> 0 | AK96: =INDEX('Malaysia Hourly'!AM:AM,'Selected Presentation'!AD96) -> 83.94780246
AC97: 92 | AD97: 2282 | AE97: =INDEX('Malaysia Hourly'!O:O,'Selected Presentation'!AD97) -> 0 | AF97: =INDEX('Malaysia Hourly'!U:U,'Selected Presentation'!AD97) -> 100 | AG97: =INDEX('Malaysia Hourly'!W:W,'Selected Presentation'!AD97) -> 0 | AH97: =INDEX('Malaysia Hourly'!AJ:AJ,'Selected Presentation'!AD97) -> 0 | AI97: =INDEX('Malaysia Hourly'!AL:AL,'Selected Presentation'!AD97) -> 5.947802461 | AJ97: =INDEX('Malaysia Hourly'!AO:AO,'Selected Presentation'!AD97) -> 0 | AK97: =INDEX('Malaysia Hourly'!AM:AM,'Selected Presentation'!AD97) -> 78
AC98: 93 | AD98: 2283 | AE98: =INDEX('Malaysia Hourly'!O:O,'Selected Presentation'!AD98) -> 0 | AF98: =INDEX('Malaysia Hourly'!U:U,'Selected Presentation'!AD98) -> 100 | AG98: =INDEX('Malaysia Hourly'!W:W,'Selected Presentation'!AD98) -> 0 | AH98: =INDEX('Malaysia Hourly'!AJ:AJ,'Selected Presentation'!AD98) -> 0 | AI98: =INDEX('Malaysia Hourly'!AL:AL,'Selected Presentation'!AD98) -> 0 | AJ98: =INDEX('Malaysia Hourly'!AO:AO,'Selected Presentation'!AD98) -> 0 | AK98: =INDEX('Malaysia Hourly'!AM:AM,'Selected Presentation'!AD98) -> 78
AC99: 94 | AD99: 2284 | AE99: =INDEX('Malaysia Hourly'!O:O,'Selected Presentation'!AD99) -> 0 | AF99: =INDEX('Malaysia Hourly'!U:U,'Selected Presentation'!AD99) -> 100 | AG99: =INDEX('Malaysia Hourly'!W:W,'Selected Presentation'!AD99) -> 0 | AH99: =INDEX('Malaysia Hourly'!AJ:AJ,'Selected Presentation'!AD99) -> 0 | AI99: =INDEX('Malaysia Hourly'!AL:AL,'Selected Presentation'!AD99) -> 0 | AJ99: =INDEX('Malaysia Hourly'!AO:AO,'Selected Presentation'!AD99) -> 0 | AK99: =INDEX('Malaysia Hourly'!AM:AM,'Selected Presentation'!AD99) -> 78
AC100: 95 | AD100: 2285 | AE100: =INDEX('Malaysia Hourly'!O:O,'Selected Presentation'!AD100) -> 0 | AF100: =INDEX('Malaysia Hourly'!U:U,'Selected Presentation'!AD100) -> 100 | AG100: =INDEX('Malaysia Hourly'!W:W,'Selected Presentation'!AD100) -> 0 | AH100: =INDEX('Malaysia Hourly'!AJ:AJ,'Selected Presentation'!AD100) -> 0 | AI100: =INDEX('Malaysia Hourly'!AL:AL,'Selected Presentation'!AD100) -> 0 | AJ100: =INDEX('Malaysia Hourly'!AO:AO,'Selected Presentation'!AD100) -> 0 | AK100: =INDEX('Malaysia Hourly'!AM:AM,'Selected Presentation'!AD100) -> 78
AC101: 96 | AD101: 2286 | AE101: =INDEX('Malaysia Hourly'!O:O,'Selected Presentation'!AD101) -> 0 | AF101: =INDEX('Malaysia Hourly'!U:U,'Selected Presentation'!AD101) -> 100 | AG101: =INDEX('Malaysia Hourly'!W:W,'Selected Presentation'!AD101) -> 0 | AH101: =INDEX('Malaysia Hourly'!AJ:AJ,'Selected Presentation'!AD101) -> 0 | AI101: =INDEX('Malaysia Hourly'!AL:AL,'Selected Presentation'!AD101) -> 0 | AJ101: =INDEX('Malaysia Hourly'!AO:AO,'Selected Presentation'!AD101) -> 0 | AK101: =INDEX('Malaysia Hourly'!AM:AM,'Selected Presentation'!AD101) -> 78
AC102: 97 | AD102: 2287 | AE102: =INDEX('Malaysia Hourly'!O:O,'Selected Presentation'!AD102) -> 0 | AF102: =INDEX('Malaysia Hourly'!U:U,'Selected Presentation'!AD102) -> 100 | AG102: =INDEX('Malaysia Hourly'!W:W,'Selected Presentation'!AD102) -> 0 | AH102: =INDEX('Malaysia Hourly'!AJ:AJ,'Selected Presentation'!AD102) -> 0 | AI102: =INDEX('Malaysia Hourly'!AL:AL,'Selected Presentation'!AD102) -> 0 | AJ102: =INDEX('Malaysia Hourly'!AO:AO,'Selected Presentation'!AD102) -> 0 | AK102: =INDEX('Malaysia Hourly'!AM:AM,'Selected Presentation'!AD102) -> 78
AC103: 98 | AD103: 2288 | AE103: =INDEX('Malaysia Hourly'!O:O,'Selected Presentation'!AD103) -> 0 | AF103: =INDEX('Malaysia Hourly'!U:U,'Selected Presentation'!AD103) -> 100 | AG103: =INDEX('Malaysia Hourly'!W:W,'Selected Presentation'!AD103) -> 0 | AH103: =INDEX('Malaysia Hourly'!AJ:AJ,'Selected Presentation'!AD103) -> 0 | AI103: =INDEX('Malaysia Hourly'!AL:AL,'Selected Presentation'!AD103) -> 0 | AJ103: =INDEX('Malaysia Hourly'!AO:AO,'Selected Presentation'!AD103) -> 0 | AK103: =INDEX('Malaysia Hourly'!AM:AM,'Selected Presentation'!AD103) -> 78
AC104: 99 | AD104: 2289 | AE104: =INDEX('Malaysia Hourly'!O:O,'Selected Presentation'!AD104) -> 0 | AF104: =INDEX('Malaysia Hourly'!U:U,'Selected Presentation'!AD104) -> 100 | AG104: =INDEX('Malaysia Hourly'!W:W,'Selected Presentation'!AD104) -> 0 | AH104: =INDEX('Malaysia Hourly'!AJ:AJ,'Selected Presentation'!AD104) -> 0 | AI104: =INDEX('Malaysia Hourly'!AL:AL,'Selected Presentation'!AD104) -> 0 | AJ104: =INDEX('Malaysia Hourly'!AO:AO,'Selected Presentation'!AD104) -> 0 | AK104: =INDEX('Malaysia Hourly'!AM:AM,'Selected Presentation'!AD104) -> 78
AC105: 100 | AD105: 2290 | AE105: =INDEX('Malaysia Hourly'!O:O,'Selected Presentation'!AD105) -> 0 | AF105: =INDEX('Malaysia Hourly'!U:U,'Selected Presentation'!AD105) -> 100 | AG105: =INDEX('Malaysia Hourly'!W:W,'Selected Presentation'!AD105) -> 0 | AH105: =INDEX('Malaysia Hourly'!AJ:AJ,'Selected Presentation'!AD105) -> 0 | AI105: =INDEX('Malaysia Hourly'!AL:AL,'Selected Presentation'!AD105) -> 0 | AJ105: =INDEX('Malaysia Hourly'!AO:AO,'Selected Presentation'!AD105) -> 0 | AK105: =INDEX('Malaysia Hourly'!AM:AM,'Selected Presentation'!AD105) -> 78
AC106: 101 | AD106: 2291 | AE106: =INDEX('Malaysia Hourly'!O:O,'Selected Presentation'!AD106) -> 0 | AF106: =INDEX('Malaysia Hourly'!U:U,'Selected Presentation'!AD106) -> 100 | AG106: =INDEX('Malaysia Hourly'!W:W,'Selected Presentation'!AD106) -> 0 | AH106: =INDEX('Malaysia Hourly'!AJ:AJ,'Selected Presentation'!AD106) -> 0 | AI106: =INDEX('Malaysia Hourly'!AL:AL,'Selected Presentation'!AD106) -> 0 | AJ106: =INDEX('Malaysia Hourly'!AO:AO,'Selected Presentation'!AD106) -> 0 | AK106: =INDEX('Malaysia Hourly'!AM:AM,'Selected Presentation'!AD106) -> 78
AC107: 102 | AD107: 2292 | AE107: =INDEX('Malaysia Hourly'!O:O,'Selected Presentation'!AD107) -> 0 | AF107: =INDEX('Malaysia Hourly'!U:U,'Selected Presentation'!AD107) -> 100 | AG107: =INDEX('Malaysia Hourly'!W:W,'Selected Presentation'!AD107) -> 0 | AH107: =INDEX('Malaysia Hourly'!AJ:AJ,'Selected Presentation'!AD107) -> 0 | AI107: =INDEX('Malaysia Hourly'!AL:AL,'Selected Presentation'!AD107) -> 0 | AJ107: =INDEX('Malaysia Hourly'!AO:AO,'Selected Presentation'!AD107) -> 0 | AK107: =INDEX('Malaysia Hourly'!AM:AM,'Selected Presentation'!AD107) -> 78
AC108: 103 | AD108: 2293 | AE108: =INDEX('Malaysia Hourly'!O:O,'Selected Presentation'!AD108) -> 0 | AF108: =INDEX('Malaysia Hourly'!U:U,'Selected Presentation'!AD108) -> 100 | AG108: =INDEX('Malaysia Hourly'!W:W,'Selected Presentation'!AD108) -> 0 | AH108: =INDEX('Malaysia Hourly'!AJ:AJ,'Selected Presentation'!AD108) -> 0 | AI108: =INDEX('Malaysia Hourly'!AL:AL,'Selected Presentation'!AD108) -> 0 | AJ108: =INDEX('Malaysia Hourly'!AO:AO,'Selected Presentation'!AD108) -> 0 | AK108: =INDEX('Malaysia Hourly'!AM:AM,'Selected Presentation'!AD108) -> 78
AC109: 104 | AD109: 2294 | AE109: =INDEX('Malaysia Hourly'!O:O,'Selected Presentation'!AD109) -> 24.55 | AF109: =INDEX('Malaysia Hourly'!U:U,'Selected Presentation'!AD109) -> 100 | AG109: =INDEX('Malaysia Hourly'!W:W,'Selected Presentation'!AD109) -> 4.9084288 | AH109: =INDEX('Malaysia Hourly'!AJ:AJ,'Selected Presentation'!AD109) -> 0 | AI109: =INDEX('Malaysia Hourly'!AL:AL,'Selected Presentation'!AD109) -> 0 | AJ109: =INDEX('Malaysia Hourly'!AO:AO,'Selected Presentation'!AD109) -> 0 | AK109: =INDEX('Malaysia Hourly'!AM:AM,'Selected Presentation'!AD109) -> 78
AC110: 105 | AD110: 2295 | AE110: =INDEX('Malaysia Hourly'!O:O,'Selected Presentation'!AD110) -> 100.98 | AF110: =INDEX('Malaysia Hourly'!U:U,'Selected Presentation'!AD110) -> 100 | AG110: =INDEX('Malaysia Hourly'!W:W,'Selected Presentation'!AD110) -> 19.86801696 | AH110: =INDEX('Malaysia Hourly'!AJ:AJ,'Selected Presentation'!AD110) -> 0 | AI110: =INDEX('Malaysia Hourly'!AL:AL,'Selected Presentation'!AD110) -> 0 | AJ110: =INDEX('Malaysia Hourly'!AO:AO,'Selected Presentation'!AD110) -> 0 | AK110: =INDEX('Malaysia Hourly'!AM:AM,'Selected Presentation'!AD110) -> 78
AC111: 106 | AD111: 2296 | AE111: =INDEX('Malaysia Hourly'!O:O,'Selected Presentation'!AD111) -> 350.9 | AF111: =INDEX('Malaysia Hourly'!U:U,'Selected Presentation'!AD111) -> 100 | AG111: =INDEX('Malaysia Hourly'!W:W,'Selected Presentation'!AD111) -> 67.93424 | AH111: =INDEX('Malaysia Hourly'!AJ:AJ,'Selected Presentation'!AD111) -> 0 | AI111: =INDEX('Malaysia Hourly'!AL:AL,'Selected Presentation'!AD111) -> 0 | AJ111: =INDEX('Malaysia Hourly'!AO:AO,'Selected Presentation'!AD111) -> 0 | AK111: =INDEX('Malaysia Hourly'!AM:AM,'Selected Presentation'!AD111) -> 78
AC112: 107 | AD112: 2297 | AE112: =INDEX('Malaysia Hourly'!O:O,'Selected Presentation'!AD112) -> 532.49 | AF112: =INDEX('Malaysia Hourly'!U:U,'Selected Presentation'!AD112) -> 100 | AG112: =INDEX('Malaysia Hourly'!W:W,'Selected Presentation'!AD112) -> 100 | AH112: =INDEX('Malaysia Hourly'!AJ:AJ,'Selected Presentation'!AD112) -> 1.4712944 | AI112: =INDEX('Malaysia Hourly'!AL:AL,'Selected Presentation'!AD112) -> 0 | AJ112: =INDEX('Malaysia Hourly'!AO:AO,'Selected Presentation'!AD112) -> 0 | AK112: =INDEX('Malaysia Hourly'!AM:AM,'Selected Presentation'!AD112) -> 79.38301674
AC113: 108 | AD113: 2298 | AE113: =INDEX('Malaysia Hourly'!O:O,'Selected Presentation'!AD113) -> 916.09 | AF113: =INDEX('Malaysia Hourly'!U:U,'Selected Presentation'!AD113) -> 100 | AG113: =INDEX('Malaysia Hourly'!W:W,'Selected Presentation'!AD113) -> 100 | AH113: =INDEX('Malaysia Hourly'!AJ:AJ,'Selected Presentation'!AD113) -> 71.79985424 | AI113: =INDEX('Malaysia Hourly'!AL:AL,'Selected Presentation'!AD113) -> 0 | AJ113: =INDEX('Malaysia Hourly'!AO:AO,'Selected Presentation'!AD113) -> 0 | AK113: =INDEX('Malaysia Hourly'!AM:AM,'Selected Presentation'!AD113) -> 146.8748797
AC114: 109 | AD114: 2299 | AE114: =INDEX('Malaysia Hourly'!O:O,'Selected Presentation'!AD114) -> 921.4 | AF114: =INDEX('Malaysia Hourly'!U:U,'Selected Presentation'!AD114) -> 100 | AG114: =INDEX('Malaysia Hourly'!W:W,'Selected Presentation'!AD114) -> 100 | AH114: =INDEX('Malaysia Hourly'!AJ:AJ,'Selected Presentation'!AD114) -> 71.2034912 | AI114: =INDEX('Malaysia Hourly'!AL:AL,'Selected Presentation'!AD114) -> 0 | AJ114: =INDEX('Malaysia Hourly'!AO:AO,'Selected Presentation'!AD114) -> 0 | AK114: =INDEX('Malaysia Hourly'!AM:AM,'Selected Presentation'!AD114) -> 213.8061614
AC115: 110 | AD115: 2300 | AE115: =INDEX('Malaysia Hourly'!O:O,'Selected Presentation'!AD115) -> 899.37 | AF115: =INDEX('Malaysia Hourly'!U:U,'Selected Presentation'!AD115) -> 100 | AG115: =INDEX('Malaysia Hourly'!W:W,'Selected Presentation'!AD115) -> 100 | AH115: =INDEX('Malaysia Hourly'!AJ:AJ,'Selected Presentation'!AD115) -> 66.7072232 | AI115: =INDEX('Malaysia Hourly'!AL:AL,'Selected Presentation'!AD115) -> 0 | AJ115: =INDEX('Malaysia Hourly'!AO:AO,'Selected Presentation'!AD115) -> 0 | AK115: =INDEX('Malaysia Hourly'!AM:AM,'Selected Presentation'!AD115) -> 276.5109513
AC116: 111 | AD116: 2301 | AE116: =INDEX('Malaysia Hourly'!O:O,'Selected Presentation'!AD116) -> 990.99 | AF116: =INDEX('Malaysia Hourly'!U:U,'Selected Presentation'!AD116) -> 100 | AG116: =INDEX('Malaysia Hourly'!W:W,'Selected Presentation'!AD116) -> 100 | AH116: =INDEX('Malaysia Hourly'!AJ:AJ,'Selected Presentation'!AD116) -> 84.75224768 | AI116: =INDEX('Malaysia Hourly'!AL:AL,'Selected Presentation'!AD116) -> 0 | AJ116: =INDEX('Malaysia Hourly'!AO:AO,'Selected Presentation'!AD116) -> 0 | AK116: =INDEX('Malaysia Hourly'!AM:AM,'Selected Presentation'!AD116) -> 356.1780641
AC117: 112 | AD117: 2302 | AE117: =INDEX('Malaysia Hourly'!O:O,'Selected Presentation'!AD117) -> 154.58 | AF117: =INDEX('Malaysia Hourly'!U:U,'Selected Presentation'!AD117) -> 100 | AG117: =INDEX('Malaysia Hourly'!W:W,'Selected Presentation'!AD117) -> 29.23169632 | AH117: =INDEX('Malaysia Hourly'!AJ:AJ,'Selected Presentation'!AD117) -> 0 | AI117: =INDEX('Malaysia Hourly'!AL:AL,'Selected Presentation'!AD117) -> 70.76830368 | AJ117: =INDEX('Malaysia Hourly'!AO:AO,'Selected Presentation'!AD117) -> 0 | AK117: =INDEX('Malaysia Hourly'!AM:AM,'Selected Presentation'!AD117) -> 285.4097604
AC118: 113 | AD118: 2303 | AE118: =INDEX('Malaysia Hourly'!O:O,'Selected Presentation'!AD118) -> 81.84 | AF118: =INDEX('Malaysia Hourly'!U:U,'Selected Presentation'!AD118) -> 100 | AG118: =INDEX('Malaysia Hourly'!W:W,'Selected Presentation'!AD118) -> 15.52079232 | AH118: =INDEX('Malaysia Hourly'!AJ:AJ,'Selected Presentation'!AD118) -> 0 | AI118: =INDEX('Malaysia Hourly'!AL:AL,'Selected Presentation'!AD118) -> 84.47920768 | AJ118: =INDEX('Malaysia Hourly'!AO:AO,'Selected Presentation'!AD118) -> 0 | AK118: =INDEX('Malaysia Hourly'!AM:AM,'Selected Presentation'!AD118) -> 200.9305527
AC119: 114 | AD119: 2304 | AE119: =INDEX('Malaysia Hourly'!O:O,'Selected Presentation'!AD119) -> 536.02 | AF119: =INDEX('Malaysia Hourly'!U:U,'Selected Presentation'!AD119) -> 100 | AG119: =INDEX('Malaysia Hourly'!W:W,'Selected Presentation'!AD119) -> 100 | AH119: =INDEX('Malaysia Hourly'!AJ:AJ,'Selected Presentation'!AD119) -> 2.09251328 | AI119: =INDEX('Malaysia Hourly'!AL:AL,'Selected Presentation'!AD119) -> 0 | AJ119: =INDEX('Malaysia Hourly'!AO:AO,'Selected Presentation'!AD119) -> 0 | AK119: =INDEX('Malaysia Hourly'!AM:AM,'Selected Presentation'!AD119) -> 202.8975152
AC120: 115 | AD120: 2305 | AE120: =INDEX('Malaysia Hourly'!O:O,'Selected Presentation'!AD120) -> 229.85 | AF120: =INDEX('Malaysia Hourly'!U:U,'Selected Presentation'!AD120) -> 100 | AG120: =INDEX('Malaysia Hourly'!W:W,'Selected Presentation'!AD120) -> 44.1422328 | AH120: =INDEX('Malaysia Hourly'!AJ:AJ,'Selected Presentation'!AD120) -> 0 | AI120: =INDEX('Malaysia Hourly'!AL:AL,'Selected Presentation'!AD120) -> 55.8577672 | AJ120: =INDEX('Malaysia Hourly'!AO:AO,'Selected Presentation'!AD120) -> 0 | AK120: =INDEX('Malaysia Hourly'!AM:AM,'Selected Presentation'!AD120) -> 147.039748
AC121: 116 | AD121: 2306 | AE121: =INDEX('Malaysia Hourly'!O:O,'Selected Presentation'!AD121) -> 0 | AF121: =INDEX('Malaysia Hourly'!U:U,'Selected Presentation'!AD121) -> 100 | AG121: =INDEX('Malaysia Hourly'!W:W,'Selected Presentation'!AD121) -> 0 | AH121: =INDEX('Malaysia Hourly'!AJ:AJ,'Selected Presentation'!AD121) -> 0 | AI121: =INDEX('Malaysia Hourly'!AL:AL,'Selected Presentation'!AD121) -> 69.039748 | AJ121: =INDEX('Malaysia Hourly'!AO:AO,'Selected Presentation'!AD121) -> 0 | AK121: =INDEX('Malaysia Hourly'!AM:AM,'Selected Presentation'!AD121) -> 78
AC122: 117 | AD122: 2307 | AE122: =INDEX('Malaysia Hourly'!O:O,'Selected Presentation'!AD122) -> 0 | AF122: =INDEX('Malaysia Hourly'!U:U,'Selected Presentation'!AD122) -> 100 | AG122: =INDEX('Malaysia Hourly'!W:W,'Selected Presentation'!AD122) -> 0 | AH122: =INDEX('Malaysia Hourly'!AJ:AJ,'Selected Presentation'!AD122) -> 0 | AI122: =INDEX('Malaysia Hourly'!AL:AL,'Selected Presentation'!AD122) -> 0 | AJ122: =INDEX('Malaysia Hourly'!AO:AO,'Selected Presentation'!AD122) -> 0 | AK122: =INDEX('Malaysia Hourly'!AM:AM,'Selected Presentation'!AD122) -> 78
AC123: 118 | AD123: 2308 | AE123: =INDEX('Malaysia Hourly'!O:O,'Selected Presentation'!AD123) -> 0 | AF123: =INDEX('Malaysia Hourly'!U:U,'Selected Presentation'!AD123) -> 100 | AG123: =INDEX('Malaysia Hourly'!W:W,'Selected Presentation'!AD123) -> 0 | AH123: =INDEX('Malaysia Hourly'!AJ:AJ,'Selected Presentation'!AD123) -> 0 | AI123: =INDEX('Malaysia Hourly'!AL:AL,'Selected Presentation'!AD123) -> 0 | AJ123: =INDEX('Malaysia Hourly'!AO:AO,'Selected Presentation'!AD123) -> 0 | AK123: =INDEX('Malaysia Hourly'!AM:AM,'Selected Presentation'!AD123) -> 78
AC124: 119 | AD124: 2309 | AE124: =INDEX('Malaysia Hourly'!O:O,'Selected Presentation'!AD124) -> 0 | AF124: =INDEX('Malaysia Hourly'!U:U,'Selected Presentation'!AD124) -> 100 | AG124: =INDEX('Malaysia Hourly'!W:W,'Selected Presentation'!AD124) -> 0 | AH124: =INDEX('Malaysia Hourly'!AJ:AJ,'Selected Presentation'!AD124) -> 0 | AI124: =INDEX('Malaysia Hourly'!AL:AL,'Selected Presentation'!AD124) -> 0 | AJ124: =INDEX('Malaysia Hourly'!AO:AO,'Selected Presentation'!AD124) -> 0 | AK124: =INDEX('Malaysia Hourly'!AM:AM,'Selected Presentation'!AD124) -> 78
AC125: 120 | AD125: 2310 | AE125: =INDEX('Malaysia Hourly'!O:O,'Selected Presentation'!AD125) -> 0 | AF125: =INDEX('Malaysia Hourly'!U:U,'Selected Presentation'!AD125) -> 100 | AG125: =INDEX('Malaysia Hourly'!W:W,'Selected Presentation'!AD125) -> 0 | AH125: =INDEX('Malaysia Hourly'!AJ:AJ,'Selected Presentation'!AD125) -> 0 | AI125: =INDEX('Malaysia Hourly'!AL:AL,'Selected Presentation'!AD125) -> 0 | AJ125: =INDEX('Malaysia Hourly'!AO:AO,'Selected Presentation'!AD125) -> 0 | AK125: =INDEX('Malaysia Hourly'!AM:AM,'Selected Presentation'!AD125) -> 78
AC126: 121 | AD126: 2311 | AE126: =INDEX('Malaysia Hourly'!O:O,'Selected Presentation'!AD126) -> 0 | AF126: =INDEX('Malaysia Hourly'!U:U,'Selected Presentation'!AD126) -> 100 | AG126: =INDEX('Malaysia Hourly'!W:W,'Selected Presentation'!AD126) -> 0 | AH126: =INDEX('Malaysia Hourly'!AJ:AJ,'Selected Presentation'!AD126) -> 0 | AI126: =INDEX('Malaysia Hourly'!AL:AL,'Selected Presentation'!AD126) -> 0 | AJ126: =INDEX('Malaysia Hourly'!AO:AO,'Selected Presentation'!AD126) -> 0 | AK126: =INDEX('Malaysia Hourly'!AM:AM,'Selected Presentation'!AD126) -> 78
AC127: 122 | AD127: 2312 | AE127: =INDEX('Malaysia Hourly'!O:O,'Selected Presentation'!AD127) -> 0 | AF127: =INDEX('Malaysia Hourly'!U:U,'Selected Presentation'!AD127) -> 100 | AG127: =INDEX('Malaysia Hourly'!W:W,'Selected Presentation'!AD127) -> 0 | AH127: =INDEX('Malaysia Hourly'!AJ:AJ,'Selected Presentation'!AD127) -> 0 | AI127: =INDEX('Malaysia Hourly'!AL:AL,'Selected Presentation'!AD127) -> 0 | AJ127: =INDEX('Malaysia Hourly'!AO:AO,'Selected Presentation'!AD127) -> 0 | AK127: =INDEX('Malaysia Hourly'!AM:AM,'Selected Presentation'!AD127) -> 78
AC128: 123 | AD128: 2313 | AE128: =INDEX('Malaysia Hourly'!O:O,'Selected Presentation'!AD128) -> 0 | AF128: =INDEX('Malaysia Hourly'!U:U,'Selected Presentation'!AD128) -> 100 | AG128: =INDEX('Malaysia Hourly'!W:W,'Selected Presentation'!AD128) -> 0 | AH128: =INDEX('Malaysia Hourly'!AJ:AJ,'Selected Presentation'!AD128) -> 0 | AI128: =INDEX('Malaysia Hourly'!AL:AL,'Selected Presentation'!AD128) -> 0 | AJ128: =INDEX('Malaysia Hourly'!AO:AO,'Selected Presentation'!AD128) -> 0 | AK128: =INDEX('Malaysia Hourly'!AM:AM,'Selected Presentation'!AD128) -> 78
AC129: 124 | AD129: 2314 | AE129: =INDEX('Malaysia Hourly'!O:O,'Selected Presentation'!AD129) -> 0 | AF129: =INDEX('Malaysia Hourly'!U:U,'Selected Presentation'!AD129) -> 100 | AG129: =INDEX('Malaysia Hourly'!W:W,'Selected Presentation'!AD129) -> 0 | AH129: =INDEX('Malaysia Hourly'!AJ:AJ,'Selected Presentation'!AD129) -> 0 | AI129: =INDEX('Malaysia Hourly'!AL:AL,'Selected Presentation'!AD129) -> 0 | AJ129: =INDEX('Malaysia Hourly'!AO:AO,'Selected Presentation'!AD129) -> 0 | AK129: =INDEX('Malaysia Hourly'!AM:AM,'Selected Presentation'!AD129) -> 78
AC130: 125 | AD130: 2315 | AE130: =INDEX('Malaysia Hourly'!O:O,'Selected Presentation'!AD130) -> 0 | AF130: =INDEX('Malaysia Hourly'!U:U,'Selected Presentation'!AD130) -> 100 | AG130: =INDEX('Malaysia Hourly'!W:W,'Selected Presentation'!AD130) -> 0 | AH130: =INDEX('Malaysia Hourly'!AJ:AJ,'Selected Presentation'!AD130) -> 0 | AI130: =INDEX('Malaysia Hourly'!AL:AL,'Selected Presentation'!AD130) -> 0 | AJ130: =INDEX('Malaysia Hourly'!AO:AO,'Selected Presentation'!AD130) -> 0 | AK130: =INDEX('Malaysia Hourly'!AM:AM,'Selected Presentation'!AD130) -> 78
AC131: 126 | AD131: 2316 | AE131: =INDEX('Malaysia Hourly'!O:O,'Selected Presentation'!AD131) -> 0 | AF131: =INDEX('Malaysia Hourly'!U:U,'Selected Presentation'!AD131) -> 100 | AG131: =INDEX('Malaysia Hourly'!W:W,'Selected Presentation'!AD131) -> 0 | AH131: =INDEX('Malaysia Hourly'!AJ:AJ,'Selected Presentation'!AD131) -> 0 | AI131: =INDEX('Malaysia Hourly'!AL:AL,'Selected Presentation'!AD131) -> 0 | AJ131: =INDEX('Malaysia Hourly'!AO:AO,'Selected Presentation'!AD131) -> 0 | AK131: =INDEX('Malaysia Hourly'!AM:AM,'Selected Presentation'!AD131) -> 78
AC132: 127 | AD132: 2317 | AE132: =INDEX('Malaysia Hourly'!O:O,'Selected Presentation'!AD132) -> 0 | AF132: =INDEX('Malaysia Hourly'!U:U,'Selected Presentation'!AD132) -> 100 | AG132: =INDEX('Malaysia Hourly'!W:W,'Selected Presentation'!AD132) -> 0 | AH132: =INDEX('Malaysia Hourly'!AJ:AJ,'Selected Presentation'!AD132) -> 0 | AI132: =INDEX('Malaysia Hourly'!AL:AL,'Selected Presentation'!AD132) -> 0 | AJ132: =INDEX('Malaysia Hourly'!AO:AO,'Selected Presentation'!AD132) -> 0 | AK132: =INDEX('Malaysia Hourly'!AM:AM,'Selected Presentation'!AD132) -> 78
AC133: 128 | AD133: 2318 | AE133: =INDEX('Malaysia Hourly'!O:O,'Selected Presentation'!AD133) -> 15.46 | AF133: =INDEX('Malaysia Hourly'!U:U,'Selected Presentation'!AD133) -> 100 | AG133: =INDEX('Malaysia Hourly'!W:W,'Selected Presentation'!AD133) -> 3.10090496 | AH133: =INDEX('Malaysia Hourly'!AJ:AJ,'Selected Presentation'!AD133) -> 0 | AI133: =INDEX('Malaysia Hourly'!AL:AL,'Selected Presentation'!AD133) -> 0 | AJ133: =INDEX('Malaysia Hourly'!AO:AO,'Selected Presentation'!AD133) -> 0 | AK133: =INDEX('Malaysia Hourly'!AM:AM,'Selected Presentation'!AD133) -> 78
AC134: 129 | AD134: 2319 | AE134: =INDEX('Malaysia Hourly'!O:O,'Selected Presentation'!AD134) -> 334.87 | AF134: =INDEX('Malaysia Hourly'!U:U,'Selected Presentation'!AD134) -> 100 | AG134: =INDEX('Malaysia Hourly'!W:W,'Selected Presentation'!AD134) -> 65.9827848 | AH134: =INDEX('Malaysia Hourly'!AJ:AJ,'Selected Presentation'!AD134) -> 0 | AI134: =INDEX('Malaysia Hourly'!AL:AL,'Selected Presentation'!AD134) -> 0 | AJ134: =INDEX('Malaysia Hourly'!AO:AO,'Selected Presentation'!AD134) -> 0 | AK134: =INDEX('Malaysia Hourly'!AM:AM,'Selected Presentation'!AD134) -> 78
AC135: 130 | AD135: 2320 | AE135: =INDEX('Malaysia Hourly'!O:O,'Selected Presentation'!AD135) -> 659.41 | AF135: =INDEX('Malaysia Hourly'!U:U,'Selected Presentation'!AD135) -> 100 | AG135: =INDEX('Malaysia Hourly'!W:W,'Selected Presentation'!AD135) -> 100 | AH135: =INDEX('Malaysia Hourly'!AJ:AJ,'Selected Presentation'!AD135) -> 27.6090232 | AI135: =INDEX('Malaysia Hourly'!AL:AL,'Selected Presentation'!AD135) -> 0 | AJ135: =INDEX('Malaysia Hourly'!AO:AO,'Selected Presentation'!AD135) -> 0 | AK135: =INDEX('Malaysia Hourly'!AM:AM,'Selected Presentation'!AD135) -> 103.9524818
AC136: 131 | AD136: 2321 | AE136: =INDEX('Malaysia Hourly'!O:O,'Selected Presentation'!AD136) -> 868.18 | AF136: =INDEX('Malaysia Hourly'!U:U,'Selected Presentation'!AD136) -> 100 | AG136: =INDEX('Malaysia Hourly'!W:W,'Selected Presentation'!AD136) -> 100 | AH136: =INDEX('Malaysia Hourly'!AJ:AJ,'Selected Presentation'!AD136) -> 65.32925376 | AI136: =INDEX('Malaysia Hourly'!AL:AL,'Selected Presentation'!AD136) -> 0 | AJ136: =INDEX('Malaysia Hourly'!AO:AO,'Selected Presentation'!AD136) -> 0 | AK136: =INDEX('Malaysia Hourly'!AM:AM,'Selected Presentation'!AD136) -> 165.3619803
AC137: 132 | AD137: 2322 | AE137: =INDEX('Malaysia Hourly'!O:O,'Selected Presentation'!AD137) -> 1006.99 | AF137: =INDEX('Malaysia Hourly'!U:U,'Selected Presentation'!AD137) -> 100 | AG137: =INDEX('Malaysia Hourly'!W:W,'Selected Presentation'!AD137) -> 100 | AH137: =INDEX('Malaysia Hourly'!AJ:AJ,'Selected Presentation'!AD137) -> 89.58802128 | AI137: =INDEX('Malaysia Hourly'!AL:AL,'Selected Presentation'!AD137) -> 0 | AJ137: =INDEX('Malaysia Hourly'!AO:AO,'Selected Presentation'!AD137) -> 0 | AK137: =INDEX('Malaysia Hourly'!AM:AM,'Selected Presentation'!AD137) -> 249.5747203
AC138: 133 | AD138: 2323 | AE138: =INDEX('Malaysia Hourly'!O:O,'Selected Presentation'!AD138) -> 919.32 | AF138: =INDEX('Malaysia Hourly'!U:U,'Selected Presentation'!AD138) -> 100 | AG138: =INDEX('Malaysia Hourly'!W:W,'Selected Presentation'!AD138) -> 100 | AH138: =INDEX('Malaysia Hourly'!AJ:AJ,'Selected Presentation'!AD138) -> 71.64072128 | AI138: =INDEX('Malaysia Hourly'!AL:AL,'Selected Presentation'!AD138) -> 0 | AJ138: =INDEX('Malaysia Hourly'!AO:AO,'Selected Presentation'!AD138) -> 0 | AK138: =INDEX('Malaysia Hourly'!AM:AM,'Selected Presentation'!AD138) -> 316.9169983
AC139: 134 | AD139: 2324 | AE139: =INDEX('Malaysia Hourly'!O:O,'Selected Presentation'!AD139) -> 859.57 | AF139: =INDEX('Malaysia Hourly'!U:U,'Selected Presentation'!AD139) -> 100 | AG139: =INDEX('Malaysia Hourly'!W:W,'Selected Presentation'!AD139) -> 100 | AH139: =INDEX('Malaysia Hourly'!AJ:AJ,'Selected Presentation'!AD139) -> 59.86626688 | AI139: =INDEX('Malaysia Hourly'!AL:AL,'Selected Presentation'!AD139) -> 0 | AJ139: =INDEX('Malaysia Hourly'!AO:AO,'Selected Presentation'!AD139) -> 0 | AK139: =INDEX('Malaysia Hourly'!AM:AM,'Selected Presentation'!AD139) -> 373.1912892
AC140: 135 | AD140: 2325 | AE140: =INDEX('Malaysia Hourly'!O:O,'Selected Presentation'!AD140) -> 889.77 | AF140: =INDEX('Malaysia Hourly'!U:U,'Selected Presentation'!AD140) -> 100 | AG140: =INDEX('Malaysia Hourly'!W:W,'Selected Presentation'!AD140) -> 100 | AH140: =INDEX('Malaysia Hourly'!AJ:AJ,'Selected Presentation'!AD140) -> 65.61111056 | AI140: =INDEX('Malaysia Hourly'!AL:AL,'Selected Presentation'!AD140) -> 0 | AJ140: =INDEX('Malaysia Hourly'!AO:AO,'Selected Presentation'!AD140) -> 0 | AK140: =INDEX('Malaysia Hourly'!AM:AM,'Selected Presentation'!AD140) -> 434.8657331
AC141: 136 | AD141: 2326 | AE141: =INDEX('Malaysia Hourly'!O:O,'Selected Presentation'!AD141) -> 932.67 | AF141: =INDEX('Malaysia Hourly'!U:U,'Selected Presentation'!AD141) -> 100 | AG141: =INDEX('Malaysia Hourly'!W:W,'Selected Presentation'!AD141) -> 100 | AH141: =INDEX('Malaysia Hourly'!AJ:AJ,'Selected Presentation'!AD141) -> 74.71520576 | AI141: =INDEX('Malaysia Hourly'!AL:AL,'Selected Presentation'!AD141) -> 0 | AJ141: =INDEX('Malaysia Hourly'!AO:AO,'Selected Presentation'!AD141) -> 0 | AK141: =INDEX('Malaysia Hourly'!AM:AM,'Selected Presentation'!AD141) -> 505.0980266
AC142: 137 | AD142: 2327 | AE142: =INDEX('Malaysia Hourly'!O:O,'Selected Presentation'!AD142) -> 896.24 | AF142: =INDEX('Malaysia Hourly'!U:U,'Selected Presentation'!AD142) -> 100 | AG142: =INDEX('Malaysia Hourly'!W:W,'Selected Presentation'!AD142) -> 100 | AH142: =INDEX('Malaysia Hourly'!AJ:AJ,'Selected Presentation'!AD142) -> 69.00935424 | AI142: =INDEX('Malaysia Hourly'!AL:AL,'Selected Presentation'!AD142) -> 0 | AJ142: =INDEX('Malaysia Hourly'!AO:AO,'Selected Presentation'!AD142) -> 0 | AK142: =INDEX('Malaysia Hourly'!AM:AM,'Selected Presentation'!AD142) -> 569.9668195
AC143: 138 | AD143: 2328 | AE143: =INDEX('Malaysia Hourly'!O:O,'Selected Presentation'!AD143) -> 689.93 | AF143: =INDEX('Malaysia Hourly'!U:U,'Selected Presentation'!AD143) -> 100 | AG143: =INDEX('Malaysia Hourly'!W:W,'Selected Presentation'!AD143) -> 100 | AH143: =INDEX('Malaysia Hourly'!AJ:AJ,'Selected Presentation'!AD143) -> 30.03318046 | AI143: =INDEX('Malaysia Hourly'!AL:AL,'Selected Presentation'!AD143) -> 0 | AJ143: =INDEX('Malaysia Hourly'!AO:AO,'Selected Presentation'!AD143) -> 1.263258262 | AK143: =INDEX('Malaysia Hourly'!AM:AM,'Selected Presentation'!AD143) -> 598.1980092
AC144: 139 | AD144: 2329 | AE144: =INDEX('Malaysia Hourly'!O:O,'Selected Presentation'!AD144) -> 156.64 | AF144: =INDEX('Malaysia Hourly'!U:U,'Selected Presentation'!AD144) -> 100 | AG144: =INDEX('Malaysia Hourly'!W:W,'Selected Presentation'!AD144) -> 30.21021696 | AH144: =INDEX('Malaysia Hourly'!AJ:AJ,'Selected Presentation'!AD144) -> 0 | AI144: =INDEX('Malaysia Hourly'!AL:AL,'Selected Presentation'!AD144) -> 69.78978304 | AJ144: =INDEX('Malaysia Hourly'!AO:AO,'Selected Presentation'!AD144) -> 0 | AK144: =INDEX('Malaysia Hourly'!AM:AM,'Selected Presentation'!AD144) -> 528.4082261
AC145: 140 | AD145: 2330 | AE145: =INDEX('Malaysia Hourly'!O:O,'Selected Presentation'!AD145) -> 0 | AF145: =INDEX('Malaysia Hourly'!U:U,'Selected Presentation'!AD145) -> 100 | AG145: =INDEX('Malaysia Hourly'!W:W,'Selected Presentation'!AD145) -> 0 | AH145: =INDEX('Malaysia Hourly'!AJ:AJ,'Selected Presentation'!AD145) -> 0 | AI145: =INDEX('Malaysia Hourly'!AL:AL,'Selected Presentation'!AD145) -> 100 | AJ145: =INDEX('Malaysia Hourly'!AO:AO,'Selected Presentation'!AD145) -> 0 | AK145: =INDEX('Malaysia Hourly'!AM:AM,'Selected Presentation'!AD145) -> 428.4082261
AC146: 141 | AD146: 2331 | AE146: =INDEX('Malaysia Hourly'!O:O,'Selected Presentation'!AD146) -> 0 | AF146: =INDEX('Malaysia Hourly'!U:U,'Selected Presentation'!AD146) -> 100 | AG146: =INDEX('Malaysia Hourly'!W:W,'Selected Presentation'!AD146) -> 0 | AH146: =INDEX('Malaysia Hourly'!AJ:AJ,'Selected Presentation'!AD146) -> 0 | AI146: =INDEX('Malaysia Hourly'!AL:AL,'Selected Presentation'!AD146) -> 100 | AJ146: =INDEX('Malaysia Hourly'!AO:AO,'Selected Presentation'!AD146) -> 0 | AK146: =INDEX('Malaysia Hourly'!AM:AM,'Selected Presentation'!AD146) -> 328.4082261
AC147: 142 | AD147: 2332 | AE147: =INDEX('Malaysia Hourly'!O:O,'Selected Presentation'!AD147) -> 0 | AF147: =INDEX('Malaysia Hourly'!U:U,'Selected Presentation'!AD147) -> 100 | AG147: =INDEX('Malaysia Hourly'!W:W,'Selected Presentation'!AD147) -> 0 | AH147: =INDEX('Malaysia Hourly'!AJ:AJ,'Selected Presentation'!AD147) -> 0 | AI147: =INDEX('Malaysia Hourly'!AL:AL,'Selected Presentation'!AD147) -> 100 | AJ147: =INDEX('Malaysia Hourly'!AO:AO,'Selected Presentation'!AD147) -> 0 | AK147: =INDEX('Malaysia Hourly'!AM:AM,'Selected Presentation'!AD147) -> 228.4082261
AC148: 143 | AD148: 2333 | AE148: =INDEX('Malaysia Hourly'!O:O,'Selected Presentation'!AD148) -> 0 | AF148: =INDEX('Malaysia Hourly'!U:U,'Selected Presentation'!AD148) -> 100 | AG148: =INDEX('Malaysia Hourly'!W:W,'Selected Presentation'!AD148) -> 0 | AH148: =INDEX('Malaysia Hourly'!AJ:AJ,'Selected Presentation'!AD148) -> 0 | AI148: =INDEX('Malaysia Hourly'!AL:AL,'Selected Presentation'!AD148) -> 100 | AJ148: =INDEX('Malaysia Hourly'!AO:AO,'Selected Presentation'!AD148) -> 0 | AK148: =INDEX('Malaysia Hourly'!AM:AM,'Selected Presentation'!AD148) -> 128.4082261
AC149: 144 | AD149: 2334 | AE149: =INDEX('Malaysia Hourly'!O:O,'Selected Presentation'!AD149) -> 0 | AF149: =INDEX('Malaysia Hourly'!U:U,'Selected Presentation'!AD149) -> 100 | AG149: =INDEX('Malaysia Hourly'!W:W,'Selected Presentation'!AD149) -> 0 | AH149: =INDEX('Malaysia Hourly'!AJ:AJ,'Selected Presentation'!AD149) -> 0 | AI149: =INDEX('Malaysia Hourly'!AL:AL,'Selected Presentation'!AD149) -> 50.40822613 | AJ149: =INDEX('Malaysia Hourly'!AO:AO,'Selected Presentation'!AD149) -> 0 | AK149: =INDEX('Malaysia Hourly'!AM:AM,'Selected Presentation'!AD149) -> 78
AC150: 145 | AD150: 2335 | AE150: =INDEX('Malaysia Hourly'!O:O,'Selected Presentation'!AD150) -> 0 | AF150: =INDEX('Malaysia Hourly'!U:U,'Selected Presentation'!AD150) -> 100 | AG150: =INDEX('Malaysia Hourly'!W:W,'Selected Presentation'!AD150) -> 0 | AH150: =INDEX('Malaysia Hourly'!AJ:AJ,'Selected Presentation'!AD150) -> 0 | AI150: =INDEX('Malaysia Hourly'!AL:AL,'Selected Presentation'!AD150) -> 0 | AJ150: =INDEX('Malaysia Hourly'!AO:AO,'Selected Presentation'!AD150) -> 0 | AK150: =INDEX('Malaysia Hourly'!AM:AM,'Selected Presentation'!AD150) -> 78
AC151: 146 | AD151: 2336 | AE151: =INDEX('Malaysia Hourly'!O:O,'Selected Presentation'!AD151) -> 0 | AF151: =INDEX('Malaysia Hourly'!U:U,'Selected Presentation'!AD151) -> 100 | AG151: =INDEX('Malaysia Hourly'!W:W,'Selected Presentation'!AD151) -> 0 | AH151: =INDEX('Malaysia Hourly'!AJ:AJ,'Selected Presentation'!AD151) -> 0 | AI151: =INDEX('Malaysia Hourly'!AL:AL,'Selected Presentation'!AD151) -> 0 | AJ151: =INDEX('Malaysia Hourly'!AO:AO,'Selected Presentation'!AD151) -> 0 | AK151: =INDEX('Malaysia Hourly'!AM:AM,'Selected Presentation'!AD151) -> 78
AC152: 147 | AD152: 2337 | AE152: =INDEX('Malaysia Hourly'!O:O,'Selected Presentation'!AD152) -> 0 | AF152: =INDEX('Malaysia Hourly'!U:U,'Selected Presentation'!AD152) -> 100 | AG152: =INDEX('Malaysia Hourly'!W:W,'Selected Presentation'!AD152) -> 0 | AH152: =INDEX('Malaysia Hourly'!AJ:AJ,'Selected Presentation'!AD152) -> 0 | AI152: =INDEX('Malaysia Hourly'!AL:AL,'Selected Presentation'!AD152) -> 0 | AJ152: =INDEX('Malaysia Hourly'!AO:AO,'Selected Presentation'!AD152) -> 0 | AK152: =INDEX('Malaysia Hourly'!AM:AM,'Selected Presentation'!AD152) -> 78
AC153: 148 | AD153: 2338 | AE153: =INDEX('Malaysia Hourly'!O:O,'Selected Presentation'!AD153) -> 0 | AF153: =INDEX('Malaysia Hourly'!U:U,'Selected Presentation'!AD153) -> 100 | AG153: =INDEX('Malaysia Hourly'!W:W,'Selected Presentation'!AD153) -> 0 | AH153: =INDEX('Malaysia Hourly'!AJ:AJ,'Selected Presentation'!AD153) -> 0 | AI153: =INDEX('Malaysia Hourly'!AL:AL,'Selected Presentation'!AD153) -> 0 | AJ153: =INDEX('Malaysia Hourly'!AO:AO,'Selected Presentation'!AD153) -> 0 | AK153: =INDEX('Malaysia Hourly'!AM:AM,'Selected Presentation'!AD153) -> 78
AC154: 149 | AD154: 2339 | AE154: =INDEX('Malaysia Hourly'!O:O,'Selected Presentation'!AD154) -> 0 | AF154: =INDEX('Malaysia Hourly'!U:U,'Selected Presentation'!AD154) -> 100 | AG154: =INDEX('Malaysia Hourly'!W:W,'Selected Presentation'!AD154) -> 0 | AH154: =INDEX('Malaysia Hourly'!AJ:AJ,'Selected Presentation'!AD154) -> 0 | AI154: =INDEX('Malaysia Hourly'!AL:AL,'Selected Presentation'!AD154) -> 0 | AJ154: =INDEX('Malaysia Hourly'!AO:AO,'Selected Presentation'!AD154) -> 0 | AK154: =INDEX('Malaysia Hourly'!AM:AM,'Selected Presentation'!AD154) -> 78
AC155: 150 | AD155: 2340 | AE155: =INDEX('Malaysia Hourly'!O:O,'Selected Presentation'!AD155) -> 0 | AF155: =INDEX('Malaysia Hourly'!U:U,'Selected Presentation'!AD155) -> 100 | AG155: =INDEX('Malaysia Hourly'!W:W,'Selected Presentation'!AD155) -> 0 | AH155: =INDEX('Malaysia Hourly'!AJ:AJ,'Selected Presentation'!AD155) -> 0 | AI155: =INDEX('Malaysia Hourly'!AL:AL,'Selected Presentation'!AD155) -> 0 | AJ155: =INDEX('Malaysia Hourly'!AO:AO,'Selected Presentation'!AD155) -> 0 | AK155: =INDEX('Malaysia Hourly'!AM:AM,'Selected Presentation'!AD155) -> 78
AC156: 151 | AD156: 2341 | AE156: =INDEX('Malaysia Hourly'!O:O,'Selected Presentation'!AD156) -> 0 | AF156: =INDEX('Malaysia Hourly'!U:U,'Selected Presentation'!AD156) -> 100 | AG156: =INDEX('Malaysia Hourly'!W:W,'Selected Presentation'!AD156) -> 0 | AH156: =INDEX('Malaysia Hourly'!AJ:AJ,'Selected Presentation'!AD156) -> 0 | AI156: =INDEX('Malaysia Hourly'!AL:AL,'Selected Presentation'!AD156) -> 0 | AJ156: =INDEX('Malaysia Hourly'!AO:AO,'Selected Presentation'!AD156) -> 0 | AK156: =INDEX('Malaysia Hourly'!AM:AM,'Selected Presentation'!AD156) -> 78
AC157: 152 | AD157: 2342 | AE157: =INDEX('Malaysia Hourly'!O:O,'Selected Presentation'!AD157) -> 61.83 | AF157: =INDEX('Malaysia Hourly'!U:U,'Selected Presentation'!AD157) -> 100 | AG157: =INDEX('Malaysia Hourly'!W:W,'Selected Presentation'!AD157) -> 12.46393872 | AH157: =INDEX('Malaysia Hourly'!AJ:AJ,'Selected Presentation'!AD157) -> 0 | AI157: =INDEX('Malaysia Hourly'!AL:AL,'Selected Presentation'!AD157) -> 0 | AJ157: =INDEX('Malaysia Hourly'!AO:AO,'Selected Presentation'!AD157) -> 0 | AK157: =INDEX('Malaysia Hourly'!AM:AM,'Selected Presentation'!AD157) -> 78
AC158: 153 | AD158: 2343 | AE158: =INDEX('Malaysia Hourly'!O:O,'Selected Presentation'!AD158) -> 567.2 | AF158: =INDEX('Malaysia Hourly'!U:U,'Selected Presentation'!AD158) -> 100 | AG158: =INDEX('Malaysia Hourly'!W:W,'Selected Presentation'!AD158) -> 100 | AH158: =INDEX('Malaysia Hourly'!AJ:AJ,'Selected Presentation'!AD158) -> 11.7701632 | AI158: =INDEX('Malaysia Hourly'!AL:AL,'Selected Presentation'!AD158) -> 0 | AJ158: =INDEX('Malaysia Hourly'!AO:AO,'Selected Presentation'!AD158) -> 0 | AK158: =INDEX('Malaysia Hourly'!AM:AM,'Selected Presentation'!AD158) -> 89.06395341
AC159: 154 | AD159: 2344 | AE159: =INDEX('Malaysia Hourly'!O:O,'Selected Presentation'!AD159) -> 831.26 | AF159: =INDEX('Malaysia Hourly'!U:U,'Selected Presentation'!AD159) -> 100 | AG159: =INDEX('Malaysia Hourly'!W:W,'Selected Presentation'!AD159) -> 100 | AH159: =INDEX('Malaysia Hourly'!AJ:AJ,'Selected Presentation'!AD159) -> 60.82553472 | AI159: =INDEX('Malaysia Hourly'!AL:AL,'Selected Presentation'!AD159) -> 0 | AJ159: =INDEX('Malaysia Hourly'!AO:AO,'Selected Presentation'!AD159) -> 0 | AK159: =INDEX('Malaysia Hourly'!AM:AM,'Selected Presentation'!AD159) -> 146.239956
AC160: 155 | AD160: 2345 | AE160: =INDEX('Malaysia Hourly'!O:O,'Selected Presentation'!AD160) -> 978.18 | AF160: =INDEX('Malaysia Hourly'!U:U,'Selected Presentation'!AD160) -> 100 | AG160: =INDEX('Malaysia Hourly'!W:W,'Selected Presentation'!AD160) -> 100 | AH160: =INDEX('Malaysia Hourly'!AJ:AJ,'Selected Presentation'!AD160) -> 85.88550176 | AI160: =INDEX('Malaysia Hourly'!AL:AL,'Selected Presentation'!AD160) -> 0 | AJ160: =INDEX('Malaysia Hourly'!AO:AO,'Selected Presentation'!AD160) -> 0 | AK160: =INDEX('Malaysia Hourly'!AM:AM,'Selected Presentation'!AD160) -> 226.9723277
AC161: 156 | AD161: 2346 | AE161: =INDEX('Malaysia Hourly'!O:O,'Selected Presentation'!AD161) -> 983.04 | AF161: =INDEX('Malaysia Hourly'!U:U,'Selected Presentation'!AD161) -> 100 | AG161: =INDEX('Malaysia Hourly'!W:W,'Selected Presentation'!AD161) -> 100 | AH161: =INDEX('Malaysia Hourly'!AJ:AJ,'Selected Presentation'!AD161) -> 84.07227392 | AI161: =INDEX('Malaysia Hourly'!AL:AL,'Selected Presentation'!AD161) -> 0 | AJ161: =INDEX('Malaysia Hourly'!AO:AO,'Selected Presentation'!AD161) -> 0 | AK161: =INDEX('Malaysia Hourly'!AM:AM,'Selected Presentation'!AD161) -> 306.0002652
AC162: 157 | AD162: 2347 | AE162: =INDEX('Malaysia Hourly'!O:O,'Selected Presentation'!AD162) -> 926.64 | AF162: =INDEX('Malaysia Hourly'!U:U,'Selected Presentation'!AD162) -> 100 | AG162: =INDEX('Malaysia Hourly'!W:W,'Selected Presentation'!AD162) -> 100 | AH162: =INDEX('Malaysia Hourly'!AJ:AJ,'Selected Presentation'!AD162) -> 71.73233792 | AI162: =INDEX('Malaysia Hourly'!AL:AL,'Selected Presentation'!AD162) -> 0 | AJ162: =INDEX('Malaysia Hourly'!AO:AO,'Selected Presentation'!AD162) -> 0 | AK162: =INDEX('Malaysia Hourly'!AM:AM,'Selected Presentation'!AD162) -> 373.4286628
AC163: 158 | AD163: 2348 | AE163: =INDEX('Malaysia Hourly'!O:O,'Selected Presentation'!AD163) -> 918.25 | AF163: =INDEX('Malaysia Hourly'!U:U,'Selected Presentation'!AD163) -> 100 | AG163: =INDEX('Malaysia Hourly'!W:W,'Selected Presentation'!AD163) -> 100 | AH163: =INDEX('Malaysia Hourly'!AJ:AJ,'Selected Presentation'!AD163) -> 69.501604 | AI163: =INDEX('Malaysia Hourly'!AL:AL,'Selected Presentation'!AD163) -> 0 | AJ163: =INDEX('Malaysia Hourly'!AO:AO,'Selected Presentation'!AD163) -> 0 | AK163: =INDEX('Malaysia Hourly'!AM:AM,'Selected Presentation'!AD163) -> 438.7601706
AC164: 159 | AD164: 2349 | AE164: =INDEX('Malaysia Hourly'!O:O,'Selected Presentation'!AD164) -> 938.75 | AF164: =INDEX('Malaysia Hourly'!U:U,'Selected Presentation'!AD164) -> 100 | AG164: =INDEX('Malaysia Hourly'!W:W,'Selected Presentation'!AD164) -> 100 | AH164: =INDEX('Malaysia Hourly'!AJ:AJ,'Selected Presentation'!AD164) -> 73.75136 | AI164: =INDEX('Malaysia Hourly'!AL:AL,'Selected Presentation'!AD164) -> 0 | AJ164: =INDEX('Malaysia Hourly'!AO:AO,'Selected Presentation'!AD164) -> 0 | AK164: =INDEX('Malaysia Hourly'!AM:AM,'Selected Presentation'!AD164) -> 508.086449
AC165: 160 | AD165: 2350 | AE165: =INDEX('Malaysia Hourly'!O:O,'Selected Presentation'!AD165) -> 945.44 | AF165: =INDEX('Malaysia Hourly'!U:U,'Selected Presentation'!AD165) -> 100 | AG165: =INDEX('Malaysia Hourly'!W:W,'Selected Presentation'!AD165) -> 100 | AH165: =INDEX('Malaysia Hourly'!AJ:AJ,'Selected Presentation'!AD165) -> 75.73082368 | AI165: =INDEX('Malaysia Hourly'!AL:AL,'Selected Presentation'!AD165) -> 0 | AJ165: =INDEX('Malaysia Hourly'!AO:AO,'Selected Presentation'!AD165) -> 0 | AK165: =INDEX('Malaysia Hourly'!AM:AM,'Selected Presentation'!AD165) -> 579.2734232
AC166: 161 | AD166: 2351 | AE166: =INDEX('Malaysia Hourly'!O:O,'Selected Presentation'!AD166) -> 833.9 | AF166: =INDEX('Malaysia Hourly'!U:U,'Selected Presentation'!AD166) -> 100 | AG166: =INDEX('Malaysia Hourly'!W:W,'Selected Presentation'!AD166) -> 100 | AH166: =INDEX('Malaysia Hourly'!AJ:AJ,'Selected Presentation'!AD166) -> 20.72657675 | AI166: =INDEX('Malaysia Hourly'!AL:AL,'Selected Presentation'!AD166) -> 0 | AJ166: =INDEX('Malaysia Hourly'!AO:AO,'Selected Presentation'!AD166) -> 35.55295445 | AK166: =INDEX('Malaysia Hourly'!AM:AM,'Selected Presentation'!AD166) -> 598.7564054
AC167: 162 | AD167: 2352 | AE167: =INDEX('Malaysia Hourly'!O:O,'Selected Presentation'!AD167) -> 472.5 | AF167: =INDEX('Malaysia Hourly'!U:U,'Selected Presentation'!AD167) -> 100 | AG167: =INDEX('Malaysia Hourly'!W:W,'Selected Presentation'!AD167) -> 89.6238 | AH167: =INDEX('Malaysia Hourly'!AJ:AJ,'Selected Presentation'!AD167) -> 0 | AI167: =INDEX('Malaysia Hourly'!AL:AL,'Selected Presentation'!AD167) -> 10.3762 | AJ167: =INDEX('Malaysia Hourly'!AO:AO,'Selected Presentation'!AD167) -> 0 | AK167: =INDEX('Malaysia Hourly'!AM:AM,'Selected Presentation'!AD167) -> 588.3802054
AC168: 163 | AD168: 2353 | AE168: =INDEX('Malaysia Hourly'!O:O,'Selected Presentation'!AD168) -> 186.28 | AF168: =INDEX('Malaysia Hourly'!U:U,'Selected Presentation'!AD168) -> 100 | AG168: =INDEX('Malaysia Hourly'!W:W,'Selected Presentation'!AD168) -> 35.87603776 | AH168: =INDEX('Malaysia Hourly'!AJ:AJ,'Selected Presentation'!AD168) -> 0 | AI168: =INDEX('Malaysia Hourly'!AL:AL,'Selected Presentation'!AD168) -> 64.12396224 | AJ168: =INDEX('Malaysia Hourly'!AO:AO,'Selected Presentation'!AD168) -> 0 | AK168: =INDEX('Malaysia Hourly'!AM:AM,'Selected Presentation'!AD168) -> 524.2562432
AC169: 164 | AD169: 2354 | AE169: =INDEX('Malaysia Hourly'!O:O,'Selected Presentation'!AD169) -> 0 | AF169: =INDEX('Malaysia Hourly'!U:U,'Selected Presentation'!AD169) -> 100 | AG169: =INDEX('Malaysia Hourly'!W:W,'Selected Presentation'!AD169) -> 0 | AH169: =INDEX('Malaysia Hourly'!AJ:AJ,'Selected Presentation'!AD169) -> 0 | AI169: =INDEX('Malaysia Hourly'!AL:AL,'Selected Presentation'!AD169) -> 100 | AJ169: =INDEX('Malaysia Hourly'!AO:AO,'Selected Presentation'!AD169) -> 0 | AK169: =INDEX('Malaysia Hourly'!AM:AM,'Selected Presentation'!AD169) -> 424.2562432
AC170: 165 | AD170: 2355 | AE170: =INDEX('Malaysia Hourly'!O:O,'Selected Presentation'!AD170) -> 0 | AF170: =INDEX('Malaysia Hourly'!U:U,'Selected Presentation'!AD170) -> 100 | AG170: =INDEX('Malaysia Hourly'!W:W,'Selected Presentation'!AD170) -> 0 | AH170: =INDEX('Malaysia Hourly'!AJ:AJ,'Selected Presentation'!AD170) -> 0 | AI170: =INDEX('Malaysia Hourly'!AL:AL,'Selected Presentation'!AD170) -> 100 | AJ170: =INDEX('Malaysia Hourly'!AO:AO,'Selected Presentation'!AD170) -> 0 | AK170: =INDEX('Malaysia Hourly'!AM:AM,'Selected Presentation'!AD170) -> 324.2562432
AC171: 166 | AD171: 2356 | AE171: =INDEX('Malaysia Hourly'!O:O,'Selected Presentation'!AD171) -> 0 | AF171: =INDEX('Malaysia Hourly'!U:U,'Selected Presentation'!AD171) -> 100 | AG171: =INDEX('Malaysia Hourly'!W:W,'Selected Presentation'!AD171) -> 0 | AH171: =INDEX('Malaysia Hourly'!AJ:AJ,'Selected Presentation'!AD171) -> 0 | AI171: =INDEX('Malaysia Hourly'!AL:AL,'Selected Presentation'!AD171) -> 100 | AJ171: =INDEX('Malaysia Hourly'!AO:AO,'Selected Presentation'!AD171) -> 0 | AK171: =INDEX('Malaysia Hourly'!AM:AM,'Selected Presentation'!AD171) -> 224.2562432
AC172: 167 | AD172: 2357 | AE172: =INDEX('Malaysia Hourly'!O:O,'Selected Presentation'!AD172) -> 0 | AF172: =INDEX('Malaysia Hourly'!U:U,'Selected Presentation'!AD172) -> 100 | AG172: =INDEX('Malaysia Hourly'!W:W,'Selected Presentation'!AD172) -> 0 | AH172: =INDEX('Malaysia Hourly'!AJ:AJ,'Selected Presentation'!AD172) -> 0 | AI172: =INDEX('Malaysia Hourly'!AL:AL,'Selected Presentation'!AD172) -> 100 | AJ172: =INDEX('Malaysia Hourly'!AO:AO,'Selected Presentation'!AD172) -> 0 | AK172: =INDEX('Malaysia Hourly'!AM:AM,'Selected Presentation'!AD172) -> 124.2562432
AC173: 168 | AD173: 2358 | AE173: =INDEX('Malaysia Hourly'!O:O,'Selected Presentation'!AD173) -> 0 | AF173: =INDEX('Malaysia Hourly'!U:U,'Selected Presentation'!AD173) -> 100 | AG173: =INDEX('Malaysia Hourly'!W:W,'Selected Presentation'!AD173) -> 0 | AH173: =INDEX('Malaysia Hourly'!AJ:AJ,'Selected Presentation'!AD173) -> 0 | AI173: =INDEX('Malaysia Hourly'!AL:AL,'Selected Presentation'!AD173) -> 46.25624315 | AJ173: =INDEX('Malaysia Hourly'!AO:AO,'Selected Presentation'!AD173) -> 0 | AK173: =INDEX('Malaysia Hourly'!AM:AM,'Selected Presentation'!AD173) -> 78
AC174: 169 | AD174: 2359 | AE174: =INDEX('Malaysia Hourly'!O:O,'Selected Presentation'!AD174) -> 0 | AF174: =INDEX('Malaysia Hourly'!U:U,'Selected Presentation'!AD174) -> 100 | AG174: =INDEX('Malaysia Hourly'!W:W,'Selected Presentation'!AD174) -> 0 | AH174: =INDEX('Malaysia Hourly'!AJ:AJ,'Selected Presentation'!AD174) -> 0 | AI174: =INDEX('Malaysia Hourly'!AL:AL,'Selected Presentation'!AD174) -> 0 | AJ174: =INDEX('Malaysia Hourly'!AO:AO,'Selected Presentation'!AD174) -> 0 | AK174: =INDEX('Malaysia Hourly'!AM:AM,'Selected Presentation'!AD174) -> 78
AC175: 170 | AD175: 2360 | AE175: =INDEX('Malaysia Hourly'!O:O,'Selected Presentation'!AD175) -> 0 | AF175: =INDEX('Malaysia Hourly'!U:U,'Selected Presentation'!AD175) -> 100 | AG175: =INDEX('Malaysia Hourly'!W:W,'Selected Presentation'!AD175) -> 0 | AH175: =INDEX('Malaysia Hourly'!AJ:AJ,'Selected Presentation'!AD175) -> 0 | AI175: =INDEX('Malaysia Hourly'!AL:AL,'Selected Presentation'!AD175) -> 0 | AJ175: =INDEX('Malaysia Hourly'!AO:AO,'Selected Presentation'!AD175) -> 0 | AK175: =INDEX('Malaysia Hourly'!AM:AM,'Selected Presentation'!AD175) -> 78
AC176: 171 | AD176: 2361 | AE176: =INDEX('Malaysia Hourly'!O:O,'Selected Presentation'!AD176) -> 0 | AF176: =INDEX('Malaysia Hourly'!U:U,'Selected Presentation'!AD176) -> 100 | AG176: =INDEX('Malaysia Hourly'!W:W,'Selected Presentation'!AD176) -> 0 | AH176: =INDEX('Malaysia Hourly'!AJ:AJ,'Selected Presentation'!AD176) -> 0 | AI176: =INDEX('Malaysia Hourly'!AL:AL,'Selected Presentation'!AD176) -> 0 | AJ176: =INDEX('Malaysia Hourly'!AO:AO,'Selected Presentation'!AD176) -> 0 | AK176: =INDEX('Malaysia Hourly'!AM:AM,'Selected Presentation'!AD176) -> 78
AC177: 172 | AD177: 2362 | AE177: =INDEX('Malaysia Hourly'!O:O,'Selected Presentation'!AD177) -> 0 | AF177: =INDEX('Malaysia Hourly'!U:U,'Selected Presentation'!AD177) -> 100 | AG177: =INDEX('Malaysia Hourly'!W:W,'Selected Presentation'!AD177) -> 0 | AH177: =INDEX('Malaysia Hourly'!AJ:AJ,'Selected Presentation'!AD177) -> 0 | AI177: =INDEX('Malaysia Hourly'!AL:AL,'Selected Presentation'!AD177) -> 0 | AJ177: =INDEX('Malaysia Hourly'!AO:AO,'Selected Presentation'!AD177) -> 0 | AK177: =INDEX('Malaysia Hourly'!AM:AM,'Selected Presentation'!AD177) -> 78
AC178: 173 | AD178: 2363 | AE178: =INDEX('Malaysia Hourly'!O:O,'Selected Presentation'!AD178) -> 0 | AF178: =INDEX('Malaysia Hourly'!U:U,'Selected Presentation'!AD178) -> 100 | AG178: =INDEX('Malaysia Hourly'!W:W,'Selected Presentation'!AD178) -> 0 | AH178: =INDEX('Malaysia Hourly'!AJ:AJ,'Selected Presentation'!AD178) -> 0 | AI178: =INDEX('Malaysia Hourly'!AL:AL,'Selected Presentation'!AD178) -> 0 | AJ178: =INDEX('Malaysia Hourly'!AO:AO,'Selected Presentation'!AD178) -> 0 | AK178: =INDEX('Malaysia Hourly'!AM:AM,'Selected Presentation'!AD178) -> 78
AC179: 174 | AD179: 2364 | AE179: =INDEX('Malaysia Hourly'!O:O,'Selected Presentation'!AD179) -> 0 | AF179: =INDEX('Malaysia Hourly'!U:U,'Selected Presentation'!AD179) -> 100 | AG179: =INDEX('Malaysia Hourly'!W:W,'Selected Presentation'!AD179) -> 0 | AH179: =INDEX('Malaysia Hourly'!AJ:AJ,'Selected Presentation'!AD179) -> 0 | AI179: =INDEX('Malaysia Hourly'!AL:AL,'Selected Presentation'!AD179) -> 0 | AJ179: =INDEX('Malaysia Hourly'!AO:AO,'Selected Presentation'!AD179) -> 0 | AK179: =INDEX('Malaysia Hourly'!AM:AM,'Selected Presentation'!AD179) -> 78
AC180: 175 | AD180: 2365 | AE180: =INDEX('Malaysia Hourly'!O:O,'Selected Presentation'!AD180) -> 0 | AF180: =INDEX('Malaysia Hourly'!U:U,'Selected Presentation'!AD180) -> 100 | AG180: =INDEX('Malaysia Hourly'!W:W,'Selected Presentation'!AD180) -> 0 | AH180: =INDEX('Malaysia Hourly'!AJ:AJ,'Selected Presentation'!AD180) -> 0 | AI180: =INDEX('Malaysia Hourly'!AL:AL,'Selected Presentation'!AD180) -> 0 | AJ180: =INDEX('Malaysia Hourly'!AO:AO,'Selected Presentation'!AD180) -> 0 | AK180: =INDEX('Malaysia Hourly'!AM:AM,'Selected Presentation'!AD180) -> 78
AC181: 176 | AD181: 2366 | AE181: =INDEX('Malaysia Hourly'!O:O,'Selected Presentation'!AD181) -> 1006.09 | AF181: =INDEX('Malaysia Hourly'!U:U,'Selected Presentation'!AD181) -> 100 | AG181: =INDEX('Malaysia Hourly'!W:W,'Selected Presentation'!AD181) -> 100 | AH181: =INDEX('Malaysia Hourly'!AJ:AJ,'Selected Presentation'!AD181) -> 103.777493 | AI181: =INDEX('Malaysia Hourly'!AL:AL,'Selected Presentation'!AD181) -> 0 | AJ181: =INDEX('Malaysia Hourly'!AO:AO,'Selected Presentation'!AD181) -> 0 | AK181: =INDEX('Malaysia Hourly'!AM:AM,'Selected Presentation'!AD181) -> 175.5508434
AC182: 177 | AD182: 2367 | AE182: =INDEX('Malaysia Hourly'!O:O,'Selected Presentation'!AD182) -> 637.98 | AF182: =INDEX('Malaysia Hourly'!U:U,'Selected Presentation'!AD182) -> 100 | AG182: =INDEX('Malaysia Hourly'!W:W,'Selected Presentation'!AD182) -> 100 | AH182: =INDEX('Malaysia Hourly'!AJ:AJ,'Selected Presentation'!AD182) -> 25.81986368 | AI182: =INDEX('Malaysia Hourly'!AL:AL,'Selected Presentation'!AD182) -> 0 | AJ182: =INDEX('Malaysia Hourly'!AO:AO,'Selected Presentation'!AD182) -> 0 | AK182: =INDEX('Malaysia Hourly'!AM:AM,'Selected Presentation'!AD182) -> 199.8215152
AC183: 178 | AD183: 2368 | AE183: =INDEX('Malaysia Hourly'!O:O,'Selected Presentation'!AD183) -> 914.01 | AF183: =INDEX('Malaysia Hourly'!U:U,'Selected Presentation'!AD183) -> 100 | AG183: =INDEX('Malaysia Hourly'!W:W,'Selected Presentation'!AD183) -> 100 | AH183: =INDEX('Malaysia Hourly'!AJ:AJ,'Selected Presentation'!AD183) -> 76.7329736 | AI183: =INDEX('Malaysia Hourly'!AL:AL,'Selected Presentation'!AD183) -> 0 | AJ183: =INDEX('Malaysia Hourly'!AO:AO,'Selected Presentation'!AD183) -> 0 | AK183: =INDEX('Malaysia Hourly'!AM:AM,'Selected Presentation'!AD183) -> 271.9505104
AC184: 179 | AD184: 2369 | AE184: =INDEX('Malaysia Hourly'!O:O,'Selected Presentation'!AD184) -> 1025.62 | AF184: =INDEX('Malaysia Hourly'!U:U,'Selected Presentation'!AD184) -> 100 | AG184: =INDEX('Malaysia Hourly'!W:W,'Selected Presentation'!AD184) -> 100 | AH184: =INDEX('Malaysia Hourly'!AJ:AJ,'Selected Presentation'!AD184) -> 94.60524128 | AI184: =INDEX('Malaysia Hourly'!AL:AL,'Selected Presentation'!AD184) -> 0 | AJ184: =INDEX('Malaysia Hourly'!AO:AO,'Selected Presentation'!AD184) -> 0 | AK184: =INDEX('Malaysia Hourly'!AM:AM,'Selected Presentation'!AD184) -> 360.8794372
AC185: 180 | AD185: 2370 | AE185: =INDEX('Malaysia Hourly'!O:O,'Selected Presentation'!AD185) -> 1039.22 | AF185: =INDEX('Malaysia Hourly'!U:U,'Selected Presentation'!AD185) -> 100 | AG185: =INDEX('Malaysia Hourly'!W:W,'Selected Presentation'!AD185) -> 100 | AH185: =INDEX('Malaysia Hourly'!AJ:AJ,'Selected Presentation'!AD185) -> 94.09304096 | AI185: =INDEX('Malaysia Hourly'!AL:AL,'Selected Presentation'!AD185) -> 0 | AJ185: =INDEX('Malaysia Hourly'!AO:AO,'Selected Presentation'!AD185) -> 0 | AK185: =INDEX('Malaysia Hourly'!AM:AM,'Selected Presentation'!AD185) -> 449.3268957
AC186: 181 | AD186: 2371 | AE186: =INDEX('Malaysia Hourly'!O:O,'Selected Presentation'!AD186) -> 954.69 | AF186: =INDEX('Malaysia Hourly'!U:U,'Selected Presentation'!AD186) -> 100 | AG186: =INDEX('Malaysia Hourly'!W:W,'Selected Presentation'!AD186) -> 100 | AH186: =INDEX('Malaysia Hourly'!AJ:AJ,'Selected Presentation'!AD186) -> 76.5030872 | AI186: =INDEX('Malaysia Hourly'!AL:AL,'Selected Presentation'!AD186) -> 0 | AJ186: =INDEX('Malaysia Hourly'!AO:AO,'Selected Presentation'!AD186) -> 0 | AK186: =INDEX('Malaysia Hourly'!AM:AM,'Selected Presentation'!AD186) -> 521.2397977
AC187: 182 | AD187: 2372 | AE187: =INDEX('Malaysia Hourly'!O:O,'Selected Presentation'!AD187) -> 937.98 | AF187: =INDEX('Malaysia Hourly'!U:U,'Selected Presentation'!AD187) -> 100 | AG187: =INDEX('Malaysia Hourly'!W:W,'Selected Presentation'!AD187) -> 100 | AH187: =INDEX('Malaysia Hourly'!AJ:AJ,'Selected Presentation'!AD187) -> 72.6633584 | AI187: =INDEX('Malaysia Hourly'!AL:AL,'Selected Presentation'!AD187) -> 0 | AJ187: =INDEX('Malaysia Hourly'!AO:AO,'Selected Presentation'!AD187) -> 0 | AK187: =INDEX('Malaysia Hourly'!AM:AM,'Selected Presentation'!AD187) -> 589.5433546
AC188: 183 | AD188: 2373 | AE188: =INDEX('Malaysia Hourly'!O:O,'Selected Presentation'!AD188) -> 1047.22 | AF188: =INDEX('Malaysia Hourly'!U:U,'Selected Presentation'!AD188) -> 100 | AG188: =INDEX('Malaysia Hourly'!W:W,'Selected Presentation'!AD188) -> 100 | AH188: =INDEX('Malaysia Hourly'!AJ:AJ,'Selected Presentation'!AD188) -> 10.4566454 | AI188: =INDEX('Malaysia Hourly'!AL:AL,'Selected Presentation'!AD188) -> 0 | AJ188: =INDEX('Malaysia Hourly'!AO:AO,'Selected Presentation'!AD188) -> 82.70098916 | AK188: =INDEX('Malaysia Hourly'!AM:AM,'Selected Presentation'!AD188) -> 599.3726013
AC189: 184 | AD189: 2374 | AE189: =INDEX('Malaysia Hourly'!O:O,'Selected Presentation'!AD189) -> 1064.75 | AF189: =INDEX('Malaysia Hourly'!U:U,'Selected Presentation'!AD189) -> 100 | AG189: =INDEX('Malaysia Hourly'!W:W,'Selected Presentation'!AD189) -> 100 | AH189: =INDEX('Malaysia Hourly'!AJ:AJ,'Selected Presentation'!AD189) -> 0.6273987243 | AI189: =INDEX('Malaysia Hourly'!AL:AL,'Selected Presentation'!AD189) -> 0 | AJ189: =INDEX('Malaysia Hourly'!AO:AO,'Selected Presentation'!AD189) -> 97.97828928 | AK189: =INDEX('Malaysia Hourly'!AM:AM,'Selected Presentation'!AD189) -> 599.9623561
AC190: 185 | AD190: 2375 | AE190: =INDEX('Malaysia Hourly'!O:O,'Selected Presentation'!AD190) -> 976.69 | AF190: =INDEX('Malaysia Hourly'!U:U,'Selected Presentation'!AD190) -> 100 | AG190: =INDEX('Malaysia Hourly'!W:W,'Selected Presentation'!AD190) -> 100 | AH190: =INDEX('Malaysia Hourly'!AJ:AJ,'Selected Presentation'!AD190) -> 0.03764392346 | AI190: =INDEX('Malaysia Hourly'!AL:AL,'Selected Presentation'!AD190) -> 0 | AJ190: =INDEX('Malaysia Hourly'!AO:AO,'Selected Presentation'!AD190) -> 84.62708776 | AK190: =INDEX('Malaysia Hourly'!AM:AM,'Selected Presentation'!AD190) -> 599.9977414
AC191: 186 | AD191: 2376 | AE191: =INDEX('Malaysia Hourly'!O:O,'Selected Presentation'!AD191) -> 717.44 | AF191: =INDEX('Malaysia Hourly'!U:U,'Selected Presentation'!AD191) -> 100 | AG191: =INDEX('Malaysia Hourly'!W:W,'Selected Presentation'!AD191) -> 100 | AH191: =INDEX('Malaysia Hourly'!AJ:AJ,'Selected Presentation'!AD191) -> 0.002258635407 | AI191: =INDEX('Malaysia Hourly'!AL:AL,'Selected Presentation'!AD191) -> 0 | AJ191: =INDEX('Malaysia Hourly'!AO:AO,'Selected Presentation'!AD191) -> 36.6671916 | AK191: =INDEX('Malaysia Hourly'!AM:AM,'Selected Presentation'!AD191) -> 599.9998645
AC192: 187 | AD192: 2377 | AE192: =INDEX('Malaysia Hourly'!O:O,'Selected Presentation'!AD192) -> 219.21 | AF192: =INDEX('Malaysia Hourly'!U:U,'Selected Presentation'!AD192) -> 100 | AG192: =INDEX('Malaysia Hourly'!W:W,'Selected Presentation'!AD192) -> 42.17249664 | AH192: =INDEX('Malaysia Hourly'!AJ:AJ,'Selected Presentation'!AD192) -> 0 | AI192: =INDEX('Malaysia Hourly'!AL:AL,'Selected Presentation'!AD192) -> 57.82750336 | AJ192: =INDEX('Malaysia Hourly'!AO:AO,'Selected Presentation'!AD192) -> 0 | AK192: =INDEX('Malaysia Hourly'!AM:AM,'Selected Presentation'!AD192) -> 542.1723611
AC193: 188 | AD193: 2378 | AE193: =INDEX('Malaysia Hourly'!O:O,'Selected Presentation'!AD193) -> 0 | AF193: =INDEX('Malaysia Hourly'!U:U,'Selected Presentation'!AD193) -> 100 | AG193: =INDEX('Malaysia Hourly'!W:W,'Selected Presentation'!AD193) -> 0 | AH193: =INDEX('Malaysia Hourly'!AJ:AJ,'Selected Presentation'!AD193) -> 0 | AI193: =INDEX('Malaysia Hourly'!AL:AL,'Selected Presentation'!AD193) -> 100 | AJ193: =INDEX('Malaysia Hourly'!AO:AO,'Selected Presentation'!AD193) -> 0 | AK193: =INDEX('Malaysia Hourly'!AM:AM,'Selected Presentation'!AD193) -> 442.1723611
AC194: 189 | AD194: 2379 | AE194: =INDEX('Malaysia Hourly'!O:O,'Selected Presentation'!AD194) -> 0 | AF194: =INDEX('Malaysia Hourly'!U:U,'Selected Presentation'!AD194) -> 100 | AG194: =INDEX('Malaysia Hourly'!W:W,'Selected Presentation'!AD194) -> 0 | AH194: =INDEX('Malaysia Hourly'!AJ:AJ,'Selected Presentation'!AD194) -> 0 | AI194: =INDEX('Malaysia Hourly'!AL:AL,'Selected Presentation'!AD194) -> 100 | AJ194: =INDEX('Malaysia Hourly'!AO:AO,'Selected Presentation'!AD194) -> 0 | AK194: =INDEX('Malaysia Hourly'!AM:AM,'Selected Presentation'!AD194) -> 342.1723611
AC195: 190 | AD195: 2380 | AE195: =INDEX('Malaysia Hourly'!O:O,'Selected Presentation'!AD195) -> 0 | AF195: =INDEX('Malaysia Hourly'!U:U,'Selected Presentation'!AD195) -> 100 | AG195: =INDEX('Malaysia Hourly'!W:W,'Selected Presentation'!AD195) -> 0 | AH195: =INDEX('Malaysia Hourly'!AJ:AJ,'Selected Presentation'!AD195) -> 0 | AI195: =INDEX('Malaysia Hourly'!AL:AL,'Selected Presentation'!AD195) -> 100 | AJ195: =INDEX('Malaysia Hourly'!AO:AO,'Selected Presentation'!AD195) -> 0 | AK195: =INDEX('Malaysia Hourly'!AM:AM,'Selected Presentation'!AD195) -> 242.1723611
AC196: 191 | AD196: 2381 | AE196: =INDEX('Malaysia Hourly'!O:O,'Selected Presentation'!AD196) -> 0 | AF196: =INDEX('Malaysia Hourly'!U:U,'Selected Presentation'!AD196) -> 100 | AG196: =INDEX('Malaysia Hourly'!W:W,'Selected Presentation'!AD196) -> 0 | AH196: =INDEX('Malaysia Hourly'!AJ:AJ,'Selected Presentation'!AD196) -> 0 | AI196: =INDEX('Malaysia Hourly'!AL:AL,'Selected Presentation'!AD196) -> 100 | AJ196: =INDEX('Malaysia Hourly'!AO:AO,'Selected Presentation'!AD196) -> 0 | AK196: =INDEX('Malaysia Hourly'!AM:AM,'Selected Presentation'!AD196) -> 142.1723611
AC197: 192 | AD197: 2382 | AE197: =INDEX('Malaysia Hourly'!O:O,'Selected Presentation'!AD197) -> 0 | AF197: =INDEX('Malaysia Hourly'!U:U,'Selected Presentation'!AD197) -> 100 | AG197: =INDEX('Malaysia Hourly'!W:W,'Selected Presentation'!AD197) -> 0 | AH197: =INDEX('Malaysia Hourly'!AJ:AJ,'Selected Presentation'!AD197) -> 0 | AI197: =INDEX('Malaysia Hourly'!AL:AL,'Selected Presentation'!AD197) -> 64.17236112 | AJ197: =INDEX('Malaysia Hourly'!AO:AO,'Selected Presentation'!AD197) -> 0 | AK197: =INDEX('Malaysia Hourly'!AM:AM,'Selected Presentation'!AD197) -> 78
AC198: 193 | AD198: 2383 | AE198: =INDEX('Malaysia Hourly'!O:O,'Selected Presentation'!AD198) -> 0 | AF198: =INDEX('Malaysia Hourly'!U:U,'Selected Presentation'!AD198) -> 100 | AG198: =INDEX('Malaysia Hourly'!W:W,'Selected Presentation'!AD198) -> 0 | AH198: =INDEX('Malaysia Hourly'!AJ:AJ,'Selected Presentation'!AD198) -> 0 | AI198: =INDEX('Malaysia Hourly'!AL:AL,'Selected Presentation'!AD198) -> 0 | AJ198: =INDEX('Malaysia Hourly'!AO:AO,'Selected Presentation'!AD198) -> 0 | AK198: =INDEX('Malaysia Hourly'!AM:AM,'Selected Presentation'!AD198) -> 78
AC199: 194 | AD199: 2384 | AE199: =INDEX('Malaysia Hourly'!O:O,'Selected Presentation'!AD199) -> 0 | AF199: =INDEX('Malaysia Hourly'!U:U,'Selected Presentation'!AD199) -> 100 | AG199: =INDEX('Malaysia Hourly'!W:W,'Selected Presentation'!AD199) -> 0 | AH199: =INDEX('Malaysia Hourly'!AJ:AJ,'Selected Presentation'!AD199) -> 0 | AI199: =INDEX('Malaysia Hourly'!AL:AL,'Selected Presentation'!AD199) -> 0 | AJ199: =INDEX('Malaysia Hourly'!AO:AO,'Selected Presentation'!AD199) -> 0 | AK199: =INDEX('Malaysia Hourly'!AM:AM,'Selected Presentation'!AD199) -> 78
AC200: 195 | AD200: 2385 | AE200: =INDEX('Malaysia Hourly'!O:O,'Selected Presentation'!AD200) -> 0 | AF200: =INDEX('Malaysia Hourly'!U:U,'Selected Presentation'!AD200) -> 100 | AG200: =INDEX('Malaysia Hourly'!W:W,'Selected Presentation'!AD200) -> 0 | AH200: =INDEX('Malaysia Hourly'!AJ:AJ,'Selected Presentation'!AD200) -> 0 | AI200: =INDEX('Malaysia Hourly'!AL:AL,'Selected Presentation'!AD200) -> 0 | AJ200: =INDEX('Malaysia Hourly'!AO:AO,'Selected Presentation'!AD200) -> 0 | AK200: =INDEX('Malaysia Hourly'!AM:AM,'Selected Presentation'!AD200) -> 78
AC201: 196 | AD201: 2386 | AE201: =INDEX('Malaysia Hourly'!O:O,'Selected Presentation'!AD201) -> 0 | AF201: =INDEX('Malaysia Hourly'!U:U,'Selected Presentation'!AD201) -> 100 | AG201: =INDEX('Malaysia Hourly'!W:W,'Selected Presentation'!AD201) -> 0 | AH201: =INDEX('Malaysia Hourly'!AJ:AJ,'Selected Presentation'!AD201) -> 0 | AI201: =INDEX('Malaysia Hourly'!AL:AL,'Selected Presentation'!AD201) -> 0 | AJ201: =INDEX('Malaysia Hourly'!AO:AO,'Selected Presentation'!AD201) -> 0 | AK201: =INDEX('Malaysia Hourly'!AM:AM,'Selected Presentation'!AD201) -> 78
... 534 more rows

Sheet Malaysia Hourly
A1: Latitude (decimal degrees): 6.954
A2: Longitude (decimal degrees): 100.609
A3: Elevation (m): 299 | AE3: -200 | AF3: 0 | AG3: =MAX(AF3,AE3) -> 0
A4: Radiation database: PVGIS-SARAH
N6: 1200 | P6: =Temperature!E8 -> -0.2 | Q6: =Temperature!F8 -> 25 | T6: =Inputs!G9 -> 0.12 | U6: =Inputs!G12 -> 100 | V6: =Inputs!G17 -> 200 | Y6: =Inputs!G21 -> 600 | AA6: =Inputs!G19 -> 200 | AC6: =Inputs!G23 -> 0.94 | AE6: =Inputs!G24 -> 0.13 | AG6: =AA6 -> 200
A7: Slope: 39 deg. (optimum) | Z7: Remaining
A8: Azimuth: - deg. | P8: Temp | Q8: Percent | R8: Percent | T8: Net | U8: Target | V8: Solar | W8: Solar | X8: Surplus | Y8: Storage | Z8: Storage | AA8: Storage | AB8: Maximum | AC8: Round | AD8: Target | AE8: Required | AF8: Available | AG8: Discharge | AI8: Opening | AJ8: Add: | AK8: Less: | AL8: Less: | AM8: Closing | AN8: Total | AO8: Wasted
A9: time | B9: Date | C9: Date and Time | D9: Year | E9: Month | F9: Month | G9: Day | H9: Date | I9: G(i) | J9: H_sun | K9: T2m | L9: WS10m | M9: Int | N9: Criteria | O9: Adjusted | P9: Coeffient | Q9: vs STC | R9: Change prod | S9: Net | T9: Production | U9: Load | V9: Production | W9: for Load | X9: Solar | Y9: Capacity | Z9: Capacity | AA9: Capacity | AB9: Charge | AC9: Trip Loss | AD9: Discharge | AE9: DOD | AF9: to Dischg | AG9: Limit | AI9: Battery Balance | AJ9: Charge | AK9: RTR Loss | AL9: Discharge | AM9: Battery | AN9: Load Met | AO9: Solar
F10: Qtr End | G10: Qtr End | H10: Qtr End | I10: Watt Hour | K10: C | N10: Watt Hour | O10: Watt Hour | P10: Factor | Q10: % | R10: % | S10: Watt Hour | T10: Watt Hour | U10: kW | V10: kW | W10: kW | X10: kW | Y10: kWh | Z10: kWh | AA10: kW | AB10: kW | AD10: kW | AE10: kwh | AG10: kW | AI10: kWh | AJ10: kW | AK10: kW | AL10: kW | AM10: kWh | AN10: =AM10 -> kWh | AO10: kWh
C11: Date + 1/24 | F11: Lookup | G11: Lookup | H11: Date | I11: Input | J11: Input | K11: Input | L11: Input | M11: Input | O11: IF | W11: Min
C12: 2015-12-31
B13: =C13 -> 2016-01-01T07:00:00 | C13: =C12+7/24+1 -> 2016-01-01T07:00:00 | D13: =YEAR(B13) -> 2016 | E13: =MONTH(B13) -> 1 | F13: =LOOKUP(E13,Temperature!Q:Q,Temperature!R:R) -> 3 | G13: =LOOKUP(E13,Temperature!Q:Q,Temperature!S:S) -> 31 | H13: =DATE(D13,F13,G13) -> 2016-03-31 | I13: 605.04 | J13: 2.57 | K13: 23.63 | L13: 2.97 | M13: 0 | N13: =N6 -> 1200 | O13: =IF(I13>N13,1000,I13) -> 605.04 | P13: =$P$6 -> -0.2 | Q13: =(K13-$Q$6)/$Q$6 -> -0.0548 | R13: =P13*Q13 -> 0.01096 | S13: =O13*(1+R13) -> 611.6712384 | T13: =S13*(1-$T$6) -> 538.2706898 | U13: =$U$6 -> 100 | V13: =$V$6*S13/1000 -> 122.3342477 | W13: =MIN(V13,U13) -> 100 | X13: =V13-W13 -> 22.33424768 | Y13: =$Y$6 -> 600 | Z13: =Y13-AI13 -> 600 | AA13: =$AA$6 -> 200 | AB13: =MIN(AA13,Z13,X13) -> 22.33424768 | AC13: =(1-$AC$6)*AB13 -> 1.340054861 | AD13: =U13-W13 -> 0 | AE13: =MAX($Y$13*($AE$6),0) -> 78 | AF13: =MAX(AI13-AE13-AC13,0) -> 0 | AG13: =MIN($AG$6,AF13,AD13) -> 0 | AI13: =AM12 -> 0 | AJ13: =AB13 -> 22.33424768 | AK13: =AC13 -> 1.340054861 | AL13: =AG13 -> 0 | AM13: =AI13+AJ13-AL13-AK13 -> 20.99419282 | AN13: =W13+AL13 -> 100 | AO13: =V13-W13-AJ13 -> 0
A14: 20151231:2345 | B14: =C14 -> 2016-01-01T08:00:00 | C14: =C13+1/24 -> 2016-01-01T08:00:00 | D14: =YEAR(B14) -> 2016 | E14: =MONTH(B14) -> 1 | F14: =LOOKUP(E14,Temperature!Q:Q,Temperature!R:R) -> 3 | G14: =LOOKUP(E14,Temperature!Q:Q,Temperature!S:S) -> 31 | H14: =DATE(D14,F14,G14) -> 2016-03-31 | I14: 620.28 | J14: 2.57 | K14: 23.58 | L14: 2.9 | M14: 0 | N14: =N13 -> 1200 | O14: =IF(I14>N14,1000,I14) -> 620.28 | P14: =$P$6 -> -0.2 | Q14: =(K14-$Q$6)/$Q$6 -> -0.0568 | R14: =P14*Q14 -> 0.01136 | S14: =O14*(1+R14) -> 627.3263808 | T14: =S14*(1-$T$6) -> 552.0472151 | U14: =$U$6 -> 100 | V14: =$V$6*S14/1000 -> 125.4652762 | W14: =MIN(V14,U14) -> 100 | X14: =V14-W14 -> 25.46527616 | Y14: =$Y$6 -> 600 | Z14: =Y14-AI14 -> 579.0058072 | AA14: =$AA$6 -> 200 | AB14: =MIN(AA14,Z14,X14) -> 25.46527616 | AC14: =(1-$AC$6)*AB14 -> 1.52791657 | AD14: =U14-W14 -> 0 | AE14: =MAX($Y$13*($AE$6),0) -> 78 | AF14: =MAX(AI14-AE14-AC14,0) -> 0 | AG14: =MIN($AG$6,AF14,AD14) -> 0 | AI14: =AM13 -> 20.99419282 | AJ14: =AB14 -> 25.46527616 | AK14: =AC14 -> 1.52791657 | AL14: =AG14 -> 0 | AM14: =AI14+AJ14-AL14-AK14 -> 44.93155241 | AN14: =W14+AL14 -> 100 | AO14: =V14-W14-AJ14 -> 0
A15: 20160101:0045 | B15: 2016-01-01T09:00:00 | C15: =C14+1/24 -> 2016-01-01T09:00:00 | D15: 2016 | E15: 1 | F15: =LOOKUP(E15,Temperature!Q:Q,Temperature!R:R) -> 3 | G15: =LOOKUP(E15,Temperature!Q:Q,Temperature!S:S) -> 31 | H15: 2016-03-31 | I15: 303.11 | J15: 16.08 | K15: 24.45 | L15: 3.38 | M15: 0 | N15: =N14 -> 1200 | O15: 303.11 | P15: -0.2 | Q15: -0.022 | R15: 0.0044 | S15: 304.443684 | T15: 267.9104419 | U15: 100 | V15: 60.8887368 | W15: 60.8887368 | X15: 0 | Y15: 600 | Z15: =Y15-AI15 -> 555.0684476 | AA15: 200 | AB15: =MIN(AA15,Z15,X15) -> 0 | AC15: =(1-$AC$6)*AB15 -> 0 | AD15: 39.1112632 | AE15: 78 | AF15: 0 | AG15: =MIN($AG$6,AF15,AD15) -> 0 | AI15: 44.93155241 | AJ15: 0 | AK15: 0 | AL15: 0 | AM15: 44.93155241 | AN15: 60.8887368 | AO15: 0
A16: 20160101:0145 | B16: 2016-01-01T10:00:00 | C16: 2016-01-01T10:00:00 | D16: 2016 | E16: 1 | F16: =LOOKUP(E16,Temperature!Q:Q,Temperature!R:R) -> 3 | G16: =LOOKUP(E16,Temperature!Q:Q,Temperature!S:S) -> 31 | H16: 2016-03-31 | I16: 605.25 | J16: 29.14 | K16: 25.67 | L16: 3.79 | M16: 0 | N16: 1200 | O16: 605.25 | P16: -0.2 | Q16: 0.0268 | R16: -0.00536 | S16: 602.00586 | T16: 529.7651568 | U16: 100 | V16: 120.401172 | W16: 100 | X16: 20.401172 | Y16: 600 | Z16: 555.0684476 | AA16: 200 | AB16: 20.401172 | AC16: 1.22407032 | AD16: 0 | AE16: 78 | AF16: 0 | AG16: 0 | AI16: 44.93155241 | AJ16: 20.401172 | AK16: 1.22407032 | AL16: 0 | AM16: 64.10865409 | AN16: 100 | AO16: 0
A17: 20160101:0245 | B17: 2016-01-01T11:00:00 | C17: 2016-01-01T11:00:00 | D17: 2016 | E17: 1 | F17: =LOOKUP(E17,Temperature!Q:Q,Temperature!R:R) -> 3 | G17: =LOOKUP(E17,Temperature!Q:Q,Temperature!S:S) -> 31 | H17: 2016-03-31 | I17: 943.76 | J17: 41.34 | K17: 26.91 | L17: 4.28 | M17: 0 | N17: 1200 | O17: 943.76 | P17: -0.2 | Q17: 0.0764 | R17: -0.01528 | S17: 929.3393472 | T17: 817.8186255 | U17: 100 | V17: 185.8678694 | W17: 100 | X17: 85.86786944 | Y17: 600 | Z17: 535.8913459 | AA17: 200 | AB17: 85.86786944 | AC17: 5.152072166 | AD17: 0 | AE17: 78 | AF17: 0 | AG17: 0 | AI17: 64.10865409 | AJ17: 85.86786944 | AK17: 5.152072166 | AL17: 0 | AM17: 144.8244514 | AN17: 100 | AO17: 0
A18: 20160101:0345 | B18: 2016-01-01T12:00:00 | C18: 2016-01-01T12:00:00 | D18: 2016 | E18: 1 | F18: =LOOKUP(E18,Temperature!Q:Q,Temperature!R:R) -> 3 | G18: =LOOKUP(E18,Temperature!Q:Q,Temperature!S:S) -> 31 | H18: 2016-03-31 | I18: 542.84 | J18: 51.81 | K18: 27.89 | L18: 4.69 | M18: 0 | N18: 1200 | O18: 542.84 | P18: -0.2 | Q18: 0.1156 | R18: -0.02312 | S18: 530.2895392 | T18: 466.6547945 | U18: 100 | V18: 106.0579078 | W18: 100 | X18: 6.05790784 | Y18: 600 | Z18: 455.1755486 | AA18: 200 | AB18: 6.05790784 | AC18: 0.3634744704 | AD18: 0 | AE18: 78 | AF18: 66.46097689 | AG18: 0 | AI18: 144.8244514 | AJ18: 6.05790784 | AK18: 0.3634744704 | AL18: 0 | AM18: 150.5188847 | AN18: 100 | AO18: 0
A19: 20160101:0445 | B19: 2016-01-01T13:00:00 | C19: 2016-01-01T13:00:00 | D19: 2016 | E19: 1 | F19: =LOOKUP(E19,Temperature!Q:Q,Temperature!R:R) -> 3 | G19: =LOOKUP(E19,Temperature!Q:Q,Temperature!S:S) -> 31 | H19: 2016-03-31 | I19: 1019.38 | J19: 58.71 | K19: 28.51 | L19: 5.03 | M19: 0 | N19: 1200 | O19: 1019.38 | P19: -0.2 | Q19: 0.1404 | R19: -0.02808 | S19: 990.7558096 | T19: 871.8651124 | U19: 100 | V19: 198.1511619 | W19: 100 | X19: 98.15116192 | Y19: 600 | Z19: 449.4811153 | AA19: 200 | AB19: 98.15116192 | AC19: 5.889069715 | AD19: 0 | AE19: 78 | AF19: 66.62981502 | AG19: 0 | AI19: 150.5188847 | AJ19: 98.15116192 | AK19: 5.889069715 | AL19: 0 | AM19: 242.7809769 | AN19: 100 | AO19: 0
A20: 20160101:0545 | B20: 2016-01-01T14:00:00 | C20: 2016-01-01T14:00:00 | D20: 2016 | E20: 1 | F20: =LOOKUP(E20,Temperature!Q:Q,Temperature!R:R) -> 3 | G20: =LOOKUP(E20,Temperature!Q:Q,Temperature!S:S) -> 31 | H20: 2016-03-31 | I20: 1034.27 | J20: 59.51 | K20: 28.37 | L20: 5.03 | M20: 0 | N20: 1200 | O20: 1034.27 | P20: -0.2 | Q20: 0.1348 | R20: -0.02696 | S20: 1006.386081 | T20: 885.6197511 | U20: 100 | V20: 201.2772162 | W20: 100 | X20: 101.2772162 | Y20: 600 | Z20: 357.2190231 | AA20: 200 | AB20: 101.2772162 | AC20: 6.07663297 | AD20: 0 | AE20: 78 | AF20: 158.704344 | AG20: 0 | AI20: 242.7809769 | AJ20: 101.2772162 | AK20: 6.07663297 | AL20: 0 | AM20: 337.9815601 | AN20: 100 | AO20: 0
A21: 20160101:0645 | B21: 2016-01-01T15:00:00 | C21: 2016-01-01T15:00:00 | D21: 2016 | E21: 1 | F21: =LOOKUP(E21,Temperature!Q:Q,Temperature!R:R) -> 3 | G21: =LOOKUP(E21,Temperature!Q:Q,Temperature!S:S) -> 31 | H21: 2016-03-31 | I21: 921.28 | J21: 53.79 | K21: 28.28 | L21: 5.17 | M21: 0 | N21: 1200 | O21: 921.28 | P21: -0.2 | Q21: 0.1312 | R21: -0.02624 | S21: 897.1056128 | T21: 789.4529393 | U21: 100 | V21: 179.4211226 | W21: 100 | X21: 79.42112256 | Y21: 600 | Z21: 262.0184399 | AA21: 200 | AB21: 79.42112256 | AC21: 4.765267354 | AD21: 0 | AE21: 78 | AF21: 255.2162928 | AG21: 0 | AI21: 337.9815601 | AJ21: 79.42112256 | AK21: 4.765267354 | AL21: 0 | AM21: 412.6374153 | AN21: 100 | AO21: 0
A22: 20160101:0745 | B22: 2016-01-01T16:00:00 | C22: 2016-01-01T16:00:00 | D22: 2016 | E22: 1 | F22: =LOOKUP(E22,Temperature!Q:Q,Temperature!R:R) -> 3 | G22: =LOOKUP(E22,Temperature!Q:Q,Temperature!S:S) -> 31 | H22: 2016-03-31 | I22: 979.06 | J22: 43.94 | K22: 28.08 | L22: 4.97 | M22: 0 | N22: 1200 | O22: 979.06 | P22: -0.2 | Q22: 0.1232 | R22: -0.02464 | S22: 954.9359616 | T22: 840.3436462 | U22: 100 | V22: 190.9871923 | W22: 100 | X22: 90.98719232 | Y22: 600 | Z22: 187.3625847 | AA22: 200 | AB22: 90.98719232 | AC22: 5.459231539 | AD22: 0 | AE22: 78 | AF22: 329.1781838 | AG22: 0 | AI22: 412.6374153 | AJ22: 90.98719232 | AK22: 5.459231539 | AL22: 0 | AM22: 498.1653761 | AN22: 100 | AO22: 0
A23: 20160101:0845 | B23: 2016-01-01T17:00:00 | C23: 2016-01-01T17:00:00 | D23: 2016 | E23: 1 | F23: =LOOKUP(E23,Temperature!Q:Q,Temperature!R:R) -> 3 | G23: =LOOKUP(E23,Temperature!Q:Q,Temperature!S:S) -> 31 | H23: 2016-03-31 | I23: 804.79 | J23: 32.03 | K23: 27.75 | L23: 4.62 | M23: 0 | N23: 1200 | O23: 804.79 | P23: -0.2 | Q23: 0.11 | R23: -0.022 | S23: 787.08462 | T23: 692.6344656 | U23: 100 | V23: 157.416924 | W23: 100 | X23: 57.416924 | Y23: 600 | Z23: 101.8346239 | AA23: 200 | AB23: 57.416924 | AC23: 3.44501544 | AD23: 0 | AE23: 78 | AF23: 416.7203607 | AG23: 0 | AI23: 498.1653761 | AJ23: 57.416924 | AK23: 3.44501544 | AL23: 0 | AM23: 552.1372847 | AN23: 100 | AO23: 0
A24: 20160101:0945 | B24: 2016-01-01T18:00:00 | C24: 2016-01-01T18:00:00 | D24: 2016 | E24: 1 | F24: =LOOKUP(E24,Temperature!Q:Q,Temperature!R:R) -> 3 | G24: =LOOKUP(E24,Temperature!Q:Q,Temperature!S:S) -> 31 | H24: 2016-03-31 | I24: 570.64 | J24: 19.11 | K24: 27.29 | L24: 3.86 | M24: 0 | N24: 1200 | O24: 570.64 | P24: -0.2 | Q24: 0.0916 | R24: -0.01832 | S24: 560.1858752 | T24: 492.9635702 | U24: 100 | V24: 112.037175 | W24: 100 | X24: 12.03717504 | Y24: 600 | Z24: 47.86271532 | AA24: 200 | AB24: 12.03717504 | AC24: 0.7222305024 | AD24: 0 | AE24: 78 | AF24: 473.4150542 | AG24: 0 | AI24: 552.1372847 | AJ24: 12.03717504 | AK24: 0.7222305024 | AL24: 0 | AM24: 563.4522292 | AN24: 100 | AO24: 0
A25: 20160101:1045 | B25: 2016-01-01T19:00:00 | C25: 2016-01-01T19:00:00 | D25: 2016 | E25: 1 | F25: =LOOKUP(E25,Temperature!Q:Q,Temperature!R:R) -> 3 | G25: =LOOKUP(E25,Temperature!Q:Q,Temperature!S:S) -> 31 | H25: 2016-03-31 | I25: 30.47 | J25: 5.68 | K25: 26.46 | L25: 3.38 | M25: 0 | N25: 1200 | O25: 30.47 | P25: -0.2 | Q25: 0.0584 | R25: -0.01168 | S25: 30.1141104 | T25: 26.50041715 | U25: 100 | V25: 6.02282208 | W25: 6.02282208 | X25: 0 | Y25: 600 | Z25: 36.54777079 | AA25: 200 | AB25: 0 | AC25: 0 | AD25: 93.97717792 | AE25: 78 | AF25: 485.4522292 | AG25: 93.97717792 | AI25: 563.4522292 | AJ25: 0 | AK25: 0 | AL25: 93.97717792 | AM25: 469.4750513 | AN25: 100 | AO25: 0
A26: 20160101:1145 | B26: 2016-01-01T20:00:00 | C26: 2016-01-01T20:00:00 | D26: 2016 | E26: 1 | F26: =LOOKUP(E26,Temperature!Q:Q,Temperature!R:R) -> 3 | G26: =LOOKUP(E26,Temperature!Q:Q,Temperature!S:S) -> 31 | H26: 2016-03-31 | I26: 0 | J26: 0 | K26: 25.82 | L26: 3.31 | M26: 0 | N26: 1200 | O26: 0 | P26: -0.2 | Q26: 0.0328 | R26: -0.00656 | S26: 0 | T26: 0 | U26: 100 | V26: 0 | W26: 0 | X26: 0 | Y26: 600 | Z26: 130.5249487 | AA26: 200 | AB26: 0 | AC26: 0 | AD26: 100 | AE26: 78 | AF26: 391.4750513 | AG26: 100 | AI26: 469.4750513 | AJ26: 0 | AK26: 0 | AL26: 100 | AM26: 369.4750513 | AN26: 100 | AO26: 0
A27: 20160101:1245 | B27: 2016-01-01T21:00:00 | C27: 2016-01-01T21:00:00 | D27: 2016 | E27: 1 | F27: =LOOKUP(E27,Temperature!Q:Q,Temperature!R:R) -> 3 | G27: =LOOKUP(E27,Temperature!Q:Q,Temperature!S:S) -> 31 | H27: 2016-03-31 | I27: 0 | J27: 0 | K27: 25.39 | L27: 3.17 | M27: 0 | N27: 1200 | O27: 0 | P27: -0.2 | Q27: 0.0156 | R27: -0.00312 | S27: 0 | T27: 0 | U27: 100 | V27: 0 | W27: 0 | X27: 0 | Y27: 600 | Z27: 230.5249487 | AA27: 200 | AB27: 0 | AC27: 0 | AD27: 100 | AE27: 78 | AF27: 291.4750513 | AG27: 100 | AI27: 369.4750513 | AJ27: 0 | AK27: 0 | AL27: 100 | AM27: 269.4750513 | AN27: 100 | AO27: 0
A28: 20160101:1345 | B28: 2016-01-01T22:00:00 | C28: 2016-01-01T22:00:00 | D28: 2016 | E28: 1 | F28: =LOOKUP(E28,Temperature!Q:Q,Temperature!R:R) -> 3 | G28: =LOOKUP(E28,Temperature!Q:Q,Temperature!S:S) -> 31 | H28: 2016-03-31 | I28: 0 | J28: 0 | K28: 25.11 | L28: 2.97 | M28: 0 | N28: 1200 | O28: 0 | P28: -0.2 | Q28: 0.0044 | R28: -0.00088 | S28: 0 | T28: 0 | U28: 100 | V28: 0 | W28: 0 | X28: 0 | Y28: 600 | Z28: 330.5249487 | AA28: 200 | AB28: 0 | AC28: 0 | AD28: 100 | AE28: 78 | AF28: 191.4750513 | AG28: 100 | AI28: 269.4750513 | AJ28: 0 | AK28: 0 | AL28: 100 | AM28: 169.4750513 | AN28: 100 | AO28: 0
A29: 20160101:1445 | B29: 2016-01-01T23:00:00 | C29: 2016-01-01T23:00:00 | D29: 2016 | E29: 1 | F29: =LOOKUP(E29,Temperature!Q:Q,Temperature!R:R) -> 3 | G29: =LOOKUP(E29,Temperature!Q:Q,Temperature!S:S) -> 31 | H29: 2016-03-31 | I29: 0 | J29: 0 | K29: 24.89 | L29: 2.69 | M29: 0 | N29: 1200 | O29: 0 | P29: -0.2 | Q29: -0.0044 | R29: 0.00088 | S29: 0 | T29: 0 | U29: 100 | V29: 0 | W29: 0 | X29: 0 | Y29: 600 | Z29: 430.5249487 | AA29: 200 | AB29: 0 | AC29: 0 | AD29: 100 | AE29: 78 | AF29: 91.47505129 | AG29: 91.47505129 | AI29: 169.4750513 | AJ29: 0 | AK29: 0 | AL29: 91.47505129 | AM29: 78 | AN29: 91.47505129 | AO29: 0
A30: 20160101:1545 | B30: 2016-01-02 | C30: 2016-01-02 | D30: 2016 | E30: 1 | F30: =LOOKUP(E30,Temperature!Q:Q,Temperature!R:R) -> 3 | G30: =LOOKUP(E30,Temperature!Q:Q,Temperature!S:S) -> 31 | H30: 2016-03-31 | I30: 0 | J30: 0 | K30: 24.77 | L30: 2.69 | M30: 0 | N30: 1200 | O30: 0 | P30: -0.2 | Q30: -0.0092 | R30: 0.00184 | S30: 0 | T30: 0 | U30: 100 | V30: 0 | W30: 0 | X30: 0 | Y30: 600 | Z30: 522 | AA30: 200 | AB30: 0 | AC30: 0 | AD30: 100 | AE30: 78 | AF30: 0 | AG30: 0 | AI30: 78 | AJ30: 0 | AK30: 0 | AL30: 0 | AM30: 78 | AN30: 0 | AO30: 0
A31: 20160101:1645 | B31: 2016-01-02T01:00:00 | C31: 2016-01-02T01:00:00 | D31: 2016 | E31: 1 | F31: =LOOKUP(E31,Temperature!Q:Q,Temperature!R:R) -> 3 | G31: =LOOKUP(E31,Temperature!Q:Q,Temperature!S:S) -> 31 | H31: 2016-03-31 | I31: 0 | J31: 0 | K31: 24.7 | L31: 2.76 | M31: 0 | N31: 1200 | O31: 0 | P31: -0.2 | Q31: -0.012 | R31: 0.0024 | S31: 0 | T31: 0 | U31: 100 | V31: 0 | W31: 0 | X31: 0 | Y31: 600 | Z31: 522 | AA31: 200 | AB31: 0 | AC31: 0 | AD31: 100 | AE31: 78 | AF31: 0 | AG31: 0 | AI31: 78 | AJ31: 0 | AK31: 0 | AL31: 0 | AM31: 78 | AN31: 0 | AO31: 0
A32: 20160101:1745 | B32: 2016-01-02T02:00:00 | C32: 2016-01-02T02:00:00 | D32: 2016 | E32: 1 | F32: =LOOKUP(E32,Temperature!Q:Q,Temperature!R:R) -> 3 | G32: =LOOKUP(E32,Temperature!Q:Q,Temperature!S:S) -> 31 | H32: 2016-03-31 | I32: 0 | J32: 0 | K32: 24.56 | L32: 2.76 | M32: 0 | N32: 1200 | O32: 0 | P32: -0.2 | Q32: -0.0176 | R32: 0.00352 | S32: 0 | T32: 0 | U32: 100 | V32: 0 | W32: 0 | X32: 0 | Y32: 600 | Z32: 522 | AA32: 200 | AB32: 0 | AC32: 0 | AD32: 100 | AE32: 78 | AF32: 0 | AG32: 0 | AI32: 78 | AJ32: 0 | AK32: 0 | AL32: 0 | AM32: 78 | AN32: 0 | AO32: 0
A33: 20160101:1845 | B33: 2016-01-02T03:00:00 | C33: 2016-01-02T03:00:00 | D33: 2016 | E33: 1 | F33: =LOOKUP(E33,Temperature!Q:Q,Temperature!R:R) -> 3 | G33: =LOOKUP(E33,Temperature!Q:Q,Temperature!S:S) -> 31 | H33: 2016-03-31 | I33: 0 | J33: 0 | K33: 24.6 | L33: 2.55 | M33: 0 | N33: 1200 | O33: 0 | P33: -0.2 | Q33: -0.016 | R33: 0.0032 | S33: 0 | T33: 0 | U33: 100 | V33: 0 | W33: 0 | X33: 0 | Y33: 600 | Z33: 522 | AA33: 200 | AB33: 0 | AC33: 0 | AD33: 100 | AE33: 78 | AF33: 0 | AG33: 0 | AI33: 78 | AJ33: 0 | AK33: 0 | AL33: 0 | AM33: 78 | AN33: 0 | AO33: 0
A34: 20160101:1945 | B34: 2016-01-02T04:00:00 | C34: 2016-01-02T04:00:00 | D34: 2016 | E34: 1 | F34: =LOOKUP(E34,Temperature!Q:Q,Temperature!R:R) -> 3 | G34: =LOOKUP(E34,Temperature!Q:Q,Temperature!S:S) -> 31 | H34: 2016-03-31 | I34: 0 | J34: 0 | K34: 24.45 | L34: 2.34 | M34: 0 | N34: 1200 | O34: 0 | P34: -0.2 | Q34: -0.022 | R34: 0.0044 | S34: 0 | T34: 0 | U34: 100 | V34: 0 | W34: 0 | X34: 0 | Y34: 600 | Z34: 522 | AA34: 200 | AB34: 0 | AC34: 0 | AD34: 100 | AE34: 78 | AF34: 0 | AG34: 0 | AI34: 78 | AJ34: 0 | AK34: 0 | AL34: 0 | AM34: 78 | AN34: 0 | AO34: 0
A35: 20160101:2045 | B35: 2016-01-02T05:00:00 | C35: 2016-01-02T05:00:00 | D35: 2016 | E35: 1 | F35: =LOOKUP(E35,Temperature!Q:Q,Temperature!R:R) -> 3 | G35: =LOOKUP(E35,Temperature!Q:Q,Temperature!S:S) -> 31 | H35: 2016-03-31 | I35: 0 | J35: 0 | K35: 24.28 | L35: 2.28 | M35: 0 | N35: 1200 | O35: 0 | P35: -0.2 | Q35: -0.0288 | R35: 0.00576 | S35: 0 | T35: 0 | U35: 100 | V35: 0 | W35: 0 | X35: 0 | Y35: 600 | Z35: 522 | AA35: 200 | AB35: 0 | AC35: 0 | AD35: 100 | AE35: 78 | AF35: 0 | AG35: 0 | AI35: 78 | AJ35: 0 | AK35: 0 | AL35: 0 | AM35: 78 | AN35: 0 | AO35: 0
A36: 20160101:2145 | B36: 2016-01-02T06:00:00 | C36: 2016-01-02T06:00:00 | D36: 2016 | E36: 1 | F36: =LOOKUP(E36,Temperature!Q:Q,Temperature!R:R) -> 3 | G36: =LOOKUP(E36,Temperature!Q:Q,Temperature!S:S) -> 31 | H36: 2016-03-31 | I36: 0 | J36: 0 | K36: 24.12 | L36: 2.34 | M36: 0 | N36: 1200 | O36: 0 | P36: -0.2 | Q36: -0.0352 | R36: 0.00704 | S36: 0 | T36: 0 | U36: 100 | V36: 0 | W36: 0 | X36: 0 | Y36: 600 | Z36: 522 | AA36: 200 | AB36: 0 | AC36: 0 | AD36: 100 | AE36: 78 | AF36: 0 | AG36: 0 | AI36: 78 | AJ36: 0 | AK36: 0 | AL36: 0 | AM36: 78 | AN36: 0 | AO36: 0
A37: 20160101:2245 | B37: 2016-01-02T07:00:00 | C37: 2016-01-02T07:00:00 | D37: 2016 | E37: 1 | F37: =LOOKUP(E37,Temperature!Q:Q,Temperature!R:R) -> 3 | G37: =LOOKUP(E37,Temperature!Q:Q,Temperature!S:S) -> 31 | H37: 2016-03-31 | I37: 0 | J37: 0 | K37: 24.09 | L37: 2.34 | M37: 0 | N37: 1200 | O37: 0 | P37: -0.2 | Q37: -0.0364 | R37: 0.00728 | S37: 0 | T37: 0 | U37: 100 | V37: 0 | W37: 0 | X37: 0 | Y37: 600 | Z37: 522 | AA37: 200 | AB37: 0 | AC37: 0 | AD37: 100 | AE37: 78 | AF37: 0 | AG37: 0 | AI37: 78 | AJ37: 0 | AK37: 0 | AL37: 0 | AM37: 78 | AN37: 0 | AO37: 0
A38: 20160101:2345 | B38: 2016-01-02T08:00:00 | C38: 2016-01-02T08:00:00 | D38: 2016 | E38: 1 | F38: =LOOKUP(E38,Temperature!Q:Q,Temperature!R:R) -> 3 | G38: =LOOKUP(E38,Temperature!Q:Q,Temperature!S:S) -> 31 | H38: 2016-03-31 | I38: 1309.85 | J38: 2.48 | K38: 24.04 | L38: 2.34 | M38: 0 | N38: 1200 | O38: 1000 | P38: -0.2 | Q38: -0.0384 | R38: 0.00768 | S38: 1007.68 | T38: 886.7584 | U38: 100 | V38: 201.536 | W38: 100 | X38: 101.536 | Y38: 600 | Z38: 522 | AA38: 200 | AB38: 101.536 | AC38: 6.09216 | AD38: 0 | AE38: 78 | AF38: 0 | AG38: 0 | AI38: 78 | AJ38: 101.536 | AK38: 6.09216 | AL38: 0 | AM38: 173.44384 | AN38: 100 | AO38: 0
A39: 20160102:0045 | B39: 2016-01-02T09:00:00 | C39: 2016-01-02T09:00:00 | D39: 2016 | E39: 1 | F39: =LOOKUP(E39,Temperature!Q:Q,Temperature!R:R) -> 3 | G39: =LOOKUP(E39,Temperature!Q:Q,Temperature!S:S) -> 31 | H39: 2016-03-31 | I39: 360.23 | J39: 16 | K39: 25.03 | L39: 2.55 | M39: 0 | N39: 1200 | O39: 360.23 | P39: -0.2 | Q39: 0.0012 | R39: -0.00024 | S39: 360.1435448 | T39: 316.9263194 | U39: 100 | V39: 72.02870896 | W39: 72.02870896 | X39: 0 | Y39: 600 | Z39: 426.55616 | AA39: 200 | AB39: 0 | AC39: 0 | AD39: 27.97129104 | AE39: 78 | AF39: 95.44384 | AG39: 27.97129104 | AI39: 173.44384 | AJ39: 0 | AK39: 0 | AL39: 27.97129104 | AM39: 145.472549 | AN39: 100 | AO39: 0
A40: 20160102:0145 | B40: 2016-01-02T10:00:00 | C40: 2016-01-02T10:00:00 | D40: 2016 | E40: 1 | F40: =LOOKUP(E40,Temperature!Q:Q,Temperature!R:R) -> 3 | G40: =LOOKUP(E40,Temperature!Q:Q,Temperature!S:S) -> 31 | H40: 2016-03-31 | I40: 872.83 | J40: 29.08 | K40: 26.29 | L40: 4.41 | M40: 0 | N40: 1200 | O40: 872.83 | P40: -0.2 | Q40: 0.0516 | R40: -0.01032 | S40: 863.8223944 | T40: 760.1637071 | U40: 100 | V40: 172.7644789 | W40: 100 | X40: 72.76447888 | Y40: 600 | Z40: 454.527451 | AA40: 200 | AB40: 72.76447888 | AC40: 4.365868733 | AD40: 0 | AE40: 78 | AF40: 63.10668023 | AG40: 0 | AI40: 145.472549 | AJ40: 72.76447888 | AK40: 4.365868733 | AL40: 0 | AM40: 213.8711591 | AN40: 100 | AO40: 0
A41: 20160102:0245 | B41: 2016-01-02T11:00:00 | C41: 2016-01-02T11:00:00 | D41: 2016 | E41: 1 | F41: =LOOKUP(E41,Temperature!Q:Q,Temperature!R:R) -> 3 | G41: =LOOKUP(E41,Temperature!Q:Q,Temperature!S:S) -> 31 | H41: 2016-03-31 | I41: 942.73 | J41: 41.3 | K41: 27.21 | L41: 4.41 | M41: 0 | N41: 1200 | O41: 942.73 | P41: -0.2 | Q41: 0.0884 | R41: -0.01768 | S41: 926.0625336 | T41: 814.9350296 | U41: 100 | V41: 185.2125067 | W41: 100 | X41: 85.21250672 | Y41: 600 | Z41: 386.1288409 | AA41: 200 | AB41: 85.21250672 | AC41: 5.112750403 | AD41: 0 | AE41: 78 | AF41: 130.7584087 | AG41: 0 | AI41: 213.8711591 | AJ41: 85.21250672 | AK41: 5.112750403 | AL41: 0 | AM41: 293.9709154 | AN41: 100 | AO41: 0
A42: 20160102:0345 | B42: 2016-01-02T12:00:00 | C42: 2016-01-02T12:00:00 | D42: 2016 | E42: 1 | F42: =LOOKUP(E42,Temperature!Q:Q,Temperature!R:R) -> 3 | G42: =LOOKUP(E42,Temperature!Q:Q,Temperature!S:S) -> 31 | H42: 2016-03-31 | I42: 1014.67 | J42: 51.81 | K42: 28.16 | L42: 4.34 | M42: 0 | N42: 1200 | O42: 1014.67 | P42: -0.2 | Q42: 0.1264 | R42: -0.02528 | S42: 989.0191424 | T42: 870.3368453 | U42: 100 | V42: 197.8038285 | W42: 100 | X42: 97.80382848 | Y42: 600 | Z42: 306.0290846 | AA42: 200 | AB42: 97.80382848 | AC42: 5.868229709 | AD42: 0 | AE42: 78 | AF42: 210.1026857 | AG42: 0 | AI42: 293.9709154 | AJ42: 97.80382848 | AK42: 5.868229709 | AL42: 0 | AM42: 385.9065142 | AN42: 100 | AO42: 0
A43: 20160102:0445 | B43: 2016-01-02T13:00:00 | C43: 2016-01-02T13:00:00 | D43: 2016 | E43: 1 | F43: =LOOKUP(E43,Temperature!Q:Q,Temperature!R:R) -> 3 | G43: =LOOKUP(E43,Temperature!Q:Q,Temperature!S:S) -> 31 | H43: 2016-03-31 | I43: 1046.27 | J43: 58.76 | K43: 28.81 | L43: 4.41 | M43: 0 | N43: 1200 | O43: 1046.27 | P43: -0.2 | Q43: 0.1524 | R43: -0.03048 | S43: 1014.37969 | T43: 892.6541276 | U43: 100 | V43: 202.8759381 | W43: 100 | X43: 102.8759381 | Y43: 600 | Z43: 214.0934858 | AA43: 200 | AB43: 102.8759381 | AC43: 6.172556285 | AD43: 0 | AE43: 78 | AF43: 301.7339579 | AG43: 0 | AI43: 385.9065142 | AJ43: 102.8759381 | AK43: 6.172556285 | AL43: 0 | AM43: 482.609896 | AN43: 100 | AO43: 0
A44: 20160102:0545 | B44: 2016-01-02T14:00:00 | C44: 2016-01-02T14:00:00 | D44: 2016 | E44: 1 | F44: =LOOKUP(E44,Temperature!Q:Q,Temperature!R:R) -> 3 | G44: =LOOKUP(E44,Temperature!Q:Q,Temperature!S:S) -> 31 | H44: 2016-03-31 | I44: 1079.99 | J44: 59.61 | K44: 28.86 | L44: 4.41 | M44: 0 | N44: 1200 | O44: 1079.99 | P44: -0.2 | Q44: 0.1544 | R44: -0.03088 | S44: 1046.639909 | T44: 921.0431197 | U44: 100 | V44: 209.3279818 | W44: 100 | X44: 109.3279818 | Y44: 600 | Z44: 117.390104 | AA44: 200 | AB44: 109.3279818 | AC44: 6.559678906 | AD44: 0 | AE44: 78 | AF44: 398.0502171 | AG44: 0 | AI44: 482.609896 | AJ44: 109.3279818 | AK44: 6.559678906 | AL44: 0 | AM44: 585.3781988 | AN44: 100 | AO44: 0
A45: 20160102:0645 | B45: 2016-01-02T15:00:00 | C45: 2016-01-02T15:00:00 | D45: 2016 | E45: 1 | F45: =LOOKUP(E45,Temperature!Q:Q,Temperature!R:R) -> 3 | G45: =LOOKUP(E45,Temperature!Q:Q,Temperature!S:S) -> 31 | H45: 2016-03-31 | I45: 1052.67 | J45: 53.92 | K45: 29.22 | L45: 4.14 | M45: 0 | N45: 1200 | O45: 1052.67 | P45: -0.2 | Q45: 0.1688 | R45: -0.03376 | S45: 1017.131861 | T45: 895.0760375 | U45: 100 | V45: 203.4263722 | W45: 100 | X45: 103.4263722 | Y45: 600 | Z45: 14.62180116 | AA45: 200 | AB45: 14.62180116 | AC45: 0.8773080693 | AD45: 0 | AE45: 78 | AF45: 506.5008908 | AG45: 0 | AI45: 585.3781988 | AJ45: 14.62180116 | AK45: 0.8773080693 | AL45: 0 | AM45: 599.1226919 | AN45: 100 | AO45: 88.804571
A46: 20160102:0745 | B46: 2016-01-02T16:00:00 | C46: 2016-01-02T16:00:00 | D46: 2016 | E46: 1 | F46: =LOOKUP(E46,Temperature!Q:Q,Temperature!R:R) -> 3 | G46: =LOOKUP(E46,Temperature!Q:Q,Temperature!S:S) -> 31 | H46: 2016-03-31 | I46: 987.91 | J46: 44.07 | K46: 28.94 | L46: 3.93 | M46: 0 | N46: 1200 | O46: 987.91 | P46: -0.2 | Q46: 0.1576 | R46: -0.03152 | S46: 956.7710768 | T46: 841.9585476 | U46: 100 | V46: 191.3542154 | W46: 100 | X46: 91.35421536 | Y46: 600 | Z46: 0.8773080693 | AA46: 200 | AB46: 0.8773080693 | AC46: 0.05263848416 | AD46: 0 | AE46: 78 | AF46: 521.0700534 | AG46: 0 | AI46: 599.1226919 | AJ46: 0.8773080693 | AK46: 0.05263848416 | AL46: 0 | AM46: 599.9473615 | AN46: 100 | AO46: 90.47690729
A47: 20160102:0845 | B47: 2016-01-02T17:00:00 | C47: 2016-01-02T17:00:00 | D47: 2016 | E47: 1 | F47: =LOOKUP(E47,Temperature!Q:Q,Temperature!R:R) -> 3 | G47: =LOOKUP(E47,Temperature!Q:Q,Temperature!S:S) -> 31 | H47: 2016-03-31 | I47: 569.69 | J47: 32.16 | K47: 28.21 | L47: 3.66 | M47: 0 | N47: 1200 | O47: 569.69 | P47: -0.2 | Q47: 0.1284 | R47: -0.02568 | S47: 555.0603608 | T47: 488.4531175 | U47: 100 | V47: 111.0120722 | W47: 100 | X47: 11.01207216 | Y47: 600 | Z47: 0.05263848416 | AA47: 200 | AB47: 0.05263848416 | AC47: 0.00315830905 | AD47: 0 | AE47: 78 | AF47: 521.9442032 | AG47: 0 | AI47: 599.9473615 | AJ47: 0.05263848416 | AK47: 0.00315830905 | AL47: 0 | AM47: 599.9968417 | AN47: 100 | AO47: 10.95943368
A48: 20160102:0945 | B48: 2016-01-02T18:00:00 | C48: 2016-01-02T18:00:00 | D48: 2016 | E48: 1 | F48: =LOOKUP(E48,Temperature!Q:Q,Temperature!R:R) -> 3 | G48: =LOOKUP(E48,Temperature!Q:Q,Temperature!S:S) -> 31 | H48: 2016-03-31 | I48: 464.37 | J48: 19.24 | K48: 27.52 | L48: 3.24 | M48: 0 | N48: 1200 | O48: 464.37 | P48: -0.2 | Q48: 0.1008 | R48: -0.02016 | S48: 455.0083008 | T48: 400.4073047 | U48: 100 | V48: 91.00166016 | W48: 91.00166016 | X48: 0 | Y48: 600 | Z48: 0.003158309049 | AA48: 200 | AB48: 0 | AC48: 0 | AD48: 8.99833984 | AE48: 78 | AF48: 521.9968417 | AG48: 8.99833984 | AI48: 599.9968417 | AJ48: 0 | AK48: 0 | AL48: 8.99833984 | AM48: 590.9985019 | AN48: 100 | AO48: 0
A49: 20160102:1045 | B49: 2016-01-02T19:00:00 | C49: 2016-01-02T19:00:00 | D49: 2016 | E49: 1 | F49: =LOOKUP(E49,Temperature!Q:Q,Temperature!R:R) -> 3 | G49: =LOOKUP(E49,Temperature!Q:Q,Temperature!S:S) -> 31 | H49: 2016-03-31 | I49: 18.62 | J49: 5.8 | K49: 26.57 | L49: 2.69 | M49: 0 | N49: 1200 | O49: 18.62 | P49: -0.2 | Q49: 0.0628 | R49: -0.01256 | S49: 18.3861328 | T49: 16.17979686 | U49: 100 | V49: 3.67722656 | W49: 3.67722656 | X49: 0 | Y49: 600 | Z49: 9.001498149 | AA49: 200 | AB49: 0 | AC49: 0 | AD49: 96.32277344 | AE49: 78 | AF49: 512.9985019 | AG49: 96.32277344 | AI49: 590.9985019 | AJ49: 0 | AK49: 0 | AL49: 96.32277344 | AM49: 494.6757284 | AN49: 100 | AO49: 0
A50: 20160102:1145 | B50: 2016-01-02T20:00:00 | C50: 2016-01-02T20:00:00 | D50: 2016 | E50: 1 | F50: =LOOKUP(E50,Temperature!Q:Q,Temperature!R:R) -> 3 | G50: =LOOKUP(E50,Temperature!Q:Q,Temperature!S:S) -> 31 | H50: 2016-03-31 | I50: 0 | J50: 0 | K50: 25.81 | L50: 2.41 | M50: 0 | N50: 1200 | O50: 0 | P50: -0.2 | Q50: 0.0324 | R50: -0.00648 | S50: 0 | T50: 0 | U50: 100 | V50: 0 | W50: 0 | X50: 0 | Y50: 600 | Z50: 105.3242716 | AA50: 200 | AB50: 0 | AC50: 0 | AD50: 100 | AE50: 78 | AF50: 416.6757284 | AG50: 100 | AI50: 494.6757284 | AJ50: 0 | AK50: 0 | AL50: 100 | AM50: 394.6757284 | AN50: 100 | AO50: 0
A51: 20160102:1245 | B51: 2016-01-02T21:00:00 | C51: 2016-01-02T21:00:00 | D51: 2016 | E51: 1 | F51: =LOOKUP(E51,Temperature!Q:Q,Temperature!R:R) -> 3 | G51: =LOOKUP(E51,Temperature!Q:Q,Temperature!S:S) -> 31 | H51: 2016-03-31 | I51: 0 | J51: 0 | K51: 25.22 | L51: 2.14 | M51: 0 | N51: 1200 | O51: 0 | P51: -0.2 | Q51: 0.0088 | R51: -0.00176 | S51: 0 | T51: 0 | U51: 100 | V51: 0 | W51: 0 | X51: 0 | Y51: 600 | Z51: 205.3242716 | AA51: 200 | AB51: 0 | AC51: 0 | AD51: 100 | AE51: 78 | AF51: 316.6757284 | AG51: 100 | AI51: 394.6757284 | AJ51: 0 | AK51: 0 | AL51: 100 | AM51: 294.6757284 | AN51: 100 | AO51: 0
A52: 20160102:1345 | B52: 2016-01-02T22:00:00 | C52: 2016-01-02T22:00:00 | D52: 2016 | E52: 1 | F52: =LOOKUP(E52,Temperature!Q:Q,Temperature!R:R) -> 3 | G52: =LOOKUP(E52,Temperature!Q:Q,Temperature!S:S) -> 31 | H52: 2016-03-31 | I52: 0 | J52: 0 | K52: 24.81 | L52: 1.86 | M52: 0 | N52: 1200 | O52: 0 | P52: -0.2 | Q52: -0.0076 | R52: 0.00152 | S52: 0 | T52: 0 | U52: 100 | V52: 0 | W52: 0 | X52: 0 | Y52: 600 | Z52: 305.3242716 | AA52: 200 | AB52: 0 | AC52: 0 | AD52: 100 | AE52: 78 | AF52: 216.6757284 | AG52: 100 | AI52: 294.6757284 | AJ52: 0 | AK52: 0 | AL52: 100 | AM52: 194.6757284 | AN52: 100 | AO52: 0
A53: 20160102:1445 | B53: 2016-01-02T23:00:00 | C53: 2016-01-02T23:00:00 | D53: 2016 | E53: 1 | F53: =LOOKUP(E53,Temperature!Q:Q,Temperature!R:R) -> 3 | G53: =LOOKUP(E53,Temperature!Q:Q,Temperature!S:S) -> 31 | H53: 2016-03-31 | I53: 0 | J53: 0 | K53: 24.44 | L53: 1.59 | M53: 0 | N53: 1200 | O53: 0 | P53: -0.2 | Q53: -0.0224 | R53: 0.00448 | S53: 0 | T53: 0 | U53: 100 | V53: 0 | W53: 0 | X53: 0 | Y53: 600 | Z53: 405.3242716 | AA53: 200 | AB53: 0 | AC53: 0 | AD53: 100 | AE53: 78 | AF53: 116.6757284 | AG53: 100 | AI53: 194.6757284 | AJ53: 0 | AK53: 0 | AL53: 100 | AM53: 94.67572841 | AN53: 100 | AO53: 0
A54: 20160102:1545 | B54: 2016-01-03 | C54: 2016-01-03 | D54: =YEAR(B54) -> 2016 | E54: 1 | F54: =LOOKUP(E54,Temperature!Q:Q,Temperature!R:R) -> 3 | G54: =LOOKUP(E54,Temperature!Q:Q,Temperature!S:S) -> 31 | H54: 2016-03-31 | I54: 0 | J54: 0 | K54: 24.05 | L54: 1.38 | M54: 0 | N54: 1200 | O54: 0 | P54: -0.2 | Q54: -0.038 | R54: 0.0076 | S54: 0 | T54: 0 | U54: 100 | V54: 0 | W54: 0 | X54: 0 | Y54: 600 | Z54: 505.3242716 | AA54: 200 | AB54: 0 | AC54: 0 | AD54: 100 | AE54: 78 | AF54: 16.67572841 | AG54: 16.67572841 | AI54: 94.67572841 | AJ54: 0 | AK54: 0 | AL54: 16.67572841 | AM54: 78 | AN54: =W54+AL54 -> 16.67572841 | AO54: 0
A55: 20160102:1645 | B55: =C55 -> 2016-01-03T01:00:00 | C55: 2016-01-03T01:00:00 | D55: 2016 | E55: =MONTH(B55) -> 1 | F55: =LOOKUP(E55,Temperature!Q:Q,Temperature!R:R) -> 3 | G55: =LOOKUP(E55,Temperature!Q:Q,Temperature!S:S) -> 31 | H55: =DATE(D55,F55,G55) -> 2016-03-31 | I55: 0 | J55: 0 | K55: 23.61 | L55: 1.1 | M55: 0 | N55: =N54 -> 1200 | O55: =IF(I55>N55,1000,I55) -> 0 | P55: =$P$6 -> -0.2 | Q55: =(K55-$Q$6)/$Q$6 -> -0.0556 | R55: =P55*Q55 -> 0.01112 | S55: =O55*(1+R55) -> 0 | T55: =S55*(1-$T$6) -> 0 | U55: =$U$6 -> 100 | V55: =$V$6*S55/1000 -> 0 | W55: =MIN(V55,U55) -> 0 | X55: =V55-W55 -> 0 | Y55: =$Y$6 -> 600 | Z55: 522 | AA55: =$AA$6 -> 200 | AB55: =MIN(AA55,Z55,X55) -> 0 | AC55: =(1-$AC$6)*AB55 -> 0 | AD55: =U55-W55 -> 100 | AE55: =MAX($Y$13*($AE$6),0) -> 78 | AF55: =MAX(AI55-AE55-AC55,0) -> 0 | AG55: =MIN($AG$6,AF55,AD55) -> 0 | AI55: 78 | AJ55: =AB55 -> 0 | AK55: =AC55 -> 0 | AL55: =AG55 -> 0 | AM55: =AI55+AJ55-AL55-AK55 -> 78 | AN55: 0 | AO55: =V55-W55-AJ55 -> 0
A56: 20160102:1745 | B56: 2016-01-03T02:00:00 | C56: 2016-01-03T02:00:00 | D56: 2016 | E56: 1 | F56: =LOOKUP(E56,Temperature!Q:Q,Temperature!R:R) -> 3 | G56: =LOOKUP(E56,Temperature!Q:Q,Temperature!S:S) -> 31 | H56: 2016-03-31 | I56: 0 | J56: 0 | K56: 22.99 | L56: 0.9 | M56: 0 | N56: 1200 | O56: 0 | P56: -0.2 | Q56: -0.0804 | R56: 0.01608 | S56: 0 | T56: 0 | U56: 100 | V56: 0 | W56: 0 | X56: 0 | Y56: 600 | Z56: 522 | AA56: 200 | AB56: 0 | AC56: 0 | AD56: 100 | AE56: 78 | AF56: 0 | AG56: 0 | AI56: 78 | AJ56: 0 | AK56: 0 | AL56: 0 | AM56: 78 | AN56: 0 | AO56: 0
A57: 20160102:1845 | B57: 2016-01-03T03:00:00 | C57: 2016-01-03T03:00:00 | D57: 2016 | E57: 1 | F57: =LOOKUP(E57,Temperature!Q:Q,Temperature!R:R) -> 3 | G57: =LOOKUP(E57,Temperature!Q:Q,Temperature!S:S) -> 31 | H57: 2016-03-31 | I57: 0 | J57: 0 | K57: 22.98 | L57: 0.9 | M57: 0 | N57: 1200 | O57: 0 | P57: -0.2 | Q57: -0.0808 | R57: 0.01616 | S57: 0 | T57: 0 | U57: 100 | V57: 0 | W57: 0 | X57: 0 | Y57: 600 | Z57: 522 | AA57: 200 | AB57: 0 | AC57: 0 | AD57: 100 | AE57: 78 | AF57: 0 | AG57: 0 | AI57: 78 | AJ57: 0 | AK57: 0 | AL57: 0 | AM57: 78 | AN57: 0 | AO57: 0
A58: 20160102:1945 | B58: 2016-01-03T04:00:00 | C58: 2016-01-03T04:00:00 | D58: 2016 | E58: 1 | F58: =LOOKUP(E58,Temperature!Q:Q,Temperature!R:R) -> 3 | G58: =LOOKUP(E58,Temperature!Q:Q,Temperature!S:S) -> 31 | H58: 2016-03-31 | I58: 0 | J58: 0 | K58: 22.85 | L58: 0.76 | M58: 0 | N58: 1200 | O58: 0 | P58: -0.2 | Q58: -0.086 | R58: 0.0172 | S58: 0 | T58: 0 | U58: 100 | V58: 0 | W58: 0 | X58: 0 | Y58: 600 | Z58: 522 | AA58: 200 | AB58: 0 | AC58: 0 | AD58: 100 | AE58: 78 | AF58: 0 | AG58: 0 | AI58: 78 | AJ58: 0 | AK58: 0 | AL58: 0 | AM58: 78 | AN58: 0 | AO58: 0
A59: 20160102:2045 | B59: 2016-01-03T05:00:00 | C59: 2016-01-03T05:00:00 | D59: 2016 | E59: 1 | F59: =LOOKUP(E59,Temperature!Q:Q,Temperature!R:R) -> 3 | G59: =LOOKUP(E59,Temperature!Q:Q,Temperature!S:S) -> 31 | H59: 2016-03-31 | I59: 0 | J59: 0 | K59: 22.45 | L59: 0.76 | M59: 0 | N59: 1200 | O59: 0 | P59: -0.2 | Q59: -0.102 | R59: 0.0204 | S59: 0 | T59: 0 | U59: 100 | V59: 0 | W59: 0 | X59: 0 | Y59: 600 | Z59: 522 | AA59: 200 | AB59: 0 | AC59: 0 | AD59: 100 | AE59: 78 | AF59: 0 | AG59: 0 | AI59: 78 | AJ59: 0 | AK59: 0 | AL59: 0 | AM59: 78 | AN59: 0 | AO59: 0
A60: 20160102:2145 | B60: 2016-01-03T06:00:00 | C60: 2016-01-03T06:00:00 | D60: 2016 | E60: 1 | F60: =LOOKUP(E60,Temperature!Q:Q,Temperature!R:R) -> 3 | G60: =LOOKUP(E60,Temperature!Q:Q,Temperature!S:S) -> 31 | H60: 2016-03-31 | I60: 0 | J60: 0 | K60: 22.14 | L60: 0.76 | M60: 0 | N60: 1200 | O60: 0 | P60: -0.2 | Q60: -0.1144 | R60: 0.02288 | S60: 0 | T60: 0 | U60: 100 | V60: 0 | W60: 0 | X60: 0 | Y60: 600 | Z60: 522 | AA60: 200 | AB60: 0 | AC60: 0 | AD60: 100 | AE60: 78 | AF60: 0 | AG60: 0 | AI60: 78 | AJ60: 0 | AK60: 0 | AL60: 0 | AM60: 78 | AN60: 0 | AO60: 0
A61: 20160102:2245 | B61: 2016-01-03T07:00:00 | C61: 2016-01-03T07:00:00 | D61: 2016 | E61: 1 | F61: =LOOKUP(E61,Temperature!Q:Q,Temperature!R:R) -> 3 | G61: =LOOKUP(E61,Temperature!Q:Q,Temperature!S:S) -> 31 | H61: 2016-03-31 | I61: 0 | J61: 0 | K61: 22 | L61: 0.76 | M61: 0 | N61: 1200 | O61: 0 | P61: -0.2 | Q61: -0.12 | R61: 0.024 | S61: 0 | T61: 0 | U61: 100 | V61: 0 | W61: 0 | X61: 0 | Y61: 600 | Z61: 522 | AA61: 200 | AB61: 0 | AC61: 0 | AD61: 100 | AE61: 78 | AF61: 0 | AG61: 0 | AI61: 78 | AJ61: 0 | AK61: 0 | AL61: 0 | AM61: 78 | AN61: 0 | AO61: 0
A62: 20160102:2345 | B62: 2016-01-03T08:00:00 | C62: 2016-01-03T08:00:00 | D62: 2016 | E62: 1 | F62: =LOOKUP(E62,Temperature!Q:Q,Temperature!R:R) -> 3 | G62: =LOOKUP(E62,Temperature!Q:Q,Temperature!S:S) -> 31 | H62: 2016-03-31 | I62: 457.56 | J62: 2.39 | K62: 22.63 | L62: 0.41 | M62: 0 | N62: 1200 | O62: 457.56 | P62: -0.2 | Q62: -0.0948 | R62: 0.01896 | S62: 466.2353376 | T62: 410.2870971 | U62: 100 | V62: 93.24706752 | W62: 93.24706752 | X62: 0 | Y62: 600 | Z62: 522 | AA62: 200 | AB62: 0 | AC62: 0 | AD62: 6.75293248 | AE62: 78 | AF62: 0 | AG62: 0 | AI62: 78 | AJ62: 0 | AK62: 0 | AL62: 0 | AM62: 78 | AN62: 93.24706752 | AO62: 0
A63: 20160103:0045 | B63: 2016-01-03T09:00:00 | C63: 2016-01-03T09:00:00 | D63: 2016 | E63: 1 | F63: =LOOKUP(E63,Temperature!Q:Q,Temperature!R:R) -> 3 | G63: =LOOKUP(E63,Temperature!Q:Q,Temperature!S:S) -> 31 | H63: 2016-03-31 | I63: 62.74 | J63: 15.92 | K63: 24.8 | L63: 0.34 | M63: 0 | N63: 1200 | O63: 62.74 | P63: -0.2 | Q63: -0.008 | R63: 0.0016 | S63: 62.840384 | T63: 55.29953792 | U63: 100 | V63: 12.5680768 | W63: 12.5680768 | X63: 0 | Y63: 600 | Z63: 522 | AA63: 200 | AB63: 0 | AC63: 0 | AD63: 87.4319232 | AE63: 78 | AF63: 0 | AG63: 0 | AI63: 78 | AJ63: 0 | AK63: 0 | AL63: 0 | AM63: 78 | AN63: 12.5680768 | AO63: 0
A64: 20160103:0145 | B64: 2016-01-03T10:00:00 | C64: 2016-01-03T10:00:00 | D64: 2016 | E64: 1 | F64: =LOOKUP(E64,Temperature!Q:Q,Temperature!R:R) -> 3 | G64: =LOOKUP(E64,Temperature!Q:Q,Temperature!S:S) -> 31 | H64: 2016-03-31 | I64: 120.03 | J64: 29.02 | K64: 26.55 | L64: 1.59 | M64: 0 | N64: 1200 | O64: 120.03 | P64: -0.2 | Q64: 0.062 | R64: -0.0124 | S64: 118.541628 | T64: 104.3166326 | U64: 100 | V64: 23.7083256 | W64: 23.7083256 | X64: 0 | Y64: 600 | Z64: 522 | AA64: 200 | AB64: 0 | AC64: 0 | AD64: 76.2916744 | AE64: 78 | AF64: 0 | AG64: 0 | AI64: 78 | AJ64: 0 | AK64: 0 | AL64: 0 | AM64: 78 | AN64: 23.7083256 | AO64: 0
A65: 20160103:0245 | B65: 2016-01-03T11:00:00 | C65: 2016-01-03T11:00:00 | D65: 2016 | E65: 1 | F65: =LOOKUP(E65,Temperature!Q:Q,Temperature!R:R) -> 3 | G65: =LOOKUP(E65,Temperature!Q:Q,Temperature!S:S) -> 31 | H65: 2016-03-31 | I65: 879.34 | J65: 41.27 | K65: 27.83 | L65: 2.34 | M65: 0 | N65: 1200 | O65: 879.34 | P65: -0.2 | Q65: 0.1132 | R65: -0.02264 | S65: 859.4317424 | T65: 756.2999333 | U65: 100 | V65: 171.8863485 | W65: 100 | X65: 71.88634848 | Y65: 600 | Z65: 522 | AA65: 200 | AB65: 71.88634848 | AC65: 4.313180909 | AD65: 0 | AE65: 78 | AF65: 0 | AG65: 0 | AI65: 78 | AJ65: 71.88634848 | AK65: 4.313180909 | AL65: 0 | AM65: 145.5731676 | AN65: 100 | AO65: 0
A66: 20160103:0345 | B66: 2016-01-03T12:00:00 | C66: 2016-01-03T12:00:00 | D66: 2016 | E66: 1 | F66: =LOOKUP(E66,Temperature!Q:Q,Temperature!R:R) -> 3 | G66: =LOOKUP(E66,Temperature!Q:Q,Temperature!S:S) -> 31 | H66: 2016-03-31 | I66: 916.05 | J66: 51.81 | K66: 28.44 | L66: 2.9 | M66: 0 | N66: 1200 | O66: 916.05 | P66: -0.2 | Q66: 0.1376 | R66: -0.02752 | S66: 890.840304 | T66: 783.9394675 | U66: 100 | V66: 178.1680608 | W66: 100 | X66: 78.1680608 | Y66: 600 | Z66: 454.4268324 | AA66: 200 | AB66: 78.1680608 | AC66: 4.690083648 | AD66: 0 | AE66: 78 | AF66: 62.88308392 | AG66: 0 | AI66: 145.5731676 | AJ66: 78.1680608 | AK66: 4.690083648 | AL66: 0 | AM66: 219.0511447 | AN66: 100 | AO66: 0
A67: 20160103:0445 | B67: 2016-01-03T13:00:00 | C67: 2016-01-03T13:00:00 | D67: 2016 | E67: 1 | F67: =LOOKUP(E67,Temperature!Q:Q,Temperature!R:R) -> 3 | G67: =LOOKUP(E67,Temperature!Q:Q,Temperature!S:S) -> 31 | H67: 2016-03-31 | I67: 977.85 | J67: 58.82 | K67: 28.58 | L67: 3.31 | M67: 0 | N67: 1200 | O67: 977.85 | P67: -0.2 | Q67: 0.1432 | R67: -0.02864 | S67: 949.844376 | T67: 835.8630509 | U67: 100 | V67: 189.9688752 | W67: 100 | X67: 89.9688752 | Y67: 600 | Z67: 380.9488553 | AA67: 200 | AB67: 89.9688752 | AC67: 5.398132512 | AD67: 0 | AE67: 78 | AF67: 135.6530122 | AG67: 0 | AI67: 219.0511447 | AJ67: 89.9688752 | AK67: 5.398132512 | AL67: 0 | AM67: 303.6218874 | AN67: 100 | AO67: 0
A68: 20160103:0545 | B68: 2016-01-03T14:00:00 | C68: 2016-01-03T14:00:00 | D68: 2016 | E68: 1 | F68: =LOOKUP(E68,Temperature!Q:Q,Temperature!R:R) -> 3 | G68: =LOOKUP(E68,Temperature!Q:Q,Temperature!S:S) -> 31 | H68: 2016-03-31 | I68: 1047.32 | J68: 59.72 | K68: 28.44 | L68: 3.59 | M68: 0 | N68: 1200 | O68: 1047.32 | P68: -0.2 | Q68: 0.1376 | R68: -0.02752 | S68: 1018.497754 | T68: 896.2780232 | U68: 100 | V68: 203.6995507 | W68: 100 | X68: 103.6995507 | Y68: 600 | Z68: 296.3781126 | AA68: 200 | AB68: 103.6995507 | AC68: 6.221973043 | AD68: 0 | AE68: 78 | AF68: 219.3999144 | AG68: 0 | AI68: 303.6218874 | AJ68: 103.6995507 | AK68: 6.221973043 | AL68: 0 | AM68: 401.0994651 | AN68: 100 | AO68: 0
A69: 20160103:0645 | B69: 2016-01-03T15:00:00 | C69: 2016-01-03T15:00:00 | D69: 2016 | E69: 1 | F69: =LOOKUP(E69,Temperature!Q:Q,Temperature!R:R) -> 3 | G69: =LOOKUP(E69,Temperature!Q:Q,Temperature!S:S) -> 31 | H69: 2016-03-31 | I69: 975.08 | J69: 54.06 | K69: 28.53 | L69: 3.17 | M69: 0 | N69: 1200 | O69: 975.08 | P69: -0.2 | Q69: 0.1412 | R69: -0.02824 | S69: 947.5437408 | T69: 833.8384919 | U69: 100 | V69: 189.5087482 | W69: 100 | X69: 89.50874816 | Y69: 600 | Z69: 198.9005349 | AA69: 200 | AB69: 89.50874816 | AC69: 5.37052489 | AD69: 0 | AE69: 78 | AF69: 317.7289402 | AG69: 0 | AI69: 401.0994651 | AJ69: 89.50874816 | AK69: 5.37052489 | AL69: 0 | AM69: 485.2376884 | AN69: 100 | AO69: 0
A70: 20160103:0745 | B70: 2016-01-03T16:00:00 | C70: 2016-01-03T16:00:00 | D70: 2016 | E70: 1 | F70: =LOOKUP(E70,Temperature!Q:Q,Temperature!R:R) -> 3 | G70: =LOOKUP(E70,Temperature!Q:Q,Temperature!S:S) -> 31 | H70: 2016-03-31 | I70: 838.15 | J70: 44.21 | K70: 28.34 | L70: 3.17 | M70: 0 | N70: 1200 | O70: 838.15 | P70: -0.2 | Q70: 0.1336 | R70: -0.02672 | S70: 815.754632 | T70: 717.8640762 | U70: 100 | V70: 163.1509264 | W70: 100 | X70: 63.1509264 | Y70: 600 | Z70: 114.7623116 | AA70: 200 | AB70: 63.1509264 | AC70: 3.789055584 | AD70: 0 | AE70: 78 | AF70: 403.4486328 | AG70: 0 | AI70: 485.2376884 | AJ70: 63.1509264 | AK70: 3.789055584 | AL70: 0 | AM70: 544.5995592 | AN70: 100 | AO70: 0
A71: 20160103:0845 | B71: 2016-01-03T17:00:00 | C71: 2016-01-03T17:00:00 | D71: 2016 | E71: 1 | F71: =LOOKUP(E71,Temperature!Q:Q,Temperature!R:R) -> 3 | G71: =LOOKUP(E71,Temperature!Q:Q,Temperature!S:S) -> 31 | H71: 2016-03-31 | I71: 816.29 | J71: 32.29 | K71: 27.87 | L71: 3.03 | M71: 0 | N71: 1200 | O71: 816.29 | P71: -0.2 | Q71: 0.1148 | R71: -0.02296 | S71: 797.5479816 | T71: 701.8422238 | U71: 100 | V71: 159.5095963 | W71: 100 | X71: 59.50959632 | Y71: 600 | Z71: 55.40044083 | AA71: 200 | AB71: 55.40044083 | AC71: 3.32402645 | AD71: 0 | AE71: 78 | AF71: 463.2755327 | AG71: 0 | AI71: 544.5995592 | AJ71: 55.40044083 | AK71: 3.32402645 | AL71: 0 | AM71: 596.6759736 | AN71: 100 | AO71: 4.109155494
A72: 20160103:0945 | B72: 2016-01-03T18:00:00 | C72: 2016-01-03T18:00:00 | D72: 2016 | E72: 1 | F72: =LOOKUP(E72,Temperature!Q:Q,Temperature!R:R) -> 3 | G72: =LOOKUP(E72,Temperature!Q:Q,Temperature!S:S) -> 31 | H72: 2016-03-31 | I72: 695.12 | J72: 19.36 | K72: 27.33 | L72: 2.83 | M72: 0 | N72: 1200 | O72: 695.12 | P72: -0.2 | Q72: 0.0932 | R72: -0.01864 | S72: 682.1629632 | T72: 600.3034076 | U72: 100 | V72: 136.4325926 | W72: 100 | X72: 36.43259264 | Y72: 600 | Z72: 3.32402645 | AA72: 200 | AB72: 3.32402645 | AC72: 0.199441587 | AD72: 0 | AE72: 78 | AF72: 518.476532 | AG72: 0 | AI72: 596.6759736 | AJ72: 3.32402645 | AK72: 0.199441587 | AL72: 0 | AM72: 599.8005584 | AN72: 100 | AO72: 33.10856619
A73: 20160103:1045 | B73: 2016-01-03T19:00:00 | C73: 2016-01-03T19:00:00 | D73: 2016 | E73: 1 | F73: =LOOKUP(E73,Temperature!Q:Q,Temperature!R:R) -> 3 | G73: =LOOKUP(E73,Temperature!Q:Q,Temperature!S:S) -> 31 | H73: 2016-03-31 | I73: 19.47 | J73: 5.91 | K73: 26.56 | L73: 2.34 | M73: 0 | N73: 1200 | O73: 19.47 | P73: -0.2 | Q73: 0.0624 | R73: -0.01248 | S73: 19.2270144 | T73: 16.91977267 | U73: 100 | V73: 3.84540288 | W73: 3.84540288 | X73: 0 | Y73: 600 | Z73: 0.199441587 | AA73: 200 | AB73: 0 | AC73: 0 | AD73: 96.15459712 | AE73: 78 | AF73: 521.8005584 | AG73: 96.15459712 | AI73: 599.8005584 | AJ73: 0 | AK73: 0 | AL73: 96.15459712 | AM73: 503.6459613 | AN73: 100 | AO73: 0
A74: 20160103:1145 | B74: 2016-01-03T20:00:00 | C74: 2016-01-03T20:00:00 | D74: 2016 | E74: 1 | F74: =LOOKUP(E74,Temperature!Q:Q,Temperature!R:R) -> 3 | G74: =LOOKUP(E74,Temperature!Q:Q,Temperature!S:S) -> 31 | H74: 2016-03-31 | I74: 0 | J74: 0 | K74: 25.96 | L74: 2.14 | M74: 0 | N74: 1200 | O74: 0 | P74: -0.2 | Q74: 0.0384 | R74: -0.00768 | S74: 0 | T74: 0 | U74: 100 | V74: 0 | W74: 0 | X74: 0 | Y74: 600 | Z74: 96.35403871 | AA74: 200 | AB74: 0 | AC74: 0 | AD74: 100 | AE74: 78 | AF74: 425.6459613 | AG74: 100 | AI74: 503.6459613 | AJ74: 0 | AK74: 0 | AL74: 100 | AM74: 403.6459613 | AN74: 100 | AO74: 0
A75: 20160103:1245 | B75: 2016-01-03T21:00:00 | C75: 2016-01-03T21:00:00 | D75: 2016 | E75: 1 | F75: =LOOKUP(E75,Temperature!Q:Q,Temperature!R:R) -> 3 | G75: =LOOKUP(E75,Temperature!Q:Q,Temperature!S:S) -> 31 | H75: 2016-03-31 | I75: 0 | J75: 0 | K75: 25.41 | L75: 1.79 | M75: 0 | N75: 1200 | O75: 0 | P75: -0.2 | Q75: 0.0164 | R75: -0.00328 | S75: 0 | T75: 0 | U75: 100 | V75: 0 | W75: 0 | X75: 0 | Y75: 600 | Z75: 196.3540387 | AA75: 200 | AB75: 0 | AC75: 0 | AD75: 100 | AE75: 78 | AF75: 325.6459613 | AG75: 100 | AI75: 403.6459613 | AJ75: 0 | AK75: 0 | AL75: 100 | AM75: 303.6459613 | AN75: 100 | AO75: 0
A76: 20160103:1345 | B76: 2016-01-03T22:00:00 | C76: 2016-01-03T22:00:00 | D76: 2016 | E76: 1 | F76: =LOOKUP(E76,Temperature!Q:Q,Temperature!R:R) -> 3 | G76: =LOOKUP(E76,Temperature!Q:Q,Temperature!S:S) -> 31 | H76: 2016-03-31 | I76: 0 | J76: 0 | K76: 24.97 | L76: 1.72 | M76: 0 | N76: 1200 | O76: 0 | P76: -0.2 | Q76: -0.0012 | R76: 0.00024 | S76: 0 | T76: 0 | U76: 100 | V76: 0 | W76: 0 | X76: 0 | Y76: 600 | Z76: 296.3540387 | AA76: 200 | AB76: 0 | AC76: 0 | AD76: 100 | AE76: 78 | AF76: 225.6459613 | AG76: 100 | AI76: 303.6459613 | AJ76: 0 | AK76: 0 | AL76: 100 | AM76: 203.6459613 | AN76: 100 | AO76: 0
A77: 20160103:1445 | B77: 2016-01-03T23:00:00 | C77: 2016-01-03T23:00:00 | D77: 2016 | E77: 1 | F77: =LOOKUP(E77,Temperature!Q:Q,Temperature!R:R) -> 3 | G77: =LOOKUP(E77,Temperature!Q:Q,Temperature!S:S) -> 31 | H77: 2016-03-31 | I77: 0 | J77: 0 | K77: 24.63 | L77: 1.66 | M77: 0 | N77: 1200 | O77: 0 | P77: -0.2 | Q77: -0.0148 | R77: 0.00296 | S77: 0 | T77: 0 | U77: 100 | V77: 0 | W77: 0 | X77: 0 | Y77: 600 | Z77: 396.3540387 | AA77: 200 | AB77: 0 | AC77: 0 | AD77: 100 | AE77: 78 | AF77: 125.6459613 | AG77: 100 | AI77: 203.6459613 | AJ77: 0 | AK77: 0 | AL77: 100 | AM77: 103.6459613 | AN77: 100 | AO77: 0
A78: 20160103:1545 | B78: 2016-01-04 | C78: 2016-01-04 | D78: 2016 | E78: 1 | F78: =LOOKUP(E78,Temperature!Q:Q,Temperature!R:R) -> 3 | G78: =LOOKUP(E78,Temperature!Q:Q,Temperature!S:S) -> 31 | H78: 2016-03-31 | I78: 0 | J78: 0 | K78: 24.34 | L78: 1.45 | M78: 0 | N78: 1200 | O78: 0 | P78: -0.2 | Q78: -0.0264 | R78: 0.00528 | S78: 0 | T78: 0 | U78: 100 | V78: 0 | W78: 0 | X78: 0 | Y78: 600 | Z78: =Y78-AI78 -> 496.3540387 | AA78: 200 | AB78: 0 | AC78: 0 | AD78: 100 | AE78: 78 | AF78: 25.64596129 | AG78: 25.64596129 | AI78: =AM77 -> 103.6459613 | AJ78: 0 | AK78: 0 | AL78: 25.64596129 | AM78: 78 | AN78: 25.64596129 | AO78: 0
A79: 20160103:1645 | B79: 2016-01-04T01:00:00 | C79: =C78+1/24 -> 2016-01-04T01:00:00 | D79: 2016 | E79: 1 | F79: =LOOKUP(E79,Temperature!Q:Q,Temperature!R:R) -> 3 | G79: =LOOKUP(E79,Temperature!Q:Q,Temperature!S:S) -> 31 | H79: 2016-03-31 | I79: 0 | J79: 0 | K79: 24.16 | L79: 1.38 | M79: 0 | N79: 1200 | O79: 0 | P79: -0.2 | Q79: -0.0336 | R79: 0.00672 | S79: 0 | T79: 0 | U79: 100 | V79: 0 | W79: 0 | X79: 0 | Y79: 600 | Z79: 522 | AA79: 200 | AB79: 0 | AC79: 0 | AD79: 100 | AE79: 78 | AF79: 0 | AG79: 0 | AI79: 78 | AJ79: 0 | AK79: 0 | AL79: 0 | AM79: 78 | AN79: 0 | AO79: 0
A80: 20160103:1745 | B80: 2016-01-04T02:00:00 | C80: 2016-01-04T02:00:00 | D80: 2016 | E80: 1 | F80: =LOOKUP(E80,Temperature!Q:Q,Temperature!R:R) -> 3 | G80: =LOOKUP(E80,Temperature!Q:Q,Temperature!S:S) -> 31 | H80: 2016-03-31 | I80: 0 | J80: 0 | K80: 24 | L80: 1.31 | M80: 0 | N80: 1200 | O80: 0 | P80: -0.2 | Q80: -0.04 | R80: 0.008 | S80: 0 | T80: 0 | U80: 100 | V80: 0 | W80: 0 | X80: 0 | Y80: 600 | Z80: 522 | AA80: 200 | AB80: 0 | AC80: 0 | AD80: 100 | AE80: 78 | AF80: 0 | AG80: 0 | AI80: 78 | AJ80: 0 | AK80: 0 | AL80: 0 | AM80: 78 | AN80: 0 | AO80: 0
A81: 20160103:1845 | B81: 2016-01-04T03:00:00 | C81: 2016-01-04T03:00:00 | D81: 2016 | E81: 1 | F81: =LOOKUP(E81,Temperature!Q:Q,Temperature!R:R) -> 3 | G81: =LOOKUP(E81,Temperature!Q:Q,Temperature!S:S) -> 31 | H81: 2016-03-31 | I81: 0 | J81: 0 | K81: 24.16 | L81: 1.24 | M81: 0 | N81: 1200 | O81: 0 | P81: -0.2 | Q81: -0.0336 | R81: 0.00672 | S81: 0 | T81: 0 | U81: 100 | V81: 0 | W81: 0 | X81: 0 | Y81: 600 | Z81: 522 | AA81: 200 | AB81: 0 | AC81: 0 | AD81: 100 | AE81: 78 | AF81: 0 | AG81: 0 | AI81: 78 | AJ81: 0 | AK81: 0 | AL81: 0 | AM81: 78 | AN81: 0 | AO81: 0
A82: 20160103:1945 | B82: 2016-01-04T04:00:00 | C82: 2016-01-04T04:00:00 | D82: 2016 | E82: 1 | F82: =LOOKUP(E82,Temperature!Q:Q,Temperature!R:R) -> 3 | G82: =LOOKUP(E82,Temperature!Q:Q,Temperature!S:S) -> 31 | H82: 2016-03-31 | I82: 0 | J82: 0 | K82: 23.96 | L82: 1.17 | M82: 0 | N82: 1200 | O82: 0 | P82: -0.2 | Q82: -0.0416 | R82: 0.00832 | S82: 0 | T82: 0 | U82: 100 | V82: 0 | W82: 0 | X82: 0 | Y82: 600 | Z82: 522 | AA82: 200 | AB82: 0 | AC82: 0 | AD82: 100 | AE82: 78 | AF82: 0 | AG82: 0 | AI82: 78 | AJ82: 0 | AK82: 0 | AL82: 0 | AM82: 78 | AN82: 0 | AO82: 0
A83: 20160103:2045 | B83: 2016-01-04T05:00:00 | C83: 2016-01-04T05:00:00 | D83: 2016 | E83: 1 | F83: =LOOKUP(E83,Temperature!Q:Q,Temperature!R:R) -> 3 | G83: =LOOKUP(E83,Temperature!Q:Q,Temperature!S:S) -> 31 | H83: 2016-03-31 | I83: 0 | J83: 0 | K83: 23.65 | L83: 1.24 | M83: 0 | N83: 1200 | O83: 0 | P83: -0.2 | Q83: -0.054 | R83: 0.0108 | S83: 0 | T83: 0 | U83: 100 | V83: 0 | W83: 0 | X83: 0 | Y83: 600 | Z83: 522 | AA83: 200 | AB83: 0 | AC83: 0 | AD83: 100 | AE83: 78 | AF83: 0 | AG83: 0 | AI83: 78 | AJ83: 0 | AK83: 0 | AL83: 0 | AM83: 78 | AN83: 0 | AO83: 0
A84: 20160103:2145 | B84: 2016-01-04T06:00:00 | C84: 2016-01-04T06:00:00 | D84: 2016 | E84: 1 | F84: =LOOKUP(E84,Temperature!Q:Q,Temperature!R:R) -> 3 | G84: =LOOKUP(E84,Temperature!Q:Q,Temperature!S:S) -> 31 | H84: 2016-03-31 | I84: 0 | J84: 0 | K84: 23.61 | L84: 1.38 | M84: 0 | N84: 1200 | O84: 0 | P84: -0.2 | Q84: -0.0556 | R84: 0.01112 | S84: 0 | T84: 0 | U84: 100 | V84: 0 | W84: 0 | X84: 0 | Y84: 600 | Z84: 522 | AA84: 200 | AB84: 0 | AC84: 0 | AD84: 100 | AE84: 78 | AF84: 0 | AG84: 0 | AI84: 78 | AJ84: 0 | AK84: 0 | AL84: 0 | AM84: 78 | AN84: 0 | AO84: 0
A85: 20160103:2245 | B85: 2016-01-04T07:00:00 | C85: 2016-01-04T07:00:00 | D85: 2016 | E85: 1 | F85: =LOOKUP(E85,Temperature!Q:Q,Temperature!R:R) -> 3 | G85: =LOOKUP(E85,Temperature!Q:Q,Temperature!S:S) -> 31 | H85: 2016-03-31 | I85: 0 | J85: 0 | K85: 23.53 | L85: 1.31 | M85: 0 | N85: 1200 | O85: 0 | P85: -0.2 | Q85: -0.0588 | R85: 0.01176 | S85: 0 | T85: 0 | U85: 100 | V85: 0 | W85: 0 | X85: 0 | Y85: 600 | Z85: 522 | AA85: 200 | AB85: 0 | AC85: 0 | AD85: 100 | AE85: 78 | AF85: 0 | AG85: 0 | AI85: 78 | AJ85: 0 | AK85: 0 | AL85: 0 | AM85: 78 | AN85: 0 | AO85: 0
A86: 20160103:2345 | B86: 2016-01-04T08:00:00 | C86: 2016-01-04T08:00:00 | D86: 2016 | E86: 1 | F86: =LOOKUP(E86,Temperature!Q:Q,Temperature!R:R) -> 3 | G86: =LOOKUP(E86,Temperature!Q:Q,Temperature!S:S) -> 31 | H86: 2016-03-31 | I86: 398.17 | J86: 2.31 | K86: 23.52 | L86: 1.17 | M86: 0 | N86: 1200 | O86: 398.17 | P86: -0.2 | Q86: -0.0592 | R86: 0.01184 | S86: 402.8843328 | T86: 354.5382129 | U86: 100 | V86: 80.57686656 | W86: 80.57686656 | X86: 0 | Y86: 600 | Z86: 522 | AA86: 200 | AB86: 0 | AC86: 0 | AD86: 19.42313344 | AE86: 78 | AF86: 0 | AG86: 0 | AI86: 78 | AJ86: 0 | AK86: 0 | AL86: 0 | AM86: 78 | AN86: 80.57686656 | AO86: 0
A87: 20160104:0045 | B87: 2016-01-04T09:00:00 | C87: 2016-01-04T09:00:00 | D87: 2016 | E87: 1 | F87: =LOOKUP(E87,Temperature!Q:Q,Temperature!R:R) -> 3 | G87: =LOOKUP(E87,Temperature!Q:Q,Temperature!S:S) -> 31 | H87: 2016-03-31 | I87: 319.48 | J87: 15.85 | K87: 25.22 | L87: 2.21 | M87: 0 | N87: 1200 | O87: 319.48 | P87: -0.2 | Q87: 0.0088 | R87: -0.00176 | S87: 318.9177152 | T87: 280.6475894 | U87: 100 | V87: 63.78354304 | W87: 63.78354304 | X87: 0 | Y87: 600 | Z87: 522 | AA87: 200 | AB87: 0 | AC87: 0 | AD87: 36.21645696 | AE87: 78 | AF87: 0 | AG87: 0 | AI87: 78 | AJ87: 0 | AK87: 0 | AL87: 0 | AM87: 78 | AN87: 63.78354304 | AO87: 0
A88: 20160104:0145 | B88: 2016-01-04T10:00:00 | C88: 2016-01-04T10:00:00 | D88: 2016 | E88: 1 | F88: =LOOKUP(E88,Temperature!Q:Q,Temperature!R:R) -> 3 | G88: =LOOKUP(E88,Temperature!Q:Q,Temperature!S:S) -> 31 | H88: 2016-03-31 | I88: 363.92 | J88: 28.97 | K88: 26.62 | L88: 3.1 | M88: 0 | N88: 1200 | O88: 363.92 | P88: -0.2 | Q88: 0.0648 | R88: -0.01296 | S88: 359.2035968 | T88: 316.0991652 | U88: 100 | V88: 71.84071936 | W88: 71.84071936 | X88: 0 | Y88: 600 | Z88: 522 | AA88: 200 | AB88: 0 | AC88: 0 | AD88: 28.15928064 | AE88: 78 | AF88: 0 | AG88: 0 | AI88: 78 | AJ88: 0 | AK88: 0 | AL88: 0 | AM88: 78 | AN88: 71.84071936 | AO88: 0
A89: 20160104:0245 | B89: 2016-01-04T11:00:00 | C89: 2016-01-04T11:00:00 | D89: 2016 | E89: 1 | F89: =LOOKUP(E89,Temperature!Q:Q,Temperature!R:R) -> 3 | G89: =LOOKUP(E89,Temperature!Q:Q,Temperature!S:S) -> 31 | H89: 2016-03-31 | I89: 393.9 | J89: 41.24 | K89: 27.81 | L89: 3.45 | M89: 0 | N89: 1200 | O89: 393.9 | P89: -0.2 | Q89: 0.1124 | R89: -0.02248 | S89: 385.045128 | T89: 338.8397126 | U89: 100 | V89: 77.0090256 | W89: 77.0090256 | X89: 0 | Y89: 600 | Z89: 522 | AA89: 200 | AB89: 0 | AC89: 0 | AD89: 22.9909744 | AE89: 78 | AF89: 0 | AG89: 0 | AI89: 78 | AJ89: 0 | AK89: 0 | AL89: 0 | AM89: 78 | AN89: 77.0090256 | AO89: 0
A90: 20160104:0345 | B90: 2016-01-04T12:00:00 | C90: 2016-01-04T12:00:00 | D90: 2016 | E90: 1 | F90: =LOOKUP(E90,Temperature!Q:Q,Temperature!R:R) -> 3 | G90: =LOOKUP(E90,Temperature!Q:Q,Temperature!S:S) -> 31 | H90: 2016-03-31 | I90: 1056.3 | J90: 51.82 | K90: 28.61 | L90: 3.59 | M90: 0 | N90: 1200 | O90: 1056.3 | P90: -0.2 | Q90: 0.1444 | R90: -0.02888 | S90: 1025.794056 | T90: 902.6987693 | U90: 100 | V90: 205.1588112 | W90: 100 | X90: 105.1588112 | Y90: 600 | Z90: 522 | AA90: 200 | AB90: 105.1588112 | AC90: 6.309528672 | AD90: 0 | AE90: 78 | AF90: 0 | AG90: 0 | AI90: 78 | AJ90: 105.1588112 | AK90: 6.309528672 | AL90: 0 | AM90: 176.8492825 | AN90: 100 | AO90: 0
A91: 20160104:0445 | B91: 2016-01-04T13:00:00 | C91: 2016-01-04T13:00:00 | D91: 2016 | E91: 1 | F91: =LOOKUP(E91,Temperature!Q:Q,Temperature!R:R) -> 3 | G91: =LOOKUP(E91,Temperature!Q:Q,Temperature!S:S) -> 31 | H91: 2016-03-31 | I91: 1072.48 | J91: 58.88 | K91: 28.79 | L91: 3.79 | M91: 0 | N91: 1200 | O91: 1072.48 | P91: -0.2 | Q91: 0.1516 | R91: -0.03032 | S91: 1039.962406 | T91: 915.1669176 | U91: 100 | V91: 207.9924813 | W91: 100 | X91: 107.9924813 | Y91: 600 | Z91: 423.1507175 | AA91: 200 | AB91: 107.9924813 | AC91: 6.479548877 | AD91: 0 | AE91: 78 | AF91: 92.36973365 | AG91: 0 | AI91: 176.8492825 | AJ91: 107.9924813 | AK91: 6.479548877 | AL91: 0 | AM91: 278.3622149 | AN91: 100 | AO91: 0
A92: 20160104:0545 | B92: 2016-01-04T14:00:00 | C92: 2016-01-04T14:00:00 | D92: 2016 | E92: 1 | F92: =LOOKUP(E92,Temperature!Q:Q,Temperature!R:R) -> 3 | G92: =LOOKUP(E92,Temperature!Q:Q,Temperature!S:S) -> 31 | H92: 2016-03-31 | I92: 1007.73 | J92: 59.84 | K92: 28.43 | L92: 3.72 | M92: 0 | N92: 1200 | O92: 1007.73 | P92: -0.2 | Q92: 0.1372 | R92: -0.02744 | S92: 980.0778888 | T92: 862.4685421 | U92: 100 | V92: 196.0155778 | W92: 100 | X92: 96.01557776 | Y92: 600 | Z92: 321.6377851 | AA92: 200 | AB92: 96.01557776 | AC92: 5.760934666 | AD92: 0 | AE92: 78 | AF92: 194.6012803 | AG92: 0 | AI92: 278.3622149 | AJ92: 96.01557776 | AK92: 5.760934666 | AL92: 0 | AM92: 368.616858 | AN92: 100 | AO92: 0
A93: 20160104:0645 | B93: 2016-01-04T15:00:00 | C93: 2016-01-04T15:00:00 | D93: 2016 | E93: 1 | F93: =LOOKUP(E93,Temperature!Q:Q,Temperature!R:R) -> 3 | G93: =LOOKUP(E93,Temperature!Q:Q,Temperature!S:S) -> 31 | H93: 2016-03-31 | I93: 1004.79 | J93: 54.2 | K93: 28.79 | L93: 3.66 | M93: 0 | N93: 1200 | O93: 1004.79 | P93: -0.2 | Q93: 0.1516 | R93: -0.03032 | S93: 974.3247672 | T93: 857.4057951 | U93: 100 | V93: 194.8649534 | W93: 100 | X93: 94.86495344 | Y93: 600 | Z93: 231.383142 | AA93: 200 | AB93: 94.86495344 | AC93: 5.691897206 | AD93: 0 | AE93: 78 | AF93: 284.9249608 | AG93: 0 | AI93: 368.616858 | AJ93: 94.86495344 | AK93: 5.691897206 | AL93: 0 | AM93: 457.7899143 | AN93: 100 | AO93: 0
A94: 20160104:0745 | B94: 2016-01-04T16:00:00 | C94: 2016-01-04T16:00:00 | D94: 2016 | E94: 1 | F94: =LOOKUP(E94,Temperature!Q:Q,Temperature!R:R) -> 3 | G94: =LOOKUP(E94,Temperature!Q:Q,Temperature!S:S) -> 31 | H94: 2016-03-31 | I94: 967.72 | J94: 44.35 | K94: 28.07 | L94: 3.72 | M94: 0 | N94: 1200 | O94: 967.72 | P94: -0.2 | Q94: 0.1228 | R94: -0.02456 | S94: 943.9527968 | T94: 830.6784612 | U94: 100 | V94: 188.7905594 | W94: 100 | X94: 88.79055936 | Y94: 600 | Z94: 142.2100857 | AA94: 200 | AB94: 88.79055936 | AC94: 5.327433562 | AD94: 0 | AE94: 78 | AF94: 374.4624807 | AG94: 0 | AI94: 457.7899143 | AJ94: 88.79055936 | AK94: 5.327433562 | AL94: 0 | AM94: 541.2530401 | AN94: 100 | AO94: 0
A95: 20160104:0845 | B95: 2016-01-04T17:00:00 | C95: 2016-01-04T17:00:00 | D95: 2016 | E95: 1 | F95: =LOOKUP(E95,Temperature!Q:Q,Temperature!R:R) -> 3 | G95: =LOOKUP(E95,Temperature!Q:Q,Temperature!S:S) -> 31 | H95: 2016-03-31 | I95: 896.01 | J95: 32.42 | K95: 27.4 | L95: 2.9 | M95: 0 | N95: 1200 | O95: 896.01 | P95: -0.2 | Q95: 0.096 | R95: -0.0192 | S95: 878.806608 | T95: 773.349815 | U95: 100 | V95: 175.7613216 | W95: 100 | X95: 75.7613216 | Y95: 600 | Z95: 58.74695994 | AA95: 200 | AB95: 58.74695994 | AC95: 3.524817597 | AD95: 0 | AE95: 78 | AF95: 459.7282225 | AG95: 0 | AI95: 541.2530401 | AJ95: 58.74695994 | AK95: 3.524817597 | AL95: 0 | AM95: 596.4751824 | AN95: 100 | AO95: 17.01436166
A96: 20160104:0945 | B96: 2016-01-04T18:00:00 | C96: 2016-01-04T18:00:00 | D96: 2016 | E96: 1 | F96: =LOOKUP(E96,Temperature!Q:Q,Temperature!R:R) -> 3 | G96: =LOOKUP(E96,Temperature!Q:Q,Temperature!S:S) -> 31 | H96: 2016-03-31 | I96: 627.84 | J96: 19.49 | K96: 27.3 | L96: 2.83 | M96: 0 | N96: 1200 | O96: 627.84 | P96: -0.2 | Q96: 0.092 | R96: -0.0184 | S96: 616.287744 | T96: 542.3332147 | U96: 100 | V96: 123.2575488 | W96: 100 | X96: 23.2575488 | Y96: 600 | Z96: 3.524817597 | AA96: 200 | AB96: 3.524817597 | AC96: 0.2114890558 | AD96: 0 | AE96: 78 | AF96: 518.2636933 | AG96: 0 | AI96: 596.4751824 | AJ96: 3.524817597 | AK96: 0.2114890558 | AL96: 0 | AM96: 599.7885109 | AN96: 100 | AO96: 19.7327312
A97: 20160104:1045 | B97: 2016-01-04T19:00:00 | C97: 2016-01-04T19:00:00 | D97: 2016 | E97: 1 | F97: =LOOKUP(E97,Temperature!Q:Q,Temperature!R:R) -> 3 | G97: =LOOKUP(E97,Temperature!Q:Q,Temperature!S:S) -> 31 | H97: 2016-03-31 | I97: 33.01 | J97: 6.03 | K97: 26.79 | L97: 2.55 | M97: 0 | N97: 1200 | O97: 33.01 | P97: -0.2 | Q97: 0.0716 | R97: -0.01432 | S97: 32.5372968 | T97: 28.63282118 | U97: 100 | V97: 6.50745936 | W97: 6.50745936 | X97: 0 | Y97: 600 | Z97: 0.2114890558 | AA97: 200 | AB97: 0 | AC97: 0 | AD97: 93.49254064 | AE97: 78 | AF97: 521.7885109 | AG97: 93.49254064 | AI97: 599.7885109 | AJ97: 0 | AK97: 0 | AL97: 93.49254064 | AM97: 506.2959703 | AN97: 100 | AO97: 0
A98: 20160104:1145 | B98: 2016-01-04T20:00:00 | C98: 2016-01-04T20:00:00 | D98: 2016 | E98: 1 | F98: =LOOKUP(E98,Temperature!Q:Q,Temperature!R:R) -> 3 | G98: =LOOKUP(E98,Temperature!Q:Q,Temperature!S:S) -> 31 | H98: 2016-03-31 | I98: 0 | J98: 0 | K98: 26.16 | L98: 2.41 | M98: 0 | N98: 1200 | O98: 0 | P98: -0.2 | Q98: 0.0464 | R98: -0.00928 | S98: 0 | T98: 0 | U98: 100 | V98: 0 | W98: 0 | X98: 0 | Y98: 600 | Z98: 93.7040297 | AA98: 200 | AB98: 0 | AC98: 0 | AD98: 100 | AE98: 78 | AF98: 428.2959703 | AG98: 100 | AI98: 506.2959703 | AJ98: 0 | AK98: 0 | AL98: 100 | AM98: 406.2959703 | AN98: 100 | AO98: 0
A99: 20160104:1245 | B99: 2016-01-04T21:00:00 | C99: 2016-01-04T21:00:00 | D99: 2016 | E99: 1 | F99: =LOOKUP(E99,Temperature!Q:Q,Temperature!R:R) -> 3 | G99: =LOOKUP(E99,Temperature!Q:Q,Temperature!S:S) -> 31 | H99: 2016-03-31 | I99: 0 | J99: 0 | K99: 25.73 | L99: 2.14 | M99: 0 | N99: 1200 | O99: 0 | P99: -0.2 | Q99: 0.0292 | R99: -0.00584 | S99: 0 | T99: 0 | U99: 100 | V99: 0 | W99: 0 | X99: 0 | Y99: 600 | Z99: 193.7040297 | AA99: 200 | AB99: 0 | AC99: 0 | AD99: 100 | AE99: 78 | AF99: 328.2959703 | AG99: 100 | AI99: 406.2959703 | AJ99: 0 | AK99: 0 | AL99: 100 | AM99: 306.2959703 | AN99: 100 | AO99: 0
A100: 20160104:1345 | B100: 2016-01-04T22:00:00 | C100: 2016-01-04T22:00:00 | D100: 2016 | E100: 1 | F100: =LOOKUP(E100,Temperature!Q:Q,Temperature!R:R) -> 3 | G100: =LOOKUP(E100,Temperature!Q:Q,Temperature!S:S) -> 31 | H100: 2016-03-31 | I100: 0 | J100: 0 | K100: 25.36 | L100: 1.93 | M100: 0 | N100: 1200 | O100: 0 | P100: -0.2 | Q100: 0.0144 | R100: -0.00288 | S100: 0 | T100: 0 | U100: 100 | V100: 0 | W100: 0 | X100: 0 | Y100: 600 | Z100: 293.7040297 | AA100: 200 | AB100: 0 | AC100: 0 | AD100: 100 | AE100: 78 | AF100: 228.2959703 | AG100: 100 | AI100: 306.2959703 | AJ100: 0 | AK100: 0 | AL100: 100 | AM100: 206.2959703 | AN100: 100 | AO100: 0
A101: 20160104:1445 | B101: 2016-01-04T23:00:00 | C101: 2016-01-04T23:00:00 | D101: 2016 | E101: 1 | F101: =LOOKUP(E101,Temperature!Q:Q,Temperature!R:R) -> 3 | G101: =LOOKUP(E101,Temperature!Q:Q,Temperature!S:S) -> 31 | H101: 2016-03-31 | I101: 0 | J101: 0 | K101: 25.01 | L101: 1.79 | M101: 0 | N101: 1200 | O101: 0 | P101: -0.2 | Q101: 0.0004 | R101: -8e-05 | S101: 0 | T101: 0 | U101: 100 | V101: 0 | W101: 0 | X101: 0 | Y101: 600 | Z101: 393.7040297 | AA101: 200 | AB101: 0 | AC101: 0 | AD101: 100 | AE101: 78 | AF101: 128.2959703 | AG101: 100 | AI101: 206.2959703 | AJ101: 0 | AK101: 0 | AL101: 100 | AM101: 106.2959703 | AN101: 100 | AO101: 0
A102: 20160104:1545 | B102: 2016-01-05 | C102: 2016-01-05 | D102: 2016 | E102: 1 | F102: =LOOKUP(E102,Temperature!Q:Q,Temperature!R:R) -> 3 | G102: =LOOKUP(E102,Temperature!Q:Q,Temperature!S:S) -> 31 | H102: 2016-03-31 | I102: 0 | J102: 0 | K102: 24.77 | L102: 1.66 | M102: 0 | N102: 1200 | O102: 0 | P102: -0.2 | Q102: -0.0092 | R102: 0.00184 | S102: 0 | T102: 0 | U102: 100 | V102: 0 | W102: 0 | X102: 0 | Y102: 600 | Z102: 493.7040297 | AA102: 200 | AB102: 0 | AC102: 0 | AD102: 100 | AE102: 78 | AF102: 28.2959703 | AG102: 28.2959703 | AI102: 106.2959703 | AJ102: 0 | AK102: 0 | AL102: 28.2959703 | AM102: 78 | AN102: 28.2959703 | AO102: 0
A103: 20160104:1645 | B103: 2016-01-05T01:00:00 | C103: 2016-01-05T01:00:00 | D103: 2016 | E103: 1 | F103: =LOOKUP(E103,Temperature!Q:Q,Temperature!R:R) -> 3 | G103: =LOOKUP(E103,Temperature!Q:Q,Temperature!S:S) -> 31 | H103: 2016-03-31 | I103: 0 | J103: 0 | K103: 24.48 | L103: 1.52 | M103: 0 | N103: 1200 | O103: 0 | P103: -0.2 | Q103: -0.0208 | R103: 0.00416 | S103: 0 | T103: 0 | U103: 100 | V103: 0 | W103: 0 | X103: 0 | Y103: 600 | Z103: 522 | AA103: 200 | AB103: 0 | AC103: 0 | AD103: 100 | AE103: 78 | AF103: 0 | AG103: 0 | AI103: 78 | AJ103: 0 | AK103: 0 | AL103: 0 | AM103: 78 | AN103: 0 | AO103: 0
A104: 20160104:1745 | B104: 2016-01-05T02:00:00 | C104: 2016-01-05T02:00:00 | D104: 2016 | E104: 1 | F104: =LOOKUP(E104,Temperature!Q:Q,Temperature!R:R) -> 3 | G104: =LOOKUP(E104,Temperature!Q:Q,Temperature!S:S) -> 31 | H104: 2016-03-31 | I104: 0 | J104: 0 | K104: 24.17 | L104: 1.24 | M104: 0 | N104: 1200 | O104: 0 | P104: -0.2 | Q104: -0.0332 | R104: 0.00664 | S104: 0 | T104: 0 | U104: 100 | V104: 0 | W104: 0 | X104: 0 | Y104: 600 | Z104: 522 | AA104: 200 | AB104: 0 | AC104: 0 | AD104: 100 | AE104: 78 | AF104: 0 | AG104: 0 | AI104: 78 | AJ104: 0 | AK104: 0 | AL104: 0 | AM104: 78 | AN104: 0 | AO104: 0
A105: 20160104:1845 | B105: 2016-01-05T03:00:00 | C105: 2016-01-05T03:00:00 | D105: 2016 | E105: 1 | F105: =LOOKUP(E105,Temperature!Q:Q,Temperature!R:R) -> 3 | G105: =LOOKUP(E105,Temperature!Q:Q,Temperature!S:S) -> 31 | H105: 2016-03-31 | I105: 0 | J105: 0 | K105: 23.94 | L105: 0.97 | M105: 0 | N105: 1200 | O105: 0 | P105: -0.2 | Q105: -0.0424 | R105: 0.00848 | S105: 0 | T105: 0 | U105: 100 | V105: 0 | W105: 0 | X105: 0 | Y105: 600 | Z105: 522 | AA105: 200 | AB105: 0 | AC105: 0 | AD105: 100 | AE105: 78 | AF105: 0 | AG105: 0 | AI105: 78 | AJ105: 0 | AK105: 0 | AL105: 0 | AM105: 78 | AN105: 0 | AO105: 0
A106: 20160104:1945 | B106: 2016-01-05T04:00:00 | C106: 2016-01-05T04:00:00 | D106: 2016 | E106: 1 | F106: =LOOKUP(E106,Temperature!Q:Q,Temperature!R:R) -> 3 | G106: =LOOKUP(E106,Temperature!Q:Q,Temperature!S:S) -> 31 | H106: 2016-03-31 | I106: 0 | J106: 0 | K106: 23.61 | L106: 0.83 | M106: 0 | N106: 1200 | O106: 0 | P106: -0.2 | Q106: -0.0556 | R106: 0.01112 | S106: 0 | T106: 0 | U106: 100 | V106: 0 | W106: 0 | X106: 0 | Y106: 600 | Z106: 522 | AA106: 200 | AB106: 0 | AC106: 0 | AD106: 100 | AE106: 78 | AF106: 0 | AG106: 0 | AI106: 78 | AJ106: 0 | AK106: 0 | AL106: 0 | AM106: 78 | AN106: 0 | AO106: 0
A107: 20160104:2045 | B107: 2016-01-05T05:00:00 | C107: 2016-01-05T05:00:00 | D107: 2016 | E107: 1 | F107: =LOOKUP(E107,Temperature!Q:Q,Temperature!R:R) -> 3 | G107: =LOOKUP(E107,Temperature!Q:Q,Temperature!S:S) -> 31 | H107: 2016-03-31 | I107: 0 | J107: 0 | K107: 23.07 | L107: 0.9 | M107: 0 | N107: 1200 | O107: 0 | P107: -0.2 | Q107: -0.0772 | R107: 0.01544 | S107: 0 | T107: 0 | U107: 100 | V107: 0 | W107: 0 | X107: 0 | Y107: 600 | Z107: 522 | AA107: 200 | AB107: 0 | AC107: 0 | AD107: 100 | AE107: 78 | AF107: 0 | AG107: 0 | AI107: 78 | AJ107: 0 | AK107: 0 | AL107: 0 | AM107: 78 | AN107: 0 | AO107: 0
A108: 20160104:2145 | B108: 2016-01-05T06:00:00 | C108: 2016-01-05T06:00:00 | D108: 2016 | E108: 1 | F108: =LOOKUP(E108,Temperature!Q:Q,Temperature!R:R) -> 3 | G108: =LOOKUP(E108,Temperature!Q:Q,Temperature!S:S) -> 31 | H108: 2016-03-31 | I108: 0 | J108: 0 | K108: 22.77 | L108: 1.1 | M108: 0 | N108: 1200 | O108: 0 | P108: -0.2 | Q108: -0.0892 | R108: 0.01784 | S108: 0 | T108: 0 | U108: 100 | V108: 0 | W108: 0 | X108: 0 | Y108: 600 | Z108: 522 | AA108: 200 | AB108: 0 | AC108: 0 | AD108: 100 | AE108: 78 | AF108: 0 | AG108: 0 | AI108: 78 | AJ108: 0 | AK108: 0 | AL108: 0 | AM108: 78 | AN108: 0 | AO108: 0
A109: 20160104:2245 | B109: 2016-01-05T07:00:00 | C109: 2016-01-05T07:00:00 | D109: 2016 | E109: 1 | F109: =LOOKUP(E109,Temperature!Q:Q,Temperature!R:R) -> 3 | G109: =LOOKUP(E109,Temperature!Q:Q,Temperature!S:S) -> 31 | H109: 2016-03-31 | I109: 0 | J109: 0 | K109: 22.64 | L109: 1.17 | M109: 0 | N109: 1200 | O109: 0 | P109: -0.2 | Q109: -0.0944 | R109: 0.01888 | S109: 0 | T109: 0 | U109: 100 | V109: 0 | W109: 0 | X109: 0 | Y109: 600 | Z109: 522 | AA109: 200 | AB109: 0 | AC109: 0 | AD109: 100 | AE109: 78 | AF109: 0 | AG109: 0 | AI109: 78 | AJ109: 0 | AK109: 0 | AL109: 0 | AM109: 78 | AN109: 0 | AO109: 0
A110: 20160104:2345 | B110: 2016-01-05T08:00:00 | C110: 2016-01-05T08:00:00 | D110: 2016 | E110: 1 | F110: =LOOKUP(E110,Temperature!Q:Q,Temperature!R:R) -> 3 | G110: =LOOKUP(E110,Temperature!Q:Q,Temperature!S:S) -> 31 | H110: 2016-03-31 | I110: 53.65 | J110: 2.22 | K110: 22.84 | L110: 1.1 | M110: 0 | N110: 1200 | O110: 53.65 | P110: -0.2 | Q110: -0.0864 | R110: 0.01728 | S110: 54.577072 | T110: 48.02782336 | U110: 100 | V110: 10.9154144 | W110: 10.9154144 | X110: 0 | Y110: 600 | Z110: 522 | AA110: 200 | AB110: 0 | AC110: 0 | AD110: 89.0845856 | AE110: 78 | AF110: 0 | AG110: 0 | AI110: 78 | AJ110: 0 | AK110: 0 | AL110: 0 | AM110: 78 | AN110: 10.9154144 | AO110: 0
A111: 20160105:0045 | B111: 2016-01-05T09:00:00 | C111: 2016-01-05T09:00:00 | D111: 2016 | E111: 1 | F111: =LOOKUP(E111,Temperature!Q:Q,Temperature!R:R) -> 3 | G111: =LOOKUP(E111,Temperature!Q:Q,Temperature!S:S) -> 31 | H111: 2016-03-31 | I111: 101.73 | J111: 15.78 | K111: 25.01 | L111: 1.17 | M111: 0 | N111: 1200 | O111: 101.73 | P111: -0.2 | Q111: 0.0004 | R111: -8e-05 | S111: 101.7218616 | T111: 89.51523821 | U111: 100 | V111: 20.34437232 | W111: 20.34437232 | X111: 0 | Y111: 600 | Z111: 522 | AA111: 200 | AB111: 0 | AC111: 0 | AD111: 79.65562768 | AE111: 78 | AF111: 0 | AG111: 0 | AI111: 78 | AJ111: 0 | AK111: 0 | AL111: 0 | AM111: 78 | AN111: 20.34437232 | AO111: 0
A112: 20160105:0145 | B112: 2016-01-05T10:00:00 | C112: 2016-01-05T10:00:00 | D112: 2016 | E112: 1 | F112: =LOOKUP(E112,Temperature!Q:Q,Temperature!R:R) -> 3 | G112: =LOOKUP(E112,Temperature!Q:Q,Temperature!S:S) -> 31 | H112: 2016-03-31 | I112: 748.86 | J112: 28.91 | K112: 26.76 | L112: 2.76 | M112: 0 | N112: 1200 | O112: 748.86 | P112: -0.2 | Q112: 0.0704 | R112: -0.01408 | S112: 738.3160512 | T112: 649.7181251 | U112: 100 | V112: 147.6632102 | W112: 100 | X112: 47.66321024 | Y112: 600 | Z112: 522 | AA112: 200 | AB112: 47.66321024 | AC112: 2.859792614 | AD112: 0 | AE112: 78 | AF112: 0 | AG112: 0 | AI112: 78 | AJ112: 47.66321024 | AK112: 2.859792614 | AL112: 0 | AM112: 122.8034176 | AN112: 100 | AO112: 0
A113: 20160105:0245 | B113: 2016-01-05T11:00:00 | C113: 2016-01-05T11:00:00 | D113: 2016 | E113: 1 | F113: =LOOKUP(E113,Temperature!Q:Q,Temperature!R:R) -> 3 | G113: =LOOKUP(E113,Temperature!Q:Q,Temperature!S:S) -> 31 | H113: 2016-03-31 | I113: 942.47 | J113: 41.22 | K113: 28.09 | L113: 3.1 | M113: 0 | N113: 1200 | O113: 942.47 | P113: -0.2 | Q113: 0.1236 | R113: -0.02472 | S113: 919.1721416 | T113: 808.8714846 | U113: 100 | V113: 183.8344283 | W113: 100 | X113: 83.83442832 | Y113: 600 | Z113: 477.1965824 | AA113: 200 | AB113: 83.83442832 | AC113: 5.030065699 | AD113: 0 | AE113: 78 | AF113: 39.77335193 | AG113: 0 | AI113: 122.8034176 | AJ113: 83.83442832 | AK113: 5.030065699 | AL113: 0 | AM113: 201.6077802 | AN113: 100 | AO113: 0
A114: 20160105:0345 | B114: 2016-01-05T12:00:00 | C114: 2016-01-05T12:00:00 | D114: 2016 | E114: 1 | F114: =LOOKUP(E114,Temperature!Q:Q,Temperature!R:R) -> 3 | G114: =LOOKUP(E114,Temperature!Q:Q,Temperature!S:S) -> 31 | H114: 2016-03-31 | I114: 977.52 | J114: 51.83 | K114: 28.77 | L114: 3.24 | M114: 0 | N114: 1200 | O114: 977.52 | P114: -0.2 | Q114: 0.1508 | R114: -0.03016 | S114: 948.0379968 | T114: 834.2734372 | U114: 100 | V114: 189.6075994 | W114: 100 | X114: 89.60759936 | Y114: 600 | Z114: 398.3922198 | AA114: 200 | AB114: 89.60759936 | AC114: 5.376455962 | AD114: 0 | AE114: 78 | AF114: 118.2313243 | AG114: 0 | AI114: 201.6077802 | AJ114: 89.60759936 | AK114: 5.376455962 | AL114: 0 | AM114: 285.8389236 | AN114: 100 | AO114: 0
A115: 20160105:0445 | B115: 2016-01-05T13:00:00 | C115: 2016-01-05T13:00:00 | D115: 2016 | E115: 1 | F115: =LOOKUP(E115,Temperature!Q:Q,Temperature!R:R) -> 3 | G115: =LOOKUP(E115,Temperature!Q:Q,Temperature!S:S) -> 31 | H115: 2016-03-31 | I115: 1013.08 | J115: 58.95 | K115: 29.13 | L115: 3.45 | M115: 0 | N115: 1200 | O115: 1013.08 | P115: -0.2 | Q115: 0.1652 | R115: -0.03304 | S115: 979.6078368 | T115: 862.0548964 | U115: 100 | V115: 195.9215674 | W115: 100 | X115: 95.92156736 | Y115: 600 | Z115: 314.1610764 | AA115: 200 | AB115: 95.92156736 | AC115: 5.755294042 | AD115: 0 | AE115: 78 | AF115: 202.0836296 | AG115: 0 | AI115: 285.8389236 | AJ115: 95.92156736 | AK115: 5.755294042 | AL115: 0 | AM115: 376.005197 | AN115: 100 | AO115: 0
A116: 20160105:0545 | B116: 2016-01-05T14:00:00 | C116: 2016-01-05T14:00:00 | D116: 2016 | E116: 1 | F116: =LOOKUP(E116,Temperature!Q:Q,Temperature!R:R) -> 3 | G116: =LOOKUP(E116,Temperature!Q:Q,Temperature!S:S) -> 31 | H116: 2016-03-31 | I116: 1080.04 | J116: 59.97 | K116: 29.35 | L116: 3.52 | M116: 0 | N116: 1200 | O116: 1080.04 | P116: -0.2 | Q116: 0.174 | R116: -0.0348 | S116: 1042.454608 | T116: 917.360055 | U116: 100 | V116: 208.4909216 | W116: 100 | X116: 108.4909216 | Y116: 600 | Z116: 223.994803 | AA116: 200 | AB116: 108.4909216 | AC116: 6.509455296 | AD116: 0 | AE116: 78 | AF116: 291.4957417 | AG116: 0 | AI116: 376.005197 | AJ116: 108.4909216 | AK116: 6.509455296 | AL116: 0 | AM116: 477.9866633 | AN116: 100 | AO116: 0
A117: 20160105:0645 | B117: 2016-01-05T15:00:00 | C117: 2016-01-05T15:00:00 | D117: 2016 | E117: 1 | F117: =LOOKUP(E117,Temperature!Q:Q,Temperature!R:R) -> 3 | G117: =LOOKUP(E117,Temperature!Q:Q,Temperature!S:S) -> 31 | H117: 2016-03-31 | I117: 1054.58 | J117: 54.35 | K117: 29.83 | L117: 3.17 | M117: 0 | N117: 1200 | O117: 1054.58 | P117: -0.2 | Q117: 0.1932 | R117: -0.03864 | S117: 1013.831029 | T117: 892.1713053 | U117: 100 | V117: 202.7662058 | W117: 100 | X117: 102.7662058 | Y117: 600 | Z117: 122.0133367 | AA117: 200 | AB117: 102.7662058 | AC117: 6.165972346 | AD117: 0 | AE117: 78 | AF117: 393.8206909 | AG117: 0 | AI117: 477.9866633 | AJ117: 102.7662058 | AK117: 6.165972346 | AL117: 0 | AM117: 574.5868967 | AN117: 100 | AO117: 0
A118: 20160105:0745 | B118: 2016-01-05T16:00:00 | C118: 2016-01-05T16:00:00 | D118: =YEAR(B118) -> 2016 | E118: 1 | F118: =LOOKUP(E118,Temperature!Q:Q,Temperature!R:R) -> 3 | G118: =LOOKUP(E118,Temperature!Q:Q,Temperature!S:S) -> 31 | H118: 2016-03-31 | I118: 1013.73 | J118: 44.49 | K118: 29.73 | L118: 3.1 | M118: 0 | N118: 1200 | O118: 1013.73 | P118: -0.2 | Q118: 0.1892 | R118: -0.03784 | S118: 975.3704568 | T118: 858.326002 | U118: 100 | V118: 195.0740914 | W118: 100 | X118: 95.07409136 | Y118: 600 | Z118: 25.41310332 | AA118: 200 | AB118: 25.41310332 | AC118: 1.524786199 | AD118: 0 | AE118: 78 | AF118: 495.0621105 | AG118: 0 | AI118: 574.5868967 | AJ118: 25.41310332 | AK118: 1.524786199 | AL118: 0 | AM118: 598.4752138 | AN118: =W118+AL118 -> 100 | AO118: 69.66098804
A119: 20160105:0845 | B119: =C119 -> 2016-01-05T17:00:00 | C119: 2016-01-05T17:00:00 | D119: 2016 | E119: =MONTH(B119) -> 1 | F119: =LOOKUP(E119,Temperature!Q:Q,Temperature!R:R) -> 3 | G119: =LOOKUP(E119,Temperature!Q:Q,Temperature!S:S) -> 31 | H119: =DATE(D119,F119,G119) -> 2016-03-31 | I119: 905.4 | J119: 32.56 | K119: 29.36 | L119: 3.03 | M119: 0 | N119: =N118 -> 1200 | O119: =IF(I119>N119,1000,I119) -> 905.4 | P119: =$P$6 -> -0.2 | Q119: =(K119-$Q$6)/$Q$6 -> 0.1744 | R119: =P119*Q119 -> -0.03488 | S119: =O119*(1+R119) -> 873.819648 | T119: =S119*(1-$T$6) -> 768.9612902 | U119: =$U$6 -> 100 | V119: =$V$6*S119/1000 -> 174.7639296 | W119: =MIN(V119,U119) -> 100 | X119: =V119-W119 -> 74.7639296 | Y119: =$Y$6 -> 600 | Z119: 1.524786199 | AA119: =$AA$6 -> 200 | AB119: =MIN(AA119,Z119,X119) -> 1.524786199 | AC119: =(1-$AC$6)*AB119 -> 0.09148717195 | AD119: =U119-W119 -> 0 | AE119: =MAX($Y$13*($AE$6),0) -> 78 | AF119: =MAX(AI119-AE119-AC119,0) -> 520.3837266 | AG119: =MIN($AG$6,AF119,AD119) -> 0 | AI119: 598.4752138 | AJ119: =AB119 -> 1.524786199 | AK119: =AC119 -> 0.09148717195 | AL119: =AG119 -> 0 | AM119: =AI119+AJ119-AL119-AK119 -> 599.9085128 | AN119: 100 | AO119: =V119-W119-AJ119 -> 73.2391434
A120: 20160105:0945 | B120: 2016-01-05T18:00:00 | C120: 2016-01-05T18:00:00 | D120: 2016 | E120: 1 | F120: =LOOKUP(E120,Temperature!Q:Q,Temperature!R:R) -> 3 | G120: =LOOKUP(E120,Temperature!Q:Q,Temperature!S:S) -> 31 | H120: 2016-03-31 | I120: 595.59 | J120: 19.61 | K120: 28.6 | L120: 2.76 | M120: 0 | N120: 1200 | O120: 595.59 | P120: -0.2 | Q120: 0.144 | R120: -0.0288 | S120: 578.437008 | T120: 509.024567 | U120: 100 | V120: 115.6874016 | W120: 100 | X120: 15.6874016 | Y120: 600 | Z120: 0.09148717195 | AA120: 200 | AB120: 0.09148717195 | AC120: 0.005489230317 | AD120: 0 | AE120: 78 | AF120: 521.9030236 | AG120: 0 | AI120: 599.9085128 | AJ120: 0.09148717195 | AK120: 0.005489230317 | AL120: 0 | AM120: 599.9945108 | AN120: 100 | AO120: 15.59591443
A121: 20160105:1045 | B121: 2016-01-05T19:00:00 | C121: 2016-01-05T19:00:00 | D121: 2016 | E121: 1 | F121: =LOOKUP(E121,Temperature!Q:Q,Temperature!R:R) -> 3 | G121: =LOOKUP(E121,Temperature!Q:Q,Temperature!S:S) -> 31 | H121: 2016-03-31 | I121: 33.86 | J121: 6.15 | K121: 27.5 | L121: 2.48 | M121: 0 | N121: 1200 | O121: 33.86 | P121: -0.2 | Q121: 0.1 | R121: -0.02 | S121: 33.1828 | T121: 29.200864 | U121: 100 | V121: 6.63656 | W121: 6.63656 | X121: 0 | Y121: 600 | Z121: 0.005489230317 | AA121: 200 | AB121: 0 | AC121: 0 | AD121: 93.36344 | AE121: 78 | AF121: 521.9945108 | AG121: 93.36344 | AI121: 599.9945108 | AJ121: 0 | AK121: 0 | AL121: 93.36344 | AM121: 506.6310708 | AN121: 100 | AO121: 0
A122: 20160105:1145 | B122: 2016-01-05T20:00:00 | C122: 2016-01-05T20:00:00 | D122: 2016 | E122: 1 | F122: =LOOKUP(E122,Temperature!Q:Q,Temperature!R:R) -> 3 | G122: =LOOKUP(E122,Temperature!Q:Q,Temperature!S:S) -> 31 | H122: 2016-03-31 | I122: 0 | J122: 0 | K122: 26.52 | L122: 2.34 | M122: 0 | N122: 1200 | O122: 0 | P122: -0.2 | Q122: 0.0608 | R122: -0.01216 | S122: 0 | T122: 0 | U122: 100 | V122: 0 | W122: 0 | X122: 0 | Y122: 600 | Z122: 93.36892923 | AA122: 200 | AB122: 0 | AC122: 0 | AD122: 100 | AE122: 78 | AF122: 428.6310708 | AG122: 100 | AI122: 506.6310708 | AJ122: 0 | AK122: 0 | AL122: 100 | AM122: 406.6310708 | AN122: 100 | AO122: 0
A123: 20160105:1245 | B123: 2016-01-05T21:00:00 | C123: 2016-01-05T21:00:00 | D123: 2016 | E123: 1 | F123: =LOOKUP(E123,Temperature!Q:Q,Temperature!R:R) -> 3 | G123: =LOOKUP(E123,Temperature!Q:Q,Temperature!S:S) -> 31 | H123: 2016-03-31 | I123: 0 | J123: 0 | K123: 26.02 | L123: 2.14 | M123: 0 | N123: 1200 | O123: 0 | P123: -0.2 | Q123: 0.0408 | R123: -0.00816 | S123: 0 | T123: 0 | U123: 100 | V123: 0 | W123: 0 | X123: 0 | Y123: 600 | Z123: 193.3689292 | AA123: 200 | AB123: 0 | AC123: 0 | AD123: 100 | AE123: 78 | AF123: 328.6310708 | AG123: 100 | AI123: 406.6310708 | AJ123: 0 | AK123: 0 | AL123: 100 | AM123: 306.6310708 | AN123: 100 | AO123: 0
A124: 20160105:1345 | B124: 2016-01-05T22:00:00 | C124: 2016-01-05T22:00:00 | D124: 2016 | E124: 1 | F124: =LOOKUP(E124,Temperature!Q:Q,Temperature!R:R) -> 3 | G124: =LOOKUP(E124,Temperature!Q:Q,Temperature!S:S) -> 31 | H124: 2016-03-31 | I124: 0 | J124: 0 | K124: 25.5 | L124: 1.79 | M124: 0 | N124: 1200 | O124: 0 | P124: -0.2 | Q124: 0.02 | R124: -0.004 | S124: 0 | T124: 0 | U124: 100 | V124: 0 | W124: 0 | X124: 0 | Y124: 600 | Z124: 293.3689292 | AA124: 200 | AB124: 0 | AC124: 0 | AD124: 100 | AE124: 78 | AF124: 228.6310708 | AG124: 100 | AI124: 306.6310708 | AJ124: 0 | AK124: 0 | AL124: 100 | AM124: 206.6310708 | AN124: 100 | AO124: 0
A125: 20160105:1445 | B125: 2016-01-05T23:00:00 | C125: 2016-01-05T23:00:00 | D125: 2016 | E125: 1 | F125: =LOOKUP(E125,Temperature!Q:Q,Temperature!R:R) -> 3 | G125: =LOOKUP(E125,Temperature!Q:Q,Temperature!S:S) -> 31 | H125: 2016-03-31 | I125: 0 | J125: 0 | K125: 25.1 | L125: 1.59 | M125: 0 | N125: 1200 | O125: 0 | P125: -0.2 | Q125: 0.004 | R125: -0.0008 | S125: 0 | T125: 0 | U125: 100 | V125: 0 | W125: 0 | X125: 0 | Y125: 600 | Z125: 393.3689292 | AA125: 200 | AB125: 0 | AC125: 0 | AD125: 100 | AE125: 78 | AF125: 128.6310708 | AG125: 100 | AI125: 206.6310708 | AJ125: 0 | AK125: 0 | AL125: 100 | AM125: 106.6310708 | AN125: 100 | AO125: 0
A126: 20160105:1545 | B126: 2016-01-06 | C126: 2016-01-06 | D126: 2016 | E126: 1 | F126: =LOOKUP(E126,Temperature!Q:Q,Temperature!R:R) -> 3 | G126: =LOOKUP(E126,Temperature!Q:Q,Temperature!S:S) -> 31 | H126: 2016-03-31 | I126: 0 | J126: 0 | K126: 24.78 | L126: 1.38 | M126: 0 | N126: 1200 | O126: 0 | P126: -0.2 | Q126: -0.0088 | R126: 0.00176 | S126: 0 | T126: 0 | U126: 100 | V126: 0 | W126: 0 | X126: 0 | Y126: 600 | Z126: 493.3689292 | AA126: 200 | AB126: 0 | AC126: 0 | AD126: 100 | AE126: 78 | AF126: 28.63107077 | AG126: 28.63107077 | AI126: 106.6310708 | AJ126: 0 | AK126: 0 | AL126: 28.63107077 | AM126: 78 | AN126: 28.63107077 | AO126: 0
A127: 20160105:1645 | B127: 2016-01-06T01:00:00 | C127: 2016-01-06T01:00:00 | D127: 2016 | E127: 1 | F127: =LOOKUP(E127,Temperature!Q:Q,Temperature!R:R) -> 3 | G127: =LOOKUP(E127,Temperature!Q:Q,Temperature!S:S) -> 31 | H127: 2016-03-31 | I127: 0 | J127: 0 | K127: 24.43 | L127: 1.38 | M127: 0 | N127: 1200 | O127: 0 | P127: -0.2 | Q127: -0.0228 | R127: 0.00456 | S127: 0 | T127: 0 | U127: 100 | V127: 0 | W127: 0 | X127: 0 | Y127: 600 | Z127: 522 | AA127: 200 | AB127: 0 | AC127: 0 | AD127: 100 | AE127: 78 | AF127: 0 | AG127: 0 | AI127: 78 | AJ127: 0 | AK127: 0 | AL127: 0 | AM127: 78 | AN127: 0 | AO127: 0
A128: 20160105:1745 | B128: 2016-01-06T02:00:00 | C128: 2016-01-06T02:00:00 | D128: 2016 | E128: 1 | F128: =LOOKUP(E128,Temperature!Q:Q,Temperature!R:R) -> 3 | G128: =LOOKUP(E128,Temperature!Q:Q,Temperature!S:S) -> 31 | H128: 2016-03-31 | I128: 0 | J128: 0 | K128: 24.15 | L128: 1.24 | M128: 0 | N128: 1200 | O128: 0 | P128: -0.2 | Q128: -0.034 | R128: 0.0068 | S128: 0 | T128: 0 | U128: 100 | V128: 0 | W128: 0 | X128: 0 | Y128: 600 | Z128: 522 | AA128: 200 | AB128: 0 | AC128: 0 | AD128: 100 | AE128: 78 | AF128: 0 | AG128: 0 | AI128: 78 | AJ128: 0 | AK128: 0 | AL128: 0 | AM128: 78 | AN128: 0 | AO128: 0
A129: 20160105:1845 | B129: 2016-01-06T03:00:00 | C129: 2016-01-06T03:00:00 | D129: 2016 | E129: 1 | F129: =LOOKUP(E129,Temperature!Q:Q,Temperature!R:R) -> 3 | G129: =LOOKUP(E129,Temperature!Q:Q,Temperature!S:S) -> 31 | H129: 2016-03-31 | I129: 0 | J129: 0 | K129: 24.2 | L129: 1.17 | M129: 0 | N129: 1200 | O129: 0 | P129: -0.2 | Q129: -0.032 | R129: 0.0064 | S129: 0 | T129: 0 | U129: 100 | V129: 0 | W129: 0 | X129: 0 | Y129: 600 | Z129: 522 | AA129: 200 | AB129: 0 | AC129: 0 | AD129: 100 | AE129: 78 | AF129: 0 | AG129: 0 | AI129: 78 | AJ129: 0 | AK129: 0 | AL129: 0 | AM129: 78 | AN129: 0 | AO129: 0
A130: 20160105:1945 | B130: 2016-01-06T04:00:00 | C130: 2016-01-06T04:00:00 | D130: 2016 | E130: 1 | F130: =LOOKUP(E130,Temperature!Q:Q,Temperature!R:R) -> 3 | G130: =LOOKUP(E130,Temperature!Q:Q,Temperature!S:S) -> 31 | H130: 2016-03-31 | I130: 0 | J130: 0 | K130: 23.92 | L130: 1.24 | M130: 0 | N130: 1200 | O130: 0 | P130: -0.2 | Q130: -0.0432 | R130: 0.00864 | S130: 0 | T130: 0 | U130: 100 | V130: 0 | W130: 0 | X130: 0 | Y130: 600 | Z130: 522 | AA130: 200 | AB130: 0 | AC130: 0 | AD130: 100 | AE130: 78 | AF130: 0 | AG130: 0 | AI130: 78 | AJ130: 0 | AK130: 0 | AL130: 0 | AM130: 78 | AN130: 0 | AO130: 0
A131: 20160105:2045 | B131: 2016-01-06T05:00:00 | C131: 2016-01-06T05:00:00 | D131: 2016 | E131: 1 | F131: =LOOKUP(E131,Temperature!Q:Q,Temperature!R:R) -> 3 | G131: =LOOKUP(E131,Temperature!Q:Q,Temperature!S:S) -> 31 | H131: 2016-03-31 | I131: 0 | J131: 0 | K131: 23.58 | L131: 1.24 | M131: 0 | N131: 1200 | O131: 0 | P131: -0.2 | Q131: -0.0568 | R131: 0.01136 | S131: 0 | T131: 0 | U131: 100 | V131: 0 | W131: 0 | X131: 0 | Y131: 600 | Z131: 522 | AA131: 200 | AB131: 0 | AC131: 0 | AD131: 100 | AE131: 78 | AF131: 0 | AG131: 0 | AI131: 78 | AJ131: 0 | AK131: 0 | AL131: 0 | AM131: 78 | AN131: 0 | AO131: 0
A132: 20160105:2145 | B132: 2016-01-06T06:00:00 | C132: 2016-01-06T06:00:00 | D132: 2016 | E132: 1 | F132: =LOOKUP(E132,Temperature!Q:Q,Temperature!R:R) -> 3 | G132: =LOOKUP(E132,Temperature!Q:Q,Temperature!S:S) -> 31 | H132: 2016-03-31 | I132: 0 | J132: 0 | K132: 23.26 | L132: 1.24 | M132: 0 | N132: 1200 | O132: 0 | P132: -0.2 | Q132: -0.0696 | R132: 0.01392 | S132: 0 | T132: 0 | U132: 100 | V132: 0 | W132: 0 | X132: 0 | Y132: 600 | Z132: 522 | AA132: 200 | AB132: 0 | AC132: 0 | AD132: 100 | AE132: 78 | AF132: 0 | AG132: 0 | AI132: 78 | AJ132: 0 | AK132: 0 | AL132: 0 | AM132: 78 | AN132: 0 | AO132: 0
A133: 20160105:2245 | B133: 2016-01-06T07:00:00 | C133: 2016-01-06T07:00:00 | D133: 2016 | E133: 1 | F133: =LOOKUP(E133,Temperature!Q:Q,Temperature!R:R) -> 3 | G133: =LOOKUP(E133,Temperature!Q:Q,Temperature!S:S) -> 31 | H133: 2016-03-31 | I133: 0 | J133: 0 | K133: 23.11 | L133: 1.24 | M133: 0 | N133: 1200 | O133: 0 | P133: -0.2 | Q133: -0.0756 | R133: 0.01512 | S133: 0 | T133: 0 | U133: 100 | V133: 0 | W133: 0 | X133: 0 | Y133: 600 | Z133: 522 | AA133: 200 | AB133: 0 | AC133: 0 | AD133: 100 | AE133: 78 | AF133: 0 | AG133: 0 | AI133: 78 | AJ133: 0 | AK133: 0 | AL133: 0 | AM133: 78 | AN133: 0 | AO133: 0
A134: 20160105:2345 | B134: 2016-01-06T08:00:00 | C134: 2016-01-06T08:00:00 | D134: 2016 | E134: 1 | F134: =LOOKUP(E134,Temperature!Q:Q,Temperature!R:R) -> 3 | G134: =LOOKUP(E134,Temperature!Q:Q,Temperature!S:S) -> 31 | H134: 2016-03-31 | I134: 53.65 | J134: 2.14 | K134: 23.09 | L134: 1.17 | M134: 0 | N134: 1200 | O134: 53.65 | P134: -0.2 | Q134: -0.0764 | R134: 0.01528 | S134: 54.469772 | T134: 47.93339936 | U134: 100 | V134: 10.8939544 | W134: 10.8939544 | X134: 0 | Y134: 600 | Z134: 522 | AA134: 200 | AB134: 0 | AC134: 0 | AD134: 89.1060456 | AE134: 78 | AF134: 0 | AG134: 0 | AI134: 78 | AJ134: 0 | AK134: 0 | AL134: 0 | AM134: 78 | AN134: 10.8939544 | AO134: 0
A135: 20160106:0045 | B135: 2016-01-06T09:00:00 | C135: 2016-01-06T09:00:00 | D135: 2016 | E135: 1 | F135: =LOOKUP(E135,Temperature!Q:Q,Temperature!R:R) -> 3 | G135: =LOOKUP(E135,Temperature!Q:Q,Temperature!S:S) -> 31 | H135: 2016-03-31 | I135: 476.17 | J135: 15.72 | K135: 25.22 | L135: 1.72 | M135: 0 | N135: 1200 | O135: 476.17 | P135: -0.2 | Q135: 0.0088 | R135: -0.00176 | S135: 475.3319408 | T135: 418.2921079 | U135: 100 | V135: 95.06638816 | W135: 95.06638816 | X135: 0 | Y135: 600 | Z135: 522 | AA135: 200 | AB135: 0 | AC135: 0 | AD135: 4.93361184 | AE135: 78 | AF135: 0 | AG135: 0 | AI135: 78 | AJ135: 0 | AK135: 0 | AL135: 0 | AM135: 78 | AN135: 95.06638816 | AO135: 0
A136: 20160106:0145 | B136: 2016-01-06T10:00:00 | C136: 2016-01-06T10:00:00 | D136: 2016 | E136: 1 | F136: =LOOKUP(E136,Temperature!Q:Q,Temperature!R:R) -> 3 | G136: =LOOKUP(E136,Temperature!Q:Q,Temperature!S:S) -> 31 | H136: 2016-03-31 | I136: 772.06 | J136: 28.87 | K136: 26.8 | L136: 2.55 | M136: 0 | N136: 1200 | O136: 772.06 | P136: -0.2 | Q136: 0.072 | R136: -0.0144 | S136: 760.942336 | T136: 669.6292557 | U136: 100 | V136: 152.1884672 | W136: 100 | X136: 52.1884672 | Y136: 600 | Z136: 522 | AA136: 200 | AB136: 52.1884672 | AC136: 3.131308032 | AD136: 0 | AE136: 78 | AF136: 0 | AG136: 0 | AI136: 78 | AJ136: 52.1884672 | AK136: 3.131308032 | AL136: 0 | AM136: 127.0571592 | AN136: 100 | AO136: 0
A137: 20160106:0245 | B137: 2016-01-06T11:00:00 | C137: 2016-01-06T11:00:00 | D137: 2016 | E137: 1 | F137: =LOOKUP(E137,Temperature!Q:Q,Temperature!R:R) -> 3 | G137: =LOOKUP(E137,Temperature!Q:Q,Temperature!S:S) -> 31 | H137: 2016-03-31 | I137: 957.82 | J137: 41.19 | K137: 28.24 | L137: 3.24 | M137: 0 | N137: 1200 | O137: 957.82 | P137: -0.2 | Q137: 0.1296 | R137: -0.02592 | S137: 932.9933056 | T137: 821.0341089 | U137: 100 | V137: 186.5986611 | W137: 100 | X137: 86.59866112 | Y137: 600 | Z137: 472.9428408 | AA137: 200 | AB137: 86.59866112 | AC137: 5.195919667 | AD137: 0 | AE137: 78 | AF137: 43.8612395 | AG137: 0 | AI137: 127.0571592 | AJ137: 86.59866112 | AK137: 5.195919667 | AL137: 0 | AM137: 208.4599006 | AN137: 100 | AO137: 0
A138: 20160106:0345 | B138: 2016-01-06T12:00:00 | C138: 2016-01-06T12:00:00 | D138: 2016 | E138: 1 | F138: =LOOKUP(E138,Temperature!Q:Q,Temperature!R:R) -> 3 | G138: =LOOKUP(E138,Temperature!Q:Q,Temperature!S:S) -> 31 | H138: 2016-03-31 | I138: 1042.92 | J138: 51.85 | K138: 29.13 | L138: 3.38 | M138: 0 | N138: 1200 | O138: 1042.92 | P138: -0.2 | Q138: 0.1652 | R138: -0.03304 | S138: 1008.461923 | T138: 887.4464924 | U138: 100 | V138: 201.6923846 | W138: 100 | X138: 101.6923846 | Y138: 600 | Z138: 391.5400994 | AA138: 200 | AB138: 101.6923846 | AC138: 6.101543078 | AD138: 0 | AE138: 78 | AF138: 124.3583575 | AG138: 0 | AI138: 208.4599006 | AJ138: 101.6923846 | AK138: 6.101543078 | AL138: 0 | AM138: 304.0507422 | AN138: 100 | AO138: 0
A139: 20160106:0445 | B139: 2016-01-06T13:00:00 | C139: 2016-01-06T13:00:00 | D139: 2016 | E139: 1 | F139: =LOOKUP(E139,Temperature!Q:Q,Temperature!R:R) -> 3 | G139: =LOOKUP(E139,Temperature!Q:Q,Temperature!S:S) -> 31 | H139: 2016-03-31 | I139: 1071.72 | J139: 59.03 | K139: 29.84 | L139: 3.59 | M139: 0 | N139: 1200 | O139: 1071.72 | P139: -0.2 | Q139: 0.1936 | R139: -0.03872 | S139: 1030.223002 | T139: 906.5962414 | U139: 100 | V139: 206.0446003 | W139: 100 | X139: 106.0446003 | Y139: 600 | Z139: 295.9492578 | AA139: 200 | AB139: 106.0446003 | AC139: 6.362676019 | AD139: 0 | AE139: 78 | AF139: 219.6880662 | AG139: 0 | AI139: 304.0507422 | AJ139: 106.0446003 | AK139: 6.362676019 | AL139: 0 | AM139: 403.7326665 | AN139: 100 | AO139: 0
A140: 20160106:0545 | B140: 2016-01-06T14:00:00 | C140: 2016-01-06T14:00:00 | D140: 2016 | E140: 1 | F140: =LOOKUP(E140,Temperature!Q:Q,Temperature!R:R) -> 3 | G140: =LOOKUP(E140,Temperature!Q:Q,Temperature!S:S) -> 31 | H140: 2016-03-31 | I140: 1091.96 | J140: 60.1 | K140: 29.97 | L140: 3.79 | M140: 0 | N140: 1200 | O140: 1091.96 | P140: -0.2 | Q140: 0.1988 | R140: -0.03976 | S140: 1048.54367 | T140: 922.71843 | U140: 100 | V140: 209.7087341 | W140: 100 | X140: 109.7087341 | Y140: 600 | Z140: 196.2673335 | AA140: 200 | AB140: 109.7087341 | AC140: 6.582524045 | AD140: 0 | AE140: 78 | AF140: 319.1501424 | AG140: 0 | AI140: 403.7326665 | AJ140: 109.7087341 | AK140: 6.582524045 | AL140: 0 | AM140: 506.8588765 | AN140: 100 | AO140: 0
A141: 20160106:0645 | B141: 2016-01-06T15:00:00 | C141: 2016-01-06T15:00:00 | D141: 2016 | E141: 1 | F141: =LOOKUP(E141,Temperature!Q:Q,Temperature!R:R) -> 3 | G141: =LOOKUP(E141,Temperature!Q:Q,Temperature!S:S) -> 31 | H141: 2016-03-31 | I141: 1053.91 | J141: 54.5 | K141: 29.9 | L141: 3.38 | M141: 0 | N141: 1200 | O141: 1053.91 | P141: -0.2 | Q141: 0.196 | R141: -0.0392 | S141: 1012.596728 | T141: 891.0851206 | U141: 100 | V141: 202.5193456 | W141: 100 | X141: 102.5193456 | Y141: 600 | Z141: 93.14112348 | AA141: 200 | AB141: 93.14112348 | AC141: 5.588467409 | AD141: 0 | AE141: 78 | AF141: 423.2704091 | AG141: 0 | AI141: 506.8588765 | AJ141: 93.14112348 | AK141: 5.588467409 | AL141: 0 | AM141: 594.4115326 | AN141: 100 | AO141: 9.378222118
A142: 20160106:0745 | B142: 2016-01-06T16:00:00 | C142: 2016-01-06T16:00:00 | D142: 2016 | E142: 1 | F142: =LOOKUP(E142,Temperature!Q:Q,Temperature!R:R) -> 3 | G142: =LOOKUP(E142,Temperature!Q:Q,Temperature!S:S) -> 31 | H142: 2016-03-31 | I142: 1029.44 | J142: 44.64 | K142: 29.22 | L142: 3.31 | M142: 0 | N142: 1200 | O142: 1029.44 | P142: -0.2 | Q142: 0.1688 | R142: -0.03376 | S142: 994.6861056 | T142: 875.3237729 | U142: 100 | V142: 198.9372211 | W142: 100 | X142: 98.93722112 | Y142: 600 | Z142: =Y142-AI142 -> 5.588467409 | AA142: 200 | AB142: 5.588467409 | AC142: 0.3353080445 | AD142: 0 | AE142: 78 | AF142: 516.0762245 | AG142: 0 | AI142: =AM141 -> 594.4115326 | AJ142: 5.588467409 | AK142: 0.3353080445 | AL142: 0 | AM142: 599.664692 | AN142: 100 | AO142: 93.34875371
A143: 20160106:0845 | B143: 2016-01-06T17:00:00 | C143: =C142+1/24 -> 2016-01-06T17:00:00 | D143: 2016 | E143: 1 | F143: =LOOKUP(E143,Temperature!Q:Q,Temperature!R:R) -> 3 | G143: =LOOKUP(E143,Temperature!Q:Q,Temperature!S:S) -> 31 | H143: 2016-03-31 | I143: 876.42 | J143: 32.7 | K143: 29.01 | L143: 3.45 | M143: 0 | N143: 1200 | O143: 876.42 | P143: -0.2 | Q143: 0.1604 | R143: -0.03208 | S143: 848.3044464 | T143: 746.5079128 | U143: 100 | V143: 169.6608893 | W143: 100 | X143: 69.66088928 | Y143: 600 | Z143: 0.3353080445 | AA143: 200 | AB143: 0.3353080445 | AC143: 0.02011848267 | AD143: 0 | AE143: 78 | AF143: 521.6445735 | AG143: 0 | AI143: 599.664692 | AJ143: 0.3353080445 | AK143: 0.02011848267 | AL143: 0 | AM143: 599.9798815 | AN143: 100 | AO143: 69.32558124
A144: 20160106:0945 | B144: 2016-01-06T18:00:00 | C144: 2016-01-06T18:00:00 | D144: 2016 | E144: 1 | F144: =LOOKUP(E144,Temperature!Q:Q,Temperature!R:R) -> 3 | G144: =LOOKUP(E144,Temperature!Q:Q,Temperature!S:S) -> 31 | H144: 2016-03-31 | I144: 535.02 | J144: 19.74 | K144: 28.36 | L144: 3.1 | M144: 0 | N144: 1200 | O144: 535.02 | P144: -0.2 | Q144: 0.1344 | R144: -0.02688 | S144: 520.6386624 | T144: 458.1620229 | U144: 100 | V144: 104.1277325 | W144: 100 | X144: 4.12773248 | Y144: 600 | Z144: 0.02011848267 | AA144: 200 | AB144: 0.02011848267 | AC144: 0.00120710896 | AD144: 0 | AE144: 78 | AF144: 521.9786744 | AG144: 0 | AI144: 599.9798815 | AJ144: 0.02011848267 | AK144: 0.00120710896 | AL144: 0 | AM144: 599.9987929 | AN144: 100 | AO144: 4.107613997
A145: 20160106:1045 | B145: 2016-01-06T19:00:00 | C145: 2016-01-06T19:00:00 | D145: 2016 | E145: 1 | F145: =LOOKUP(E145,Temperature!Q:Q,Temperature!R:R) -> 3 | G145: =LOOKUP(E145,Temperature!Q:Q,Temperature!S:S) -> 31 | H145: 2016-03-31 | I145: 34.7 | J145: 6.27 | K145: 27.47 | L145: 2.62 | M145: 0 | N145: 1200 | O145: 34.7 | P145: -0.2 | Q145: 0.0988 | R145: -0.01976 | S145: 34.014328 | T145: 29.93260864 | U145: 100 | V145: 6.8028656 | W145: 6.8028656 | X145: 0 | Y145: 600 | Z145: 0.00120710896 | AA145: 200 | AB145: 0 | AC145: 0 | AD145: 93.1971344 | AE145: 78 | AF145: 521.9987929 | AG145: 93.1971344 | AI145: 599.9987929 | AJ145: 0 | AK145: 0 | AL145: 93.1971344 | AM145: 506.8016585 | AN145: 100 | AO145: 0
A146: 20160106:1145 | B146: 2016-01-06T20:00:00 | C146: 2016-01-06T20:00:00 | D146: 2016 | E146: 1 | F146: =LOOKUP(E146,Temperature!Q:Q,Temperature!R:R) -> 3 | G146: =LOOKUP(E146,Temperature!Q:Q,Temperature!S:S) -> 31 | H146: 2016-03-31 | I146: 0 | J146: 0 | K146: 26.64 | L146: 2.34 | M146: 0 | N146: 1200 | O146: 0 | P146: -0.2 | Q146: 0.0656 | R146: -0.01312 | S146: 0 | T146: 0 | U146: 100 | V146: 0 | W146: 0 | X146: 0 | Y146: 600 | Z146: 93.19834151 | AA146: 200 | AB146: 0 | AC146: 0 | AD146: 100 | AE146: 78 | AF146: 428.8016585 | AG146: 100 | AI146: 506.8016585 | AJ146: 0 | AK146: 0 | AL146: 100 | AM146: 406.8016585 | AN146: 100 | AO146: 0
A147: 20160106:1245 | B147: 2016-01-06T21:00:00 | C147: 2016-01-06T21:00:00 | D147: 2016 | E147: 1 | F147: =LOOKUP(E147,Temperature!Q:Q,Temperature!R:R) -> 3 | G147: =LOOKUP(E147,Temperature!Q:Q,Temperature!S:S) -> 31 | H147: 2016-03-31 | I147: 0 | J147: 0 | K147: 26.02 | L147: 2.21 | M147: 0 | N147: 1200 | O147: 0 | P147: -0.2 | Q147: 0.0408 | R147: -0.00816 | S147: 0 | T147: 0 | U147: 100 | V147: 0 | W147: 0 | X147: 0 | Y147: 600 | Z147: 193.1983415 | AA147: 200 | AB147: 0 | AC147: 0 | AD147: 100 | AE147: 78 | AF147: 328.8016585 | AG147: 100 | AI147: 406.8016585 | AJ147: 0 | AK147: 0 | AL147: 100 | AM147: 306.8016585 | AN147: 100 | AO147: 0
A148: 20160106:1345 | B148: 2016-01-06T22:00:00 | C148: 2016-01-06T22:00:00 | D148: 2016 | E148: 1 | F148: =LOOKUP(E148,Temperature!Q:Q,Temperature!R:R) -> 3 | G148: =LOOKUP(E148,Temperature!Q:Q,Temperature!S:S) -> 31 | H148: 2016-03-31 | I148: 0 | J148: 0 | K148: 25.47 | L148: 2.07 | M148: 0 | N148: 1200 | O148: 0 | P148: -0.2 | Q148: 0.0188 | R148: -0.00376 | S148: 0 | T148: 0 | U148: 100 | V148: 0 | W148: 0 | X148: 0 | Y148: 600 | Z148: 293.1983415 | AA148: 200 | AB148: 0 | AC148: 0 | AD148: 100 | AE148: 78 | AF148: 228.8016585 | AG148: 100 | AI148: 306.8016585 | AJ148: 0 | AK148: 0 | AL148: 100 | AM148: 206.8016585 | AN148: 100 | AO148: 0
A149: 20160106:1445 | B149: 2016-01-06T23:00:00 | C149: 2016-01-06T23:00:00 | D149: 2016 | E149: 1 | F149: =LOOKUP(E149,Temperature!Q:Q,Temperature!R:R) -> 3 | G149: =LOOKUP(E149,Temperature!Q:Q,Temperature!S:S) -> 31 | H149: 2016-03-31 | I149: 0 | J149: 0 | K149: 25.1 | L149: 1.86 | M149: 0 | N149: 1200 | O149: 0 | P149: -0.2 | Q149: 0.004 | R149: -0.0008 | S149: 0 | T149: 0 | U149: 100 | V149: 0 | W149: 0 | X149: 0 | Y149: 600 | Z149: 393.1983415 | AA149: 200 | AB149: 0 | AC149: 0 | AD149: 100 | AE149: 78 | AF149: 128.8016585 | AG149: 100 | AI149: 206.8016585 | AJ149: 0 | AK149: 0 | AL149: 100 | AM149: 106.8016585 | AN149: 100 | AO149: 0
A150: 20160106:1545 | B150: 2016-01-07 | C150: 2016-01-07 | D150: 2016 | E150: 1 | F150: =LOOKUP(E150,Temperature!Q:Q,Temperature!R:R) -> 3 | G150: =LOOKUP(E150,Temperature!Q:Q,Temperature!S:S) -> 31 | H150: 2016-03-31 | I150: 0 | J150: 0 | K150: 24.73 | L150: 1.72 | M150: 0 | N150: 1200 | O150: 0 | P150: -0.2 | Q150: -0.0108 | R150: 0.00216 | S150: 0 | T150: 0 | U150: 100 | V150: 0 | W150: 0 | X150: 0 | Y150: 600 | Z150: 493.1983415 | AA150: 200 | AB150: 0 | AC150: 0 | AD150: 100 | AE150: 78 | AF150: 28.80165849 | AG150: 28.80165849 | AI150: 106.8016585 | AJ150: 0 | AK150: 0 | AL150: 28.80165849 | AM150: 78 | AN150: 28.80165849 | AO150: 0
A151: 20160106:1645 | B151: 2016-01-07T01:00:00 | C151: 2016-01-07T01:00:00 | D151: 2016 | E151: 1 | F151: =LOOKUP(E151,Temperature!Q:Q,Temperature!R:R) -> 3 | G151: =LOOKUP(E151,Temperature!Q:Q,Temperature!S:S) -> 31 | H151: 2016-03-31 | I151: 0 | J151: 0 | K151: 24.4 | L151: 1.66 | M151: 0 | N151: 1200 | O151: 0 | P151: -0.2 | Q151: -0.024 | R151: 0.0048 | S151: 0 | T151: 0 | U151: 100 | V151: 0 | W151: 0 | X151: 0 | Y151: 600 | Z151: 522 | AA151: 200 | AB151: 0 | AC151: 0 | AD151: 100 | AE151: 78 | AF151: 0 | AG151: 0 | AI151: 78 | AJ151: 0 | AK151: 0 | AL151: 0 | AM151: 78 | AN151: 0 | AO151: 0
A152: 20160106:1745 | B152: 2016-01-07T02:00:00 | C152: 2016-01-07T02:00:00 | D152: 2016 | E152: 1 | F152: =LOOKUP(E152,Temperature!Q:Q,Temperature!R:R) -> 3 | G152: =LOOKUP(E152,Temperature!Q:Q,Temperature!S:S) -> 31 | H152: 2016-03-31 | I152: 0 | J152: 0 | K152: 24.15 | L152: 1.59 | M152: 0 | N152: 1200 | O152: 0 | P152: -0.2 | Q152: -0.034 | R152: 0.0068 | S152: 0 | T152: 0 | U152: 100 | V152: 0 | W152: 0 | X152: 0 | Y152: 600 | Z152: 522 | AA152: 200 | AB152: 0 | AC152: 0 | AD152: 100 | AE152: 78 | AF152: 0 | AG152: 0 | AI152: 78 | AJ152: 0 | AK152: 0 | AL152: 0 | AM152: 78 | AN152: 0 | AO152: 0
A153: 20160106:1845 | B153: 2016-01-07T03:00:00 | C153: 2016-01-07T03:00:00 | D153: 2016 | E153: 1 | F153: =LOOKUP(E153,Temperature!Q:Q,Temperature!R:R) -> 3 | G153: =LOOKUP(E153,Temperature!Q:Q,Temperature!S:S) -> 31 | H153: 2016-03-31 | I153: 0 | J153: 0 | K153: 24.36 | L153: 1.52 | M153: 0 | N153: 1200 | O153: 0 | P153: -0.2 | Q153: -0.0256 | R153: 0.00512 | S153: 0 | T153: 0 | U153: 100 | V153: 0 | W153: 0 | X153: 0 | Y153: 600 | Z153: 522 | AA153: 200 | AB153: 0 | AC153: 0 | AD153: 100 | AE153: 78 | AF153: 0 | AG153: 0 | AI153: 78 | AJ153: 0 | AK153: 0 | AL153: 0 | AM153: 78 | AN153: 0 | AO153: 0
A154: 20160106:1945 | B154: 2016-01-07T04:00:00 | C154: 2016-01-07T04:00:00 | D154: 2016 | E154: 1 | F154: =LOOKUP(E154,Temperature!Q:Q,Temperature!R:R) -> 3 | G154: =LOOKUP(E154,Temperature!Q:Q,Temperature!S:S) -> 31 | H154: 2016-03-31 | I154: 0 | J154: 0 | K154: 24.04 | L154: 1.52 | M154: 0 | N154: 1200 | O154: 0 | P154: -0.2 | Q154: -0.0384 | R154: 0.00768 | S154: 0 | T154: 0 | U154: 100 | V154: 0 | W154: 0 | X154: 0 | Y154: 600 | Z154: 522 | AA154: 200 | AB154: 0 | AC154: 0 | AD154: 100 | AE154: 78 | AF154: 0 | AG154: 0 | AI154: 78 | AJ154: 0 | AK154: 0 | AL154: 0 | AM154: 78 | AN154: 0 | AO154: 0
A155: 20160106:2045 | B155: 2016-01-07T05:00:00 | C155: 2016-01-07T05:00:00 | D155: 2016 | E155: 1 | F155: =LOOKUP(E155,Temperature!Q:Q,Temperature!R:R) -> 3 | G155: =LOOKUP(E155,Temperature!Q:Q,Temperature!S:S) -> 31 | H155: 2016-03-31 | I155: 0 | J155: 0 | K155: 23.78 | L155: 1.52 | M155: 0 | N155: 1200 | O155: 0 | P155: -0.2 | Q155: -0.0488 | R155: 0.00976 | S155: 0 | T155: 0 | U155: 100 | V155: 0 | W155: 0 | X155: 0 | Y155: 600 | Z155: 522 | AA155: 200 | AB155: 0 | AC155: 0 | AD155: 100 | AE155: 78 | AF155: 0 | AG155: 0 | AI155: 78 | AJ155: 0 | AK155: 0 | AL155: 0 | AM155: 78 | AN155: 0 | AO155: 0
A156: 20160106:2145 | B156: 2016-01-07T06:00:00 | C156: 2016-01-07T06:00:00 | D156: 2016 | E156: 1 | F156: =LOOKUP(E156,Temperature!Q:Q,Temperature!R:R) -> 3 | G156: =LOOKUP(E156,Temperature!Q:Q,Temperature!S:S) -> 31 | H156: 2016-03-31 | I156: 0 | J156: 0 | K156: 23.6 | L156: 1.59 | M156: 0 | N156: 1200 | O156: 0 | P156: -0.2 | Q156: -0.056 | R156: 0.0112 | S156: 0 | T156: 0 | U156: 100 | V156: 0 | W156: 0 | X156: 0 | Y156: 600 | Z156: 522 | AA156: 200 | AB156: 0 | AC156: 0 | AD156: 100 | AE156: 78 | AF156: 0 | AG156: 0 | AI156: 78 | AJ156: 0 | AK156: 0 | AL156: 0 | AM156: 78 | AN156: 0 | AO156: 0
A157: 20160106:2245 | B157: 2016-01-07T07:00:00 | C157: 2016-01-07T07:00:00 | D157: 2016 | E157: 1 | F157: =LOOKUP(E157,Temperature!Q:Q,Temperature!R:R) -> 3 | G157: =LOOKUP(E157,Temperature!Q:Q,Temperature!S:S) -> 31 | H157: 2016-03-31 | I157: 0 | J157: 0 | K157: 23.46 | L157: 1.52 | M157: 0 | N157: 1200 | O157: 0 | P157: -0.2 | Q157: -0.0616 | R157: 0.01232 | S157: 0 | T157: 0 | U157: 100 | V157: 0 | W157: 0 | X157: 0 | Y157: 600 | Z157: 522 | AA157: 200 | AB157: 0 | AC157: 0 | AD157: 100 | AE157: 78 | AF157: 0 | AG157: 0 | AI157: 78 | AJ157: 0 | AK157: 0 | AL157: 0 | AM157: 78 | AN157: 0 | AO157: 0
A158: 20160106:2345 | B158: 2016-01-07T08:00:00 | C158: 2016-01-07T08:00:00 | D158: 2016 | E158: 1 | F158: =LOOKUP(E158,Temperature!Q:Q,Temperature!R:R) -> 3 | G158: =LOOKUP(E158,Temperature!Q:Q,Temperature!S:S) -> 31 | H158: 2016-03-31 | I158: 24.55 | J158: 2.07 | K158: 23.34 | L158: 1.31 | M158: 0 | N158: 1200 | O158: 24.55 | P158: -0.2 | Q158: -0.0664 | R158: 0.01328 | S158: 24.876024 | T158: 21.89090112 | U158: 100 | V158: 4.9752048 | W158: 4.9752048 | X158: 0 | Y158: 600 | Z158: 522 | AA158: 200 | AB158: 0 | AC158: 0 | AD158: 95.0247952 | AE158: 78 | AF158: 0 | AG158: 0 | AI158: 78 | AJ158: 0 | AK158: 0 | AL158: 0 | AM158: 78 | AN158: 4.9752048 | AO158: 0
A159: 20160107:0045 | B159: 2016-01-07T09:00:00 | C159: 2016-01-07T09:00:00 | D159: 2016 | E159: 1 | F159: =LOOKUP(E159,Temperature!Q:Q,Temperature!R:R) -> 3 | G159: =LOOKUP(E159,Temperature!Q:Q,Temperature!S:S) -> 31 | H159: 2016-03-31 | I159: 189.85 | J159: 15.66 | K159: 25.14 | L159: 1.86 | M159: 0 | N159: 1200 | O159: 189.85 | P159: -0.2 | Q159: 0.0056 | R159: -0.00112 | S159: 189.637368 | T159: 166.8808838 | U159: 100 | V159: 37.9274736 | W159: 37.9274736 | X159: 0 | Y159: 600 | Z159: 522 | AA159: 200 | AB159: 0 | AC159: 0 | AD159: 62.0725264 | AE159: 78 | AF159: 0 | AG159: 0 | AI159: 78 | AJ159: 0 | AK159: 0 | AL159: 0 | AM159: 78 | AN159: 37.9274736 | AO159: 0
A160: 20160107:0145 | B160: 2016-01-07T10:00:00 | C160: 2016-01-07T10:00:00 | D160: 2016 | E160: 1 | F160: =LOOKUP(E160,Temperature!Q:Q,Temperature!R:R) -> 3 | G160: =LOOKUP(E160,Temperature!Q:Q,Temperature!S:S) -> 31 | H160: 2016-03-31 | I160: 770.7 | J160: 28.82 | K160: 26.81 | L160: 3.45 | M160: 0 | N160: 1200 | O160: 770.7 | P160: -0.2 | Q160: 0.0724 | R160: -0.01448 | S160: 759.540264 | T160: 668.3954323 | U160: 100 | V160: 151.9080528 | W160: 100 | X160: 51.9080528 | Y160: 600 | Z160: 522 | AA160: 200 | AB160: 51.9080528 | AC160: 3.114483168 | AD160: 0 | AE160: 78 | AF160: 0 | AG160: 0 | AI160: 78 | AJ160: 51.9080528 | AK160: 3.114483168 | AL160: 0 | AM160: 126.7935696 | AN160: 100 | AO160: 0
A161: 20160107:0245 | B161: 2016-01-07T11:00:00 | C161: 2016-01-07T11:00:00 | D161: 2016 | E161: 1 | F161: =LOOKUP(E161,Temperature!Q:Q,Temperature!R:R) -> 3 | G161: =LOOKUP(E161,Temperature!Q:Q,Temperature!S:S) -> 31 | H161: 2016-03-31 | I161: 1021.17 | J161: 41.18 | K161: 27.92 | L161: 3.93 | M161: 0 | N161: 1200 | O161: 1021.17 | P161: -0.2 | Q161: 0.1168 | R161: -0.02336 | S161: 997.3154688 | T161: 877.6376125 | U161: 100 | V161: 199.4630938 | W161: 100 | X161: 99.46309376 | Y161: 600 | Z161: 473.2064304 | AA161: 200 | AB161: 99.46309376 | AC161: 5.967785626 | AD161: 0 | AE161: 78 | AF161: 42.82578401 | AG161: 0 | AI161: 126.7935696 | AJ161: 99.46309376 | AK161: 5.967785626 | AL161: 0 | AM161: 220.2888778 | AN161: 100 | AO161: 0
A162: 20160107:0345 | B162: 2016-01-07T12:00:00 | C162: 2016-01-07T12:00:00 | D162: 2016 | E162: 1 | F162: =LOOKUP(E162,Temperature!Q:Q,Temperature!R:R) -> 3 | G162: =LOOKUP(E162,Temperature!Q:Q,Temperature!S:S) -> 31 | H162: 2016-03-31 | I162: 1069.36 | J162: 51.88 | K162: 28.9 | L162: 4.07 | M162: 0 | N162: 1200 | O162: 1069.36 | P162: -0.2 | Q162: 0.156 | R162: -0.0312 | S162: 1035.995968 | T162: 911.6764518 | U162: 100 | V162: 207.1991936 | W162: 100 | X162: 107.1991936 | Y162: 600 | Z162: 379.7111222 | AA162: 200 | AB162: 107.1991936 | AC162: 6.431951616 | AD162: 0 | AE162: 78 | AF162: 135.8569262 | AG162: 0 | AI162: 220.2888778 | AJ162: 107.1991936 | AK162: 6.431951616 | AL162: 0 | AM162: 321.0561198 | AN162: 100 | AO162: 0
A163: 20160107:0445 | B163: 2016-01-07T13:00:00 | C163: 2016-01-07T13:00:00 | D163: 2016 | E163: 1 | F163: =LOOKUP(E163,Temperature!Q:Q,Temperature!R:R) -> 3 | G163: =LOOKUP(E163,Temperature!Q:Q,Temperature!S:S) -> 31 | H163: 2016-03-31 | I163: 1026.25 | J163: 59.11 | K163: 29.8 | L163: 4.14 | M163: 0 | N163: 1200 | O163: 1026.25 | P163: -0.2 | Q163: 0.192 | R163: -0.0384 | S163: 986.842 | T163: 868.42096 | U163: 100 | V163: 197.3684 | W163: 100 | X163: 97.3684 | Y163: 600 | Z163: 278.9438802 | AA163: 200 | AB163: 97.3684 | AC163: 5.842104 | AD163: 0 | AE163: 78 | AF163: 237.2140158 | AG163: 0 | AI163: 321.0561198 | AJ163: 97.3684 | AK163: 5.842104 | AL163: 0 | AM163: 412.5824158 | AN163: 100 | AO163: 0
A164: 20160107:0545 | B164: 2016-01-07T14:00:00 | C164: 2016-01-07T14:00:00 | D164: 2016 | E164: 1 | F164: =LOOKUP(E164,Temperature!Q:Q,Temperature!R:R) -> 3 | G164: =LOOKUP(E164,Temperature!Q:Q,Temperature!S:S) -> 31 | H164: 2016-03-31 | I164: 952.05 | J164: 60.24 | K164: 30.04 | L164: 4.28 | M164: 0 | N164: 1200 | O164: 952.05 | P164: -0.2 | Q164: 0.2016 | R164: -0.04032 | S164: 913.663344 | T164: 804.0237427 | U164: 100 | V164: 182.7326688 | W164: 100 | X164: 82.7326688 | Y164: 600 | Z164: 187.4175842 | AA164: 200 | AB164: 82.7326688 | AC164: 4.963960128 | AD164: 0 | AE164: 78 | AF164: 329.6184556 | AG164: 0 | AI164: 412.5824158 | AJ164: 82.7326688 | AK164: 4.963960128 | AL164: 0 | AM164: 490.3511244 | AN164: 100 | AO164: 0
A165: 20160107:0645 | B165: 2016-01-07T15:00:00 | C165: 2016-01-07T15:00:00 | D165: 2016 | E165: 1 | F165: =LOOKUP(E165,Temperature!Q:Q,Temperature!R:R) -> 3 | G165: =LOOKUP(E165,Temperature!Q:Q,Temperature!S:S) -> 31 | H165: 2016-03-31 | I165: 991.25 | J165: 54.65 | K165: 30.42 | L165: 4.14 | M165: 0 | N165: 1200 | O165: 991.25 | P165: -0.2 | Q165: 0.2168 | R165: -0.04336 | S165: 948.2694 | T165: 834.477072 | U165: 100 | V165: 189.65388 | W165: 100 | X165: 89.65388 | Y165: 600 | Z165: 109.6488756 | AA165: 200 | AB165: 89.65388 | AC165: 5.3792328 | AD165: 0 | AE165: 78 | AF165: 406.9718916 | AG165: 0 | AI165: 490.3511244 | AJ165: 89.65388 | AK165: 5.3792328 | AL165: 0 | AM165: 574.6257716 | AN165: 100 | AO165: 0
A166: 20160107:0745 | B166: 2016-01-07T16:00:00 | C166: 2016-01-07T16:00:00 | D166: 2016 | E166: 1 | F166: =LOOKUP(E166,Temperature!Q:Q,Temperature!R:R) -> 3 | G166: =LOOKUP(E166,Temperature!Q:Q,Temperature!S:S) -> 31 | H166: 2016-03-31 | I166: 962.33 | J166: 44.79 | K166: 29.91 | L166: 3.93 | M166: 0 | N166: 1200 | O166: 962.33 | P166: -0.2 | Q166: 0.1964 | R166: -0.03928 | S166: 924.5296776 | T166: 813.5861163 | U166: 100 | V166: 184.9059355 | W166: 100 | X166: 84.90593552 | Y166: 600 | Z166: 25.37422838 | AA166: 200 | AB166: 25.37422838 | AC166: 1.522453703 | AD166: 0 | AE166: 78 | AF166: 495.1033179 | AG166: 0 | AI166: 574.6257716 | AJ166: 25.37422838 | AK166: 1.522453703 | AL166: 0 | AM166: 598.4775463 | AN166: 100 | AO166: 59.53170714
A167: 20160107:0845 | B167: 2016-01-07T17:00:00 | C167: 2016-01-07T17:00:00 | D167: 2016 | E167: 1 | F167: =LOOKUP(E167,Temperature!Q:Q,Temperature!R:R) -> 3 | G167: =LOOKUP(E167,Temperature!Q:Q,Temperature!S:S) -> 31 | H167: 2016-03-31 | I167: 750.4 | J167: 32.84 | K167: 29.6 | L167: 3.72 | M167: 0 | N167: 1200 | O167: 750.4 | P167: -0.2 | Q167: 0.184 | R167: -0.0368 | S167: 722.78528 | T167: 636.0510464 | U167: 100 | V167: 144.557056 | W167: 100 | X167: 44.557056 | Y167: 600 | Z167: 1.522453703 | AA167: 200 | AB167: 1.522453703 | AC167: 0.09134722216 | AD167: 0 | AE167: 78 | AF167: 520.3861991 | AG167: 0 | AI167: 598.4775463 | AJ167: 1.522453703 | AK167: 0.09134722216 | AL167: 0 | AM167: 599.9086528 | AN167: 100 | AO167: 43.0346023
A168: 20160107:0945 | B168: 2016-01-07T18:00:00 | C168: 2016-01-07T18:00:00 | D168: 2016 | E168: 1 | F168: =LOOKUP(E168,Temperature!Q:Q,Temperature!R:R) -> 3 | G168: =LOOKUP(E168,Temperature!Q:Q,Temperature!S:S) -> 31 | H168: 2016-03-31 | I168: 651.65 | J168: 19.87 | K168: 28.73 | L168: 3.17 | M168: 0 | N168: 1200 | O168: 651.65 | P168: -0.2 | Q168: 0.1492 | R168: -0.02984 | S168: 632.204764 | T168: 556.3401923 | U168: 100 | V168: 126.4409528 | W168: 100 | X168: 26.4409528 | Y168: 600 | Z168: 0.09134722216 | AA168: 200 | AB168: 0.09134722216 | AC168: 0.00548083333 | AD168: 0 | AE168: 78 | AF168: 521.9031719 | AG168: 0 | AI168: 599.9086528 | AJ168: 0.09134722216 | AK168: 0.00548083333 | AL168: 0 | AM168: 599.9945192 | AN168: 100 | AO168: 26.34960558
A169: 20160107:1045 | B169: 2016-01-07T19:00:00 | C169: 2016-01-07T19:00:00 | D169: 2016 | E169: 1 | F169: =LOOKUP(E169,Temperature!Q:Q,Temperature!R:R) -> 3 | G169: =LOOKUP(E169,Temperature!Q:Q,Temperature!S:S) -> 31 | H169: 2016-03-31 | I169: 32.17 | J169: 6.38 | K169: 27.58 | L169: 2.76 | M169: 0 | N169: 1200 | O169: 32.17 | P169: -0.2 | Q169: 0.1032 | R169: -0.02064 | S169: 31.5060112 | T169: 27.72528986 | U169: 100 | V169: 6.30120224 | W169: 6.30120224 | X169: 0 | Y169: 600 | Z169: 0.00548083333 | AA169: 200 | AB169: 0 | AC169: 0 | AD169: 93.69879776 | AE169: 78 | AF169: 521.9945192 | AG169: 93.69879776 | AI169: 599.9945192 | AJ169: 0 | AK169: 0 | AL169: 93.69879776 | AM169: 506.2957214 | AN169: 100 | AO169: 0
A170: 20160107:1145 | B170: 2016-01-07T20:00:00 | C170: 2016-01-07T20:00:00 | D170: 2016 | E170: 1 | F170: =LOOKUP(E170,Temperature!Q:Q,Temperature!R:R) -> 3 | G170: =LOOKUP(E170,Temperature!Q:Q,Temperature!S:S) -> 31 | H170: 2016-03-31 | I170: 0 | J170: 0 | K170: 26.64 | L170: 2.62 | M170: 0 | N170: 1200 | O170: 0 | P170: -0.2 | Q170: 0.0656 | R170: -0.01312 | S170: 0 | T170: 0 | U170: 100 | V170: 0 | W170: 0 | X170: 0 | Y170: 600 | Z170: 93.70427859 | AA170: 200 | AB170: 0 | AC170: 0 | AD170: 100 | AE170: 78 | AF170: 428.2957214 | AG170: 100 | AI170: 506.2957214 | AJ170: 0 | AK170: 0 | AL170: 100 | AM170: 406.2957214 | AN170: 100 | AO170: 0
A171: 20160107:1245 | B171: 2016-01-07T21:00:00 | C171: 2016-01-07T21:00:00 | D171: 2016 | E171: 1 | F171: =LOOKUP(E171,Temperature!Q:Q,Temperature!R:R) -> 3 | G171: =LOOKUP(E171,Temperature!Q:Q,Temperature!S:S) -> 31 | H171: 2016-03-31 | I171: 0 | J171: 0 | K171: 26.04 | L171: 2.62 | M171: 0 | N171: 1200 | O171: 0 | P171: -0.2 | Q171: 0.0416 | R171: -0.00832 | S171: 0 | T171: 0 | U171: 100 | V171: 0 | W171: 0 | X171: 0 | Y171: 600 | Z171: 193.7042786 | AA171: 200 | AB171: 0 | AC171: 0 | AD171: 100 | AE171: 78 | AF171: 328.2957214 | AG171: 100 | AI171: 406.2957214 | AJ171: 0 | AK171: 0 | AL171: 100 | AM171: 306.2957214 | AN171: 100 | AO171: 0
A172: 20160107:1345 | B172: 2016-01-07T22:00:00 | C172: 2016-01-07T22:00:00 | D172: 2016 | E172: 1 | F172: =LOOKUP(E172,Temperature!Q:Q,Temperature!R:R) -> 3 | G172: =LOOKUP(E172,Temperature!Q:Q,Temperature!S:S) -> 31 | H172: 2016-03-31 | I172: 0 | J172: 0 | K172: 25.55 | L172: 2.41 | M172: 0 | N172: 1200 | O172: 0 | P172: -0.2 | Q172: 0.022 | R172: -0.0044 | S172: 0 | T172: 0 | U172: 100 | V172: 0 | W172: 0 | X172: 0 | Y172: 600 | Z172: 293.7042786 | AA172: 200 | AB172: 0 | AC172: 0 | AD172: 100 | AE172: 78 | AF172: 228.2957214 | AG172: 100 | AI172: 306.2957214 | AJ172: 0 | AK172: 0 | AL172: 100 | AM172: 206.2957214 | AN172: 100 | AO172: 0
A173: 20160107:1445 | B173: 2016-01-07T23:00:00 | C173: 2016-01-07T23:00:00 | D173: 2016 | E173: 1 | F173: =LOOKUP(E173,Temperature!Q:Q,Temperature!R:R) -> 3 | G173: =LOOKUP(E173,Temperature!Q:Q,Temperature!S:S) -> 31 | H173: 2016-03-31 | I173: 0 | J173: 0 | K173: 25.16 | L173: 2.14 | M173: 0 | N173: 1200 | O173: 0 | P173: -0.2 | Q173: 0.0064 | R173: -0.00128 | S173: 0 | T173: 0 | U173: 100 | V173: 0 | W173: 0 | X173: 0 | Y173: 600 | Z173: 393.7042786 | AA173: 200 | AB173: 0 | AC173: 0 | AD173: 100 | AE173: 78 | AF173: 128.2957214 | AG173: 100 | AI173: 206.2957214 | AJ173: 0 | AK173: 0 | AL173: 100 | AM173: 106.2957214 | AN173: 100 | AO173: 0
A174: 20160107:1545 | B174: 2016-01-08 | C174: 2016-01-08 | D174: 2016 | E174: 1 | F174: =LOOKUP(E174,Temperature!Q:Q,Temperature!R:R) -> 3 | G174: =LOOKUP(E174,Temperature!Q:Q,Temperature!S:S) -> 31 | H174: 2016-03-31 | I174: 0 | J174: 0 | K174: 24.71 | L174: 1.79 | M174: 0 | N174: 1200 | O174: 0 | P174: -0.2 | Q174: -0.0116 | R174: 0.00232 | S174: 0 | T174: 0 | U174: 100 | V174: 0 | W174: 0 | X174: 0 | Y174: 600 | Z174: 493.7042786 | AA174: 200 | AB174: 0 | AC174: 0 | AD174: 100 | AE174: 78 | AF174: 28.29572141 | AG174: 28.29572141 | AI174: 106.2957214 | AJ174: 0 | AK174: 0 | AL174: 28.29572141 | AM174: 78 | AN174: 28.29572141 | AO174: 0
A175: 20160107:1645 | B175: 2016-01-08T01:00:00 | C175: 2016-01-08T01:00:00 | D175: 2016 | E175: 1 | F175: =LOOKUP(E175,Temperature!Q:Q,Temperature!R:R) -> 3 | G175: =LOOKUP(E175,Temperature!Q:Q,Temperature!S:S) -> 31 | H175: 2016-03-31 | I175: 0 | J175: 0 | K175: 24.37 | L175: 1.66 | M175: 0 | N175: 1200 | O175: 0 | P175: -0.2 | Q175: -0.0252 | R175: 0.00504 | S175: 0 | T175: 0 | U175: 100 | V175: 0 | W175: 0 | X175: 0 | Y175: 600 | Z175: 522 | AA175: 200 | AB175: 0 | AC175: 0 | AD175: 100 | AE175: 78 | AF175: 0 | AG175: 0 | AI175: 78 | AJ175: 0 | AK175: 0 | AL175: 0 | AM175: 78 | AN175: 0 | AO175: 0
A176: 20160107:1745 | B176: 2016-01-08T02:00:00 | C176: 2016-01-08T02:00:00 | D176: 2016 | E176: 1 | F176: =LOOKUP(E176,Temperature!Q:Q,Temperature!R:R) -> 3 | G176: =LOOKUP(E176,Temperature!Q:Q,Temperature!S:S) -> 31 | H176: 2016-03-31 | I176: 0 | J176: 0 | K176: 24.11 | L176: 1.66 | M176: 0 | N176: 1200 | O176: 0 | P176: -0.2 | Q176: -0.0356 | R176: 0.00712 | S176: 0 | T176: 0 | U176: 100 | V176: 0 | W176: 0 | X176: 0 | Y176: 600 | Z176: 522 | AA176: 200 | AB176: 0 | AC176: 0 | AD176: 100 | AE176: 78 | AF176: 0 | AG176: 0 | AI176: 78 | AJ176: 0 | AK176: 0 | AL176: 0 | AM176: 78 | AN176: 0 | AO176: 0
A177: 20160107:1845 | B177: 2016-01-08T03:00:00 | C177: 2016-01-08T03:00:00 | D177: 2016 | E177: 1 | F177: =LOOKUP(E177,Temperature!Q:Q,Temperature!R:R) -> 3 | G177: =LOOKUP(E177,Temperature!Q:Q,Temperature!S:S) -> 31 | H177: 2016-03-31 | I177: 0 | J177: 0 | K177: 24.06 | L177: 1.38 | M177: 0 | N177: 1200 | O177: 0 | P177: -0.2 | Q177: -0.0376 | R177: 0.00752 | S177: 0 | T177: 0 | U177: 100 | V177: 0 | W177: 0 | X177: 0 | Y177: 600 | Z177: 522 | AA177: 200 | AB177: 0 | AC177: 0 | AD177: 100 | AE177: 78 | AF177: 0 | AG177: 0 | AI177: 78 | AJ177: 0 | AK177: 0 | AL177: 0 | AM177: 78 | AN177: 0 | AO177: 0
A178: 20160107:1945 | B178: 2016-01-08T04:00:00 | C178: 2016-01-08T04:00:00 | D178: 2016 | E178: 1 | F178: =LOOKUP(E178,Temperature!Q:Q,Temperature!R:R) -> 3 | G178: =LOOKUP(E178,Temperature!Q:Q,Temperature!S:S) -> 31 | H178: 2016-03-31 | I178: 0 | J178: 0 | K178: 23.59 | L178: 1.17 | M178: 0 | N178: 1200 | O178: 0 | P178: -0.2 | Q178: -0.0564 | R178: 0.01128 | S178: 0 | T178: 0 | U178: 100 | V178: 0 | W178: 0 | X178: 0 | Y178: 600 | Z178: 522 | AA178: 200 | AB178: 0 | AC178: 0 | AD178: 100 | AE178: 78 | AF178: 0 | AG178: 0 | AI178: 78 | AJ178: 0 | AK178: 0 | AL178: 0 | AM178: 78 | AN178: 0 | AO178: 0
A179: 20160107:2045 | B179: 2016-01-08T05:00:00 | C179: 2016-01-08T05:00:00 | D179: 2016 | E179: 1 | F179: =LOOKUP(E179,Temperature!Q:Q,Temperature!R:R) -> 3 | G179: =LOOKUP(E179,Temperature!Q:Q,Temperature!S:S) -> 31 | H179: 2016-03-31 | I179: 0 | J179: 0 | K179: 23.17 | L179: 1.17 | M179: 0 | N179: 1200 | O179: 0 | P179: -0.2 | Q179: -0.0732 | R179: 0.01464 | S179: 0 | T179: 0 | U179: 100 | V179: 0 | W179: 0 | X179: 0 | Y179: 600 | Z179: 522 | AA179: 200 | AB179: 0 | AC179: 0 | AD179: 100 | AE179: 78 | AF179: 0 | AG179: 0 | AI179: 78 | AJ179: 0 | AK179: 0 | AL179: 0 | AM179: 78 | AN179: 0 | AO179: 0
A180: 20160107:2145 | B180: 2016-01-08T06:00:00 | C180: 2016-01-08T06:00:00 | D180: 2016 | E180: 1 | F180: =LOOKUP(E180,Temperature!Q:Q,Temperature!R:R) -> 3 | G180: =LOOKUP(E180,Temperature!Q:Q,Temperature!S:S) -> 31 | H180: 2016-03-31 | I180: 0 | J180: 0 | K180: 22.86 | L180: 1.17 | M180: 0 | N180: 1200 | O180: 0 | P180: -0.2 | Q180: -0.0856 | R180: 0.01712 | S180: 0 | T180: 0 | U180: 100 | V180: 0 | W180: 0 | X180: 0 | Y180: 600 | Z180: 522 | AA180: 200 | AB180: 0 | AC180: 0 | AD180: 100 | AE180: 78 | AF180: 0 | AG180: 0 | AI180: 78 | AJ180: 0 | AK180: 0 | AL180: 0 | AM180: 78 | AN180: 0 | AO180: 0
A181: 20160107:2245 | B181: 2016-01-08T07:00:00 | C181: 2016-01-08T07:00:00 | D181: 2016 | E181: 1 | F181: =LOOKUP(E181,Temperature!Q:Q,Temperature!R:R) -> 3 | G181: =LOOKUP(E181,Temperature!Q:Q,Temperature!S:S) -> 31 | H181: 2016-03-31 | I181: 0 | J181: 0 | K181: 22.61 | L181: 1.24 | M181: 0 | N181: 1200 | O181: 0 | P181: -0.2 | Q181: -0.0956 | R181: 0.01912 | S181: 0 | T181: 0 | U181: 100 | V181: 0 | W181: 0 | X181: 0 | Y181: 600 | Z181: 522 | AA181: 200 | AB181: 0 | AC181: 0 | AD181: 100 | AE181: 78 | AF181: 0 | AG181: 0 | AI181: 78 | AJ181: 0 | AK181: 0 | AL181: 0 | AM181: 78 | AN181: 0 | AO181: 0
A182: 20160107:2345 | B182: 2016-01-08T08:00:00 | C182: 2016-01-08T08:00:00 | D182: =YEAR(B182) -> 2016 | E182: 1 | F182: =LOOKUP(E182,Temperature!Q:Q,Temperature!R:R) -> 3 | G182: =LOOKUP(E182,Temperature!Q:Q,Temperature!S:S) -> 31 | H182: 2016-03-31 | I182: 55.47 | J182: 1.99 | K182: 22.54 | L182: 1.24 | M182: 0 | N182: 1200 | O182: 55.47 | P182: -0.2 | Q182: -0.0984 | R182: 0.01968 | S182: 56.5616496 | T182: 49.77425165 | U182: 100 | V182: 11.31232992 | W182: 11.31232992 | X182: 0 | Y182: 600 | Z182: 522 | AA182: 200 | AB182: 0 | AC182: 0 | AD182: 88.68767008 | AE182: 78 | AF182: 0 | AG182: 0 | AI182: 78 | AJ182: 0 | AK182: 0 | AL182: 0 | AM182: 78 | AN182: =W182+AL182 -> 11.31232992 | AO182: 0
A183: 20160108:0045 | B183: =C183 -> 2016-01-08T09:00:00 | C183: 2016-01-08T09:00:00 | D183: 2016 | E183: =MONTH(B183) -> 1 | F183: =LOOKUP(E183,Temperature!Q:Q,Temperature!R:R) -> 3 | G183: =LOOKUP(E183,Temperature!Q:Q,Temperature!S:S) -> 31 | H183: =DATE(D183,F183,G183) -> 2016-03-31 | I183: 279.04 | J183: 15.6 | K183: 25.11 | L183: 1.45 | M183: 0 | N183: =N182 -> 1200 | O183: =IF(I183>N183,1000,I183) -> 279.04 | P183: =$P$6 -> -0.2 | Q183: =(K183-$Q$6)/$Q$6 -> 0.0044 | R183: =P183*Q183 -> -0.00088 | S183: =O183*(1+R183) -> 278.7944448 | T183: =S183*(1-$T$6) -> 245.3391114 | U183: =$U$6 -> 100 | V183: =$V$6*S183/1000 -> 55.75888896 | W183: =MIN(V183,U183) -> 55.75888896 | X183: =V183-W183 -> 0 | Y183: =$Y$6 -> 600 | Z183: 522 | AA183: =$AA$6 -> 200 | AB183: =MIN(AA183,Z183,X183) -> 0 | AC183: =(1-$AC$6)*AB183 -> 0 | AD183: =U183-W183 -> 44.24111104 | AE183: =MAX($Y$13*($AE$6),0) -> 78 | AF183: =MAX(AI183-AE183-AC183,0) -> 0 | AG183: =MIN($AG$6,AF183,AD183) -> 0 | AI183: 78 | AJ183: =AB183 -> 0 | AK183: =AC183 -> 0 | AL183: =AG183 -> 0 | AM183: =AI183+AJ183-AL183-AK183 -> 78 | AN183: 55.75888896 | AO183: =V183-W183-AJ183 -> 0
A184: 20160108:0145 | B184: 2016-01-08T10:00:00 | C184: 2016-01-08T10:00:00 | D184: 2016 | E184: 1 | F184: =LOOKUP(E184,Temperature!Q:Q,Temperature!R:R) -> 3 | G184: =LOOKUP(E184,Temperature!Q:Q,Temperature!S:S) -> 31 | H184: 2016-03-31 | I184: 792.64 | J184: 28.79 | K184: 26.78 | L184: 3.24 | M184: 0 | N184: 1200 | O184: 792.64 | P184: -0.2 | Q184: 0.0712 | R184: -0.01424 | S184: 781.3528064 | T184: 687.5904696 | U184: 100 | V184: 156.2705613 | W184: 100 | X184: 56.27056128 | Y184: 600 | Z184: 522 | AA184: 200 | AB184: 56.27056128 | AC184: 3.376233677 | AD184: 0 | AE184: 78 | AF184: 0 | AG184: 0 | AI184: 78 | AJ184: 56.27056128 | AK184: 3.376233677 | AL184: 0 | AM184: 130.8943276 | AN184: 100 | AO184: 0
A185: 20160108:0245 | B185: 2016-01-08T11:00:00 | C185: 2016-01-08T11:00:00 | D185: 2016 | E185: 1 | F185: =LOOKUP(E185,Temperature!Q:Q,Temperature!R:R) -> 3 | G185: =LOOKUP(E185,Temperature!Q:Q,Temperature!S:S) -> 31 | H185: 2016-03-31 | I185: 917.78 | J185: 41.17 | K185: 28.3 | L185: 3.72 | M185: 0 | N185: 1200 | O185: 917.78 | P185: -0.2 | Q185: 0.132 | R185: -0.0264 | S185: 893.550608 | T185: 786.324535 | U185: 100 | V185: 178.7101216 | W185: 100 | X185: 78.7101216 | Y185: 600 | Z185: 469.1056724 | AA185: 200 | AB185: 78.7101216 | AC185: 4.722607296 | AD185: 0 | AE185: 78 | AF185: 48.17172031 | AG185: 0 | AI185: 130.8943276 | AJ185: 78.7101216 | AK185: 4.722607296 | AL185: 0 | AM185: 204.8818419 | AN185: 100 | AO185: 0
A186: 20160108:0345 | B186: 2016-01-08T12:00:00 | C186: 2016-01-08T12:00:00 | D186: 2016 | E186: 1 | F186: =LOOKUP(E186,Temperature!Q:Q,Temperature!R:R) -> 3 | G186: =LOOKUP(E186,Temperature!Q:Q,Temperature!S:S) -> 31 | H186: 2016-03-31 | I186: 947.28 | J186: 51.91 | K186: 29.14 | L186: 3.93 | M186: 0 | N186: 1200 | O186: 947.28 | P186: -0.2 | Q186: 0.1656 | R186: -0.03312 | S186: 915.9060864 | T186: 805.997356 | U186: 100 | V186: 183.1812173 | W186: 100 | X186: 83.18121728 | Y186: 600 | Z186: 395.1181581 | AA186: 200 | AB186: 83.18121728 | AC186: 4.990873037 | AD186: 0 | AE186: 78 | AF186: 121.8909689 | AG186: 0 | AI186: 204.8818419 | AJ186: 83.18121728 | AK186: 4.990873037 | AL186: 0 | AM186: 283.0721862 | AN186: 100 | AO186: 0
A187: 20160108:0445 | B187: 2016-01-08T13:00:00 | C187: 2016-01-08T13:00:00 | D187: 2016 | E187: 1 | F187: =LOOKUP(E187,Temperature!Q:Q,Temperature!R:R) -> 3 | G187: =LOOKUP(E187,Temperature!Q:Q,Temperature!S:S) -> 31 | H187: 2016-03-31 | I187: 949.51 | J187: 59.21 | K187: 29.34 | L187: 4.07 | M187: 0 | N187: 1200 | O187: 949.51 | P187: -0.2 | Q187: 0.1736 | R187: -0.03472 | S187: 916.5430128 | T187: 806.5578513 | U187: 100 | V187: 183.3086026 | W187: 100 | X187: 83.30860256 | Y187: 600 | Z187: 316.9278138 | AA187: 200 | AB187: 83.30860256 | AC187: 4.998516154 | AD187: 0 | AE187: 78 | AF187: 200.07367 | AG187: 0 | AI187: 283.0721862 | AJ187: 83.30860256 | AK187: 4.998516154 | AL187: 0 | AM187: 361.3822726 | AN187: 100 | AO187: 0
A188: 20160108:0545 | B188: 2016-01-08T14:00:00 | C188: 2016-01-08T14:00:00 | D188: 2016 | E188: 1 | F188: =LOOKUP(E188,Temperature!Q:Q,Temperature!R:R) -> 3 | G188: =LOOKUP(E188,Temperature!Q:Q,Temperature!S:S) -> 31 | H188: 2016-03-31 | I188: 986.78 | J188: 60.38 | K188: 29.71 | L188: 4.34 | M188: 0 | N188: 1200 | O188: 986.78 | P188: -0.2 | Q188: 0.1884 | R188: -0.03768 | S188: 949.5981296 | T188: 835.646354 | U188: 100 | V188: 189.9196259 | W188: 100 | X188: 89.91962592 | Y188: 600 | Z188: 238.6177274 | AA188: 200 | AB188: 89.91962592 | AC188: 5.395177555 | AD188: 0 | AE188: 78 | AF188: 277.987095 | AG188: 0 | AI188: 361.3822726 | AJ188: 89.91962592 | AK188: 5.395177555 | AL188: 0 | AM188: 445.9067209 | AN188: 100 | AO188: 0
A189: 20160108:0645 | B189: 2016-01-08T15:00:00 | C189: 2016-01-08T15:00:00 | D189: 2016 | E189: 1 | F189: =LOOKUP(E189,Temperature!Q:Q,Temperature!R:R) -> 3 | G189: =LOOKUP(E189,Temperature!Q:Q,Temperature!S:S) -> 31 | H189: 2016-03-31 | I189: 1006.09 | J189: 54.82 | K189: 29.98 | L189: 4 | M189: 0 | N189: 1200 | O189: 1006.09 | P189: -0.2 | Q189: 0.1992 | R189: -0.03984 | S189: 966.0073744 | T189: 850.0864895 | U189: 100 | V189: 193.2014749 | W189: 100 | X189: 93.20147488 | Y189: 600 | Z189: 154.0932791 | AA189: 200 | AB189: 93.20147488 | AC189: 5.592088493 | AD189: 0 | AE189: 78 | AF189: 362.3146324 | AG189: 0 | AI189: 445.9067209 | AJ189: 93.20147488 | AK189: 5.592088493 | AL189: 0 | AM189: 533.5161073 | AN189: 100 | AO189: 0
A190: 20160108:0745 | B190: 2016-01-08T16:00:00 | C190: 2016-01-08T16:00:00 | D190: 2016 | E190: 1 | F190: =LOOKUP(E190,Temperature!Q:Q,Temperature!R:R) -> 3 | G190: =LOOKUP(E190,Temperature!Q:Q,Temperature!S:S) -> 31 | H190: 2016-03-31 | I190: 755.03 | J190: 44.95 | K190: 29.72 | L190: 3.86 | M190: 0 | N190: 1200 | O190: 755.03 | P190: -0.2 | Q190: 0.1888 | R190: -0.03776 | S190: 726.5200672 | T190: 639.3376591 | U190: 100 | V190: 145.3040134 | W190: 100 | X190: 45.30401344 | Y190: 600 | Z190: 66.48389269 | AA190: 200 | AB190: 45.30401344 | AC190: 2.718240806 | AD190: 0 | AE190: 78 | AF190: 452.7978665 | AG190: 0 | AI190: 533.5161073 | AJ190: 45.30401344 | AK190: 2.718240806 | AL190: 0 | AM190: 576.1018799 | AN190: 100 | AO190: 0
A191: 20160108:0845 | B191: 2016-01-08T17:00:00 | C191: 2016-01-08T17:00:00 | D191: 2016 | E191: 1 | F191: =LOOKUP(E191,Temperature!Q:Q,Temperature!R:R) -> 3 | G191: =LOOKUP(E191,Temperature!Q:Q,Temperature!S:S) -> 31 | H191: 2016-03-31 | I191: 816.55 | J191: 32.98 | K191: 29.29 | L191: 3.72 | M191: 0 | N191: 1200 | O191: 816.55 | P191: -0.2 | Q191: 0.1716 | R191: -0.03432 | S191: 788.526004 | T191: 693.9028835 | U191: 100 | V191: 157.7052008 | W191: 100 | X191: 57.7052008 | Y191: 600 | Z191: 23.89812006 | AA191: 200 | AB191: 23.89812006 | AC191: 1.433887203 | AD191: 0 | AE191: 78 | AF191: 496.6679927 | AG191: 0 | AI191: 576.1018799 | AJ191: 23.89812006 | AK191: 1.433887203 | AL191: 0 | AM191: 598.5661128 | AN191: 100 | AO191: 33.80708074
A192: 20160108:0945 | B192: 2016-01-08T18:00:00 | C192: 2016-01-08T18:00:00 | D192: 2016 | E192: 1 | F192: =LOOKUP(E192,Temperature!Q:Q,Temperature!R:R) -> 3 | G192: =LOOKUP(E192,Temperature!Q:Q,Temperature!S:S) -> 31 | H192: 2016-03-31 | I192: 546.53 | J192: 20 | K192: 28.61 | L192: 3.31 | M192: 0 | N192: 1200 | O192: 546.53 | P192: -0.2 | Q192: 0.1444 | R192: -0.02888 | S192: 530.7462136 | T192: 467.056668 | U192: 100 | V192: 106.1492427 | W192: 100 | X192: 6.14924272 | Y192: 600 | Z192: 1.433887203 | AA192: 200 | AB192: 1.433887203 | AC192: 0.08603323221 | AD192: 0 | AE192: 78 | AF192: 520.4800796 | AG192: 0 | AI192: 598.5661128 | AJ192: 1.433887203 | AK192: 0.08603323221 | AL192: 0 | AM192: 599.9139668 | AN192: 100 | AO192: 4.715355517
A193: 20160108:1045 | B193: 2016-01-08T19:00:00 | C193: 2016-01-08T19:00:00 | D193: 2016 | E193: 1 | F193: =LOOKUP(E193,Temperature!Q:Q,Temperature!R:R) -> 3 | G193: =LOOKUP(E193,Temperature!Q:Q,Temperature!S:S) -> 31 | H193: 2016-03-31 | I193: 29.63 | J193: 6.5 | K193: 27.67 | L193: 2.97 | M193: 0 | N193: 1200 | O193: 29.63 | P193: -0.2 | Q193: 0.1068 | R193: -0.02136 | S193: 28.9971032 | T193: 25.51745082 | U193: 100 | V193: 5.79942064 | W193: 5.79942064 | X193: 0 | Y193: 600 | Z193: 0.08603323221 | AA193: 200 | AB193: 0 | AC193: 0 | AD193: 94.20057936 | AE193: 78 | AF193: 521.9139668 | AG193: 94.20057936 | AI193: 599.9139668 | AJ193: 0 | AK193: 0 | AL193: 94.20057936 | AM193: 505.7133874 | AN193: 100 | AO193: 0
A194: 20160108:1145 | B194: 2016-01-08T20:00:00 | C194: 2016-01-08T20:00:00 | D194: 2016 | E194: 1 | F194: =LOOKUP(E194,Temperature!Q:Q,Temperature!R:R) -> 3 | G194: =LOOKUP(E194,Temperature!Q:Q,Temperature!S:S) -> 31 | H194: 2016-03-31 | I194: 0 | J194: 0 | K194: 26.67 | L194: 2.76 | M194: 0 | N194: 1200 | O194: 0 | P194: -0.2 | Q194: 0.0668 | R194: -0.01336 | S194: 0 | T194: 0 | U194: 100 | V194: 0 | W194: 0 | X194: 0 | Y194: 600 | Z194: 94.28661259 | AA194: 200 | AB194: 0 | AC194: 0 | AD194: 100 | AE194: 78 | AF194: 427.7133874 | AG194: 100 | AI194: 505.7133874 | AJ194: 0 | AK194: 0 | AL194: 100 | AM194: 405.7133874 | AN194: 100 | AO194: 0
A195: 20160108:1245 | B195: 2016-01-08T21:00:00 | C195: 2016-01-08T21:00:00 | D195: 2016 | E195: 1 | F195: =LOOKUP(E195,Temperature!Q:Q,Temperature!R:R) -> 3 | G195: =LOOKUP(E195,Temperature!Q:Q,Temperature!S:S) -> 31 | H195: 2016-03-31 | I195: 0 | J195: 0 | K195: 26.07 | L195: 2.55 | M195: 0 | N195: 1200 | O195: 0 | P195: -0.2 | Q195: 0.0428 | R195: -0.00856 | S195: 0 | T195: 0 | U195: 100 | V195: 0 | W195: 0 | X195: 0 | Y195: 600 | Z195: 194.2866126 | AA195: 200 | AB195: 0 | AC195: 0 | AD195: 100 | AE195: 78 | AF195: 327.7133874 | AG195: 100 | AI195: 405.7133874 | AJ195: 0 | AK195: 0 | AL195: 100 | AM195: 305.7133874 | AN195: 100 | AO195: 0
A196: 20160108:1345 | B196: 2016-01-08T22:00:00 | C196: 2016-01-08T22:00:00 | D196: 2016 | E196: 1 | F196: =LOOKUP(E196,Temperature!Q:Q,Temperature!R:R) -> 3 | G196: =LOOKUP(E196,Temperature!Q:Q,Temperature!S:S) -> 31 | H196: 2016-03-31 | I196: 0 | J196: 0 | K196: 25.6 | L196: 2.41 | M196: 0 | N196: 1200 | O196: 0 | P196: -0.2 | Q196: 0.024 | R196: -0.0048 | S196: 0 | T196: 0 | U196: 100 | V196: 0 | W196: 0 | X196: 0 | Y196: 600 | Z196: 294.2866126 | AA196: 200 | AB196: 0 | AC196: 0 | AD196: 100 | AE196: 78 | AF196: 227.7133874 | AG196: 100 | AI196: 305.7133874 | AJ196: 0 | AK196: 0 | AL196: 100 | AM196: 205.7133874 | AN196: 100 | AO196: 0
A197: 20160108:1445 | B197: 2016-01-08T23:00:00 | C197: 2016-01-08T23:00:00 | D197: 2016 | E197: 1 | F197: =LOOKUP(E197,Temperature!Q:Q,Temperature!R:R) -> 3 | G197: =LOOKUP(E197,Temperature!Q:Q,Temperature!S:S) -> 31 | H197: 2016-03-31 | I197: 0 | J197: 0 | K197: 25.23 | L197: 2.28 | M197: 0 | N197: 1200 | O197: 0 | P197: -0.2 | Q197: 0.0092 | R197: -0.00184 | S197: 0 | T197: 0 | U197: 100 | V197: 0 | W197: 0 | X197: 0 | Y197: 600 | Z197: 394.2866126 | AA197: 200 | AB197: 0 | AC197: 0 | AD197: 100 | AE197: 78 | AF197: 127.7133874 | AG197: 100 | AI197: 205.7133874 | AJ197: 0 | AK197: 0 | AL197: 100 | AM197: 105.7133874 | AN197: 100 | AO197: 0
A198: 20160108:1545 | B198: 2016-01-09 | C198: 2016-01-09 | D198: 2016 | E198: 1 | F198: =LOOKUP(E198,Temperature!Q:Q,Temperature!R:R) -> 3 | G198: =LOOKUP(E198,Temperature!Q:Q,Temperature!S:S) -> 31 | H198: 2016-03-31 | I198: 0 | J198: 0 | K198: 24.9 | L198: 2 | M198: 0 | N198: 1200 | O198: 0 | P198: -0.2 | Q198: -0.004 | R198: 0.0008 | S198: 0 | T198: 0 | U198: 100 | V198: 0 | W198: 0 | X198: 0 | Y198: 600 | Z198: 494.2866126 | AA198: 200 | AB198: 0 | AC198: 0 | AD198: 100 | AE198: 78 | AF198: 27.71338741 | AG198: 27.71338741 | AI198: 105.7133874 | AJ198: 0 | AK198: 0 | AL198: 27.71338741 | AM198: 78 | AN198: 27.71338741 | AO198: 0
A199: 20160108:1645 | B199: 2016-01-09T01:00:00 | C199: 2016-01-09T01:00:00 | D199: 2016 | E199: 1 | F199: =LOOKUP(E199,Temperature!Q:Q,Temperature!R:R) -> 3 | G199: =LOOKUP(E199,Temperature!Q:Q,Temperature!S:S) -> 31 | H199: 2016-03-31 | I199: 0 | J199: 0 | K199: 24.56 | L199: 1.79 | M199: 0 | N199: 1200 | O199: 0 | P199: -0.2 | Q199: -0.0176 | R199: 0.00352 | S199: 0 | T199: 0 | U199: 100 | V199: 0 | W199: 0 | X199: 0 | Y199: 600 | Z199: 522 | AA199: 200 | AB199: 0 | AC199: 0 | AD199: 100 | AE199: 78 | AF199: 0 | AG199: 0 | AI199: 78 | AJ199: 0 | AK199: 0 | AL199: 0 | AM199: 78 | AN199: 0 | AO199: 0
A200: 20160108:1745 | B200: 2016-01-09T02:00:00 | C200: 2016-01-09T02:00:00 | D200: 2016 | E200: 1 | F200: =LOOKUP(E200,Temperature!Q:Q,Temperature!R:R) -> 3 | G200: =LOOKUP(E200,Temperature!Q:Q,Temperature!S:S) -> 31 | H200: 2016-03-31 | I200: 0 | J200: 0 | K200: 24.41 | L200: 1.59 | M200: 0 | N200: 1200 | O200: 0 | P200: -0.2 | Q200: -0.0236 | R200: 0.00472 | S200: 0 | T200: 0 | U200: 100 | V200: 0 | W200: 0 | X200: 0 | Y200: 600 | Z200: 522 | AA200: 200 | AB200: 0 | AC200: 0 | AD200: 100 | AE200: 78 | AF200: 0 | AG200: 0 | AI200: 78 | AJ200: 0 | AK200: 0 | AL200: 0 | AM200: 78 | AN200: 0 | AO200: 0
A201: 20160108:1845 | B201: 2016-01-09T03:00:00 | C201: 2016-01-09T03:00:00 | D201: 2016 | E201: 1 | F201: =LOOKUP(E201,Temperature!Q:Q,Temperature!R:R) -> 3 | G201: =LOOKUP(E201,Temperature!Q:Q,Temperature!S:S) -> 31 | H201: 2016-03-31 | I201: 0 | J201: 0 | K201: 24.39 | L201: 1.31 | M201: 0 | N201: 1200 | O201: 0 | P201: -0.2 | Q201: -0.0244 | R201: 0.00488 | S201: 0 | T201: 0 | U201: 100 | V201: 0 | W201: 0 | X201: 0 | Y201: 600 | Z201: 522 | AA201: 200 | AB201: 0 | AC201: 0 | AD201: 100 | AE201: 78 | AF201: 0 | AG201: 0 | AI201: 78 | AJ201: 0 | AK201: 0 | AL201: 0 | AM201: 78 | AN201: 0 | AO201: 0
... 2045 more rows

Sheet Temperature
G6: Percent | H6: Percent
E7: Temp C | F7: STC Temp | G7: vs STC | H7: Change prod
E8: =Inputs!$G$7 -> -0.2 | F8: 25 | L8: Effect
D9: 50 | E9: =$E$8 -> -0.2 | F9: =F8 -> 25 | G9: =D9/F9-1 -> 1 | H9: =G9*E9 -> -0.2 | K9: =D9 -> 50 | L9: =H9 -> -0.2
D10: =D9-1 -> 49 | E10: =$E$8 -> -0.2 | F10: =F9 -> 25 | G10: =D10/F10-1 -> 0.96 | H10: =G10*E10 -> -0.192 | K10: =D10 -> 49 | L10: =H10 -> -0.192
D11: =D10-1 -> 48 | E11: -0.2 | F11: 25 | G11: 0.92 | H11: -0.184 | K11: 48 | L11: -0.184
D12: 47 | E12: -0.2 | F12: 25 | G12: 0.88 | H12: -0.176 | K12: 47 | L12: -0.176
D13: 46 | E13: -0.2 | F13: 25 | G13: 0.84 | H13: -0.168 | K13: 46 | L13: -0.168
D14: 45 | E14: -0.2 | F14: 25 | G14: 0.8 | H14: -0.16 | K14: 45 | L14: -0.16
D15: 44 | E15: -0.2 | F15: 25 | G15: 0.76 | H15: -0.152 | K15: 44 | L15: -0.152
D16: 43 | E16: -0.2 | F16: 25 | G16: 0.72 | H16: -0.144 | K16: 43 | L16: -0.144
D17: 42 | E17: -0.2 | F17: 25 | G17: 0.68 | H17: -0.136 | K17: 42 | L17: -0.136
D18: 41 | E18: -0.2 | F18: 25 | G18: 0.64 | H18: -0.128 | K18: 41 | L18: -0.128
D19: 40 | E19: -0.2 | F19: 25 | G19: 0.6 | H19: -0.12 | K19: 40 | L19: -0.12
D20: 39 | E20: -0.2 | F20: 25 | G20: 0.56 | H20: -0.112 | K20: 39 | L20: -0.112 | Q20: Month | R20: Qtr | S20: Day
D21: 38 | E21: -0.2 | F21: 25 | G21: 0.52 | H21: -0.104 | K21: 38 | L21: -0.104 | Q21: 1 | R21: 3 | S21: 31
D22: 37 | E22: -0.2 | F22: 25 | G22: 0.48 | H22: -0.096 | K22: 37 | L22: -0.096 | Q22: 2 | R22: 3 | S22: 31
D23: 36 | E23: -0.2 | F23: 25 | G23: 0.44 | H23: -0.088 | K23: 36 | L23: -0.088 | Q23: 3 | R23: 3 | S23: 31
D24: 35 | E24: -0.2 | F24: 25 | G24: 0.4 | H24: -0.08 | K24: 35 | L24: -0.08 | Q24: 4 | R24: 6 | S24: 30
D25: 34 | E25: -0.2 | F25: 25 | G25: 0.36 | H25: -0.072 | K25: 34 | L25: -0.072 | Q25: 5 | R25: 6 | S25: 30
D26: 33 | E26: -0.2 | F26: 25 | G26: 0.32 | H26: -0.064 | K26: 33 | L26: -0.064 | Q26: 6 | R26: 6 | S26: 30
D27: 32 | E27: -0.2 | F27: 25 | G27: 0.28 | H27: -0.056 | K27: 32 | L27: -0.056 | Q27: 7 | R27: 9 | S27: 30
D28: 31 | E28: -0.2 | F28: 25 | G28: 0.24 | H28: -0.048 | K28: 31 | L28: -0.048 | Q28: 8 | R28: 9 | S28: 30
D29: 30 | E29: -0.2 | F29: 25 | G29: 0.2 | H29: -0.04 | K29: 30 | L29: -0.04 | Q29: 9 | R29: 9 | S29: 30
D30: 29 | E30: -0.2 | F30: 25 | G30: 0.16 | H30: -0.032 | K30: 29 | L30: -0.032 | Q30: 10 | R30: 12 | S30: 31
D31: 28 | E31: -0.2 | F31: 25 | G31: 0.12 | H31: -0.024 | K31: 28 | L31: -0.024 | Q31: 11 | R31: 12 | S31: 31
D32: 27 | E32: -0.2 | F32: 25 | G32: 0.08 | H32: -0.016 | K32: 27 | L32: -0.016 | Q32: 12 | R32: 12 | S32: 31
D33: 26 | E33: -0.2 | F33: 25 | G33: 0.04 | H33: -0.008 | K33: 26 | L33: -0.008
D34: 25 | E34: -0.2 | F34: 25 | G34: 0 | H34: 0 | K34: 25 | L34: 0
D35: 24 | E35: -0.2 | F35: 25 | G35: -0.04 | H35: 0.008 | K35: 24 | L35: 0.008
D36: 23 | E36: -0.2 | F36: 25 | G36: -0.08 | H36: 0.016 | K36: 23 | L36: 0.016
D37: 22 | E37: -0.2 | F37: 25 | G37: -0.12 | H37: 0.024 | K37: 22 | L37: 0.024
D38: 21 | E38: -0.2 | F38: 25 | G38: -0.16 | H38: 0.032 | K38: 21 | L38: 0.032
D39: 20 | E39: -0.2 | F39: 25 | G39: -0.2 | H39: 0.04 | K39: 20 | L39: 0.04
D40: 19 | E40: -0.2 | F40: 25 | G40: -0.24 | H40: 0.048 | K40: 19 | L40: 0.048
D41: 18 | E41: -0.2 | F41: 25 | G41: -0.28 | H41: 0.056 | K41: 18 | L41: 0.056
D42: 17 | E42: -0.2 | F42: 25 | G42: -0.32 | H42: 0.064 | K42: 17 | L42: 0.064
